{"text_format":"3","workbook":"xlsx","n_sheets":3,"sheets":["Выпуск 2023","Выпуск 2024","Выпуск 2025"],"read":"whole","date_system":"1900"}

{"sheet":"Выпуск 2023","index":0,"n_rows":626,"n_cols":60,"rows_kept":626,"merged":[[0,1,0,5],[0,11,0,13],[0,19,0,27],[0,28,0,35],[0,36,0,43]]}
[{"$nulls":11},"Факт трудоустройства (по состоянию на 25.08.2025)",{"$nulls":7},"Иные формы занятости",{"$nulls":8},"Иное",{"$nulls":7},"Зоны риска"]
["ПОО","Код и наименование профессии, специальности","Доля трудоустройства (%)","Доля занятости (%)","Общая численность выпускников, завершивших обучение \n\nв 2023 году","из них (из 2): имеют заключенный договор о целевом обучении","из них (из 2): обучались по программам Профессионалитета","Трудоустроены \n(в соответствии с трудовым законодательством, законодательством об обязательном пенсионном страховании)","из них (из 3): имеют заключенный договор о целевом обучении","из них (из 3): обучались по программам Профессионалитета","из них (из 3): трудоустроены по полученной профессии, специальности","из них (из 3.3): трудоустроились на предприятия Челябинской области","из них (из 3.3): обучались по программам Профессионалитета","из них (из 3): продолжат обучение (совмещая работу и учебу)","из них (из 3.5): обучались по программам Профессионалитета","из них (из 3): трудоустроены у иного работодателя","из них (из 3.7): обучались по программам Профессионалитета","из них (из 3): проходят службу в армии на контрактной основе, в органах внутренних дел, Государственной противопожарной службе, органах по контролю за оборотом наркотических средств и психотропных веществ, учреждениях и органах уголовно-исполнительной системы, войсках национальной гвардии РФ, органах принудительного исполнения РФ","из них (из 3.9): обучались по программам Профессионалитета","Зарегистрированы в качестве индивидуального предпринимателя или оформили самозанятость","из них (из 4) зарегистрированы в качестве индивидуального предпринимателя","из них (из 4) оформили самозанятость","Продолжили обучение и не трудоустроились (не планируют трудоустройство, предпринимательство, самозанятость)","из них (из 5): обучались по программам Профессионалитета","Призваны в Вооруженные Силы РФ","из них (из 6): обучались по программам Профессионалитета","Находятся в отпуске по уходу за ребенком","из них (из 7): обучались по программам Профессионалитета","Находятся под следствием, отбывают наказание","из них (из 8): обучались по программам Профессионалитета","Ухаживают за больными родственниками (иные семейные обстоятельства)","из них (из 9): обучались по программам Профессионалитета","Переехали (планируют переезд) за пределы Российской Федерации","из них (из 10): обучались по программам Профессионалитета","Тяжелое состояние здоровья, не позволяющее трудоустраиваться; смерть","из них (из 11): обучались по программам Профессионалитета","Зарегистрированы в центрах занятости в качестве безработных (получают пособие по безработице)","из них (из 12): обучались по программам Профессионалитета","Не имеют мотивации к трудоустройству и не планируют трудоустраиваться, в том числе по причинам получения иных социальных льгот","из них (из 13): обучались по программам Профессионалитета","Отсутствует спрос на специалистов в регионе, находятся в поиске работы","из них (из 14): обучались по программам Профессионалитета","Неофициальная занятость","из них (из 15): обучались по программам Профессионалитета",{"$nulls":12},"Наименование ПОО",null,null,"Код и наименование профессии, специальности"]
["выбрать из списка","выбрать из списка","1.1","1.2",2,"2.1","2.2",3,"3.1","3.2","3.3","3.3.1","3.4","3.5","3.6","3.7","3.8","3.9","3.10","4","4.1","4.2","5","5.1","6","6.1","7","7.1","8","8.1","9","9.1","10","10.1","11","11.1","12","12.1","13","13.1","14","14.1","15","15.1",{"$nulls":12},"ГБПОУ «Ашинский индустриальный техникум»",null,null,"05.01.01 Гидрометнаблюдатель"]
[null,null,{"$f":"(H4+T4)/E4*100","v":261.9047619047619},{"$f":"(H4+T4+Y4)/(E4-W4-AA4)*100","v":289.4736842105263},{"$f":"SUBTOTAL(9,E6:E184)","v":21},{"$f":"SUBTOTAL(9,F5:F183)","v":0},{"$f":"SUBTOTAL(9,G5:G183)","v":0},{"$f":"SUBTOTAL(9,H5:H183)","v":54},0,0,39,37,0,0,0,15,0,0,0,1,1,0,1,0,0,0,1,0,0,0,13,0,0,0,0,0,0,0,0,0,0,0,0,0,{"$nulls":12},"ГБПОУ «Бакальский техникум профессиональных технологий и сервиса им. М.Г. Ганиева»",null,null,"05.02.01 Картография"]
["ГБПОУ «Симский механический техникум»","15.02.08 Технология машиностроения",79.59183673469387,79.59183673469387,{"$f":"H5+T5+W5+Y5+AA5+AC5+AE5+AG5+AI5+AK5+AM5+AO5+AQ5","v":49},0,0,{"$f":"SUM(K5,N5,P5,R5,)","v":38},0,0,26,25,0,0,0,12,0,0,0,{"$f":"SUM(U5,V5)","v":1},1,0,0,0,0,0,0,0,0,0,10,0,0,0,0,0,0,0,0,0,0,0,0,0,{"$nulls":12},"ГБПОУ «Верхнеуральский агротехнологический техникум – казачий кадетский корпус»",null,null,"05.02.02 Гидрология"]
["ГБПОУ «Симский механический техникум»","15.02.15 Технология металлообрабатывающего производства",76.19047619047619,84.21052631578947,{"$f":"H6+T6+W6+Y6+AA6+AC6+AE6+AG6+AI6+AK6+AM6+AO6+AQ6","v":21},0,0,{"$f":"SUM(K6,N6,P6,R6,)","v":16},0,0,13,12,0,0,0,3,0,0,0,{"$f":"SUM(U6,V6)","v":0},0,0,1,0,0,0,1,0,0,0,3,0,0,0,0,0,0,0,0,0,0,0,0,0,{"$nulls":12},"ГБПОУ «Златоустовский индустриальный колледж им. П.П. Аносова»",null,null,"05.02.03 Метеорология"]
[null,null,{"$error":"#DIV/0!"},{"$error":"#DIV/0!"},0,0,0,0,{"$nulls":11},0,{"$nulls":36},"ГБПОУ «Златоустовский педагогический колледж»",null,null,"07.02.01 Архитектура"]
[null,null,{"$error":"#DIV/0!"},{"$error":"#DIV/0!"},0,0,0,0,{"$nulls":11},0,{"$nulls":36},"ГБОУ ПОО «Златоустовский техникум технологий и экономики»",null,null,"08.01.01 Изготовитель арматурных сеток и каркасов"]
[null,null,{"$error":"#DIV/0!"},{"$error":"#DIV/0!"},0,0,0,0,{"$nulls":11},0,{"$nulls":36},"ГБПОУ «Карталинский многоотраслевой техникум»",null,null,"08.01.02 Монтажник трубопроводов"]
[null,null,{"$error":"#DIV/0!"},{"$error":"#DIV/0!"},0,0,0,0,{"$nulls":11},0,{"$nulls":36},"ГБПОУ «Каслинский промышленно-гуманитарный техникум»",null,null,"08.01.04 Кровельщик"]
[null,null,{"$error":"#DIV/0!"},{"$error":"#DIV/0!"},0,0,0,0,{"$nulls":11},0,{"$nulls":36},"ГБПОУ «Катав-Ивановский индустриальный техникум»",null,null,"08.01.05 Мастер столярно-плотничных и паркетных работ"]
[null,null,{"$error":"#DIV/0!"},{"$error":"#DIV/0!"},0,0,0,0,{"$nulls":11},0,{"$nulls":36},"ГБПОУ «Копейский политехнический колледж имени С.В. Хохрякова»",null,null,"08.01.06 Мастер сухого строительства"]
[null,null,{"$error":"#DIV/0!"},{"$error":"#DIV/0!"},0,0,0,0,{"$nulls":11},0,{"$nulls":36},"ГБПОУ «Коркинский горно-строительный техникум»",null,null,"08.01.07 Мастер общестроительных работ"]
[null,null,{"$error":"#DIV/0!"},{"$error":"#DIV/0!"},0,0,0,0,{"$nulls":11},0,{"$nulls":36},"ГБПОУ «Магнитогорский педагогический колледж»",null,null,"08.01.08 Мастер отделочных строительных работ"]
[null,null,{"$error":"#DIV/0!"},{"$error":"#DIV/0!"},0,0,0,0,{"$nulls":11},0,{"$nulls":36},"ГБПОУ «Магнитогорский строительно-монтажный техникум»",null,null,"08.01.09 Слесарь по строительно-монтажным работам"]
[null,null,{"$error":"#DIV/0!"},{"$error":"#DIV/0!"},0,0,0,0,{"$nulls":11},0,{"$nulls":36},"ГБОУ ПОО «Магнитогорский технологический колледж им. В.П. Омельченко» ",null,null,"08.01.10 Мастер жилищно-коммунального хозяйства"]
[null,null,{"$error":"#DIV/0!"},{"$error":"#DIV/0!"},0,0,0,0,{"$nulls":11},0,{"$nulls":36},"ГБПОУ «Миасский геологоразведочный колледж»",null,null,"08.01.11 Машинист машин и оборудования в производстве цемента"]
[null,null,{"$error":"#DIV/0!"},{"$error":"#DIV/0!"},0,0,0,0,{"$nulls":11},0,{"$nulls":36},"ГБПОУ «Миасский машиностроительный колледж»",null,null,"08.01.13 Изготовитель железобетонных изделий"]
[null,null,{"$error":"#DIV/0!"},{"$error":"#DIV/0!"},0,0,0,0,{"$nulls":11},0,{"$nulls":36},"ГБПОУ «Миасский педагогический колледж»",null,null,"08.01.14 Монтажник санитарно-технических, вентиляционных систем и оборудования"]
[null,null,{"$error":"#DIV/0!"},{"$error":"#DIV/0!"},0,0,0,0,{"$nulls":11},0,{"$nulls":36},"ГБПОУ «Озерский технический колледж»",null,null,"08.01.15 Слесарь по изготовлению деталей и узлов технических систем в строительстве"]
[null,null,{"$error":"#DIV/0!"},{"$error":"#DIV/0!"},0,0,0,0,{"$nulls":11},0,{"$nulls":36},"ГБПОУ «Первомайский техникум промышленности строительных материалов»",null,null,"08.01.16 Электромонтажник по сигнализации, централизации и блокировке"]
[null,null,{"$error":"#DIV/0!"},{"$error":"#DIV/0!"},0,0,0,0,{"$nulls":11},0,{"$nulls":36},"ГБПОУ «Пластовский горно-технологический колледж»",null,null,"08.01.17 Электромонтажник-наладчик"]
[null,null,{"$error":"#DIV/0!"},{"$error":"#DIV/0!"},0,0,0,0,{"$nulls":11},0,{"$nulls":36},"ГАПОУ Челябинской области «Политехнический колледж»",null,null,"08.01.18 Электромонтажник электрических сетей и электрооборудования"]
[null,null,{"$error":"#DIV/0!"},{"$error":"#DIV/0!"},0,0,0,0,{"$nulls":11},0,{"$nulls":36},"ГБПОУ «Саткинский горно-керамический колледж имени А.К. Савина»",null,null,"08.01.19 Электромонтажник по силовым сетям и электрооборудованию"]
[null,null,{"$error":"#DIV/0!"},{"$error":"#DIV/0!"},0,0,0,0,{"$nulls":11},0,{"$nulls":36},"ГБПОУ «Симский механический техникум»",null,null,"08.01.21 Монтажник электрических подъемников (лифтов)"]
[null,null,{"$error":"#DIV/0!"},{"$error":"#DIV/0!"},0,0,0,0,{"$nulls":11},0,{"$nulls":36},"ГБПОУ «Троицкий педагогический колледж»",null,null,"08.01.22 Мастер путевых машин"]
[null,null,{"$error":"#DIV/0!"},{"$error":"#DIV/0!"},0,0,0,0,{"$nulls":11},0,{"$nulls":36},"ГБПОУ «Троицкий технологический техникум»",null,null,"08.01.23 Бригадир-путеец"]
[null,null,{"$error":"#DIV/0!"},{"$error":"#DIV/0!"},0,0,0,0,{"$nulls":11},0,{"$nulls":36},"ГБПОУ «Усть-Катавский индустриально-технологический техникум»",null,null,"08.01.24 Мастер столярно-плотничных, паркетных и стекольных работ"]
[null,null,{"$error":"#DIV/0!"},{"$error":"#DIV/0!"},0,0,0,0,{"$nulls":11},0,{"$nulls":36},"ГБПОУ «Чебаркульский профессиональный техникум»",null,null,"08.01.25 Мастер отделочных строительных и декоративных работ"]
[null,null,{"$error":"#DIV/0!"},{"$error":"#DIV/0!"},0,0,0,0,{"$nulls":11},0,{"$nulls":36},"ГБПОУ «Челябинский автотранспортный техникум» ",null,null,"08.01.26 Мастер по ремонту и обслуживанию инженерных систем жилищно-коммунального хозяйства"]
[null,null,{"$error":"#DIV/0!"},{"$error":"#DIV/0!"},0,0,0,0,{"$nulls":11},0,{"$nulls":36},"ГБПОУ «Челябинский государственный колледж «Рост»",null,null,"08.01.27 Мастер общестроительных работ"]
[null,null,{"$error":"#DIV/0!"},{"$error":"#DIV/0!"},0,0,0,0,{"$nulls":11},0,{"$nulls":36},"ГБПОУ «Челябинский государственный колледж индустрии питания и торговли»",null,null,"08.01.28 Мастер отделочных строительных и декоративных работ"]
[null,null,{"$error":"#DIV/0!"},{"$error":"#DIV/0!"},0,0,0,0,{"$nulls":11},0,{"$nulls":36},"ГБПОУ «Челябинский государственный промышленно-гуманитарный техникум им. А.В. Яковлева»",null,null,"08.01.29 Мастер по ремонту и обслуживанию инженерных систем жилищно-коммунального хозяйства"]
[null,null,{"$error":"#DIV/0!"},{"$error":"#DIV/0!"},0,0,0,0,{"$nulls":11},0,{"$nulls":36},"ГБПОУ «Челябинский колледж индустриальных технологий «Профи» имени Я. П. Осадчего»",null,null,"08.01.30 Электромонтажник слаботочных систем"]
[null,null,{"$error":"#DIV/0!"},{"$error":"#DIV/0!"},0,0,0,0,{"$nulls":11},0,{"$nulls":36},"ГБПОУ «Челябинский механико-технологический техникум»",null,null,"08.01.31 Электромонтажник электрических сетей и электрооборудования"]
[null,null,{"$error":"#DIV/0!"},{"$error":"#DIV/0!"},0,0,0,0,{"$nulls":11},0,{"$nulls":36},"ГБПОУ «Челябинский педагогический колледж №1»",null,null,"08.01.32 Мастер аварийно-восстановительных работ на сетях водоснабжения и водоотведения"]
[null,null,{"$error":"#DIV/0!"},{"$error":"#DIV/0!"},0,0,0,0,{"$nulls":11},0,{"$nulls":36},"ГБПОУ «Челябинский педагогический колледж №2»",null,null,"08.02.01 Строительство и эксплуатация зданий и сооружений"]
[null,null,{"$error":"#DIV/0!"},{"$error":"#DIV/0!"},0,0,0,0,{"$nulls":11},0,{"$nulls":36},"ГБПОУ «Челябинский профессиональный колледж» ",null,null,"08.02.02 Строительство и эксплуатация инженерных сооружений"]
[null,null,{"$error":"#DIV/0!"},{"$error":"#DIV/0!"},0,0,0,0,{"$nulls":11},0,{"$nulls":36},"ГБПОУ «Челябинский радиотехнический техникум»",null,null,"08.02.03 Производство неметаллических строительных изделий и конструкций"]
[null,null,{"$error":"#DIV/0!"},{"$error":"#DIV/0!"},0,0,0,0,{"$nulls":11},0,{"$nulls":36},"ГБПОУ «Челябинский социально-профессиональный колледж «Сфера»",null,null,"08.02.04 Водоснабжение и водоотведение"]
[null,null,{"$error":"#DIV/0!"},{"$error":"#DIV/0!"},0,0,0,0,{"$nulls":11},0,{"$nulls":36},"ГБПОУ «Челябинский энергетический колледж им. С.М. Кирова»",null,null,"08.02.05 Строительство и эксплуатация автомобильных дорог и аэродромов"]
[null,null,{"$error":"#DIV/0!"},{"$error":"#DIV/0!"},0,0,0,0,{"$nulls":11},0,{"$nulls":36},"ГБПОУ «Южно-Уральский агропромышленный колледж»",null,null,"08.02.06 Строительство и эксплуатация городских путей сообщения"]
[null,null,{"$error":"#DIV/0!"},{"$error":"#DIV/0!"},0,0,0,0,{"$nulls":11},0,{"$nulls":36},"ГБПОУ «Южно-Уральский государственный колледж»",null,null,"08.02.07 Монтаж и эксплуатация внутренних сантехнических устройств, кондиционирования воздуха и вентиляции"]
[null,null,{"$error":"#DIV/0!"},{"$error":"#DIV/0!"},0,0,0,0,{"$nulls":11},0,{"$nulls":36},"ГБПОУ «Южно-Уральский государственный технический колледж»",null,null,"08.02.08 Монтаж и эксплуатация оборудования и систем газоснабжения"]
[null,null,{"$error":"#DIV/0!"},{"$error":"#DIV/0!"},0,0,0,0,{"$nulls":11},0,{"$nulls":36},"ГБПОУ «Южно-Уральский многопрофильный колледж»",null,null,"08.02.09 Монтаж, наладка и эксплуатация электрооборудования промышленных и гражданских зданий"]
[null,null,{"$error":"#DIV/0!"},{"$error":"#DIV/0!"},0,0,0,0,{"$nulls":11},0,{"$nulls":36},"ГБПОУ «Южноуральский энергетический техникум»",null,null,"08.02.10 Строительство железных дорог, путь и путевое хозяйство"]
[null,null,{"$error":"#DIV/0!"},{"$error":"#DIV/0!"},0,0,0,0,{"$nulls":11},0,{"$nulls":36},"ГБПОУ «Юрюзанский технологический техникум»",null,null,"08.02.11 Управление, эксплуатация и обслуживание многоквартирного дома"]
[null,null,{"$error":"#DIV/0!"},{"$error":"#DIV/0!"},0,0,0,0,{"$nulls":11},0,{"$nulls":36},"ГБПОУ Челябинской области «Миасский государственный колледж искусства и культуры»",null,null,"08.02.12 Строительство и эксплуатация автомобильных дорог, аэродромов и городских путей сообщения"]
[null,null,{"$error":"#DIV/0!"},{"$error":"#DIV/0!"},0,0,0,0,{"$nulls":11},0,{"$nulls":36},"ГБПОУ Челябинской области «Озерский государственный колледж искусств»",null,null,"08.02.13 Монтаж и эксплуатация внутренних сантехнических устройств, кондиционирования воздуха и вентиляции"]
[null,null,{"$error":"#DIV/0!"},{"$error":"#DIV/0!"},0,0,0,0,{"$nulls":11},0,{"$nulls":36},"ГБПОУ «Златоустовский медицинский техникум»",null,null,"08.02.14 Эксплуатация и обслуживание многоквартирного дома"]
[null,null,{"$error":"#DIV/0!"},{"$error":"#DIV/0!"},0,0,0,0,{"$nulls":11},0,{"$nulls":36},"ГБПОУ «Копейский медицинский техникум»",null,null,"08.02.15 Информационное моделирование в строительстве"]
[null,null,{"$error":"#DIV/0!"},{"$error":"#DIV/0!"},0,0,0,0,{"$nulls":11},0,{"$nulls":36},"ГБПОУ «Магнитогорский медицинский колледж им. П.Ф. Надеждина»",null,null,"09.01.01 Наладчик аппаратного и программного обеспечения"]
[null,null,{"$error":"#DIV/0!"},{"$error":"#DIV/0!"},0,0,0,0,{"$nulls":11},0,{"$nulls":36},"ГБПОУ «Миасский медицинский колледж»",null,null,"09.01.02 Наладчик компьютерных сетей"]
[null,null,{"$error":"#DIV/0!"},{"$error":"#DIV/0!"},0,0,0,0,{"$nulls":11},0,{"$nulls":36},"ГБПОУ «Саткинский медицинский техникум»",null,null,"09.01.03 Мастер по обработке цифровой информации"]
[null,null,{"$error":"#DIV/0!"},{"$error":"#DIV/0!"},0,0,0,0,{"$nulls":11},0,{"$nulls":36},"ГБПОУ «Троицкий медицинский колледж»",null,null,"09.01.03 Оператор информационных систем и ресурсов"]
[null,null,{"$error":"#DIV/0!"},{"$error":"#DIV/0!"},0,0,0,0,{"$nulls":11},0,{"$nulls":36},"ГБПОУ «Челябинский медицинский колледж»",null,null,"09.01.04 Наладчик аппаратных и программных средств инфокоммуникационных систем"]
[null,null,{"$error":"#DIV/0!"},{"$error":"#DIV/0!"},0,0,0,0,{"$nulls":11},0,{"$nulls":36},"ЧПОУ «Академический колледж»",null,null,"09.01.05 Оператор технической поддержки"]
[null,null,{"$error":"#DIV/0!"},{"$error":"#DIV/0!"},0,0,0,0,{"$nulls":11},0,{"$nulls":36},"ПОУ «Златоустовский юридический колледж «ИЦЫЛ»",null,null,"09.02.01 Компьютерные системы и комплексы"]
[null,null,{"$error":"#DIV/0!"},{"$error":"#DIV/0!"},0,0,0,0,{"$nulls":11},0,{"$nulls":36},"ПОУ «Колледж предпринимательства и отраслевых технологий»",null,null,"09.02.02 Компьютерные сети"]
[null,null,{"$error":"#DIV/0!"},{"$error":"#DIV/0!"},0,0,0,0,{"$nulls":11},0,{"$nulls":36},"ПОУ «Колледж управления и права»",null,null,"09.02.03 Программирование в компьютерных системах"]
[null,null,{"$error":"#DIV/0!"},{"$error":"#DIV/0!"},0,0,0,0,{"$nulls":11},0,{"$nulls":36},"ЧПОУ «Магнитогорский колледж современного образования»",null,null,"09.02.04 Информационные системы (по отраслям)"]
[null,null,{"$error":"#DIV/0!"},{"$error":"#DIV/0!"},0,0,0,0,{"$nulls":11},0,{"$nulls":36},"ЧПОУ «Уральский гуманитарный колледж»",null,null,"09.02.05 Прикладная информатика (по отраслям)"]
[null,null,{"$error":"#DIV/0!"},{"$error":"#DIV/0!"},0,0,0,0,{"$nulls":11},0,{"$nulls":36},"АНН ПОО «Уральский медицинский колледж»",null,null,"09.02.06 Сетевое и системное администрирование"]
[null,null,{"$error":"#DIV/0!"},{"$error":"#DIV/0!"},0,0,0,0,{"$nulls":11},0,{"$nulls":36},"ПОУ «Уральский региональный колледж»",null,null,"09.02.07 Информационные системы и программирование"]
[null,null,{"$error":"#DIV/0!"},{"$error":"#DIV/0!"},0,0,0,0,{"$nulls":11},0,{"$nulls":36},"АНН ПОО «Челябинский колледж Комитент»",null,null,"09.02.08 Интеллектуальные интегрированные системы"]
[null,null,{"$error":"#DIV/0!"},{"$error":"#DIV/0!"},0,0,0,0,{"$nulls":11},0,{"$nulls":36},"ПОУ «Челябинский юридический колледж»",null,null,"09.02.09 Веб-разработка"]
[null,null,{"$error":"#DIV/0!"},{"$error":"#DIV/0!"},0,0,0,0,{"$nulls":11},0,{"$nulls":36},"ЧУ ПОО «Южно-Уральский колледж бизнеса»",null,null,"09.02.10 Разработка компьютерных игр, дополненной и виртуальной реальности"]
[null,null,{"$f":"(H68+T68)/E68*100","v":{"$error":"#DIV/0!"}},{"$f":"(H68+T68+Y68)/(E68-W68-AA68)*100","v":{"$error":"#DIV/0!"}},0,0,0,0,{"$nulls":11},0,{"$nulls":36},"ГБОУ ВО ЧО «Магнитогорская государственная консерватория (академия) им. М.И. Глинки»",null,null,"09.02.11 Разработка и управление программным обеспечением"]
[null,null,{"$error":"#DIV/0!"},{"$error":"#DIV/0!"},0,0,0,0,{"$nulls":11},0,{"$nulls":36},"ФГБОУ ВО «Магнитогорский государственный технический университет им. Г.И. Носова»",null,null,"09.02.12 Техническая эксплуатация и сопровождение информационных систем"]
[null,null,{"$error":"#DIV/0!"},{"$error":"#DIV/0!"},{"$f":"H70+T70+W70+Y70+AA70+AC70+AE70+AG70+AI70+AK70+AM70+AO70+AQ70","v":0},0,0,{"$f":"SUM(K70,N70,P70,R70,)","v":0},{"$nulls":11},{"$f":"SUM(U70,V70)","v":0},{"$nulls":36},"ЧОУ ВО «Международный Институт Дизайна и Сервиса»",null,null,"09.02.13 Интеграция решений с применением технологий искусственного интеллекта"]
[null,null,{"$error":"#DIV/0!"},{"$error":"#DIV/0!"},0,0,0,0,{"$nulls":11},0,{"$nulls":36},"ФГБОУ ВО «Уральский государственный университет физической культуры»",null,null,"10.02.01 Организация и технология защиты информации"]
[null,null,{"$error":"#DIV/0!"},{"$error":"#DIV/0!"},0,0,0,0,{"$nulls":11},0,{"$nulls":36},"ФГБОУ ВО «Челябинский государственный университет»",null,null,"10.02.02 Информационная безопасность телекоммуникационных систем"]
[null,null,{"$error":"#DIV/0!"},{"$error":"#DIV/0!"},0,0,0,0,{"$nulls":11},0,{"$nulls":36},"ФГБОУ ВО «Южно-Уральский государственный аграрный университет»",null,null,"10.02.03 Информационная безопасность автоматизированных систем"]
[null,null,{"$error":"#DIV/0!"},{"$error":"#DIV/0!"},0,0,0,0,{"$nulls":11},0,{"$nulls":36},"ФГОУ ВО «Южно-Уральский государственный гуманитарно-педагогический университет»",null,null,"10.02.04 Обеспечение информационной безопасности телекоммуникационных систем"]
[null,null,{"$error":"#DIV/0!"},{"$error":"#DIV/0!"},0,0,0,0,{"$nulls":11},0,{"$nulls":36},"ГБОУ ВО «Южно-Уральский государственный институт искусств им. П.И. Чайковского»",null,null,"10.02.05 Обеспечение информационной безопасности автоматизированных систем"]
[null,null,{"$error":"#DIV/0!"},{"$error":"#DIV/0!"},0,0,0,0,{"$nulls":11},0,{"$nulls":36},"ФГБОУ ВО «Южно-Уральский государственный медицинский университет» ",null,null,"11.01.01 Монтажник радиоэлектронной аппаратуры и приборов"]
[null,null,{"$error":"#DIV/0!"},{"$error":"#DIV/0!"},0,0,0,0,{"$nulls":11},0,{"$nulls":36},"ФГАОУ ВО «Южно-Уральский государственный университет (НИУ)»",null,null,"11.01.02 Радиомеханик"]
[null,null,{"$error":"#DIV/0!"},{"$error":"#DIV/0!"},0,0,0,0,{"$nulls":11},0,{"$nulls":36},"Златоустовский медико-технологический колледж филиал ФГБОУ ВО «Уральский государственный университет путей сообщения» в г. Златоусте",null,null,"11.01.05 Монтажник связи"]
[null,null,{"$error":"#DIV/0!"},{"$error":"#DIV/0!"},0,0,0,0,{"$nulls":11},0,{"$nulls":36},"Озерский технологический институт - филиал ФГАОУ ВО «Национальный исследовательский ядерный университет «МИФИ»",null,null,"11.01.06 Электромонтер оборудования электросвязи и проводного вещания"]
[null,null,{"$error":"#DIV/0!"},{"$error":"#DIV/0!"},0,0,0,0,{"$nulls":11},0,{"$nulls":36},"Челябинский филиал ФГБОУ ВО «Российская академия народного хозяйства и государственной службы при Президенте Российской Федерации»",null,null,"11.01.07 Электромонтер по ремонту линейно-кабельных сооружений телефонной связи и проводного вещания"]
[null,null,{"$error":"#DIV/0!"},{"$error":"#DIV/0!"},0,0,0,0,{"$nulls":11},0,{"$nulls":36},"Уральский филиал ФГБОУ ВО «Российский государственный университет правосудия»",null,null,"11.01.08 Оператор почтовой связи"]
[null,null,{"$error":"#DIV/0!"},{"$error":"#DIV/0!"},0,0,0,0,{"$nulls":11},0,{"$nulls":36},"Снежинский физико-технический институт - филиал ФГАОУ ВО «Национальный исследовательский ядерный университет «МИФИ»",null,null,"11.01.08 Оператор связи"]
[null,null,{"$error":"#DIV/0!"},{"$error":"#DIV/0!"},0,0,0,0,{"$nulls":11},0,{"$nulls":36},"Трехгорный технологический институт - филиал ФГАОУ ВО «Национальный исследовательский ядерный университет «МИФИ»",null,null,"11.01.11 Наладчик технологического оборудования (электронная техника)"]
[null,null,{"$error":"#DIV/0!"},{"$error":"#DIV/0!"},0,0,0,0,{"$nulls":11},0,{"$nulls":36},"Троицкий авиационный технический колледж - филиал ГБОУ ВО «Московский государственный технический университет гражданской авиации» (МГТУ ГА)",null,null,"11.01.14 Оператор автоматической линии сборки радиоэлектронной аппаратуры и приборов"]
[null,null,{"$error":"#DIV/0!"},{"$error":"#DIV/0!"},0,0,0,0,{"$nulls":11},0,{"$nulls":36},"Уральский социально-экономический институт (филиал) образовательное учреждение профсоюзов высшего образования «Академия труда и социальных отношений»",null,null,"11.02.01 Радиоаппаратостроение"]
[null,null,{"$error":"#DIV/0!"},{"$error":"#DIV/0!"},0,0,0,0,{"$nulls":11},0,{"$nulls":36},"Уральский филиал ФГБОУ ВО «Финансовый университет при Правительстве Российской Федерации»",null,null,"11.02.02 Техническое обслуживание и ремонт радиоэлектронной техники (по отраслям)"]
[null,null,{"$error":"#DIV/0!"},{"$error":"#DIV/0!"},0,0,0,0,{"$nulls":11},0,{"$nulls":36},"Челябинский институт путей сообщения - филиал ФГБОУ ВО «Уральский государственный университет путей сообщения»",null,null,"11.02.03 Эксплуатация оборудования радиосвязи и электрорадионавигации судов"]
[null,null,{"$error":"#DIV/0!"},{"$error":"#DIV/0!"},0,0,0,0,{"$nulls":11},0,{"$nulls":39},"11.02.04 Радиотехнические комплексы и системы управления космических летательных аппаратов"]
[null,null,{"$error":"#DIV/0!"},{"$error":"#DIV/0!"},0,0,0,0,{"$nulls":11},0,{"$nulls":39},"11.02.05 Аудиовизуальная техника"]
[null,null,{"$error":"#DIV/0!"},{"$error":"#DIV/0!"},0,0,0,0,{"$nulls":11},0,{"$nulls":39},"11.02.06 Техническая эксплуатация транспортного радиоэлектронного оборудования (по видам транспорта)"]
[null,null,{"$error":"#DIV/0!"},{"$error":"#DIV/0!"},0,0,0,0,{"$nulls":11},0,{"$nulls":39},"11.02.07 Радиотехнические информационные системы"]
[null,null,{"$error":"#DIV/0!"},{"$error":"#DIV/0!"},0,0,0,0,{"$nulls":11},0,{"$nulls":39},"11.02.08 Средства связи с подвижными объектами"]
[null,null,{"$error":"#DIV/0!"},{"$error":"#DIV/0!"},0,0,0,0,{"$nulls":11},0,{"$nulls":39},"11.02.09 Многоканальные телекоммуникационные системы"]
[null,null,{"$error":"#DIV/0!"},{"$error":"#DIV/0!"},0,0,0,0,{"$nulls":11},0,{"$nulls":39},"11.02.10 Радиосвязь, радиовещание и телевидение"]
[null,null,{"$error":"#DIV/0!"},{"$error":"#DIV/0!"},0,0,0,0,{"$nulls":11},0,{"$nulls":39},"11.02.11 Сети связи и системы коммутации"]
[null,null,{"$error":"#DIV/0!"},{"$error":"#DIV/0!"},0,0,0,0,{"$nulls":11},0,{"$nulls":39},"11.02.12 Почтовая связь"]
[null,null,{"$error":"#DIV/0!"},{"$error":"#DIV/0!"},0,0,0,0,{"$nulls":11},0,{"$nulls":39},"11.02.13 Твердотельная электроника"]
[null,null,{"$error":"#DIV/0!"},{"$error":"#DIV/0!"},0,0,0,0,{"$nulls":11},0,{"$nulls":39},"11.02.14 Электронные приборы и устройства"]
[null,null,{"$error":"#DIV/0!"},{"$error":"#DIV/0!"},0,0,0,0,{"$nulls":11},0,{"$nulls":39},"11.02.15 Инфокоммуникационные сети и системы связи"]
[null,null,{"$error":"#DIV/0!"},{"$error":"#DIV/0!"},0,0,0,0,{"$nulls":11},0,{"$nulls":39},"11.02.16 Монтаж, техническое обслуживание и ремонт электронных приборов и устройств"]
[null,null,{"$error":"#DIV/0!"},{"$error":"#DIV/0!"},0,0,0,0,{"$nulls":11},0,{"$nulls":39},"11.02.17 Разработка электронных устройств и систем"]
[null,null,{"$error":"#DIV/0!"},{"$error":"#DIV/0!"},0,0,0,0,{"$nulls":11},0,{"$nulls":39},"11.02.18 Системы радиосвязи, мобильной связи и телерадиовещания"]
[null,null,{"$error":"#DIV/0!"},{"$error":"#DIV/0!"},0,0,0,0,{"$nulls":11},0,{"$nulls":39},"11.02.19 Квантовые коммуникации"]
[null,null,{"$error":"#DIV/0!"},{"$error":"#DIV/0!"},0,0,0,0,{"$nulls":11},0,{"$nulls":39},"12.01.02 Оптик-механик"]
[null,null,{"$error":"#DIV/0!"},{"$error":"#DIV/0!"},0,0,0,0,{"$nulls":11},0,{"$nulls":39},"12.01.07 Электромеханик по ремонту и обслуживанию электронной медицинской аппаратуры"]
[null,null,{"$error":"#DIV/0!"},{"$error":"#DIV/0!"},0,0,0,0,{"$nulls":11},0,{"$nulls":39},"12.01.09 Мастер по изготовлению и сборке деталей и узлов оптических и оптико-электронных приборов и систем"]
[null,null,{"$error":"#DIV/0!"},{"$error":"#DIV/0!"},0,0,0,0,{"$nulls":11},0,{"$nulls":39},"12.02.01 Авиационные приборы и комплексы"]
[null,null,{"$error":"#DIV/0!"},{"$error":"#DIV/0!"},0,0,0,0,{"$nulls":11},0,{"$nulls":39},"12.02.03 Радиоэлектронные приборные устройства"]
[null,null,{"$error":"#DIV/0!"},{"$error":"#DIV/0!"},0,0,0,0,{"$nulls":11},0,{"$nulls":39},"12.02.03 Радиоэлектронные приборы и устройства"]
[null,null,{"$error":"#DIV/0!"},{"$error":"#DIV/0!"},0,0,0,0,{"$nulls":11},0,{"$nulls":39},"12.02.04 Электромеханические приборные устройства"]
[null,null,{"$error":"#DIV/0!"},{"$error":"#DIV/0!"},0,0,0,0,{"$nulls":11},0,{"$nulls":39},"12.02.05 Оптические и оптико-электронные приборы и системы"]
[null,null,{"$error":"#DIV/0!"},{"$error":"#DIV/0!"},0,0,0,0,{"$nulls":11},0,{"$nulls":39},"12.02.06 Биотехнические и медицинские аппараты и системы"]
[null,null,{"$error":"#DIV/0!"},{"$error":"#DIV/0!"},0,0,0,0,{"$nulls":11},0,{"$nulls":39},"12.02.07 Монтаж, техническое обслуживание и ремонт медицинской техники"]
[null,null,{"$error":"#DIV/0!"},{"$error":"#DIV/0!"},0,0,0,0,{"$nulls":11},0,{"$nulls":39},"12.02.08 Протезно-ортопедическая и реабилитационная техника"]
[null,null,{"$error":"#DIV/0!"},{"$error":"#DIV/0!"},0,0,0,0,{"$nulls":11},0,{"$nulls":39},"12.02.09 Производство и эксплуатация оптических и оптико-электронных приборов и систем"]
[null,null,{"$error":"#DIV/0!"},{"$error":"#DIV/0!"},0,0,0,0,{"$nulls":11},0,{"$nulls":39},"12.02.10 Монтаж, техническое обслуживание и ремонт биотехнических и медицинских аппаратов и систем"]
[null,null,{"$error":"#DIV/0!"},{"$error":"#DIV/0!"},0,0,0,0,{"$nulls":11},0,{"$nulls":39},"13.01.01 Машинист котлов"]
[null,null,{"$error":"#DIV/0!"},{"$error":"#DIV/0!"},0,0,0,0,{"$nulls":11},0,{"$nulls":39},"13.01.02 Машинист паровых турбин"]
[null,null,{"$error":"#DIV/0!"},{"$error":"#DIV/0!"},0,0,0,0,{"$nulls":11},0,{"$nulls":39},"13.01.03 Электрослесарь по ремонту оборудования электростанций"]
[null,null,{"$error":"#DIV/0!"},{"$error":"#DIV/0!"},0,0,0,0,{"$nulls":11},0,{"$nulls":39},"13.01.04 Слесарь по ремонту оборудования электростанций"]
[null,null,{"$error":"#DIV/0!"},{"$error":"#DIV/0!"},0,0,0,0,{"$nulls":11},0,{"$nulls":39},"13.01.05 Электромонтер по техническому обслуживанию электростанций и сетей"]
[null,null,{"$error":"#DIV/0!"},{"$error":"#DIV/0!"},0,0,0,0,{"$nulls":11},0,{"$nulls":39},"13.01.06 Электромонтер-линейщик по монтажу воздушных линий высокого напряжения и контактной сети"]
[null,null,{"$error":"#DIV/0!"},{"$error":"#DIV/0!"},0,0,0,0,{"$nulls":11},0,{"$nulls":39},"13.01.07 Электромонтер по ремонту электросетей"]
[null,null,{"$error":"#DIV/0!"},{"$error":"#DIV/0!"},0,0,0,0,{"$nulls":11},0,{"$nulls":39},"13.01.10 Электромонтер по ремонту и обслуживанию электрооборудования (по отраслям)"]
[null,null,{"$error":"#DIV/0!"},{"$error":"#DIV/0!"},0,0,0,0,{"$nulls":11},0,{"$nulls":39},"13.01.13 Электромонтажник-схемщик"]
[null,null,{"$error":"#DIV/0!"},{"$error":"#DIV/0!"},0,0,0,0,{"$nulls":11},0,{"$nulls":39},"13.01.14 Электромеханик по лифтам"]
[null,null,{"$error":"#DIV/0!"},{"$error":"#DIV/0!"},0,0,0,0,{"$nulls":11},0,{"$nulls":39},"13.01.15 Машинист энергоблока"]
[null,null,{"$error":"#DIV/0!"},{"$error":"#DIV/0!"},0,0,0,0,{"$nulls":11},0,{"$nulls":39},"13.01.16 Электромонтер по техническому обслуживанию и ремонту оборудования подстанций и сетей"]
[null,null,{"$error":"#DIV/0!"},{"$error":"#DIV/0!"},0,0,0,0,{"$nulls":11},0,{"$nulls":39},"13.01.17 Электрослесарь по ремонту оборудования электростанций"]
[null,null,{"$error":"#DIV/0!"},{"$error":"#DIV/0!"},0,0,0,0,{"$nulls":11},0,{"$nulls":39},"13.02.01 Тепловые электрические станции"]
[null,null,{"$error":"#DIV/0!"},{"$error":"#DIV/0!"},0,0,0,0,{"$nulls":11},0,{"$nulls":39},"13.02.02 Теплоснабжение и теплотехническое оборудование"]
[null,null,{"$f":"(H132+T132)/E132*100","v":{"$error":"#DIV/0!"}},{"$f":"(H132+T132+Y132)/(E132-W132-AA132)*100","v":{"$error":"#DIV/0!"}},0,0,0,0,{"$nulls":11},0,{"$nulls":39},"13.02.03 Электрические станции, сети и системы"]
[null,null,{"$error":"#DIV/0!"},{"$error":"#DIV/0!"},0,0,0,0,{"$nulls":11},0,{"$nulls":39},"13.02.04 Гидроэлектроэнергетические установки"]
[null,null,{"$error":"#DIV/0!"},{"$error":"#DIV/0!"},{"$f":"H134+T134+W134+Y134+AA134+AC134+AE134+AG134+AI134+AK134+AM134+AO134+AQ134","v":0},0,0,{"$f":"SUM(K134,N134,P134,R134,)","v":0},{"$nulls":11},{"$f":"SUM(U134,V134)","v":0},{"$nulls":39},"13.02.05 Технология воды, топлива и смазочных материалов на электрических станциях"]
[null,null,{"$error":"#DIV/0!"},{"$error":"#DIV/0!"},0,0,0,0,{"$nulls":11},0,{"$nulls":39},"13.02.06 Релейная защита и автоматизация электроэнергетических систем"]
[null,null,{"$error":"#DIV/0!"},{"$error":"#DIV/0!"},0,0,0,0,{"$nulls":11},0,{"$nulls":39},"13.02.07 Электроснабжение"]
[null,null,{"$error":"#DIV/0!"},{"$error":"#DIV/0!"},0,0,0,0,{"$nulls":11},0,{"$nulls":39},"13.02.07 Электроснабжение (по отраслям)"]
[null,null,{"$error":"#DIV/0!"},{"$error":"#DIV/0!"},0,0,0,0,{"$nulls":11},0,{"$nulls":39},"13.02.08 Электроизоляционная, кабельная и конденсаторная техника"]
[null,null,{"$error":"#DIV/0!"},{"$error":"#DIV/0!"},0,0,0,0,{"$nulls":11},0,{"$nulls":39},"13.02.09 Монтаж и эксплуатация линий электропередачи"]
[null,null,{"$error":"#DIV/0!"},{"$error":"#DIV/0!"},0,0,0,0,{"$nulls":11},0,{"$nulls":39},"13.02.10 Электрические машины и аппараты"]
[null,null,{"$error":"#DIV/0!"},{"$error":"#DIV/0!"},0,0,0,0,{"$nulls":11},0,{"$nulls":39},"13.02.11 Техническая эксплуатация и обслуживание электрического и электромеханического оборудования (по отраслям)"]
[null,null,{"$error":"#DIV/0!"},{"$error":"#DIV/0!"},0,0,0,0,{"$nulls":11},0,{"$nulls":39},"13.02.12 Электрические станции, сети, их релейная защита и автоматизация"]
[null,null,{"$error":"#DIV/0!"},{"$error":"#DIV/0!"},0,0,0,0,{"$nulls":11},0,{"$nulls":39},"13.02.13 Эксплуатация и обслуживание электрического и электромеханического оборудования (по отраслям)"]
[null,null,{"$error":"#DIV/0!"},{"$error":"#DIV/0!"},0,0,0,0,{"$nulls":11},0,{"$nulls":39},"14.02.01 Атомные электрические станции и установки"]
[null,null,{"$error":"#DIV/0!"},{"$error":"#DIV/0!"},0,0,0,0,{"$nulls":11},0,{"$nulls":39},"14.02.02 Радиационная безопасность"]
[null,null,{"$error":"#DIV/0!"},{"$error":"#DIV/0!"},0,0,0,0,{"$nulls":11},0,{"$nulls":39},"15.01.04 Наладчик сварочного и газоплазморезательного оборудования"]
[null,null,{"$error":"#DIV/0!"},{"$error":"#DIV/0!"},0,0,0,0,{"$nulls":11},0,{"$nulls":39},"15.01.05 Сварщик (ручной и частично механизированной сварки (наплавки)"]
[null,null,{"$error":"#DIV/0!"},{"$error":"#DIV/0!"},0,0,0,0,{"$nulls":11},0,{"$nulls":39},"15.01.05 Сварщик (электросварочные и газосварочные работы)"]
[null,null,{"$error":"#DIV/0!"},{"$error":"#DIV/0!"},0,0,0,0,{"$nulls":11},0,{"$nulls":39},"15.01.06 Сварщик на лазерных установках"]
[null,null,{"$error":"#DIV/0!"},{"$error":"#DIV/0!"},0,0,0,0,{"$nulls":11},0,{"$nulls":39},"15.01.08 Наладчик литейного и кузнечного оборудования"]
[null,null,{"$error":"#DIV/0!"},{"$error":"#DIV/0!"},0,0,0,0,{"$nulls":11},0,{"$nulls":39},"15.01.08 Наладчик литейного оборудования"]
[null,null,{"$error":"#DIV/0!"},{"$error":"#DIV/0!"},0,0,0,0,{"$nulls":11},0,{"$nulls":39},"15.01.09 Машинист лесозаготовительных и трелевочных машин"]
[null,null,{"$error":"#DIV/0!"},{"$error":"#DIV/0!"},0,0,0,0,{"$nulls":11},0,{"$nulls":39},"15.01.10 Слесарь по ремонту лесозаготовительного оборудования"]
[null,null,{"$error":"#DIV/0!"},{"$error":"#DIV/0!"},0,0,0,0,{"$nulls":11},0,{"$nulls":39},"15.01.13 Монтажник технологического оборудования (по видам оборудования)"]
[null,null,{"$error":"#DIV/0!"},{"$error":"#DIV/0!"},0,0,0,0,{"$nulls":11},0,{"$nulls":39},"15.01.13 Монтажник-наладчик технологического оборудования"]
[null,null,{"$error":"#DIV/0!"},{"$error":"#DIV/0!"},0,0,0,0,{"$nulls":11},0,{"$nulls":39},"15.01.17 Электромеханик по торговому и холодильному оборудованию"]
[null,null,{"$error":"#DIV/0!"},{"$error":"#DIV/0!"},0,0,0,0,{"$nulls":11},0,{"$nulls":39},"15.01.18 Машинист холодильных установок"]
[null,null,{"$error":"#DIV/0!"},{"$error":"#DIV/0!"},0,0,0,0,{"$nulls":11},0,{"$nulls":39},"15.01.19 Наладчик контрольно-измерительных приборов и автоматики"]
[null,null,{"$error":"#DIV/0!"},{"$error":"#DIV/0!"},0,0,0,0,{"$nulls":11},0,{"$nulls":39},"15.01.20 Слесарь по контрольно-измерительным приборам и автоматике"]
[null,null,{"$error":"#DIV/0!"},{"$error":"#DIV/0!"},0,0,0,0,{"$nulls":11},0,{"$nulls":39},"15.01.21 Электромонтер охранно-пожарной сигнализации"]
[null,null,{"$error":"#DIV/0!"},{"$error":"#DIV/0!"},0,0,0,0,{"$nulls":11},0,{"$nulls":39},"15.01.22 Чертежник-конструктор"]
[null,null,{"$error":"#DIV/0!"},{"$error":"#DIV/0!"},0,0,0,0,{"$nulls":11},0,{"$nulls":39},"15.01.23 Наладчик станков и оборудования в механообработке"]
[null,null,{"$error":"#DIV/0!"},{"$error":"#DIV/0!"},0,0,0,0,{"$nulls":11},0,{"$nulls":39},"15.01.25 Станочник (металлообработка)"]
[null,null,{"$error":"#DIV/0!"},{"$error":"#DIV/0!"},0,0,0,0,{"$nulls":11},0,{"$nulls":39},"15.01.26 Токарь-универсал"]
[null,null,{"$error":"#DIV/0!"},{"$error":"#DIV/0!"},0,0,0,0,{"$nulls":11},0,{"$nulls":39},"15.01.27 Фрезеровщик-универсал"]
[null,null,{"$error":"#DIV/0!"},{"$error":"#DIV/0!"},0,0,0,0,{"$nulls":11},0,{"$nulls":39},"15.01.29 Контролер качества в машиностроении"]
[null,null,{"$error":"#DIV/0!"},{"$error":"#DIV/0!"},0,0,0,0,{"$nulls":11},0,{"$nulls":39},"15.01.29 Контролер станочных и слесарных работ"]
[null,null,{"$error":"#DIV/0!"},{"$error":"#DIV/0!"},0,0,0,0,{"$nulls":11},0,{"$nulls":39},"15.01.30 Слесарь"]
[null,null,{"$error":"#DIV/0!"},{"$error":"#DIV/0!"},0,0,0,0,{"$nulls":11},0,{"$nulls":39},"15.01.31 Мастер контрольно-измерительных приборов и автоматики"]
[null,null,{"$error":"#DIV/0!"},{"$error":"#DIV/0!"},0,0,0,0,{"$nulls":11},0,{"$nulls":39},"15.01.32 Оператор станков с программным управлением"]
[null,null,{"$error":"#DIV/0!"},{"$error":"#DIV/0!"},0,0,0,0,{"$nulls":11},0,{"$nulls":39},"15.01.33 Токарь на станках с числовым программным управлением"]
[null,null,{"$error":"#DIV/0!"},{"$error":"#DIV/0!"},0,0,0,0,{"$nulls":11},0,{"$nulls":39},"15.01.34 Фрезеровщик на станках с числовым программным управлением"]
[null,null,{"$error":"#DIV/0!"},{"$error":"#DIV/0!"},0,0,0,0,{"$nulls":11},0,{"$nulls":39},"15.01.35 Мастер слесарных работ"]
[null,null,{"$error":"#DIV/0!"},{"$error":"#DIV/0!"},0,0,0,0,{"$nulls":11},0,{"$nulls":39},"15.01.36 Дефектоскопист"]
[null,null,{"$error":"#DIV/0!"},{"$error":"#DIV/0!"},0,0,0,0,{"$nulls":11},0,{"$nulls":39},"15.01.37 Слесарь-наладчик контрольно-измерительных приборов и автоматики"]
[null,null,{"$error":"#DIV/0!"},{"$error":"#DIV/0!"},0,0,0,0,{"$nulls":11},0,{"$nulls":39},"15.01.38 Оператор-наладчик металлообрабатывающих станков"]
[null,null,{"$error":"#DIV/0!"},{"$error":"#DIV/0!"},0,0,0,0,{"$nulls":11},0,{"$nulls":39},"15.02.01 Монтаж и техническая эксплуатация промышленного оборудования (по отраслям)"]
[null,null,{"$error":"#DIV/0!"},{"$error":"#DIV/0!"},0,0,0,0,{"$nulls":11},0,{"$nulls":39},"15.02.02 Техническая эксплуатация оборудования для производства электронной техники"]
[null,null,{"$error":"#DIV/0!"},{"$error":"#DIV/0!"},0,0,0,0,{"$nulls":11},0,{"$nulls":39},"15.02.03 Монтаж, техническое обслуживание и ремонт гидравлического и пневматического оборудования (по отраслям)"]
[null,null,{"$error":"#DIV/0!"},{"$error":"#DIV/0!"},0,0,0,0,{"$nulls":11},0,{"$nulls":39},"15.02.03 Техническая эксплуатация гидравлических машин, гидроприводов и гидропневмоавтоматики"]
[null,null,{"$error":"#DIV/0!"},{"$error":"#DIV/0!"},0,0,0,0,{"$nulls":11},0,{"$nulls":39},"15.02.04 Специальные машины и устройства"]
[null,null,{"$error":"#DIV/0!"},{"$error":"#DIV/0!"},0,0,0,0,{"$nulls":11},0,{"$nulls":39},"15.02.05 Техническая эксплуатация оборудования в торговле и общественном питании"]
[null,null,{"$error":"#DIV/0!"},{"$error":"#DIV/0!"},0,0,0,0,{"$nulls":11},0,{"$nulls":39},"15.02.06 Монтаж и техническая эксплуатация холодильно-компрессорных машин и установок (по отраслям)"]
[null,null,{"$error":"#DIV/0!"},{"$error":"#DIV/0!"},0,0,0,0,{"$nulls":11},0,{"$nulls":39},"15.02.06 Монтаж, техническая эксплуатация и ремонт холодильно-компрессорных и теплонасосных машин и установок (по отраслям)"]
[null,null,{"$error":"#DIV/0!"},{"$error":"#DIV/0!"},0,0,0,0,{"$nulls":11},0,{"$nulls":39},"15.02.07 Автоматизация технологических процессов и производств"]
[null,null,{"$error":"#DIV/0!"},{"$error":"#DIV/0!"},0,0,0,0,{"$nulls":11},0,{"$nulls":39},"15.02.07 Автоматизация технологических процессов и производств (по отраслям)"]
[null,null,{"$error":"#DIV/0!"},{"$error":"#DIV/0!"},0,0,0,0,{"$nulls":11},0,{"$nulls":39},"15.02.08 Технология машиностроения"]
[null,null,{"$error":"#DIV/0!"},{"$error":"#DIV/0!"},0,0,0,0,{"$nulls":11},0,{"$nulls":39},"15.02.09 Аддитивные технологии"]
[null,null,{"$error":"#DIV/0!"},{"$error":"#DIV/0!"},0,0,0,0,{"$nulls":11},0,{"$nulls":39},"15.02.10 Мехатроника и мобильная робототехника (по отраслям)"]
[null,null,{"$error":"#DIV/0!"},{"$error":"#DIV/0!"},0,0,0,0,{"$nulls":11},0,{"$nulls":39},"15.02.10 Мехатроника и робототехника (по отраслям)"]
[null,null,{"$error":"#DIV/0!"},{"$error":"#DIV/0!"},0,0,0,0,{"$nulls":11},0,{"$nulls":39},"15.02.11 Техническая эксплуатация и обслуживание роботизированного производства"]
[null,null,{"$error":"#DIV/0!"},{"$error":"#DIV/0!"},0,0,0,0,{"$nulls":11},0,{"$nulls":39},"15.02.12 Монтаж, техническое обслуживание и ремонт промышленного оборудования (по отраслям)"]
[null,null,{"$error":"#DIV/0!"},{"$error":"#DIV/0!"},0,0,0,0,{"$nulls":11},0,{"$nulls":39},"15.02.13 Техническое обслуживание и ремонт систем вентиляции и кондиционирования"]
[null,null,{"$error":"#DIV/0!"},{"$error":"#DIV/0!"},0,0,0,0,{"$nulls":11},0,{"$nulls":39},"15.02.14 Оснащение средствами автоматизации технологических процессов и производств (по отраслям)"]
[null,null,{"$error":"#DIV/0!"},{"$error":"#DIV/0!"},0,0,0,0,{"$nulls":11},0,{"$nulls":39},"15.02.15 Технология металлообрабатывающего производства"]
[null,null,{"$f":"(H196+T196)/E196*100","v":{"$error":"#DIV/0!"}},{"$f":"(H196+T196+Y196)/(E196-W196-AA196)*100","v":{"$error":"#DIV/0!"}},0,0,0,0,{"$nulls":11},0,{"$nulls":39},"15.02.16 Технология машиностроения"]
[null,null,{"$error":"#DIV/0!"},{"$error":"#DIV/0!"},0,0,0,0,{"$nulls":11},0,{"$nulls":39},"15.02.17 Монтаж, техническое обслуживание, эксплуатация и ремонт промышленного оборудования (по отраслям)"]
[null,null,{"$error":"#DIV/0!"},{"$error":"#DIV/0!"},{"$f":"H198+T198+W198+Y198+AA198+AC198+AE198+AG198+AI198+AK198+AM198+AO198+AQ198","v":0},0,0,{"$f":"SUM(K198,N198,P198,R198,)","v":0},{"$nulls":11},{"$f":"SUM(U198,V198)","v":0},{"$nulls":39},"15.02.18 Техническая эксплуатация и обслуживание роботизированного производства (по отраслям)"]
[null,null,{"$error":"#DIV/0!"},{"$error":"#DIV/0!"},0,0,0,0,{"$nulls":11},0,{"$nulls":39},"15.02.19 Сварочное производство"]
[null,null,{"$error":"#DIV/0!"},{"$error":"#DIV/0!"},0,0,0,0,{"$nulls":11},0,{"$nulls":39},"18.01.01 Лаборант по физико-механическим испытаниям"]
[null,null,{"$error":"#DIV/0!"},{"$error":"#DIV/0!"},0,0,0,0,{"$nulls":11},0,{"$nulls":39},"18.01.02 Лаборант-эколог"]
[null,null,{"$error":"#DIV/0!"},{"$error":"#DIV/0!"},0,0,0,0,{"$nulls":11},0,{"$nulls":39},"18.01.03 Аппаратчик-оператор экологических установок"]
[null,null,{"$error":"#DIV/0!"},{"$error":"#DIV/0!"},0,0,0,0,{"$nulls":11},0,{"$nulls":39},"18.01.05 Аппаратчик-оператор производства неорганических веществ"]
[null,null,{"$error":"#DIV/0!"},{"$error":"#DIV/0!"},0,0,0,0,{"$nulls":11},0,{"$nulls":39},"18.01.06 Оператор производства стекловолокна, стекловолокнистых материалов и изделий стеклопластиков"]
[null,null,{"$error":"#DIV/0!"},{"$error":"#DIV/0!"},0,0,0,0,{"$nulls":11},0,{"$nulls":39},"18.01.08 Мастер по изготовлению, обработке, отделке деталей и изделий из стекла"]
[null,null,{"$error":"#DIV/0!"},{"$error":"#DIV/0!"},0,0,0,0,{"$nulls":11},0,{"$nulls":39},"18.01.08 Мастер-изготовитель деталей и изделий из стекла"]
[null,null,{"$error":"#DIV/0!"},{"$error":"#DIV/0!"},0,0,0,0,{"$nulls":11},0,{"$nulls":39},"18.01.12 Изготовитель фарфоровых и фаянсовых изделий"]
[null,null,{"$error":"#DIV/0!"},{"$error":"#DIV/0!"},0,0,0,0,{"$nulls":11},0,{"$nulls":39},"18.01.22 Оператор в производстве шин"]
[null,null,{"$error":"#DIV/0!"},{"$error":"#DIV/0!"},0,0,0,0,{"$nulls":11},0,{"$nulls":39},"18.01.24 Мастер шиномонтажной мастерской"]
[null,null,{"$error":"#DIV/0!"},{"$error":"#DIV/0!"},0,0,0,0,{"$nulls":11},0,{"$nulls":39},"18.01.26 Аппаратчик-оператор нефтехимического производства"]
[null,null,{"$error":"#DIV/0!"},{"$error":"#DIV/0!"},0,0,0,0,{"$nulls":11},0,{"$nulls":39},"18.01.27 Машинист технологических насосов и компрессоров"]
[null,null,{"$error":"#DIV/0!"},{"$error":"#DIV/0!"},0,0,0,0,{"$nulls":11},0,{"$nulls":39},"18.01.28 Оператор нефтепереработки"]
[null,null,{"$error":"#DIV/0!"},{"$error":"#DIV/0!"},0,0,0,0,{"$nulls":11},0,{"$nulls":39},"18.01.29 Мастер по обслуживанию магистральных трубопроводов"]
[null,null,{"$error":"#DIV/0!"},{"$error":"#DIV/0!"},0,0,0,0,{"$nulls":11},0,{"$nulls":39},"18.01.31 Машинист машин коксохимического производства"]
[null,null,{"$error":"#DIV/0!"},{"$error":"#DIV/0!"},0,0,0,0,{"$nulls":11},0,{"$nulls":39},"18.01.32 Аппаратчик-оператор азотных производств и продуктов органического синтеза"]
[null,null,{"$error":"#DIV/0!"},{"$error":"#DIV/0!"},0,0,0,0,{"$nulls":11},0,{"$nulls":39},"18.01.33 Лаборант по контролю качества сырья, реактивов, промежуточных продуктов, готовой продукции, отходов производства (по отраслям)"]
[null,null,{"$error":"#DIV/0!"},{"$error":"#DIV/0!"},0,0,0,0,{"$nulls":11},0,{"$nulls":39},"18.01.34 Лаборант по контролю качества сырья, реактивов, промежуточных продуктов, готовой продукции, отходов производства (по отраслям)"]
[null,null,{"$error":"#DIV/0!"},{"$error":"#DIV/0!"},0,0,0,0,{"$nulls":11},0,{"$nulls":39},"18.01.35 Аппаратчик-оператор производства химических соединений"]
[null,null,{"$error":"#DIV/0!"},{"$error":"#DIV/0!"},0,0,0,0,{"$nulls":11},0,{"$nulls":39},"18.02.01 Аналитический контроль качества химических соединений"]
[null,null,{"$error":"#DIV/0!"},{"$error":"#DIV/0!"},0,0,0,0,{"$nulls":11},0,{"$nulls":39},"18.02.03 Химическая технология неорганических веществ"]
[null,null,{"$error":"#DIV/0!"},{"$error":"#DIV/0!"},0,0,0,0,{"$nulls":11},0,{"$nulls":39},"18.02.04 Электрохимическое производство"]
[null,null,{"$error":"#DIV/0!"},{"$error":"#DIV/0!"},0,0,0,0,{"$nulls":11},0,{"$nulls":39},"18.02.05 Производство тугоплавких неметаллических и силикатных материалов и изделий"]
[null,null,{"$error":"#DIV/0!"},{"$error":"#DIV/0!"},0,0,0,0,{"$nulls":11},0,{"$nulls":39},"18.02.06 Химическая технология органических веществ"]
[null,null,{"$error":"#DIV/0!"},{"$error":"#DIV/0!"},0,0,0,0,{"$nulls":11},0,{"$nulls":39},"18.02.07 Технология производства и переработки пластических масс и эластомеров"]
[null,null,{"$error":"#DIV/0!"},{"$error":"#DIV/0!"},0,0,0,0,{"$nulls":11},0,{"$nulls":39},"18.02.09 Переработка нефти и газа"]
[null,null,{"$error":"#DIV/0!"},{"$error":"#DIV/0!"},0,0,0,0,{"$nulls":11},0,{"$nulls":39},"18.02.10 Коксохимическое производство"]
[null,null,{"$error":"#DIV/0!"},{"$error":"#DIV/0!"},0,0,0,0,{"$nulls":11},0,{"$nulls":39},"18.02.11 Технология пиротехнических составов и изделий"]
[null,null,{"$error":"#DIV/0!"},{"$error":"#DIV/0!"},0,0,0,0,{"$nulls":11},0,{"$nulls":39},"18.02.11 Технология производства энергонасыщенных материалов и изделий"]
[null,null,{"$error":"#DIV/0!"},{"$error":"#DIV/0!"},0,0,0,0,{"$nulls":11},0,{"$nulls":39},"18.02.12 Технология аналитического контроля химических соединений"]
[null,null,{"$error":"#DIV/0!"},{"$error":"#DIV/0!"},0,0,0,0,{"$nulls":11},0,{"$nulls":39},"18.02.13 Технология производства изделий из полимерных композитов"]
[null,null,{"$error":"#DIV/0!"},{"$error":"#DIV/0!"},0,0,0,0,{"$nulls":11},0,{"$nulls":39},"18.02.14 Химическая технология производства химических соединений"]
[null,null,{"$error":"#DIV/0!"},{"$error":"#DIV/0!"},0,0,0,0,{"$nulls":11},0,{"$nulls":39},"18.02.15 Биохимическое производство"]
[null,null,{"$error":"#DIV/0!"},{"$error":"#DIV/0!"},0,0,0,0,{"$nulls":11},0,{"$nulls":39},"19.01.01 Аппаратчик-оператор в биотехнологии"]
[null,null,{"$error":"#DIV/0!"},{"$error":"#DIV/0!"},0,0,0,0,{"$nulls":11},0,{"$nulls":39},"19.01.01 Аппаратчик-оператор производства биотехнологической продукции для пищевой промышленности"]
[null,null,{"$error":"#DIV/0!"},{"$error":"#DIV/0!"},0,0,0,0,{"$nulls":11},0,{"$nulls":39},"19.01.02 Лаборант-аналитик"]
[null,null,{"$error":"#DIV/0!"},{"$error":"#DIV/0!"},0,0,0,0,{"$nulls":11},0,{"$nulls":39},"19.01.04 Пекарь"]
[null,null,{"$error":"#DIV/0!"},{"$error":"#DIV/0!"},0,0,0,0,{"$nulls":11},0,{"$nulls":39},"19.01.06 Аппаратчик производства сахара"]
[null,null,{"$error":"#DIV/0!"},{"$error":"#DIV/0!"},0,0,0,0,{"$nulls":11},0,{"$nulls":39},"19.01.07 Кондитер сахаристых изделий"]
[null,null,{"$error":"#DIV/0!"},{"$error":"#DIV/0!"},0,0,0,0,{"$nulls":11},0,{"$nulls":39},"19.01.09 Мастер по эксплуатации, механизации, автоматизации и роботизации технологического оборудования и процессов пищевой промышленности"]
[null,null,{"$error":"#DIV/0!"},{"$error":"#DIV/0!"},0,0,0,0,{"$nulls":11},0,{"$nulls":39},"19.01.09 Наладчик оборудования в производстве пищевой продукции (по отраслям производства)"]
[null,null,{"$error":"#DIV/0!"},{"$error":"#DIV/0!"},0,0,0,0,{"$nulls":11},0,{"$nulls":39},"19.01.10 Мастер производства молочной продукции"]
[null,null,{"$error":"#DIV/0!"},{"$error":"#DIV/0!"},0,0,0,0,{"$nulls":11},0,{"$nulls":39},"19.01.11 Изготовитель мороженого"]
[null,null,{"$error":"#DIV/0!"},{"$error":"#DIV/0!"},0,0,0,0,{"$nulls":11},0,{"$nulls":39},"19.01.12 Переработчик скота и мяса"]
[null,null,{"$error":"#DIV/0!"},{"$error":"#DIV/0!"},0,0,0,0,{"$nulls":11},0,{"$nulls":39},"19.01.14 Оператор процессов колбасного производства"]
[null,null,{"$error":"#DIV/0!"},{"$error":"#DIV/0!"},0,0,0,0,{"$nulls":11},0,{"$nulls":39},"19.01.15 Аппаратчик получения растительного масла"]
[null,null,{"$error":"#DIV/0!"},{"$error":"#DIV/0!"},0,0,0,0,{"$nulls":11},0,{"$nulls":39},"19.01.18 Аппаратчик-оператор производства продуктов питания из растительного сырья"]
[null,null,{"$error":"#DIV/0!"},{"$error":"#DIV/0!"},0,0,0,0,{"$nulls":11},0,{"$nulls":39},"19.01.19 Аппаратчик-оператор производства продуктов питания животного происхождения"]
[null,null,{"$error":"#DIV/0!"},{"$error":"#DIV/0!"},0,0,0,0,{"$nulls":11},0,{"$nulls":39},"19.01.20 Аппаратчик-оператор производства продукции общественного питания массового изготовления и специализированных пищевых продуктов"]
[null,null,{"$error":"#DIV/0!"},{"$error":"#DIV/0!"},0,0,0,0,{"$nulls":11},0,{"$nulls":39},"19.02.01 Биохимическое производство"]
[null,null,{"$error":"#DIV/0!"},{"$error":"#DIV/0!"},0,0,0,0,{"$nulls":11},0,{"$nulls":39},"19.02.02 Технология хранения и переработки зерна"]
[null,null,{"$error":"#DIV/0!"},{"$error":"#DIV/0!"},0,0,0,0,{"$nulls":11},0,{"$nulls":39},"19.02.03 Технология хлеба, кондитерских и макаронных изделий"]
[null,null,{"$error":"#DIV/0!"},{"$error":"#DIV/0!"},0,0,0,0,{"$nulls":11},0,{"$nulls":39},"19.02.04 Технология сахаристых продуктов"]
[null,null,{"$error":"#DIV/0!"},{"$error":"#DIV/0!"},0,0,0,0,{"$nulls":11},0,{"$nulls":39},"19.02.05 Технология бродильных производств и виноделие"]
[null,null,{"$error":"#DIV/0!"},{"$error":"#DIV/0!"},0,0,0,0,{"$nulls":11},0,{"$nulls":39},"19.02.06 Технология консервов и пищеконцентратов"]
[null,null,{"$error":"#DIV/0!"},{"$error":"#DIV/0!"},0,0,0,0,{"$nulls":11},0,{"$nulls":39},"19.02.07 Технология молока и молочных продуктов"]
[null,null,{"$error":"#DIV/0!"},{"$error":"#DIV/0!"},0,0,0,0,{"$nulls":11},0,{"$nulls":39},"19.02.08 Технология мяса и мясных продуктов"]
[null,null,{"$error":"#DIV/0!"},{"$error":"#DIV/0!"},0,0,0,0,{"$nulls":11},0,{"$nulls":39},"19.02.09 Технология жиров и жирозаменителей"]
[null,null,{"$error":"#DIV/0!"},{"$error":"#DIV/0!"},0,0,0,0,{"$nulls":11},0,{"$nulls":39},"19.02.10 Технология продукции общественного питания"]
[null,null,{"$error":"#DIV/0!"},{"$error":"#DIV/0!"},0,0,0,0,{"$nulls":11},0,{"$nulls":39},"19.02.11 Технология продуктов питания из растительного сырья"]
[null,null,{"$f":"(H260+T260)/E260*100","v":{"$error":"#DIV/0!"}},{"$f":"(H260+T260+Y260)/(E260-W260-AA260)*100","v":{"$error":"#DIV/0!"}},0,0,0,0,{"$nulls":11},0,{"$nulls":39},"19.02.12 Технология продуктов питания животного происхождения"]
[null,null,{"$error":"#DIV/0!"},{"$error":"#DIV/0!"},0,0,0,0,{"$nulls":11},0,{"$nulls":39},"19.02.13 Технология продуктов общественного питания массового изготовления и специализированных пищевых продуктов"]
[null,null,{"$error":"#DIV/0!"},{"$error":"#DIV/0!"},{"$f":"H262+T262+W262+Y262+AA262+AC262+AE262+AG262+AI262+AK262+AM262+AO262+AQ262","v":0},0,0,{"$f":"SUM(K262,N262,P262,R262,)","v":0},{"$nulls":11},{"$f":"SUM(U262,V262)","v":0},{"$nulls":39},"19.02.14 Эксплуатация, механизация, автоматизация и роботизация технологического оборудования и процессов пищевой промышленности"]
[null,null,{"$error":"#DIV/0!"},{"$error":"#DIV/0!"},0,0,0,0,{"$nulls":11},0,{"$nulls":39},"19.02.15 Биотехнология пищевой промышленности"]
[null,null,{"$error":"#DIV/0!"},{"$error":"#DIV/0!"},0,0,0,0,{"$nulls":11},0,{"$nulls":39},"20.01.01 Пожарный"]
[null,null,{"$error":"#DIV/0!"},{"$error":"#DIV/0!"},0,0,0,0,{"$nulls":11},0,{"$nulls":39},"20.02.01 Рациональное использование природохозяйственных комплексов"]
[null,null,{"$error":"#DIV/0!"},{"$error":"#DIV/0!"},0,0,0,0,{"$nulls":11},0,{"$nulls":39},"20.02.01 Экологическая безопасность природных комплексов"]
[null,null,{"$error":"#DIV/0!"},{"$error":"#DIV/0!"},0,0,0,0,{"$nulls":11},0,{"$nulls":39},"20.02.02 Защита в чрезвычайных ситуациях"]
[null,null,{"$error":"#DIV/0!"},{"$error":"#DIV/0!"},0,0,0,0,{"$nulls":11},0,{"$nulls":39},"20.02.03 Природоохранное обустройство территорий"]
[null,null,{"$error":"#DIV/0!"},{"$error":"#DIV/0!"},0,0,0,0,{"$nulls":11},0,{"$nulls":39},"20.02.04 Пожарная безопасность"]
[null,null,{"$error":"#DIV/0!"},{"$error":"#DIV/0!"},0,0,0,0,{"$nulls":11},0,{"$nulls":39},"20.02.05 Организация оперативного (экстренного) реагирования в чрезвычайных ситуациях"]
[null,null,{"$error":"#DIV/0!"},{"$error":"#DIV/0!"},0,0,0,0,{"$nulls":11},0,{"$nulls":39},"20.02.06 Безопасность на акватории"]
[null,null,{"$error":"#DIV/0!"},{"$error":"#DIV/0!"},0,0,0,0,{"$nulls":11},0,{"$nulls":39},"21.01.01 Оператор нефтяных и газовых скважин"]
[null,null,{"$error":"#DIV/0!"},{"$error":"#DIV/0!"},0,0,0,0,{"$nulls":11},0,{"$nulls":39},"21.01.02 Оператор по ремонту скважин"]
[null,null,{"$error":"#DIV/0!"},{"$error":"#DIV/0!"},0,0,0,0,{"$nulls":11},0,{"$nulls":39},"21.01.03 Бурильщик эксплуатационных и разведочных скважин"]
[null,null,{"$error":"#DIV/0!"},{"$error":"#DIV/0!"},0,0,0,0,{"$nulls":11},0,{"$nulls":39},"21.01.04 Машинист на буровых установках"]
[null,null,{"$error":"#DIV/0!"},{"$error":"#DIV/0!"},0,0,0,0,{"$nulls":11},0,{"$nulls":39},"21.01.07 Бурильщик морского бурения скважин"]
[null,null,{"$error":"#DIV/0!"},{"$error":"#DIV/0!"},0,0,0,0,{"$nulls":11},0,{"$nulls":39},"21.01.08 Машинист на открытых горных работах"]
[null,null,{"$error":"#DIV/0!"},{"$error":"#DIV/0!"},0,0,0,0,{"$nulls":11},0,{"$nulls":39},"21.01.10 Ремонтник горного оборудования"]
[null,null,{"$error":"#DIV/0!"},{"$error":"#DIV/0!"},0,0,0,0,{"$nulls":11},0,{"$nulls":39},"21.01.13 Проходчик"]
[null,null,{"$error":"#DIV/0!"},{"$error":"#DIV/0!"},0,0,0,0,{"$nulls":11},0,{"$nulls":39},"21.01.15 Электрослесарь подземный"]
[null,null,{"$error":"#DIV/0!"},{"$error":"#DIV/0!"},0,0,0,0,{"$nulls":11},0,{"$nulls":39},"21.01.16 Обогатитель полезных ископаемых"]
[null,null,{"$error":"#DIV/0!"},{"$error":"#DIV/0!"},0,0,0,0,{"$nulls":11},0,{"$nulls":39},"21.01.17 Мастер по обслуживанию магистральных трубопроводов"]
[null,null,{"$error":"#DIV/0!"},{"$error":"#DIV/0!"},0,0,0,0,{"$nulls":11},0,{"$nulls":39},"21.02.01 Разработка и эксплуатация нефтяных и газовых месторождений"]
[null,null,{"$error":"#DIV/0!"},{"$error":"#DIV/0!"},0,0,0,0,{"$nulls":11},0,{"$nulls":39},"21.02.02 Бурение нефтяных и газовых скважин"]
[null,null,{"$error":"#DIV/0!"},{"$error":"#DIV/0!"},0,0,0,0,{"$nulls":11},0,{"$nulls":39},"21.02.03 Сооружение и эксплуатация газонефтепроводов и газонефтехранилищ"]
[null,null,{"$error":"#DIV/0!"},{"$error":"#DIV/0!"},0,0,0,0,{"$nulls":11},0,{"$nulls":39},"21.02.04 Землеустройство"]
[null,null,{"$error":"#DIV/0!"},{"$error":"#DIV/0!"},0,0,0,0,{"$nulls":11},0,{"$nulls":39},"21.02.05 Земельно-имущественные отношения"]
[null,null,{"$error":"#DIV/0!"},{"$error":"#DIV/0!"},0,0,0,0,{"$nulls":11},0,{"$nulls":39},"21.02.06 Информационные системы обеспечения градостроительной деятельности"]
[null,null,{"$error":"#DIV/0!"},{"$error":"#DIV/0!"},0,0,0,0,{"$nulls":11},0,{"$nulls":39},"21.02.07 Аэрофотогеодезия"]
[null,null,{"$error":"#DIV/0!"},{"$error":"#DIV/0!"},0,0,0,0,{"$nulls":11},0,{"$nulls":39},"21.02.08 Прикладная геодезия"]
[null,null,{"$error":"#DIV/0!"},{"$error":"#DIV/0!"},0,0,0,0,{"$nulls":11},0,{"$nulls":39},"21.02.09 Гидрогеология и инженерная геология"]
[null,null,{"$error":"#DIV/0!"},{"$error":"#DIV/0!"},0,0,0,0,{"$nulls":11},0,{"$nulls":39},"21.02.10 Геология и разведка нефтяных и газовых месторождений"]
[null,null,{"$error":"#DIV/0!"},{"$error":"#DIV/0!"},0,0,0,0,{"$nulls":11},0,{"$nulls":39},"21.02.11 Геофизические методы поисков и разведки месторождений полезных ископаемых"]
[null,null,{"$error":"#DIV/0!"},{"$error":"#DIV/0!"},0,0,0,0,{"$nulls":11},0,{"$nulls":39},"21.02.12 Технология и техника разведки месторождений полезных ископаемых"]
[null,null,{"$error":"#DIV/0!"},{"$error":"#DIV/0!"},0,0,0,0,{"$nulls":11},0,{"$nulls":39},"21.02.13 Геологическая съемка, поиски и разведка месторождений полезных ископаемых"]
[null,null,{"$error":"#DIV/0!"},{"$error":"#DIV/0!"},0,0,0,0,{"$nulls":11},0,{"$nulls":39},"21.02.14 Маркшейдерское дело"]
[null,null,{"$error":"#DIV/0!"},{"$error":"#DIV/0!"},0,0,0,0,{"$nulls":11},0,{"$nulls":39},"21.02.15 Открытые горные работы"]
[null,null,{"$error":"#DIV/0!"},{"$error":"#DIV/0!"},0,0,0,0,{"$nulls":11},0,{"$nulls":39},"21.02.16 Шахтное строительство"]
[null,null,{"$error":"#DIV/0!"},{"$error":"#DIV/0!"},0,0,0,0,{"$nulls":11},0,{"$nulls":39},"21.02.17 Подземная разработка месторождений полезных ископаемых"]
[null,null,{"$error":"#DIV/0!"},{"$error":"#DIV/0!"},0,0,0,0,{"$nulls":11},0,{"$nulls":39},"21.02.18 Обогащение полезных ископаемых"]
[null,null,{"$error":"#DIV/0!"},{"$error":"#DIV/0!"},0,0,0,0,{"$nulls":11},0,{"$nulls":39},"21.02.19 Землеустройство"]
[null,null,{"$error":"#DIV/0!"},{"$error":"#DIV/0!"},0,0,0,0,{"$nulls":11},0,{"$nulls":39},"21.02.20 Прикладная геодезия"]
[null,null,{"$error":"#DIV/0!"},{"$error":"#DIV/0!"},0,0,0,0,{"$nulls":11},0,{"$nulls":39},"22.01.03 Машинист крана металлургического производства"]
[null,null,{"$error":"#DIV/0!"},{"$error":"#DIV/0!"},0,0,0,0,{"$nulls":11},0,{"$nulls":39},"22.01.04 Контролер металлургического производства"]
[null,null,{"$error":"#DIV/0!"},{"$error":"#DIV/0!"},0,0,0,0,{"$nulls":11},0,{"$nulls":39},"22.01.05 Аппаратчик-оператор в производстве цветных металлов"]
[null,null,{"$error":"#DIV/0!"},{"$error":"#DIV/0!"},0,0,0,0,{"$nulls":11},0,{"$nulls":39},"22.01.08 Оператор прокатного производства"]
[null,null,{"$error":"#DIV/0!"},{"$error":"#DIV/0!"},0,0,0,0,{"$nulls":11},0,{"$nulls":39},"22.01.09 Оператор трубного производства"]
[null,null,{"$error":"#DIV/0!"},{"$error":"#DIV/0!"},0,0,0,0,{"$nulls":11},0,{"$nulls":39},"22.01.11 Оператор металлургического производства"]
[null,null,{"$error":"#DIV/0!"},{"$error":"#DIV/0!"},0,0,0,0,{"$nulls":11},0,{"$nulls":39},"22.02.01 Металлургия черных металлов"]
[null,null,{"$error":"#DIV/0!"},{"$error":"#DIV/0!"},0,0,0,0,{"$nulls":11},0,{"$nulls":39},"22.02.02 Металлургия цветных металлов"]
[null,null,{"$error":"#DIV/0!"},{"$error":"#DIV/0!"},0,0,0,0,{"$nulls":11},0,{"$nulls":39},"22.02.03 Литейное производство черных и цветных металлов"]
[null,null,{"$error":"#DIV/0!"},{"$error":"#DIV/0!"},0,0,0,0,{"$nulls":11},0,{"$nulls":39},"22.02.04 Металловедение и термическая обработка металлов"]
[null,null,{"$error":"#DIV/0!"},{"$error":"#DIV/0!"},0,0,0,0,{"$nulls":11},0,{"$nulls":39},"22.02.05 Обработка металлов давлением"]
[null,null,{"$error":"#DIV/0!"},{"$error":"#DIV/0!"},0,0,0,0,{"$nulls":11},0,{"$nulls":39},"22.02.06 Сварочное производство"]
[null,null,{"$error":"#DIV/0!"},{"$error":"#DIV/0!"},0,0,0,0,{"$nulls":11},0,{"$nulls":39},"22.02.07 Порошковая металлургия, композиционные материалы, покрытия"]
[null,null,{"$error":"#DIV/0!"},{"$error":"#DIV/0!"},0,0,0,0,{"$nulls":11},0,{"$nulls":39},"22.02.08 Металлургическое производство (по видам производства)"]
[null,null,{"$error":"#DIV/0!"},{"$error":"#DIV/0!"},0,0,0,0,{"$nulls":11},0,{"$nulls":39},"23.01.01 Оператор транспортного терминала"]
[null,null,{"$error":"#DIV/0!"},{"$error":"#DIV/0!"},0,0,0,0,{"$nulls":11},0,{"$nulls":39},"23.01.02 Докер-механизатор"]
[null,null,{"$error":"#DIV/0!"},{"$error":"#DIV/0!"},0,0,0,0,{"$nulls":11},0,{"$nulls":39},"23.01.03 Автомеханик"]
[null,null,{"$error":"#DIV/0!"},{"$error":"#DIV/0!"},0,0,0,0,{"$nulls":11},0,{"$nulls":39},"23.01.04 Водитель городского электротранспорта"]
[null,null,{"$error":"#DIV/0!"},{"$error":"#DIV/0!"},0,0,0,0,{"$nulls":11},0,{"$nulls":39},"23.01.06 Машинист дорожных и строительных машин"]
[null,null,{"$error":"#DIV/0!"},{"$error":"#DIV/0!"},0,0,0,0,{"$nulls":11},0,{"$nulls":39},"23.01.07 Машинист крана (крановщик)"]
[null,null,{"$error":"#DIV/0!"},{"$error":"#DIV/0!"},0,0,0,0,{"$nulls":11},0,{"$nulls":39},"23.01.08 Слесарь по ремонту строительных машин"]
[null,null,{"$f":"(H324+T324)/E324*100","v":{"$error":"#DIV/0!"}},{"$f":"(H324+T324+Y324)/(E324-W324-AA324)*100","v":{"$error":"#DIV/0!"}},0,0,0,0,{"$nulls":11},0,{"$nulls":39},"23.01.09 Машинист локомотива"]
[null,null,{"$error":"#DIV/0!"},{"$error":"#DIV/0!"},0,0,0,0,{"$nulls":11},0,{"$nulls":39},"23.01.09 Помощник машиниста (по видам подвижного состава железнодорожного транспорта)"]
[null,null,{"$error":"#DIV/0!"},{"$error":"#DIV/0!"},{"$f":"H326+T326+W326+Y326+AA326+AC326+AE326+AG326+AI326+AK326+AM326+AO326+AQ326","v":0},0,0,{"$f":"SUM(K326,N326,P326,R326,)","v":0},{"$nulls":11},{"$f":"SUM(U326,V326)","v":0},{"$nulls":39},"23.01.10 Слесарь по обслуживанию и ремонту подвижного состава"]
[null,null,{"$error":"#DIV/0!"},{"$error":"#DIV/0!"},0,0,0,0,{"$nulls":11},0,{"$nulls":39},"23.01.11 Слесарь-электрик по ремонту электрооборудования подвижного состава (электровозов, электропоездов)"]
[null,null,{"$error":"#DIV/0!"},{"$error":"#DIV/0!"},0,0,0,0,{"$nulls":11},0,{"$nulls":39},"23.01.12 Слесарь-электрик метрополитена"]
[null,null,{"$error":"#DIV/0!"},{"$error":"#DIV/0!"},0,0,0,0,{"$nulls":11},0,{"$nulls":39},"23.01.13 Электромонтер тяговой подстанции"]
[null,null,{"$error":"#DIV/0!"},{"$error":"#DIV/0!"},0,0,0,0,{"$nulls":11},0,{"$nulls":39},"23.01.14 Электромонтер устройств сигнализации, централизации, блокировки (СЦБ)"]
[null,null,{"$error":"#DIV/0!"},{"$error":"#DIV/0!"},0,0,0,0,{"$nulls":11},0,{"$nulls":39},"23.01.15 Оператор поста централизации"]
[null,null,{"$error":"#DIV/0!"},{"$error":"#DIV/0!"},0,0,0,0,{"$nulls":11},0,{"$nulls":39},"23.01.16 Составитель поездов"]
[null,null,{"$error":"#DIV/0!"},{"$error":"#DIV/0!"},0,0,0,0,{"$nulls":11},0,{"$nulls":39},"23.01.17 Мастер по ремонту и обслуживанию автомобилей"]
[null,null,{"$error":"#DIV/0!"},{"$error":"#DIV/0!"},0,0,0,0,{"$nulls":11},0,{"$nulls":39},"23.01.18 Мастер вертикального транспорта"]
[null,null,{"$error":"#DIV/0!"},{"$error":"#DIV/0!"},0,0,0,0,{"$nulls":11},0,{"$nulls":39},"23.01.19 Оператор по обработке перевозочных документов на железнодорожном транспорте"]
[null,null,{"$error":"#DIV/0!"},{"$error":"#DIV/0!"},0,0,0,0,{"$nulls":11},0,{"$nulls":39},"23.01.20 Мастер по комплексному обслуживанию пути рельсового транспорта"]
[null,null,{"$error":"#DIV/0!"},{"$error":"#DIV/0!"},0,0,0,0,{"$nulls":11},0,{"$nulls":39},"23.01.21 Мастер путевых машин"]
[null,null,{"$error":"#DIV/0!"},{"$error":"#DIV/0!"},0,0,0,0,{"$nulls":11},0,{"$nulls":39},"23.01.22 Проводник на железнодорожном транспорте"]
[null,null,{"$error":"#DIV/0!"},{"$error":"#DIV/0!"},0,0,0,0,{"$nulls":11},0,{"$nulls":39},"23.01.23 Электромонтер объектов транспортной инфраструктуры"]
[null,null,{"$error":"#DIV/0!"},{"$error":"#DIV/0!"},0,0,0,0,{"$nulls":11},0,{"$nulls":39},"23.02.01 Организация перевозок и управление на транспорте (по видам)"]
[null,null,{"$error":"#DIV/0!"},{"$error":"#DIV/0!"},0,0,0,0,{"$nulls":11},0,{"$nulls":39},"23.02.02 Автомобиле- и тракторостроение"]
[null,null,{"$error":"#DIV/0!"},{"$error":"#DIV/0!"},0,0,0,0,{"$nulls":11},0,{"$nulls":39},"23.02.03 Техническое обслуживание и ремонт автомобильного транспорта"]
[null,null,{"$error":"#DIV/0!"},{"$error":"#DIV/0!"},0,0,0,0,{"$nulls":11},0,{"$nulls":39},"23.02.04 Техническая эксплуатация подъемно-транспортных, строительных, дорожных машин и оборудования (по отраслям)"]
[null,null,{"$error":"#DIV/0!"},{"$error":"#DIV/0!"},0,0,0,0,{"$nulls":11},0,{"$nulls":39},"23.02.05 Эксплуатация транспортного электрооборудования и автоматики (по видам транспорта, за исключением водного)"]
[null,null,{"$error":"#DIV/0!"},{"$error":"#DIV/0!"},0,0,0,0,{"$nulls":11},0,{"$nulls":39},"23.02.06 Техническая эксплуатация подвижного состава железных дорог"]
[null,null,{"$error":"#DIV/0!"},{"$error":"#DIV/0!"},0,0,0,0,{"$nulls":11},0,{"$nulls":39},"23.02.07 Техническое обслуживание и ремонт автотранспортных средств"]
[null,null,{"$error":"#DIV/0!"},{"$error":"#DIV/0!"},0,0,0,0,{"$nulls":11},0,{"$nulls":39},"23.02.07 Техническое обслуживание и ремонт двигателей, систем и агрегатов автомобилей"]
[null,null,{"$error":"#DIV/0!"},{"$error":"#DIV/0!"},0,0,0,0,{"$nulls":11},0,{"$nulls":39},"23.02.08 Строительство железных дорог, путь и путевое хозяйство"]
[null,null,{"$error":"#DIV/0!"},{"$error":"#DIV/0!"},0,0,0,0,{"$nulls":11},0,{"$nulls":39},"23.02.09 Автоматика и телемеханика на транспорте (железнодорожном транспорте)"]
[null,null,{"$error":"#DIV/0!"},{"$error":"#DIV/0!"},0,0,0,0,{"$nulls":11},0,{"$nulls":39},"24.01.01 Слесарь-сборщик авиационной техники"]
[null,null,{"$error":"#DIV/0!"},{"$error":"#DIV/0!"},0,0,0,0,{"$nulls":11},0,{"$nulls":39},"24.01.02 Электромонтажник авиационной техники"]
[null,null,{"$error":"#DIV/0!"},{"$error":"#DIV/0!"},0,0,0,0,{"$nulls":11},0,{"$nulls":39},"24.01.04 Слесарь по ремонту авиационной техники"]
[null,null,{"$error":"#DIV/0!"},{"$error":"#DIV/0!"},0,0,0,0,{"$nulls":11},0,{"$nulls":39},"24.02.01 Производство летательных аппаратов"]
[null,null,{"$error":"#DIV/0!"},{"$error":"#DIV/0!"},0,0,0,0,{"$nulls":11},0,{"$nulls":39},"24.02.02 Производство авиационных двигателей"]
[null,null,{"$error":"#DIV/0!"},{"$error":"#DIV/0!"},0,0,0,0,{"$nulls":11},0,{"$nulls":39},"24.02.04 Радиотехнические комплексы и системы управления космических летательных аппаратов"]
[null,null,{"$error":"#DIV/0!"},{"$error":"#DIV/0!"},0,0,0,0,{"$nulls":11},0,{"$nulls":39},"25.02.01 Техническая эксплуатация летательных аппаратов и двигателей"]
[null,null,{"$error":"#DIV/0!"},{"$error":"#DIV/0!"},0,0,0,0,{"$nulls":11},0,{"$nulls":39},"25.02.02 Обслуживание летательных аппаратов горюче-смазочными материалами"]
[null,null,{"$error":"#DIV/0!"},{"$error":"#DIV/0!"},0,0,0,0,{"$nulls":11},0,{"$nulls":39},"25.02.03 Техническая эксплуатация электрифицированных и пилотажно-навигационных комплексов"]
[null,null,{"$error":"#DIV/0!"},{"$error":"#DIV/0!"},0,0,0,0,{"$nulls":11},0,{"$nulls":39},"25.02.04 Летная эксплуатация летательных аппаратов"]
[null,null,{"$error":"#DIV/0!"},{"$error":"#DIV/0!"},0,0,0,0,{"$nulls":11},0,{"$nulls":39},"25.02.05 Управление движением воздушного транспорта"]
[null,null,{"$error":"#DIV/0!"},{"$error":"#DIV/0!"},0,0,0,0,{"$nulls":11},0,{"$nulls":39},"25.02.06 Производство и обслуживание авиационной техники"]
[null,null,{"$error":"#DIV/0!"},{"$error":"#DIV/0!"},0,0,0,0,{"$nulls":11},0,{"$nulls":39},"25.02.07 Техническое обслуживание авиационных двигателей"]
[null,null,{"$error":"#DIV/0!"},{"$error":"#DIV/0!"},0,0,0,0,{"$nulls":11},0,{"$nulls":39},"25.02.08 Эксплуатация беспилотных авиационных систем"]
[null,null,{"$error":"#DIV/0!"},{"$error":"#DIV/0!"},0,0,0,0,{"$nulls":11},0,{"$nulls":39},"25.02.09 Организация воздушных перевозок и авиационных работ"]
[null,null,{"$error":"#DIV/0!"},{"$error":"#DIV/0!"},0,0,0,0,{"$nulls":11},0,{"$nulls":39},"25.02.10 Транспортная безопасность воздушного транспорта"]
[null,null,{"$error":"#DIV/0!"},{"$error":"#DIV/0!"},0,0,0,0,{"$nulls":11},0,{"$nulls":39},"26.01.01 Судостроитель-судоремонтник металлических судов"]
[null,null,{"$error":"#DIV/0!"},{"$error":"#DIV/0!"},0,0,0,0,{"$nulls":11},0,{"$nulls":39},"26.01.02 Судостроитель-судоремонтник неметаллических судов"]
[null,null,{"$error":"#DIV/0!"},{"$error":"#DIV/0!"},0,0,0,0,{"$nulls":11},0,{"$nulls":39},"26.01.03 Слесарь-монтажник судовой"]
[null,null,{"$error":"#DIV/0!"},{"$error":"#DIV/0!"},0,0,0,0,{"$nulls":11},0,{"$nulls":39},"26.01.05 Электрорадиомонтажник судовой"]
[null,null,{"$error":"#DIV/0!"},{"$error":"#DIV/0!"},0,0,0,0,{"$nulls":11},0,{"$nulls":39},"26.01.06 Моторист-рулевой"]
[null,null,{"$error":"#DIV/0!"},{"$error":"#DIV/0!"},0,0,0,0,{"$nulls":11},0,{"$nulls":39},"26.01.06 Судоводитель-помощник механика маломерного судна"]
[null,null,{"$error":"#DIV/0!"},{"$error":"#DIV/0!"},0,0,0,0,{"$nulls":11},0,{"$nulls":39},"26.01.07 Матрос"]
[null,null,{"$error":"#DIV/0!"},{"$error":"#DIV/0!"},0,0,0,0,{"$nulls":11},0,{"$nulls":39},"26.01.08 Моторист (машинист)"]
[null,null,{"$error":"#DIV/0!"},{"$error":"#DIV/0!"},0,0,0,0,{"$nulls":11},0,{"$nulls":39},"26.01.09 Моторист судовой"]
[null,null,{"$error":"#DIV/0!"},{"$error":"#DIV/0!"},0,0,0,0,{"$nulls":11},0,{"$nulls":39},"26.01.10 Механик маломерного судна"]
[null,null,{"$error":"#DIV/0!"},{"$error":"#DIV/0!"},0,0,0,0,{"$nulls":11},0,{"$nulls":39},"26.01.12 Электрик судовой"]
[null,null,{"$error":"#DIV/0!"},{"$error":"#DIV/0!"},0,0,0,0,{"$nulls":11},0,{"$nulls":39},"26.01.13 Водолаз"]
[null,null,{"$error":"#DIV/0!"},{"$error":"#DIV/0!"},0,0,0,0,{"$nulls":11},0,{"$nulls":39},"26.02.01 Эксплуатация внутренних водных путей"]
[null,null,{"$error":"#DIV/0!"},{"$error":"#DIV/0!"},0,0,0,0,{"$nulls":11},0,{"$nulls":39},"26.02.02 Судостроение"]
[null,null,{"$error":"#DIV/0!"},{"$error":"#DIV/0!"},0,0,0,0,{"$nulls":11},0,{"$nulls":39},"26.02.03 Судовождение"]
[null,null,{"$error":"#DIV/0!"},{"$error":"#DIV/0!"},0,0,0,0,{"$nulls":11},0,{"$nulls":39},"26.02.04 Монтаж и техническое обслуживание судовых машин и механизмов"]
[null,null,{"$error":"#DIV/0!"},{"$error":"#DIV/0!"},0,0,0,0,{"$nulls":11},0,{"$nulls":39},"26.02.05 Эксплуатация судовых энергетических установок"]
[null,null,{"$error":"#DIV/0!"},{"$error":"#DIV/0!"},0,0,0,0,{"$nulls":11},0,{"$nulls":39},"26.02.06 Эксплуатация судового электрооборудования и средств автоматики"]
[null,null,{"$error":"#DIV/0!"},{"$error":"#DIV/0!"},0,0,0,0,{"$nulls":11},0,{"$nulls":39},"27.01.01 Контролер измерительных приборов"]
[null,null,{"$error":"#DIV/0!"},{"$error":"#DIV/0!"},0,0,0,0,{"$nulls":11},0,{"$nulls":39},"27.02.01 Метрология"]
[null,null,{"$error":"#DIV/0!"},{"$error":"#DIV/0!"},0,0,0,0,{"$nulls":11},0,{"$nulls":39},"27.02.02 Техническое регулирование и управление качеством"]
[null,null,{"$error":"#DIV/0!"},{"$error":"#DIV/0!"},0,0,0,0,{"$nulls":11},0,{"$nulls":39},"27.02.03 Автоматика и телемеханика на транспорте (железнодорожном транспорте)"]
[null,null,{"$f":"(H388+T388)/E388*100","v":{"$error":"#DIV/0!"}},{"$f":"(H388+T388+Y388)/(E388-W388-AA388)*100","v":{"$error":"#DIV/0!"}},0,0,0,0,{"$nulls":11},0,{"$nulls":39},"27.02.04 Автоматические системы управления"]
[null,null,{"$error":"#DIV/0!"},{"$error":"#DIV/0!"},0,0,0,0,{"$nulls":11},0,{"$nulls":39},"27.02.05 Системы и средства диспетчерского управления"]
[null,null,{"$error":"#DIV/0!"},{"$error":"#DIV/0!"},{"$f":"H390+T390+W390+Y390+AA390+AC390+AE390+AG390+AI390+AK390+AM390+AO390+AQ390","v":0},0,0,{"$f":"SUM(K390,N390,P390,R390,)","v":0},{"$nulls":11},{"$f":"SUM(U390,V390)","v":0},{"$nulls":39},"27.02.06 Контроль работы измерительных приборов"]
[null,null,{"$error":"#DIV/0!"},{"$error":"#DIV/0!"},0,0,0,0,{"$nulls":11},0,{"$nulls":39},"27.02.06 Метрологический контроль средств измерений"]
[null,null,{"$error":"#DIV/0!"},{"$error":"#DIV/0!"},0,0,0,0,{"$nulls":11},0,{"$nulls":39},"27.02.07 Управление качеством продукции, процессов и услуг (по отраслям)"]
[null,null,{"$error":"#DIV/0!"},{"$error":"#DIV/0!"},0,0,0,0,{"$nulls":11},0,{"$nulls":39},"29.01.01 Скорняк"]
[null,null,{"$error":"#DIV/0!"},{"$error":"#DIV/0!"},0,0,0,0,{"$nulls":11},0,{"$nulls":39},"29.01.02 Обувщик (широкого профиля)"]
[null,null,{"$error":"#DIV/0!"},{"$error":"#DIV/0!"},0,0,0,0,{"$nulls":11},0,{"$nulls":39},"29.01.03 Сборщик обуви"]
[null,null,{"$error":"#DIV/0!"},{"$error":"#DIV/0!"},0,0,0,0,{"$nulls":11},0,{"$nulls":39},"29.01.04 Художник по костюму"]
[null,null,{"$error":"#DIV/0!"},{"$error":"#DIV/0!"},0,0,0,0,{"$nulls":11},0,{"$nulls":39},"29.01.05 Закройщик"]
[null,null,{"$error":"#DIV/0!"},{"$error":"#DIV/0!"},0,0,0,0,{"$nulls":11},0,{"$nulls":39},"29.01.07 Портной"]
[null,null,{"$error":"#DIV/0!"},{"$error":"#DIV/0!"},0,0,0,0,{"$nulls":11},0,{"$nulls":39},"29.01.08 Оператор швейного оборудования"]
[null,null,{"$error":"#DIV/0!"},{"$error":"#DIV/0!"},0,0,0,0,{"$nulls":11},0,{"$nulls":39},"29.01.09 Вышивальщица"]
[null,null,{"$f":"(H401+T401)/E401*100","v":{"$error":"#DIV/0!"}},{"$f":"(H401+T401+Y401)/(E401-W401-AA401)*100","v":{"$error":"#DIV/0!"}},0,0,0,0,{"$nulls":11},0,{"$nulls":39},"29.01.09 Мастер-исполнитель художественной вышивки (по видам)"]
[null,null,{"$error":"#DIV/0!"},{"$error":"#DIV/0!"},0,0,0,0,{"$nulls":11},0,{"$nulls":39},"29.01.10 Модистка головных уборов"]
[null,null,{"$error":"#DIV/0!"},{"$error":"#DIV/0!"},0,0,0,0,{"$nulls":11},0,{"$nulls":39},"29.01.16 Ткач"]
[null,null,{"$error":"#DIV/0!"},{"$error":"#DIV/0!"},0,0,0,0,{"$nulls":11},0,{"$nulls":39},"29.01.17 Оператор вязально-швейного оборудования"]
[null,null,{"$error":"#DIV/0!"},{"$error":"#DIV/0!"},0,0,0,0,{"$nulls":11},0,{"$nulls":39},"29.01.24 Оператор электронного набора и верстки"]
[null,null,{"$error":"#DIV/0!"},{"$error":"#DIV/0!"},0,0,0,0,{"$nulls":11},0,{"$nulls":39},"29.01.25 Переплетчик"]
[null,null,{"$error":"#DIV/0!"},{"$error":"#DIV/0!"},0,0,0,0,{"$nulls":11},0,{"$nulls":39},"29.01.26 Печатник плоской печати"]
[null,null,{"$error":"#DIV/0!"},{"$error":"#DIV/0!"},0,0,0,0,{"$nulls":11},0,{"$nulls":39},"29.01.27 Мастер печатного дела"]
[null,null,{"$error":"#DIV/0!"},{"$error":"#DIV/0!"},0,0,0,0,{"$nulls":11},0,{"$nulls":39},"29.01.28 Мастер по обработке алмазов"]
[null,null,{"$error":"#DIV/0!"},{"$error":"#DIV/0!"},0,0,0,0,{"$nulls":11},0,{"$nulls":39},"29.01.28 Огранщик алмазов в бриллианты"]
[null,null,{"$error":"#DIV/0!"},{"$error":"#DIV/0!"},0,0,0,0,{"$nulls":11},0,{"$nulls":39},"29.01.29 Мастер столярного и мебельного производства"]
[null,null,{"$error":"#DIV/0!"},{"$error":"#DIV/0!"},0,0,0,0,{"$nulls":11},0,{"$nulls":39},"29.01.31 Мастер скорняжных работ"]
[null,null,{"$error":"#DIV/0!"},{"$error":"#DIV/0!"},0,0,0,0,{"$nulls":11},0,{"$nulls":39},"29.01.32 Мастер обувного производства"]
[null,null,{"$error":"#DIV/0!"},{"$error":"#DIV/0!"},0,0,0,0,{"$nulls":11},0,{"$nulls":39},"29.01.33 Мастер по изготовлению швейных изделий"]
[null,null,{"$error":"#DIV/0!"},{"$error":"#DIV/0!"},0,0,0,0,{"$nulls":11},0,{"$nulls":39},"29.01.34 Оператор оборудования швейного производства (по видам)"]
[null,null,{"$error":"#DIV/0!"},{"$error":"#DIV/0!"},0,0,0,0,{"$nulls":11},0,{"$nulls":39},"29.01.35 Оператор оборудования производства текстильных изделий (по видам)"]
[null,null,{"$error":"#DIV/0!"},{"$error":"#DIV/0!"},0,0,0,0,{"$nulls":11},0,{"$nulls":39},"29.01.36 Мастер полиграфического производства"]
[null,null,{"$error":"#DIV/0!"},{"$error":"#DIV/0!"},0,0,0,0,{"$nulls":11},0,{"$nulls":39},"29.02.01 Конструирование, моделирование и технология изделий из кожи"]
[null,null,{"$error":"#DIV/0!"},{"$error":"#DIV/0!"},0,0,0,0,{"$nulls":11},0,{"$nulls":39},"29.02.02 Технология кожи и меха"]
[null,null,{"$error":"#DIV/0!"},{"$error":"#DIV/0!"},0,0,0,0,{"$nulls":11},0,{"$nulls":39},"29.02.03 Конструирование, моделирование и технология изделий из меха"]
[null,null,{"$error":"#DIV/0!"},{"$error":"#DIV/0!"},0,0,0,0,{"$nulls":11},0,{"$nulls":39},"29.02.04 Конструирование, моделирование и технология швейных изделий"]
[null,null,{"$error":"#DIV/0!"},{"$error":"#DIV/0!"},0,0,0,0,{"$nulls":11},0,{"$nulls":39},"29.02.05 Технология текстильных изделий (по видам)"]
[null,null,{"$error":"#DIV/0!"},{"$error":"#DIV/0!"},0,0,0,0,{"$nulls":11},0,{"$nulls":39},"29.02.06 Полиграфическое производство"]
[null,null,{"$error":"#DIV/0!"},{"$error":"#DIV/0!"},0,0,0,0,{"$nulls":11},0,{"$nulls":39},"29.02.07 Производство изделий из бумаги и картона"]
[null,null,{"$error":"#DIV/0!"},{"$error":"#DIV/0!"},0,0,0,0,{"$nulls":11},0,{"$nulls":39},"29.02.08 Технология обработки алмазов"]
[null,null,{"$error":"#DIV/0!"},{"$error":"#DIV/0!"},0,0,0,0,{"$nulls":11},0,{"$nulls":39},"29.02.09 Печатное дело"]
[null,null,{"$error":"#DIV/0!"},{"$error":"#DIV/0!"},0,0,0,0,{"$nulls":11},0,{"$nulls":39},"29.02.10 Конструирование, моделирование и технология изготовления изделий легкой промышленности (по видам)"]
[null,null,{"$error":"#DIV/0!"},{"$error":"#DIV/0!"},0,0,0,0,{"$nulls":11},0,{"$nulls":39},"29.02.11 Полиграфическое производство"]
[null,null,{"$error":"#DIV/0!"},{"$error":"#DIV/0!"},0,0,0,0,{"$nulls":11},0,{"$nulls":39},"31.01.01 Медицинский администратор"]
[null,null,{"$error":"#DIV/0!"},{"$error":"#DIV/0!"},0,0,0,0,{"$nulls":11},0,{"$nulls":39},"31.02.01 Лечебное дело"]
[null,null,{"$error":"#DIV/0!"},{"$error":"#DIV/0!"},0,0,0,0,{"$nulls":11},0,{"$nulls":39},"31.02.02 Акушерское дело"]
[null,null,{"$error":"#DIV/0!"},{"$error":"#DIV/0!"},0,0,0,0,{"$nulls":11},0,{"$nulls":39},"31.02.03 Лабораторная диагностика"]
[null,null,{"$error":"#DIV/0!"},{"$error":"#DIV/0!"},0,0,0,0,{"$nulls":11},0,{"$nulls":39},"31.02.04 Медицинская оптика"]
[null,null,{"$error":"#DIV/0!"},{"$error":"#DIV/0!"},0,0,0,0,{"$nulls":11},0,{"$nulls":39},"31.02.05 Стоматология ортопедическая"]
[null,null,{"$error":"#DIV/0!"},{"$error":"#DIV/0!"},0,0,0,0,{"$nulls":11},0,{"$nulls":39},"31.02.06 Стоматология профилактическая"]
[null,null,{"$error":"#DIV/0!"},{"$error":"#DIV/0!"},0,0,0,0,{"$nulls":11},0,{"$nulls":39},"31.02.07 Стоматологическое дело"]
[null,null,{"$error":"#DIV/0!"},{"$error":"#DIV/0!"},0,0,0,0,{"$nulls":11},0,{"$nulls":39},"32.02.01 Медико-профилактическое дело"]
[null,null,{"$error":"#DIV/0!"},{"$error":"#DIV/0!"},0,0,0,0,{"$nulls":11},0,{"$nulls":39},"33.02.01 Фармация"]
[null,null,{"$error":"#DIV/0!"},{"$error":"#DIV/0!"},0,0,0,0,{"$nulls":11},0,{"$nulls":39},"34.01.01 Младшая медицинская сестра по уходу за больными"]
[null,null,{"$error":"#DIV/0!"},{"$error":"#DIV/0!"},0,0,0,0,{"$nulls":11},0,{"$nulls":39},"34.02.01 Сестринское дело"]
[null,null,{"$error":"#DIV/0!"},{"$error":"#DIV/0!"},0,0,0,0,{"$nulls":11},0,{"$nulls":39},"34.02.02 Медицинский массаж (для обучения лиц с ограниченными возможностями здоровья по зрению)"]
[null,null,{"$error":"#DIV/0!"},{"$error":"#DIV/0!"},0,0,0,0,{"$nulls":11},0,{"$nulls":39},"35.01.01 Мастер по лесному хозяйству"]
[null,null,{"$error":"#DIV/0!"},{"$error":"#DIV/0!"},0,0,0,0,{"$nulls":11},0,{"$nulls":39},"35.01.02 Станочник деревообрабатывающих станков"]
[null,null,{"$error":"#DIV/0!"},{"$error":"#DIV/0!"},0,0,0,0,{"$nulls":11},0,{"$nulls":39},"35.01.03 Станочник-обработчик"]
[null,null,{"$error":"#DIV/0!"},{"$error":"#DIV/0!"},0,0,0,0,{"$nulls":11},0,{"$nulls":39},"35.01.04 Оператор линии и установок в деревообработке"]
[null,null,{"$error":"#DIV/0!"},{"$error":"#DIV/0!"},0,0,0,0,{"$nulls":11},0,{"$nulls":39},"35.01.05 Контролер качества материалов и продукции деревообрабатывающего производства"]
[null,null,{"$error":"#DIV/0!"},{"$error":"#DIV/0!"},0,0,0,0,{"$nulls":11},0,{"$nulls":39},"35.01.05 Контролер полуфабрикатов и изделий из древесины"]
[null,null,{"$error":"#DIV/0!"},{"$error":"#DIV/0!"},0,0,0,0,{"$nulls":11},0,{"$nulls":39},"35.01.06 Машинист машин по производству бумаги и картона"]
[null,null,{"$error":"#DIV/0!"},{"$error":"#DIV/0!"},0,0,0,0,{"$nulls":11},0,{"$nulls":39},"35.01.06 Оператор машин по производству бумаги и картона"]
[null,null,{"$error":"#DIV/0!"},{"$error":"#DIV/0!"},0,0,0,0,{"$nulls":11},0,{"$nulls":39},"35.01.09 Мастер растениеводства"]
[null,null,{"$error":"#DIV/0!"},{"$error":"#DIV/0!"},0,0,0,0,{"$nulls":11},0,{"$nulls":39},"35.01.10 Овощевод защищенного грунта"]
[null,null,{"$error":"#DIV/0!"},{"$error":"#DIV/0!"},0,0,0,0,{"$nulls":11},0,{"$nulls":39},"35.01.11 Мастер сельскохозяйственного производства"]
[null,null,{"$error":"#DIV/0!"},{"$error":"#DIV/0!"},0,0,0,0,{"$nulls":11},0,{"$nulls":39},"35.01.12 Заготовитель продуктов и сырья"]
[null,null,{"$error":"#DIV/0!"},{"$error":"#DIV/0!"},{"$f":"H454+T454+W454+Y454+AA454+AC454+AE454+AG454+AI454+AK454+AM454+AO454+AQ454","v":0},0,0,{"$f":"SUM(K454,N454,P454,R454,)","v":0},{"$nulls":11},{"$f":"SUM(U454,V454)","v":0},{"$nulls":39},"35.01.13 Тракторист-машинист сельскохозяйственного производства"]
[null,null,{"$error":"#DIV/0!"},{"$error":"#DIV/0!"},0,0,0,0,{"$nulls":11},0,{"$nulls":39},"35.01.14 Мастер по техническому обслуживанию и ремонту машинно-тракторного парка"]
[null,null,{"$error":"#DIV/0!"},{"$error":"#DIV/0!"},0,0,0,0,{"$nulls":11},0,{"$nulls":39},"35.01.15 Мастер по ремонту и обслуживанию электрооборудования в сельском хозяйстве"]
[null,null,{"$error":"#DIV/0!"},{"$error":"#DIV/0!"},0,0,0,0,{"$nulls":11},0,{"$nulls":39},"35.01.15 Электромонтер по ремонту и обслуживанию электрооборудования в сельскохозяйственном производстве"]
[null,null,{"$error":"#DIV/0!"},{"$error":"#DIV/0!"},0,0,0,0,{"$nulls":11},0,{"$nulls":39},"35.01.16 Мастер по водным биоресурсам и аквакультуре"]
[null,null,{"$error":"#DIV/0!"},{"$error":"#DIV/0!"},0,0,0,0,{"$nulls":11},0,{"$nulls":39},"35.01.16 Рыбовод"]
[null,null,{"$error":"#DIV/0!"},{"$error":"#DIV/0!"},0,0,0,0,{"$nulls":11},0,{"$nulls":39},"35.01.17 Обработчик рыбы и морепродуктов"]
[null,null,{"$error":"#DIV/0!"},{"$error":"#DIV/0!"},0,0,0,0,{"$nulls":11},0,{"$nulls":39},"35.01.19 Мастер садово-паркового и ландшафтного строительства"]
[null,null,{"$error":"#DIV/0!"},{"$error":"#DIV/0!"},0,0,0,0,{"$nulls":11},0,{"$nulls":39},"35.01.20 Пчеловод"]
[null,null,{"$error":"#DIV/0!"},{"$error":"#DIV/0!"},0,0,0,0,{"$nulls":11},0,{"$nulls":39},"35.01.21 Оленевод-механизатор"]
[null,null,{"$error":"#DIV/0!"},{"$error":"#DIV/0!"},0,0,0,0,{"$nulls":11},0,{"$nulls":39},"35.01.23 Хозяйка(ин) усадьбы"]
[null,null,{"$f":"(H465+T465)/E465*100","v":{"$error":"#DIV/0!"}},{"$f":"(H465+T465+Y465)/(E465-W465-AA465)*100","v":{"$error":"#DIV/0!"}},0,0,0,0,{"$nulls":11},0,{"$nulls":39},"35.01.24 Управляющий сельской усадьбой"]
[null,null,{"$error":"#DIV/0!"},{"$error":"#DIV/0!"},0,0,0,0,{"$nulls":11},0,{"$nulls":39},"35.01.25 Оператор-станочник деревообрабатывающего оборудования"]
[null,null,{"$error":"#DIV/0!"},{"$error":"#DIV/0!"},0,0,0,0,{"$nulls":11},0,{"$nulls":39},"35.01.26 Мастер растениеводства"]
[null,null,{"$error":"#DIV/0!"},{"$error":"#DIV/0!"},0,0,0,0,{"$nulls":11},0,{"$nulls":39},"35.01.27 Мастер сельскохозяйственного производства"]
[null,null,{"$error":"#DIV/0!"},{"$error":"#DIV/0!"},0,0,0,0,{"$nulls":11},0,{"$nulls":39},"35.01.28 Мастер столярного и мебельного производства"]
[null,null,{"$error":"#DIV/0!"},{"$error":"#DIV/0!"},0,0,0,0,{"$nulls":11},0,{"$nulls":39},"35.01.29 Слесарь по ремонту лесозаготовительного оборудования"]
[null,null,{"$error":"#DIV/0!"},{"$error":"#DIV/0!"},0,0,0,0,{"$nulls":11},0,{"$nulls":39},"35.01.30 Машинист лесозаготовительных и трелевочных машин"]
[null,null,{"$error":"#DIV/0!"},{"$error":"#DIV/0!"},0,0,0,0,{"$nulls":11},0,{"$nulls":39},"35.01.31 Матрос промысловой команды"]
[null,null,{"$error":"#DIV/0!"},{"$error":"#DIV/0!"},0,0,0,0,{"$nulls":11},0,{"$nulls":39},"35.01.32 Мастер по техническому обеспечению рыболовства"]
[null,null,{"$error":"#DIV/0!"},{"$error":"#DIV/0!"},0,0,0,0,{"$nulls":11},0,{"$nulls":39},"35.01.33 Мастер по техническому обеспечению рыбоводства"]
[null,null,{"$error":"#DIV/0!"},{"$error":"#DIV/0!"},0,0,0,0,{"$nulls":11},0,{"$nulls":39},"35.01.34 Аппаратчик-оператор производства продукции из водных биоресурсов на судах рыбопромыслового флота и береговых предприятиях"]
[null,null,{"$error":"#DIV/0!"},{"$error":"#DIV/0!"},0,0,0,0,{"$nulls":11},0,{"$nulls":39},"35.01.35 Фермер"]
[null,null,{"$error":"#DIV/0!"},{"$error":"#DIV/0!"},0,0,0,0,{"$nulls":11},0,{"$nulls":39},"35.02.01 Лесное и лесопарковое хозяйство"]
[null,null,{"$error":"#DIV/0!"},{"$error":"#DIV/0!"},0,0,0,0,{"$nulls":11},0,{"$nulls":39},"35.02.02 Технология лесозаготовок"]
[null,null,{"$error":"#DIV/0!"},{"$error":"#DIV/0!"},0,0,0,0,{"$nulls":11},0,{"$nulls":39},"35.02.03 Технология деревообработки"]
[null,null,{"$error":"#DIV/0!"},{"$error":"#DIV/0!"},0,0,0,0,{"$nulls":11},0,{"$nulls":39},"35.02.04 Технология комплексной переработки древесины"]
[null,null,{"$error":"#DIV/0!"},{"$error":"#DIV/0!"},0,0,0,0,{"$nulls":11},0,{"$nulls":39},"35.02.05 Агрономия"]
[null,null,{"$error":"#DIV/0!"},{"$error":"#DIV/0!"},0,0,0,0,{"$nulls":11},0,{"$nulls":39},"35.02.06 Технология производства и переработки сельскохозяйственной продукции"]
[null,null,{"$error":"#DIV/0!"},{"$error":"#DIV/0!"},0,0,0,0,{"$nulls":11},0,{"$nulls":39},"35.02.07 Механизация сельского хозяйства"]
[null,null,{"$error":"#DIV/0!"},{"$error":"#DIV/0!"},0,0,0,0,{"$nulls":11},0,{"$nulls":39},"35.02.08 Электрификация и автоматизация сельского хозяйства"]
[null,null,{"$error":"#DIV/0!"},{"$error":"#DIV/0!"},0,0,0,0,{"$nulls":11},0,{"$nulls":39},"35.02.08 Электротехнические системы в агропромышленном комплексе (АПК)"]
[null,null,{"$error":"#DIV/0!"},{"$error":"#DIV/0!"},0,0,0,0,{"$nulls":11},0,{"$nulls":39},"35.02.09 Водные биоресурсы и аквакультура"]
[null,null,{"$error":"#DIV/0!"},{"$error":"#DIV/0!"},0,0,0,0,{"$nulls":11},0,{"$nulls":39},"35.02.09 Ихтиология и рыбоводство"]
[null,null,{"$error":"#DIV/0!"},{"$error":"#DIV/0!"},0,0,0,0,{"$nulls":11},0,{"$nulls":39},"35.02.10 Обработка водных биоресурсов"]
[null,null,{"$error":"#DIV/0!"},{"$error":"#DIV/0!"},0,0,0,0,{"$nulls":11},0,{"$nulls":39},"35.02.11 Промышленное рыболовство"]
[null,null,{"$error":"#DIV/0!"},{"$error":"#DIV/0!"},0,0,0,0,{"$nulls":11},0,{"$nulls":39},"35.02.12 Садово-парковое и ландшафтное строительство"]
[null,null,{"$error":"#DIV/0!"},{"$error":"#DIV/0!"},0,0,0,0,{"$nulls":11},0,{"$nulls":39},"35.02.13 Пчеловодство"]
[null,null,{"$error":"#DIV/0!"},{"$error":"#DIV/0!"},0,0,0,0,{"$nulls":11},0,{"$nulls":39},"35.02.14 Охотоведение и звероводство"]
[null,null,{"$error":"#DIV/0!"},{"$error":"#DIV/0!"},0,0,0,0,{"$nulls":11},0,{"$nulls":39},"35.02.15 Кинология"]
[null,null,{"$error":"#DIV/0!"},{"$error":"#DIV/0!"},0,0,0,0,{"$nulls":11},0,{"$nulls":39},"35.02.16 Эксплуатация и ремонт сельскохозяйственной техники и оборудования"]
[null,null,{"$error":"#DIV/0!"},{"$error":"#DIV/0!"},0,0,0,0,{"$nulls":11},0,{"$nulls":39},"35.02.17 Агромелиорация"]
[null,null,{"$error":"#DIV/0!"},{"$error":"#DIV/0!"},0,0,0,0,{"$nulls":11},0,{"$nulls":39},"35.02.18 Технология переработки древесины"]
[null,null,{"$error":"#DIV/0!"},{"$error":"#DIV/0!"},0,0,0,0,{"$nulls":11},0,{"$nulls":39},"35.02.19 Техническое обеспечение рыбоводства"]
[null,null,{"$error":"#DIV/0!"},{"$error":"#DIV/0!"},0,0,0,0,{"$nulls":11},0,{"$nulls":39},"35.02.20 Технология производства, первичной переработки и хранения сельскохозяйственной продукции"]
[null,null,{"$error":"#DIV/0!"},{"$error":"#DIV/0!"},0,0,0,0,{"$nulls":11},0,{"$nulls":39},"36.01.01 Младший ветеринарный фельдшер"]
[null,null,{"$error":"#DIV/0!"},{"$error":"#DIV/0!"},0,0,0,0,{"$nulls":11},0,{"$nulls":39},"36.01.02 Мастер животноводства"]
[null,null,{"$error":"#DIV/0!"},{"$error":"#DIV/0!"},0,0,0,0,{"$nulls":11},0,{"$nulls":39},"36.01.03 Тренер-наездник лошадей"]
[null,null,{"$error":"#DIV/0!"},{"$error":"#DIV/0!"},0,0,0,0,{"$nulls":11},0,{"$nulls":39},"36.01.04 Пчеловод"]
[null,null,{"$error":"#DIV/0!"},{"$error":"#DIV/0!"},0,0,0,0,{"$nulls":11},0,{"$nulls":39},"36.01.05 Лаборант в области ветеринарии"]
[null,null,{"$error":"#DIV/0!"},{"$error":"#DIV/0!"},0,0,0,0,{"$nulls":11},0,{"$nulls":39},"36.01.06 Мастер оленеводства"]
[null,null,{"$error":"#DIV/0!"},{"$error":"#DIV/0!"},0,0,0,0,{"$nulls":11},0,{"$nulls":39},"36.02.01 Ветеринария"]
[null,null,{"$error":"#DIV/0!"},{"$error":"#DIV/0!"},0,0,0,0,{"$nulls":11},0,{"$nulls":39},"36.02.02 Зоотехния"]
[null,null,{"$error":"#DIV/0!"},{"$error":"#DIV/0!"},0,0,0,0,{"$nulls":11},0,{"$nulls":39},"36.02.03 Зоотехния"]
[null,null,{"$error":"#DIV/0!"},{"$error":"#DIV/0!"},0,0,0,0,{"$nulls":11},0,{"$nulls":39},"36.02.04 Охотоведение и звероводство"]
[null,null,{"$error":"#DIV/0!"},{"$error":"#DIV/0!"},0,0,0,0,{"$nulls":11},0,{"$nulls":39},"36.02.05 Кинология"]
[null,null,{"$error":"#DIV/0!"},{"$error":"#DIV/0!"},0,0,0,0,{"$nulls":11},0,{"$nulls":39},"38.01.01 Оператор диспетчерской (производственно-диспетчерской) службы"]
[null,null,{"$error":"#DIV/0!"},{"$error":"#DIV/0!"},0,0,0,0,{"$nulls":11},0,{"$nulls":39},"38.01.02 Продавец"]
[null,null,{"$error":"#DIV/0!"},{"$error":"#DIV/0!"},0,0,0,0,{"$nulls":11},0,{"$nulls":39},"38.01.02 Продавец, контролер-кассир"]
[null,null,{"$error":"#DIV/0!"},{"$error":"#DIV/0!"},0,0,0,0,{"$nulls":11},0,{"$nulls":39},"38.01.03 Контролер банка"]
[null,null,{"$error":"#DIV/0!"},{"$error":"#DIV/0!"},0,0,0,0,{"$nulls":11},0,{"$nulls":39},"38.02.01 Экономика и бухгалтерский учет (по отраслям)"]
[null,null,{"$error":"#DIV/0!"},{"$error":"#DIV/0!"},0,0,0,0,{"$nulls":11},0,{"$nulls":39},"38.02.02 Страховое дело (по отраслям)"]
[null,null,{"$error":"#DIV/0!"},{"$error":"#DIV/0!"},0,0,0,0,{"$nulls":11},0,{"$nulls":39},"38.02.03 Операционная деятельность в логистике"]
[null,null,{"$error":"#DIV/0!"},{"$error":"#DIV/0!"},0,0,0,0,{"$nulls":11},0,{"$nulls":39},"38.02.04 Коммерция (по отраслям)"]
[null,null,{"$error":"#DIV/0!"},{"$error":"#DIV/0!"},{"$f":"H518+T518+W518+Y518+AA518+AC518+AE518+AG518+AI518+AK518+AM518+AO518+AQ518","v":0},0,0,{"$f":"SUM(K518,N518,P518,R518,)","v":0},{"$nulls":11},{"$f":"SUM(U518,V518)","v":0},{"$nulls":39},"38.02.05 Товароведение и экспертиза качества потребительских товаров"]
[null,null,{"$error":"#DIV/0!"},{"$error":"#DIV/0!"},0,0,0,0,{"$nulls":11},0,{"$nulls":39},"38.02.06 Финансы"]
[null,null,{"$error":"#DIV/0!"},{"$error":"#DIV/0!"},0,0,0,0,{"$nulls":11},0,{"$nulls":39},"38.02.07 Банковское дело"]
[null,null,{"$error":"#DIV/0!"},{"$error":"#DIV/0!"},0,0,0,0,{"$nulls":11},0,{"$nulls":39},"38.02.08 Торговое дело"]
[null,null,{"$error":"#DIV/0!"},{"$error":"#DIV/0!"},0,0,0,0,{"$nulls":11},0,{"$nulls":39},"38.02.09 Конгрессно-выставочная деятельность"]
[null,null,{"$error":"#DIV/0!"},{"$error":"#DIV/0!"},0,0,0,0,{"$nulls":11},0,{"$nulls":39},"39.01.01 Социальный работник"]
[null,null,{"$error":"#DIV/0!"},{"$error":"#DIV/0!"},0,0,0,0,{"$nulls":11},0,{"$nulls":39},"39.02.01 Социальная работа"]
[null,null,{"$error":"#DIV/0!"},{"$error":"#DIV/0!"},0,0,0,0,{"$nulls":11},0,{"$nulls":39},"39.02.02 Организация сурдокоммуникации"]
[null,null,{"$error":"#DIV/0!"},{"$error":"#DIV/0!"},0,0,0,0,{"$nulls":11},0,{"$nulls":39},"39.02.02 Сурдокоммуникация"]
[null,null,{"$error":"#DIV/0!"},{"$error":"#DIV/0!"},0,0,0,0,{"$nulls":11},0,{"$nulls":39},"39.02.03 Обеспечение деятельности службы занятости населения"]
[null,null,{"$error":"#DIV/0!"},{"$error":"#DIV/0!"},0,0,0,0,{"$nulls":11},0,{"$nulls":39},"40.02.01 Право и организация социального обеспечения"]
[null,null,{"$f":"(H529+T529)/E529*100","v":{"$error":"#DIV/0!"}},{"$f":"(H529+T529+Y529)/(E529-W529-AA529)*100","v":{"$error":"#DIV/0!"}},0,0,0,0,{"$nulls":11},0,{"$nulls":39},"40.02.02 Правоохранительная деятельность"]
[null,null,{"$error":"#DIV/0!"},{"$error":"#DIV/0!"},0,0,0,0,{"$nulls":11},0,{"$nulls":39},"40.02.03 Право и судебное администрирование"]
[null,null,{"$error":"#DIV/0!"},{"$error":"#DIV/0!"},0,0,0,0,{"$nulls":11},0,{"$nulls":39},"40.02.04 Юриспруденция"]
[null,null,{"$error":"#DIV/0!"},{"$error":"#DIV/0!"},0,0,0,0,{"$nulls":11},0,{"$nulls":39},"42.01.01 Агент рекламный"]
[null,null,{"$error":"#DIV/0!"},{"$error":"#DIV/0!"},0,0,0,0,{"$nulls":11},0,{"$nulls":39},"42.02.01 Реклама"]
[null,null,{"$error":"#DIV/0!"},{"$error":"#DIV/0!"},0,0,0,0,{"$nulls":11},0,{"$nulls":39},"42.02.02 Издательское дело"]
[null,null,{"$error":"#DIV/0!"},{"$error":"#DIV/0!"},0,0,0,0,{"$nulls":11},0,{"$nulls":39},"43.01.01 Официант, бармен"]
[null,null,{"$error":"#DIV/0!"},{"$error":"#DIV/0!"},0,0,0,0,{"$nulls":11},0,{"$nulls":39},"43.01.02 Парикмахер"]
[null,null,{"$error":"#DIV/0!"},{"$error":"#DIV/0!"},0,0,0,0,{"$nulls":11},0,{"$nulls":39},"43.01.03 Бортпроводник судовой"]
[null,null,{"$error":"#DIV/0!"},{"$error":"#DIV/0!"},0,0,0,0,{"$nulls":11},0,{"$nulls":39},"43.01.04 Повар судовой"]
[null,null,{"$error":"#DIV/0!"},{"$error":"#DIV/0!"},0,0,0,0,{"$nulls":11},0,{"$nulls":39},"43.01.05 Оператор по обработке перевозочных документов на железнодорожном транспорте"]
[null,null,{"$error":"#DIV/0!"},{"$error":"#DIV/0!"},0,0,0,0,{"$nulls":11},0,{"$nulls":39},"43.01.06 Проводник на железнодорожном транспорте"]
[null,null,{"$error":"#DIV/0!"},{"$error":"#DIV/0!"},0,0,0,0,{"$nulls":11},0,{"$nulls":39},"43.01.07 Слесарь по эксплуатации и ремонту газового оборудования"]
[null,null,{"$error":"#DIV/0!"},{"$error":"#DIV/0!"},0,0,0,0,{"$nulls":11},0,{"$nulls":39},"43.01.09 Повар, кондитер"]
[null,null,{"$error":"#DIV/0!"},{"$error":"#DIV/0!"},0,0,0,0,{"$nulls":11},0,{"$nulls":39},"43.01.11 Мастер флористического сервиса"]
[null,null,{"$error":"#DIV/0!"},{"$error":"#DIV/0!"},0,0,0,0,{"$nulls":11},0,{"$nulls":39},"43.02.01 Организация обслуживания в общественном питании"]
[null,null,{"$error":"#DIV/0!"},{"$error":"#DIV/0!"},0,0,0,0,{"$nulls":11},0,{"$nulls":39},"43.02.02 Парикмахерское искусство"]
[null,null,{"$error":"#DIV/0!"},{"$error":"#DIV/0!"},0,0,0,0,{"$nulls":11},0,{"$nulls":39},"43.02.03 Стилистика и искусство визажа"]
[null,null,{"$error":"#DIV/0!"},{"$error":"#DIV/0!"},0,0,0,0,{"$nulls":11},0,{"$nulls":39},"43.02.04 Прикладная эстетика"]
[null,null,{"$error":"#DIV/0!"},{"$error":"#DIV/0!"},0,0,0,0,{"$nulls":11},0,{"$nulls":39},"43.02.05 Флористика"]
[null,null,{"$error":"#DIV/0!"},{"$error":"#DIV/0!"},0,0,0,0,{"$nulls":11},0,{"$nulls":39},"43.02.06 Сервис на транспорте (по видам транспорта)"]
[null,null,{"$error":"#DIV/0!"},{"$error":"#DIV/0!"},0,0,0,0,{"$nulls":11},0,{"$nulls":39},"43.02.07 Сервис по химической обработке изделий"]
[null,null,{"$error":"#DIV/0!"},{"$error":"#DIV/0!"},0,0,0,0,{"$nulls":11},0,{"$nulls":39},"43.02.08 Сервис домашнего и коммунального хозяйства"]
[null,null,{"$error":"#DIV/0!"},{"$error":"#DIV/0!"},0,0,0,0,{"$nulls":11},0,{"$nulls":39},"43.02.10 Туризм"]
[null,null,{"$error":"#DIV/0!"},{"$error":"#DIV/0!"},0,0,0,0,{"$nulls":11},0,{"$nulls":39},"43.02.11 Гостиничный сервис"]
[null,null,{"$error":"#DIV/0!"},{"$error":"#DIV/0!"},0,0,0,0,{"$nulls":11},0,{"$nulls":39},"43.02.12 Технология эстетических услуг"]
[null,null,{"$error":"#DIV/0!"},{"$error":"#DIV/0!"},0,0,0,0,{"$nulls":11},0,{"$nulls":39},"43.02.13 Технология парикмахерского искусства"]
[null,null,{"$error":"#DIV/0!"},{"$error":"#DIV/0!"},0,0,0,0,{"$nulls":11},0,{"$nulls":39},"43.02.14 Гостиничное дело"]
[null,null,{"$error":"#DIV/0!"},{"$error":"#DIV/0!"},0,0,0,0,{"$nulls":11},0,{"$nulls":39},"43.02.15 Поварское и кондитерское дело"]
[null,null,{"$error":"#DIV/0!"},{"$error":"#DIV/0!"},0,0,0,0,{"$nulls":11},0,{"$nulls":39},"43.02.16 Туризм и гостеприимство"]
[null,null,{"$error":"#DIV/0!"},{"$error":"#DIV/0!"},0,0,0,0,{"$nulls":11},0,{"$nulls":39},"43.02.17 Технологии индустрии красоты"]
[null,null,{"$error":"#DIV/0!"},{"$error":"#DIV/0!"},0,0,0,0,{"$nulls":11},0,{"$nulls":39},"44.02.01 Дошкольное образование"]
[null,null,{"$error":"#DIV/0!"},{"$error":"#DIV/0!"},0,0,0,0,{"$nulls":11},0,{"$nulls":39},"44.02.02 Преподавание в начальных классах"]
[null,null,{"$error":"#DIV/0!"},{"$error":"#DIV/0!"},0,0,0,0,{"$nulls":11},0,{"$nulls":39},"44.02.03 Педагогика дополнительного образования"]
[null,null,{"$error":"#DIV/0!"},{"$error":"#DIV/0!"},0,0,0,0,{"$nulls":11},0,{"$nulls":39},"44.02.04 Специальное дошкольное образование"]
[null,null,{"$error":"#DIV/0!"},{"$error":"#DIV/0!"},0,0,0,0,{"$nulls":11},0,{"$nulls":39},"44.02.05 Коррекционная педагогика в начальном образовании"]
[null,null,{"$error":"#DIV/0!"},{"$error":"#DIV/0!"},0,0,0,0,{"$nulls":11},0,{"$nulls":39},"44.02.06 Профессиональное обучение (по отраслям)"]
[null,null,{"$error":"#DIV/0!"},{"$error":"#DIV/0!"},0,0,0,0,{"$nulls":11},0,{"$nulls":39},"44.02.07 Преподавание в основном общем образовании (по профилям)"]
[null,null,{"$error":"#DIV/0!"},{"$error":"#DIV/0!"},0,0,0,0,{"$nulls":11},0,{"$nulls":39},"46.01.01 Секретарь"]
[null,null,{"$error":"#DIV/0!"},{"$error":"#DIV/0!"},0,0,0,0,{"$nulls":11},0,{"$nulls":39},"46.01.02 Архивариус"]
[null,null,{"$error":"#DIV/0!"},{"$error":"#DIV/0!"},0,0,0,0,{"$nulls":11},0,{"$nulls":39},"46.01.03 Делопроизводитель"]
[null,null,{"$error":"#DIV/0!"},{"$error":"#DIV/0!"},0,0,0,0,{"$nulls":11},0,{"$nulls":39},"46.02.01 Документационное обеспечение управления и архивоведение"]
[null,null,{"$error":"#DIV/0!"},{"$error":"#DIV/0!"},0,0,0,0,{"$nulls":11},0,{"$nulls":39},"46.02.02 Обеспечение технологического сопровождения цифровой трансформации документированных сфер деятельности"]
[null,null,{"$error":"#DIV/0!"},{"$error":"#DIV/0!"},0,0,0,0,{"$nulls":11},0,{"$nulls":39},"49.02.01 Физическая культура"]
[null,null,{"$error":"#DIV/0!"},{"$error":"#DIV/0!"},0,0,0,0,{"$nulls":11},0,{"$nulls":39},"49.02.02 Адаптивная физическая культура"]
[null,null,{"$error":"#DIV/0!"},{"$error":"#DIV/0!"},0,0,0,0,{"$nulls":11},0,{"$nulls":39},"49.02.03 Спорт"]
[null,null,{"$error":"#DIV/0!"},{"$error":"#DIV/0!"},0,0,0,0,{"$nulls":11},0,{"$nulls":39},"50.02.01 Мировая художественная культура"]
[null,null,{"$error":"#DIV/0!"},{"$error":"#DIV/0!"},0,0,0,0,{"$nulls":11},0,{"$nulls":39},"51.02.01 Народное художественное творчество (по видам)"]
[null,null,{"$error":"#DIV/0!"},{"$error":"#DIV/0!"},0,0,0,0,{"$nulls":11},0,{"$nulls":39},"51.02.02 Социально-культурная деятельность (по видам)"]
[null,null,{"$error":"#DIV/0!"},{"$error":"#DIV/0!"},0,0,0,0,{"$nulls":11},0,{"$nulls":39},"51.02.03 Библиотековедение"]
[null,null,{"$error":"#DIV/0!"},{"$error":"#DIV/0!"},0,0,0,0,{"$nulls":11},0,{"$nulls":39},"51.02.03 Библиотечно-информационная деятельность"]
[null,null,{"$error":"#DIV/0!"},{"$error":"#DIV/0!"},0,0,0,0,{"$nulls":11},0,{"$nulls":39},"52.02.01 Искусство балета"]
[null,null,{"$error":"#DIV/0!"},{"$error":"#DIV/0!"},0,0,0,0,{"$nulls":11},0,{"$nulls":39},"52.02.02 Искусство танца (по видам)"]
[null,null,{"$error":"#DIV/0!"},{"$error":"#DIV/0!"},{"$f":"H582+T582+W582+Y582+AA582+AC582+AE582+AG582+AI582+AK582+AM582+AO582+AQ582","v":0},0,0,{"$f":"SUM(K582,N582,P582,R582,)","v":0},{"$nulls":11},{"$f":"SUM(U582,V582)","v":0},{"$nulls":39},"52.02.03 Цирковое искусство"]
[null,null,{"$error":"#DIV/0!"},{"$error":"#DIV/0!"},0,0,0,0,{"$nulls":11},0,{"$nulls":39},"52.02.04 Актерское искусство"]
[null,null,{"$error":"#DIV/0!"},{"$error":"#DIV/0!"},0,0,0,0,{"$nulls":11},0,{"$nulls":39},"52.02.05 Искусство эстрады"]
[null,null,{"$error":"#DIV/0!"},{"$error":"#DIV/0!"},0,0,0,0,{"$nulls":11},0,{"$nulls":39},"53.01.01 Мастер по ремонту и обслуживанию музыкальных инструментов (по видам)"]
[null,null,{"$error":"#DIV/0!"},{"$error":"#DIV/0!"},0,0,0,0,{"$nulls":11},0,{"$nulls":39},"53.02.01 Музыкальное образование"]
[null,null,{"$error":"#DIV/0!"},{"$error":"#DIV/0!"},0,0,0,0,{"$nulls":11},0,{"$nulls":39},"53.02.02 Музыкальное искусство эстрады (по видам)"]
[null,null,{"$error":"#DIV/0!"},{"$error":"#DIV/0!"},0,0,0,0,{"$nulls":11},0,{"$nulls":39},"53.02.03 Инструментальное исполнительство (по видам инструментов)"]
[null,null,{"$error":"#DIV/0!"},{"$error":"#DIV/0!"},0,0,0,0,{"$nulls":11},0,{"$nulls":39},"53.02.04 Вокальное искусство"]
[null,null,{"$error":"#DIV/0!"},{"$error":"#DIV/0!"},0,0,0,0,{"$nulls":11},0,{"$nulls":39},"53.02.05 Сольное и хоровое народное пение"]
[null,null,{"$error":"#DIV/0!"},{"$error":"#DIV/0!"},0,0,0,0,{"$nulls":11},0,{"$nulls":39},"53.02.06 Хоровое дирижирование"]
[null,null,{"$error":"#DIV/0!"},{"$error":"#DIV/0!"},0,0,0,0,{"$nulls":11},0,{"$nulls":39},"53.02.06 Хоровое дирижирование с присвоением квалификаций хормейстер, преподаватель"]
[null,null,{"$f":"(H593+T593)/E593*100","v":{"$error":"#DIV/0!"}},{"$f":"(H593+T593+Y593)/(E593-W593-AA593)*100","v":{"$error":"#DIV/0!"}},0,0,0,0,{"$nulls":11},0,{"$nulls":39},"53.02.07 Теория музыки"]
[null,null,{"$error":"#DIV/0!"},{"$error":"#DIV/0!"},0,0,0,0,{"$nulls":11},0,{"$nulls":39},"53.02.08 Музыкальное звукооператорское мастерство"]
[null,null,{"$error":"#DIV/0!"},{"$error":"#DIV/0!"},0,0,0,0,{"$nulls":11},0,{"$nulls":39},"53.02.09 Театрально-декорационное искусство (по видам)"]
[null,null,{"$error":"#DIV/0!"},{"$error":"#DIV/0!"},0,0,0,0,{"$nulls":11},0,{"$nulls":39},"54.01.01 Исполнитель художественно-оформительских работ"]
[null,null,{"$error":"#DIV/0!"},{"$error":"#DIV/0!"},0,0,0,0,{"$nulls":11},0,{"$nulls":39},"54.01.02 Ювелир"]
[null,null,{"$error":"#DIV/0!"},{"$error":"#DIV/0!"},0,0,0,0,{"$nulls":11},0,{"$nulls":39},"54.01.03 Фотограф"]
[null,null,{"$error":"#DIV/0!"},{"$error":"#DIV/0!"},0,0,0,0,{"$nulls":11},0,{"$nulls":39},"54.01.04 Мастер народных художественных промыслов"]
[null,null,{"$error":"#DIV/0!"},{"$error":"#DIV/0!"},0,0,0,0,{"$nulls":11},0,{"$nulls":39},"54.01.05 Изготовитель художественных изделий из тканей с художественной росписью"]
[null,null,{"$error":"#DIV/0!"},{"$error":"#DIV/0!"},0,0,0,0,{"$nulls":11},0,{"$nulls":39},"54.01.06 Изготовитель художественных изделий из металла"]
[null,null,{"$error":"#DIV/0!"},{"$error":"#DIV/0!"},0,0,0,0,{"$nulls":11},0,{"$nulls":39},"54.01.07 Изготовитель художественных изделий из керамики"]
[null,null,{"$error":"#DIV/0!"},{"$error":"#DIV/0!"},0,0,0,0,{"$nulls":11},0,{"$nulls":39},"54.01.10 Художник росписи по дереву"]
[null,null,{"$error":"#DIV/0!"},{"$error":"#DIV/0!"},0,0,0,0,{"$nulls":11},0,{"$nulls":39},"54.01.11 Художник росписи по ткани"]
[null,null,{"$error":"#DIV/0!"},{"$error":"#DIV/0!"},0,0,0,0,{"$nulls":11},0,{"$nulls":39},"54.01.12 Художник миниатюрной живописи"]
[null,null,{"$error":"#DIV/0!"},{"$error":"#DIV/0!"},0,0,0,0,{"$nulls":11},0,{"$nulls":39},"54.01.13 Изготовитель художественных изделий из дерева"]
[null,null,{"$error":"#DIV/0!"},{"$error":"#DIV/0!"},0,0,0,0,{"$nulls":11},0,{"$nulls":39},"54.01.14 Резчик"]
[null,null,{"$error":"#DIV/0!"},{"$error":"#DIV/0!"},0,0,0,0,{"$nulls":11},0,{"$nulls":39},"54.01.16 Лепщик-модельщик архитектурных деталей"]
[null,null,{"$error":"#DIV/0!"},{"$error":"#DIV/0!"},0,0,0,0,{"$nulls":11},0,{"$nulls":39},"54.01.17 Реставратор строительный"]
[null,null,{"$error":"#DIV/0!"},{"$error":"#DIV/0!"},0,0,0,0,{"$nulls":11},0,{"$nulls":39},"54.01.19 Реставратор памятников каменного и деревянного зодчества"]
[null,null,{"$error":"#DIV/0!"},{"$error":"#DIV/0!"},0,0,0,0,{"$nulls":11},0,{"$nulls":39},"54.01.20 Графический дизайнер"]
[null,null,{"$error":"#DIV/0!"},{"$error":"#DIV/0!"},0,0,0,0,{"$nulls":11},0,{"$nulls":39},"54.01.21 Изготовитель художественных изделий из твердых материалов (по видам, за исключением металла)"]
[null,null,{"$error":"#DIV/0!"},{"$error":"#DIV/0!"},0,0,0,0,{"$nulls":11},0,{"$nulls":39},"54.01.22 Реставратор"]
[null,null,{"$error":"#DIV/0!"},{"$error":"#DIV/0!"},0,0,0,0,{"$nulls":11},0,{"$nulls":39},"54.02.01 Дизайн (по отраслям)"]
[null,null,{"$error":"#DIV/0!"},{"$error":"#DIV/0!"},0,0,0,0,{"$nulls":11},0,{"$nulls":39},"54.02.02 Декоративно-прикладное искусство и народные промыслы (по видам)"]
[null,null,{"$error":"#DIV/0!"},{"$error":"#DIV/0!"},0,0,0,0,{"$nulls":11},0,{"$nulls":39},"54.02.03 Художественное оформление изделий текстильной и легкой промышленности"]
[null,null,{"$error":"#DIV/0!"},{"$error":"#DIV/0!"},0,0,0,0,{"$nulls":11},0,{"$nulls":39},"54.02.04 Реставрация"]
[null,null,{"$error":"#DIV/0!"},{"$error":"#DIV/0!"},0,0,0,0,{"$nulls":11},0,{"$nulls":39},"54.02.05 Живопись (по видам)"]
[null,null,{"$error":"#DIV/0!"},{"$error":"#DIV/0!"},0,0,0,0,{"$nulls":11},0,{"$nulls":39},"54.02.05 Живопись с присвоением квалификаций художник-живописец, преподаватель"]
[null,null,{"$error":"#DIV/0!"},{"$error":"#DIV/0!"},0,0,0,0,{"$nulls":11},0,{"$nulls":39},"54.02.06 Изобразительное искусство и черчение"]
[null,null,{"$error":"#DIV/0!"},{"$error":"#DIV/0!"},0,0,0,0,{"$nulls":11},0,{"$nulls":39},"54.02.07 Скульптура"]
[null,null,{"$error":"#DIV/0!"},{"$error":"#DIV/0!"},0,0,0,0,{"$nulls":11},0,{"$nulls":39},"54.02.08 Техника и искусство фотографии"]
[null,null,{"$error":"#DIV/0!"},{"$error":"#DIV/0!"},0,0,0,0,{"$nulls":11},0,{"$nulls":39},"55.02.01 Театральная и аудиовизуальная техника (по видам)"]
[null,null,{"$error":"#DIV/0!"},{"$error":"#DIV/0!"},0,0,0,0,{"$nulls":11},0,{"$nulls":39},"55.02.02 Анимация (по видам)"]
[null,null,{"$error":"#DIV/0!"},{"$error":"#DIV/0!"},0,0,0,0,{"$nulls":11},0,{"$nulls":39},"55.02.02 Анимация и анимационное кино (по видам)"]
[null,null,{"$error":"#DIV/0!"},{"$error":"#DIV/0!"},0,0,0,0,{"$nulls":11},0,{"$nulls":39},"55.02.03 Кино- и телепроизводство (по видам)"]

{"sheet":"Выпуск 2024","index":1,"n_rows":626,"n_cols":60,"rows_kept":626,"merged":[[0,1,0,5],[0,11,0,17],[0,19,0,27],[0,28,0,35],[0,36,0,43]]}
[{"$nulls":11},"Факт трудоустройства (по состоянию на 25.08.2025)",{"$nulls":7},"Иные формы занятости",{"$nulls":8},"Иное",{"$nulls":7},"Зоны риска"]
["ПОО","Код и наименование профессии, специальности","Доля трудоустройства (%)","Доля занятости (%)","Общая численность выпускников, завершивших обучение \n\nв 2024 году","из них (из 2): имеют заключенный договор о целевом обучении","из них (из 2): обучались по программам Профессионалитета","Трудоустроены \n(в соответствии с трудовым законодательством, законодательством об обязательном пенсионном страховании)","из них (из 3): имеют заключенный договор о целевом обучении","из них (из 3): обучались по программам Профессионалитета","из них (из 3): трудоустроены по полученной профессии, специальности","из них (из 3.3): трудоустроились на предприятия Челябинской области","из них (из 3.3): обучались по программам Профессионалитета","из них (из 3): продолжат обучение (совмещая работу и учебу)","из них (из 3.5): обучались по программам Профессионалитета","из них (из 3): трудоустроены у иного работодателя","из них (из 3.7): обучались по программам Профессионалитета","из них (из 3): проходят службу в армии на контрактной основе, в органах внутренних дел, Государственной противопожарной службе, органах по контролю за оборотом наркотических средств и психотропных веществ, учреждениях и органах уголовно-исполнительной системы, войсках национальной гвардии РФ, органах принудительного исполнения РФ","из них (из 3.9): обучались по программам Профессионалитета","Зарегистрированы в качестве индивидуального предпринимателя или оформили самозанятость","из них (из 4) зарегистрированы в качестве индивидуального предпринимателя","из них (из 4) оформили самозанятость","Продолжили обучение и не трудоустроились (не планируют трудоустройство, предпринимательство, самозанятость)","из них (из 5): обучались по программам Профессионалитета","Призваны в Вооруженные Силы РФ","из них (из 6): обучались по программам Профессионалитета","Находятся в отпуске по уходу за ребенком","из них (из 7): обучались по программам Профессионалитета","Находятся под следствием, отбывают наказание","из них (из 8): обучались по программам Профессионалитета","Ухаживают за больными родственниками (иные семейные обстоятельства)","из них (из 9): обучались по программам Профессионалитета","Переехали (планируют переезд) за пределы Российской Федерации","из них (из 10): обучались по программам Профессионалитета","Тяжелое состояние здоровья, не позволяющее трудоустраиваться; смерть","из них (из 11): обучались по программам Профессионалитета","Зарегистрированы в центрах занятости в качестве безработных (получают пособие по безработице)","из них (из 12): обучались по программам Профессионалитета","Не имеют мотивации к трудоустройству и не планируют трудоустраиваться, в том числе по причинам получения иных социальных льгот","из них (из 13): обучались по программам Профессионалитета","Отсутствует спрос на специалистов в регионе, находятся в поиске работы","из них (из 14): обучались по программам Профессионалитета","Неофициальная занятость","из них (из 15): обучались по программам Профессионалитета",{"$nulls":12},"Наименование ПОО",null,null,"Код и наименование профессии, специальности"]
["выбрать из списка","выбрать из списка","1.1","1.2",2,"2.1","2.2",3,"3.1","3.2","3.3","3.3.1","3.4","3.5","3.6","3.7","3.8","3.9","3.10","4","4.1","4.2","5","5.1","6","6.1","7","7.1","8","8.1","9","9.1","10","10.1","11","11.1","12","12.1","13","13.1","14","14.1","15","15.1",{"$nulls":12},"ГБПОУ «Ашинский индустриальный техникум»",null,null,"05.01.01 Гидрометнаблюдатель"]
[null,null,{"$f":"(H4+T4)/E4*100","v":156.52173913043478},{"$f":"(H4+T4+Y4)/(E4-W4-AA4)*100","v":195.65217391304347},{"$f":"SUBTOTAL(9,E6:E184)","v":23},{"$f":"SUBTOTAL(9,F5:F183)","v":0},{"$f":"SUBTOTAL(9,G5:G183)","v":0},{"$f":"SUBTOTAL(9,H5:H183)","v":36},0,0,28,28,0,0,0,8,0,0,0,0,0,0,0,0,9,0,0,0,0,0,2,0,0,0,1,0,0,0,0,0,0,0,0,0,{"$nulls":12},"ГБПОУ «Бакальский техникум профессиональных технологий и сервиса им. М.Г. Ганиева»",null,null,"05.02.01 Картография"]
["ГБПОУ «Симский механический техникум»","15.02.08 Технология машиностроения",80,96,{"$f":"H5+T5+W5+Y5+AA5+AC5+AE5+AG5+AI5+AK5+AM5+AO5+AQ5","v":25},0,0,{"$f":"SUM(K5,N5,P5,R5,)","v":20},0,0,12,12,0,0,0,8,0,0,0,{"$f":"SUM(U5,V5)","v":0},0,0,0,0,4,0,0,0,0,0,0,0,0,0,1,0,0,0,0,0,0,0,0,0,{"$nulls":12},"ГБПОУ «Верхнеуральский агротехнологический техникум – казачий кадетский корпус»",null,null,"05.02.02 Гидрология"]
["ГБПОУ «Симский механический техникум»","15.02.15 Технология металлообрабатывающего производства",69.56521739130434,91.30434782608695,{"$f":"H6+T6+W6+Y6+AA6+AC6+AE6+AG6+AI6+AK6+AM6+AO6+AQ6","v":23},0,0,{"$f":"SUM(K6,N6,P6,R6,)","v":16},0,0,16,16,0,0,0,0,0,0,0,{"$f":"SUM(U6,V6)","v":0},0,0,0,0,5,0,0,0,0,0,2,0,0,0,0,0,0,0,0,0,0,0,0,0,{"$nulls":12},"ГБПОУ «Златоустовский индустриальный колледж им. П.П. Аносова»",null,null,"05.02.03 Метеорология"]
[null,null,{"$error":"#DIV/0!"},{"$error":"#DIV/0!"},0,0,0,0,{"$nulls":11},0,{"$nulls":36},"ГБПОУ «Златоустовский педагогический колледж»",null,null,"07.02.01 Архитектура"]
[null,null,{"$error":"#DIV/0!"},{"$error":"#DIV/0!"},0,0,0,0,{"$nulls":11},0,{"$nulls":36},"ГБОУ ПОО «Златоустовский техникум технологий и экономики»",null,null,"08.01.01 Изготовитель арматурных сеток и каркасов"]
[null,null,{"$error":"#DIV/0!"},{"$error":"#DIV/0!"},0,0,0,0,{"$nulls":11},0,{"$nulls":36},"ГБПОУ «Карталинский многоотраслевой техникум»",null,null,"08.01.02 Монтажник трубопроводов"]
[null,null,{"$error":"#DIV/0!"},{"$error":"#DIV/0!"},0,0,0,0,{"$nulls":11},0,{"$nulls":36},"ГБПОУ «Каслинский промышленно-гуманитарный техникум»",null,null,"08.01.04 Кровельщик"]
[null,null,{"$error":"#DIV/0!"},{"$error":"#DIV/0!"},0,0,0,0,{"$nulls":11},0,{"$nulls":36},"ГБПОУ «Катав-Ивановский индустриальный техникум»",null,null,"08.01.05 Мастер столярно-плотничных и паркетных работ"]
[null,null,{"$error":"#DIV/0!"},{"$error":"#DIV/0!"},0,0,0,0,{"$nulls":11},0,{"$nulls":36},"ГБПОУ «Копейский политехнический колледж имени С.В. Хохрякова»",null,null,"08.01.06 Мастер сухого строительства"]
[null,null,{"$error":"#DIV/0!"},{"$error":"#DIV/0!"},0,0,0,0,{"$nulls":11},0,{"$nulls":36},"ГБПОУ «Коркинский горно-строительный техникум»",null,null,"08.01.07 Мастер общестроительных работ"]
[null,null,{"$error":"#DIV/0!"},{"$error":"#DIV/0!"},0,0,0,0,{"$nulls":11},0,{"$nulls":36},"ГБПОУ «Магнитогорский педагогический колледж»",null,null,"08.01.08 Мастер отделочных строительных работ"]
[null,null,{"$error":"#DIV/0!"},{"$error":"#DIV/0!"},0,0,0,0,{"$nulls":11},0,{"$nulls":36},"ГБПОУ «Магнитогорский строительно-монтажный техникум»",null,null,"08.01.09 Слесарь по строительно-монтажным работам"]
[null,null,{"$error":"#DIV/0!"},{"$error":"#DIV/0!"},0,0,0,0,{"$nulls":11},0,{"$nulls":36},"ГБОУ ПОО «Магнитогорский технологический колледж им. В.П. Омельченко» ",null,null,"08.01.10 Мастер жилищно-коммунального хозяйства"]
[null,null,{"$error":"#DIV/0!"},{"$error":"#DIV/0!"},0,0,0,0,{"$nulls":11},0,{"$nulls":36},"ГБПОУ «Миасский геологоразведочный колледж»",null,null,"08.01.11 Машинист машин и оборудования в производстве цемента"]
[null,null,{"$error":"#DIV/0!"},{"$error":"#DIV/0!"},0,0,0,0,{"$nulls":11},0,{"$nulls":36},"ГБПОУ «Миасский машиностроительный колледж»",null,null,"08.01.13 Изготовитель железобетонных изделий"]
[null,null,{"$error":"#DIV/0!"},{"$error":"#DIV/0!"},0,0,0,0,{"$nulls":11},0,{"$nulls":36},"ГБПОУ «Миасский педагогический колледж»",null,null,"08.01.14 Монтажник санитарно-технических, вентиляционных систем и оборудования"]
[null,null,{"$error":"#DIV/0!"},{"$error":"#DIV/0!"},0,0,0,0,{"$nulls":11},0,{"$nulls":36},"ГБПОУ «Озерский технический колледж»",null,null,"08.01.15 Слесарь по изготовлению деталей и узлов технических систем в строительстве"]
[null,null,{"$error":"#DIV/0!"},{"$error":"#DIV/0!"},0,0,0,0,{"$nulls":11},0,{"$nulls":36},"ГБПОУ «Первомайский техникум промышленности строительных материалов»",null,null,"08.01.16 Электромонтажник по сигнализации, централизации и блокировке"]
[null,null,{"$error":"#DIV/0!"},{"$error":"#DIV/0!"},0,0,0,0,{"$nulls":11},0,{"$nulls":36},"ГБПОУ «Пластовский горно-технологический колледж»",null,null,"08.01.17 Электромонтажник-наладчик"]
[null,null,{"$error":"#DIV/0!"},{"$error":"#DIV/0!"},0,0,0,0,{"$nulls":11},0,{"$nulls":36},"ГАПОУ Челябинской области «Политехнический колледж»",null,null,"08.01.18 Электромонтажник электрических сетей и электрооборудования"]
[null,null,{"$error":"#DIV/0!"},{"$error":"#DIV/0!"},0,0,0,0,{"$nulls":11},0,{"$nulls":36},"ГБПОУ «Саткинский горно-керамический колледж имени А.К. Савина»",null,null,"08.01.19 Электромонтажник по силовым сетям и электрооборудованию"]
[null,null,{"$error":"#DIV/0!"},{"$error":"#DIV/0!"},0,0,0,0,{"$nulls":11},0,{"$nulls":36},"ГБПОУ «Симский механический техникум»",null,null,"08.01.21 Монтажник электрических подъемников (лифтов)"]
[null,null,{"$error":"#DIV/0!"},{"$error":"#DIV/0!"},0,0,0,0,{"$nulls":11},0,{"$nulls":36},"ГБПОУ «Троицкий педагогический колледж»",null,null,"08.01.22 Мастер путевых машин"]
[null,null,{"$error":"#DIV/0!"},{"$error":"#DIV/0!"},0,0,0,0,{"$nulls":11},0,{"$nulls":36},"ГБПОУ «Троицкий технологический техникум»",null,null,"08.01.23 Бригадир-путеец"]
[null,null,{"$error":"#DIV/0!"},{"$error":"#DIV/0!"},0,0,0,0,{"$nulls":11},0,{"$nulls":36},"ГБПОУ «Усть-Катавский индустриально-технологический техникум»",null,null,"08.01.24 Мастер столярно-плотничных, паркетных и стекольных работ"]
[null,null,{"$error":"#DIV/0!"},{"$error":"#DIV/0!"},0,0,0,0,{"$nulls":11},0,{"$nulls":36},"ГБПОУ «Чебаркульский профессиональный техникум»",null,null,"08.01.25 Мастер отделочных строительных и декоративных работ"]
[null,null,{"$error":"#DIV/0!"},{"$error":"#DIV/0!"},0,0,0,0,{"$nulls":11},0,{"$nulls":36},"ГБПОУ «Челябинский автотранспортный техникум» ",null,null,"08.01.26 Мастер по ремонту и обслуживанию инженерных систем жилищно-коммунального хозяйства"]
[null,null,{"$error":"#DIV/0!"},{"$error":"#DIV/0!"},0,0,0,0,{"$nulls":11},0,{"$nulls":36},"ГБПОУ «Челябинский государственный колледж «Рост»",null,null,"08.01.27 Мастер общестроительных работ"]
[null,null,{"$error":"#DIV/0!"},{"$error":"#DIV/0!"},0,0,0,0,{"$nulls":11},0,{"$nulls":36},"ГБПОУ «Челябинский государственный колледж индустрии питания и торговли»",null,null,"08.01.28 Мастер отделочных строительных и декоративных работ"]
[null,null,{"$error":"#DIV/0!"},{"$error":"#DIV/0!"},0,0,0,0,{"$nulls":11},0,{"$nulls":36},"ГБПОУ «Челябинский государственный промышленно-гуманитарный техникум им. А.В. Яковлева»",null,null,"08.01.29 Мастер по ремонту и обслуживанию инженерных систем жилищно-коммунального хозяйства"]
[null,null,{"$error":"#DIV/0!"},{"$error":"#DIV/0!"},0,0,0,0,{"$nulls":11},0,{"$nulls":36},"ГБПОУ «Челябинский колледж индустриальных технологий «Профи» имени Я. П. Осадчего»",null,null,"08.01.30 Электромонтажник слаботочных систем"]
[null,null,{"$error":"#DIV/0!"},{"$error":"#DIV/0!"},0,0,0,0,{"$nulls":11},0,{"$nulls":36},"ГБПОУ «Челябинский механико-технологический техникум»",null,null,"08.01.31 Электромонтажник электрических сетей и электрооборудования"]
[null,null,{"$error":"#DIV/0!"},{"$error":"#DIV/0!"},0,0,0,0,{"$nulls":11},0,{"$nulls":36},"ГБПОУ «Челябинский педагогический колледж №1»",null,null,"08.01.32 Мастер аварийно-восстановительных работ на сетях водоснабжения и водоотведения"]
[null,null,{"$error":"#DIV/0!"},{"$error":"#DIV/0!"},0,0,0,0,{"$nulls":11},0,{"$nulls":36},"ГБПОУ «Челябинский педагогический колледж №2»",null,null,"08.02.01 Строительство и эксплуатация зданий и сооружений"]
[null,null,{"$error":"#DIV/0!"},{"$error":"#DIV/0!"},0,0,0,0,{"$nulls":11},0,{"$nulls":36},"ГБПОУ «Челябинский профессиональный колледж» ",null,null,"08.02.02 Строительство и эксплуатация инженерных сооружений"]
[null,null,{"$error":"#DIV/0!"},{"$error":"#DIV/0!"},0,0,0,0,{"$nulls":11},0,{"$nulls":36},"ГБПОУ «Челябинский радиотехнический техникум»",null,null,"08.02.03 Производство неметаллических строительных изделий и конструкций"]
[null,null,{"$error":"#DIV/0!"},{"$error":"#DIV/0!"},0,0,0,0,{"$nulls":11},0,{"$nulls":36},"ГБПОУ «Челябинский социально-профессиональный колледж «Сфера»",null,null,"08.02.04 Водоснабжение и водоотведение"]
[null,null,{"$error":"#DIV/0!"},{"$error":"#DIV/0!"},0,0,0,0,{"$nulls":11},0,{"$nulls":36},"ГБПОУ «Челябинский энергетический колледж им. С.М. Кирова»",null,null,"08.02.05 Строительство и эксплуатация автомобильных дорог и аэродромов"]
[null,null,{"$error":"#DIV/0!"},{"$error":"#DIV/0!"},0,0,0,0,{"$nulls":11},0,{"$nulls":36},"ГБПОУ «Южно-Уральский агропромышленный колледж»",null,null,"08.02.06 Строительство и эксплуатация городских путей сообщения"]
[null,null,{"$error":"#DIV/0!"},{"$error":"#DIV/0!"},0,0,0,0,{"$nulls":11},0,{"$nulls":36},"ГБПОУ «Южно-Уральский государственный колледж»",null,null,"08.02.07 Монтаж и эксплуатация внутренних сантехнических устройств, кондиционирования воздуха и вентиляции"]
[null,null,{"$error":"#DIV/0!"},{"$error":"#DIV/0!"},0,0,0,0,{"$nulls":11},0,{"$nulls":36},"ГБПОУ «Южно-Уральский государственный технический колледж»",null,null,"08.02.08 Монтаж и эксплуатация оборудования и систем газоснабжения"]
[null,null,{"$error":"#DIV/0!"},{"$error":"#DIV/0!"},0,0,0,0,{"$nulls":11},0,{"$nulls":36},"ГБПОУ «Южно-Уральский многопрофильный колледж»",null,null,"08.02.09 Монтаж, наладка и эксплуатация электрооборудования промышленных и гражданских зданий"]
[null,null,{"$error":"#DIV/0!"},{"$error":"#DIV/0!"},0,0,0,0,{"$nulls":11},0,{"$nulls":36},"ГБПОУ «Южноуральский энергетический техникум»",null,null,"08.02.10 Строительство железных дорог, путь и путевое хозяйство"]
[null,null,{"$error":"#DIV/0!"},{"$error":"#DIV/0!"},0,0,0,0,{"$nulls":11},0,{"$nulls":36},"ГБПОУ «Юрюзанский технологический техникум»",null,null,"08.02.11 Управление, эксплуатация и обслуживание многоквартирного дома"]
[null,null,{"$error":"#DIV/0!"},{"$error":"#DIV/0!"},0,0,0,0,{"$nulls":11},0,{"$nulls":36},"ГБПОУ Челябинской области «Миасский государственный колледж искусства и культуры»",null,null,"08.02.12 Строительство и эксплуатация автомобильных дорог, аэродромов и городских путей сообщения"]
[null,null,{"$error":"#DIV/0!"},{"$error":"#DIV/0!"},0,0,0,0,{"$nulls":11},0,{"$nulls":36},"ГБПОУ Челябинской области «Озерский государственный колледж искусств»",null,null,"08.02.13 Монтаж и эксплуатация внутренних сантехнических устройств, кондиционирования воздуха и вентиляции"]
[null,null,{"$error":"#DIV/0!"},{"$error":"#DIV/0!"},0,0,0,0,{"$nulls":11},0,{"$nulls":36},"ГБПОУ «Златоустовский медицинский техникум»",null,null,"08.02.14 Эксплуатация и обслуживание многоквартирного дома"]
[null,null,{"$error":"#DIV/0!"},{"$error":"#DIV/0!"},0,0,0,0,{"$nulls":11},0,{"$nulls":36},"ГБПОУ «Копейский медицинский техникум»",null,null,"08.02.15 Информационное моделирование в строительстве"]
[null,null,{"$error":"#DIV/0!"},{"$error":"#DIV/0!"},0,0,0,0,{"$nulls":11},0,{"$nulls":36},"ГБПОУ «Магнитогорский медицинский колледж им. П.Ф. Надеждина»",null,null,"09.01.01 Наладчик аппаратного и программного обеспечения"]
[null,null,{"$error":"#DIV/0!"},{"$error":"#DIV/0!"},0,0,0,0,{"$nulls":11},0,{"$nulls":36},"ГБПОУ «Миасский медицинский колледж»",null,null,"09.01.02 Наладчик компьютерных сетей"]
[null,null,{"$error":"#DIV/0!"},{"$error":"#DIV/0!"},0,0,0,0,{"$nulls":11},0,{"$nulls":36},"ГБПОУ «Саткинский медицинский техникум»",null,null,"09.01.03 Мастер по обработке цифровой информации"]
[null,null,{"$error":"#DIV/0!"},{"$error":"#DIV/0!"},0,0,0,0,{"$nulls":11},0,{"$nulls":36},"ГБПОУ «Троицкий медицинский колледж»",null,null,"09.01.03 Оператор информационных систем и ресурсов"]
[null,null,{"$error":"#DIV/0!"},{"$error":"#DIV/0!"},0,0,0,0,{"$nulls":11},0,{"$nulls":36},"ГБПОУ «Челябинский медицинский колледж»",null,null,"09.01.04 Наладчик аппаратных и программных средств инфокоммуникационных систем"]
[null,null,{"$error":"#DIV/0!"},{"$error":"#DIV/0!"},0,0,0,0,{"$nulls":11},0,{"$nulls":36},"ЧПОУ «Академический колледж»",null,null,"09.01.05 Оператор технической поддержки"]
[null,null,{"$error":"#DIV/0!"},{"$error":"#DIV/0!"},0,0,0,0,{"$nulls":11},0,{"$nulls":36},"ПОУ «Златоустовский юридический колледж «ИЦЫЛ»",null,null,"09.02.01 Компьютерные системы и комплексы"]
[null,null,{"$error":"#DIV/0!"},{"$error":"#DIV/0!"},0,0,0,0,{"$nulls":11},0,{"$nulls":36},"ПОУ «Колледж предпринимательства и отраслевых технологий»",null,null,"09.02.02 Компьютерные сети"]
[null,null,{"$error":"#DIV/0!"},{"$error":"#DIV/0!"},0,0,0,0,{"$nulls":11},0,{"$nulls":36},"ПОУ «Колледж управления и права»",null,null,"09.02.03 Программирование в компьютерных системах"]
[null,null,{"$error":"#DIV/0!"},{"$error":"#DIV/0!"},0,0,0,0,{"$nulls":11},0,{"$nulls":36},"ЧПОУ «Магнитогорский колледж современного образования»",null,null,"09.02.04 Информационные системы (по отраслям)"]
[null,null,{"$error":"#DIV/0!"},{"$error":"#DIV/0!"},0,0,0,0,{"$nulls":11},0,{"$nulls":36},"ЧПОУ «Уральский гуманитарный колледж»",null,null,"09.02.05 Прикладная информатика (по отраслям)"]
[null,null,{"$error":"#DIV/0!"},{"$error":"#DIV/0!"},0,0,0,0,{"$nulls":11},0,{"$nulls":36},"АНН ПОО «Уральский медицинский колледж»",null,null,"09.02.06 Сетевое и системное администрирование"]
[null,null,{"$error":"#DIV/0!"},{"$error":"#DIV/0!"},0,0,0,0,{"$nulls":11},0,{"$nulls":36},"ПОУ «Уральский региональный колледж»",null,null,"09.02.07 Информационные системы и программирование"]
[null,null,{"$error":"#DIV/0!"},{"$error":"#DIV/0!"},0,0,0,0,{"$nulls":11},0,{"$nulls":36},"АНН ПОО «Челябинский колледж Комитент»",null,null,"09.02.08 Интеллектуальные интегрированные системы"]
[null,null,{"$error":"#DIV/0!"},{"$error":"#DIV/0!"},0,0,0,0,{"$nulls":11},0,{"$nulls":36},"ПОУ «Челябинский юридический колледж»",null,null,"09.02.09 Веб-разработка"]
[null,null,{"$error":"#DIV/0!"},{"$error":"#DIV/0!"},0,0,0,0,{"$nulls":11},0,{"$nulls":36},"ЧУ ПОО «Южно-Уральский колледж бизнеса»",null,null,"09.02.10 Разработка компьютерных игр, дополненной и виртуальной реальности"]
[null,null,{"$f":"(H68+T68)/E68*100","v":{"$error":"#DIV/0!"}},{"$f":"(H68+T68+Y68)/(E68-W68-AA68)*100","v":{"$error":"#DIV/0!"}},0,0,0,0,{"$nulls":11},0,{"$nulls":36},"ГБОУ ВО ЧО «Магнитогорская государственная консерватория (академия) им. М.И. Глинки»",null,null,"09.02.11 Разработка и управление программным обеспечением"]
[null,null,{"$error":"#DIV/0!"},{"$error":"#DIV/0!"},0,0,0,0,{"$nulls":11},0,{"$nulls":36},"ФГБОУ ВО «Магнитогорский государственный технический университет им. Г.И. Носова»",null,null,"09.02.12 Техническая эксплуатация и сопровождение информационных систем"]
[null,null,{"$error":"#DIV/0!"},{"$error":"#DIV/0!"},{"$f":"H70+T70+W70+Y70+AA70+AC70+AE70+AG70+AI70+AK70+AM70+AO70+AQ70","v":0},0,0,{"$f":"SUM(K70,N70,P70,R70,)","v":0},{"$nulls":11},{"$f":"SUM(U70,V70)","v":0},{"$nulls":36},"ЧОУ ВО «Международный Институт Дизайна и Сервиса»",null,null,"09.02.13 Интеграция решений с применением технологий искусственного интеллекта"]
[null,null,{"$error":"#DIV/0!"},{"$error":"#DIV/0!"},0,0,0,0,{"$nulls":11},0,{"$nulls":36},"ФГБОУ ВО «Уральский государственный университет физической культуры»",null,null,"10.02.01 Организация и технология защиты информации"]
[null,null,{"$error":"#DIV/0!"},{"$error":"#DIV/0!"},0,0,0,0,{"$nulls":11},0,{"$nulls":36},"ФГБОУ ВО «Челябинский государственный университет»",null,null,"10.02.02 Информационная безопасность телекоммуникационных систем"]
[null,null,{"$error":"#DIV/0!"},{"$error":"#DIV/0!"},0,0,0,0,{"$nulls":11},0,{"$nulls":36},"ФГБОУ ВО «Южно-Уральский государственный аграрный университет»",null,null,"10.02.03 Информационная безопасность автоматизированных систем"]
[null,null,{"$error":"#DIV/0!"},{"$error":"#DIV/0!"},0,0,0,0,{"$nulls":11},0,{"$nulls":36},"ФГОУ ВО «Южно-Уральский государственный гуманитарно-педагогический университет»",null,null,"10.02.04 Обеспечение информационной безопасности телекоммуникационных систем"]
[null,null,{"$error":"#DIV/0!"},{"$error":"#DIV/0!"},0,0,0,0,{"$nulls":11},0,{"$nulls":36},"ГБОУ ВО «Южно-Уральский государственный институт искусств им. П.И. Чайковского»",null,null,"10.02.05 Обеспечение информационной безопасности автоматизированных систем"]
[null,null,{"$error":"#DIV/0!"},{"$error":"#DIV/0!"},0,0,0,0,{"$nulls":11},0,{"$nulls":36},"ФГБОУ ВО «Южно-Уральский государственный медицинский университет» ",null,null,"11.01.01 Монтажник радиоэлектронной аппаратуры и приборов"]
[null,null,{"$error":"#DIV/0!"},{"$error":"#DIV/0!"},0,0,0,0,{"$nulls":11},0,{"$nulls":36},"ФГАОУ ВО «Южно-Уральский государственный университет (НИУ)»",null,null,"11.01.02 Радиомеханик"]
[null,null,{"$error":"#DIV/0!"},{"$error":"#DIV/0!"},0,0,0,0,{"$nulls":11},0,{"$nulls":36},"Златоустовский медико-технологический колледж филиал ФГБОУ ВО «Уральский государственный университет путей сообщения» в г. Златоусте",null,null,"11.01.05 Монтажник связи"]
[null,null,{"$error":"#DIV/0!"},{"$error":"#DIV/0!"},0,0,0,0,{"$nulls":11},0,{"$nulls":36},"Озерский технологический институт - филиал ФГАОУ ВО «Национальный исследовательский ядерный университет «МИФИ»",null,null,"11.01.06 Электромонтер оборудования электросвязи и проводного вещания"]
[null,null,{"$error":"#DIV/0!"},{"$error":"#DIV/0!"},0,0,0,0,{"$nulls":11},0,{"$nulls":36},"Челябинский филиал ФГБОУ ВО «Российская академия народного хозяйства и государственной службы при Президенте Российской Федерации»",null,null,"11.01.07 Электромонтер по ремонту линейно-кабельных сооружений телефонной связи и проводного вещания"]
[null,null,{"$error":"#DIV/0!"},{"$error":"#DIV/0!"},0,0,0,0,{"$nulls":11},0,{"$nulls":36},"Уральский филиал ФГБОУ ВО «Российский государственный университет правосудия»",null,null,"11.01.08 Оператор почтовой связи"]
[null,null,{"$error":"#DIV/0!"},{"$error":"#DIV/0!"},0,0,0,0,{"$nulls":11},0,{"$nulls":36},"Снежинский физико-технический институт - филиал ФГАОУ ВО «Национальный исследовательский ядерный университет «МИФИ»",null,null,"11.01.08 Оператор связи"]
[null,null,{"$error":"#DIV/0!"},{"$error":"#DIV/0!"},0,0,0,0,{"$nulls":11},0,{"$nulls":36},"Трехгорный технологический институт - филиал ФГАОУ ВО «Национальный исследовательский ядерный университет «МИФИ»",null,null,"11.01.11 Наладчик технологического оборудования (электронная техника)"]
[null,null,{"$error":"#DIV/0!"},{"$error":"#DIV/0!"},0,0,0,0,{"$nulls":11},0,{"$nulls":36},"Троицкий авиационный технический колледж - филиал ГБОУ ВО «Московский государственный технический университет гражданской авиации» (МГТУ ГА)",null,null,"11.01.14 Оператор автоматической линии сборки радиоэлектронной аппаратуры и приборов"]
[null,null,{"$error":"#DIV/0!"},{"$error":"#DIV/0!"},0,0,0,0,{"$nulls":11},0,{"$nulls":36},"Уральский социально-экономический институт (филиал) образовательное учреждение профсоюзов высшего образования «Академия труда и социальных отношений»",null,null,"11.02.01 Радиоаппаратостроение"]
[null,null,{"$error":"#DIV/0!"},{"$error":"#DIV/0!"},0,0,0,0,{"$nulls":11},0,{"$nulls":36},"Уральский филиал ФГБОУ ВО «Финансовый университет при Правительстве Российской Федерации»",null,null,"11.02.02 Техническое обслуживание и ремонт радиоэлектронной техники (по отраслям)"]
[null,null,{"$error":"#DIV/0!"},{"$error":"#DIV/0!"},0,0,0,0,{"$nulls":11},0,{"$nulls":36},"Челябинский институт путей сообщения - филиал ФГБОУ ВО «Уральский государственный университет путей сообщения»",null,null,"11.02.03 Эксплуатация оборудования радиосвязи и электрорадионавигации судов"]
[null,null,{"$error":"#DIV/0!"},{"$error":"#DIV/0!"},0,0,0,0,{"$nulls":11},0,{"$nulls":39},"11.02.04 Радиотехнические комплексы и системы управления космических летательных аппаратов"]
[null,null,{"$error":"#DIV/0!"},{"$error":"#DIV/0!"},0,0,0,0,{"$nulls":11},0,{"$nulls":39},"11.02.05 Аудиовизуальная техника"]
[null,null,{"$error":"#DIV/0!"},{"$error":"#DIV/0!"},0,0,0,0,{"$nulls":11},0,{"$nulls":39},"11.02.06 Техническая эксплуатация транспортного радиоэлектронного оборудования (по видам транспорта)"]
[null,null,{"$error":"#DIV/0!"},{"$error":"#DIV/0!"},0,0,0,0,{"$nulls":11},0,{"$nulls":39},"11.02.07 Радиотехнические информационные системы"]
[null,null,{"$error":"#DIV/0!"},{"$error":"#DIV/0!"},0,0,0,0,{"$nulls":11},0,{"$nulls":39},"11.02.08 Средства связи с подвижными объектами"]
[null,null,{"$error":"#DIV/0!"},{"$error":"#DIV/0!"},0,0,0,0,{"$nulls":11},0,{"$nulls":39},"11.02.09 Многоканальные телекоммуникационные системы"]
[null,null,{"$error":"#DIV/0!"},{"$error":"#DIV/0!"},0,0,0,0,{"$nulls":11},0,{"$nulls":39},"11.02.10 Радиосвязь, радиовещание и телевидение"]
[null,null,{"$error":"#DIV/0!"},{"$error":"#DIV/0!"},0,0,0,0,{"$nulls":11},0,{"$nulls":39},"11.02.11 Сети связи и системы коммутации"]
[null,null,{"$error":"#DIV/0!"},{"$error":"#DIV/0!"},0,0,0,0,{"$nulls":11},0,{"$nulls":39},"11.02.12 Почтовая связь"]
[null,null,{"$error":"#DIV/0!"},{"$error":"#DIV/0!"},0,0,0,0,{"$nulls":11},0,{"$nulls":39},"11.02.13 Твердотельная электроника"]
[null,null,{"$error":"#DIV/0!"},{"$error":"#DIV/0!"},0,0,0,0,{"$nulls":11},0,{"$nulls":39},"11.02.14 Электронные приборы и устройства"]
[null,null,{"$error":"#DIV/0!"},{"$error":"#DIV/0!"},0,0,0,0,{"$nulls":11},0,{"$nulls":39},"11.02.15 Инфокоммуникационные сети и системы связи"]
[null,null,{"$error":"#DIV/0!"},{"$error":"#DIV/0!"},0,0,0,0,{"$nulls":11},0,{"$nulls":39},"11.02.16 Монтаж, техническое обслуживание и ремонт электронных приборов и устройств"]
[null,null,{"$error":"#DIV/0!"},{"$error":"#DIV/0!"},0,0,0,0,{"$nulls":11},0,{"$nulls":39},"11.02.17 Разработка электронных устройств и систем"]
[null,null,{"$error":"#DIV/0!"},{"$error":"#DIV/0!"},0,0,0,0,{"$nulls":11},0,{"$nulls":39},"11.02.18 Системы радиосвязи, мобильной связи и телерадиовещания"]
[null,null,{"$error":"#DIV/0!"},{"$error":"#DIV/0!"},0,0,0,0,{"$nulls":11},0,{"$nulls":39},"11.02.19 Квантовые коммуникации"]
[null,null,{"$error":"#DIV/0!"},{"$error":"#DIV/0!"},0,0,0,0,{"$nulls":11},0,{"$nulls":39},"12.01.02 Оптик-механик"]
[null,null,{"$error":"#DIV/0!"},{"$error":"#DIV/0!"},0,0,0,0,{"$nulls":11},0,{"$nulls":39},"12.01.07 Электромеханик по ремонту и обслуживанию электронной медицинской аппаратуры"]
[null,null,{"$error":"#DIV/0!"},{"$error":"#DIV/0!"},0,0,0,0,{"$nulls":11},0,{"$nulls":39},"12.01.09 Мастер по изготовлению и сборке деталей и узлов оптических и оптико-электронных приборов и систем"]
[null,null,{"$error":"#DIV/0!"},{"$error":"#DIV/0!"},0,0,0,0,{"$nulls":11},0,{"$nulls":39},"12.02.01 Авиационные приборы и комплексы"]
[null,null,{"$error":"#DIV/0!"},{"$error":"#DIV/0!"},0,0,0,0,{"$nulls":11},0,{"$nulls":39},"12.02.03 Радиоэлектронные приборные устройства"]
[null,null,{"$error":"#DIV/0!"},{"$error":"#DIV/0!"},0,0,0,0,{"$nulls":11},0,{"$nulls":39},"12.02.03 Радиоэлектронные приборы и устройства"]
[null,null,{"$error":"#DIV/0!"},{"$error":"#DIV/0!"},0,0,0,0,{"$nulls":11},0,{"$nulls":39},"12.02.04 Электромеханические приборные устройства"]
[null,null,{"$error":"#DIV/0!"},{"$error":"#DIV/0!"},0,0,0,0,{"$nulls":11},0,{"$nulls":39},"12.02.05 Оптические и оптико-электронные приборы и системы"]
[null,null,{"$error":"#DIV/0!"},{"$error":"#DIV/0!"},0,0,0,0,{"$nulls":11},0,{"$nulls":39},"12.02.06 Биотехнические и медицинские аппараты и системы"]
[null,null,{"$error":"#DIV/0!"},{"$error":"#DIV/0!"},0,0,0,0,{"$nulls":11},0,{"$nulls":39},"12.02.07 Монтаж, техническое обслуживание и ремонт медицинской техники"]
[null,null,{"$error":"#DIV/0!"},{"$error":"#DIV/0!"},0,0,0,0,{"$nulls":11},0,{"$nulls":39},"12.02.08 Протезно-ортопедическая и реабилитационная техника"]
[null,null,{"$error":"#DIV/0!"},{"$error":"#DIV/0!"},0,0,0,0,{"$nulls":11},0,{"$nulls":39},"12.02.09 Производство и эксплуатация оптических и оптико-электронных приборов и систем"]
[null,null,{"$error":"#DIV/0!"},{"$error":"#DIV/0!"},0,0,0,0,{"$nulls":11},0,{"$nulls":39},"12.02.10 Монтаж, техническое обслуживание и ремонт биотехнических и медицинских аппаратов и систем"]
[null,null,{"$error":"#DIV/0!"},{"$error":"#DIV/0!"},0,0,0,0,{"$nulls":11},0,{"$nulls":39},"13.01.01 Машинист котлов"]
[null,null,{"$error":"#DIV/0!"},{"$error":"#DIV/0!"},0,0,0,0,{"$nulls":11},0,{"$nulls":39},"13.01.02 Машинист паровых турбин"]
[null,null,{"$error":"#DIV/0!"},{"$error":"#DIV/0!"},0,0,0,0,{"$nulls":11},0,{"$nulls":39},"13.01.03 Электрослесарь по ремонту оборудования электростанций"]
[null,null,{"$error":"#DIV/0!"},{"$error":"#DIV/0!"},0,0,0,0,{"$nulls":11},0,{"$nulls":39},"13.01.04 Слесарь по ремонту оборудования электростанций"]
[null,null,{"$error":"#DIV/0!"},{"$error":"#DIV/0!"},0,0,0,0,{"$nulls":11},0,{"$nulls":39},"13.01.05 Электромонтер по техническому обслуживанию электростанций и сетей"]
[null,null,{"$error":"#DIV/0!"},{"$error":"#DIV/0!"},0,0,0,0,{"$nulls":11},0,{"$nulls":39},"13.01.06 Электромонтер-линейщик по монтажу воздушных линий высокого напряжения и контактной сети"]
[null,null,{"$error":"#DIV/0!"},{"$error":"#DIV/0!"},0,0,0,0,{"$nulls":11},0,{"$nulls":39},"13.01.07 Электромонтер по ремонту электросетей"]
[null,null,{"$error":"#DIV/0!"},{"$error":"#DIV/0!"},0,0,0,0,{"$nulls":11},0,{"$nulls":39},"13.01.10 Электромонтер по ремонту и обслуживанию электрооборудования (по отраслям)"]
[null,null,{"$error":"#DIV/0!"},{"$error":"#DIV/0!"},0,0,0,0,{"$nulls":11},0,{"$nulls":39},"13.01.13 Электромонтажник-схемщик"]
[null,null,{"$error":"#DIV/0!"},{"$error":"#DIV/0!"},0,0,0,0,{"$nulls":11},0,{"$nulls":39},"13.01.14 Электромеханик по лифтам"]
[null,null,{"$error":"#DIV/0!"},{"$error":"#DIV/0!"},0,0,0,0,{"$nulls":11},0,{"$nulls":39},"13.01.15 Машинист энергоблока"]
[null,null,{"$error":"#DIV/0!"},{"$error":"#DIV/0!"},0,0,0,0,{"$nulls":11},0,{"$nulls":39},"13.01.16 Электромонтер по техническому обслуживанию и ремонту оборудования подстанций и сетей"]
[null,null,{"$error":"#DIV/0!"},{"$error":"#DIV/0!"},0,0,0,0,{"$nulls":11},0,{"$nulls":39},"13.01.17 Электрослесарь по ремонту оборудования электростанций"]
[null,null,{"$error":"#DIV/0!"},{"$error":"#DIV/0!"},0,0,0,0,{"$nulls":11},0,{"$nulls":39},"13.02.01 Тепловые электрические станции"]
[null,null,{"$error":"#DIV/0!"},{"$error":"#DIV/0!"},0,0,0,0,{"$nulls":11},0,{"$nulls":39},"13.02.02 Теплоснабжение и теплотехническое оборудование"]
[null,null,{"$f":"(H132+T132)/E132*100","v":{"$error":"#DIV/0!"}},{"$f":"(H132+T132+Y132)/(E132-W132-AA132)*100","v":{"$error":"#DIV/0!"}},0,0,0,0,{"$nulls":11},0,{"$nulls":39},"13.02.03 Электрические станции, сети и системы"]
[null,null,{"$error":"#DIV/0!"},{"$error":"#DIV/0!"},0,0,0,0,{"$nulls":11},0,{"$nulls":39},"13.02.04 Гидроэлектроэнергетические установки"]
[null,null,{"$error":"#DIV/0!"},{"$error":"#DIV/0!"},{"$f":"H134+T134+W134+Y134+AA134+AC134+AE134+AG134+AI134+AK134+AM134+AO134+AQ134","v":0},0,0,{"$f":"SUM(K134,N134,P134,R134,)","v":0},{"$nulls":11},{"$f":"SUM(U134,V134)","v":0},{"$nulls":39},"13.02.05 Технология воды, топлива и смазочных материалов на электрических станциях"]
[null,null,{"$error":"#DIV/0!"},{"$error":"#DIV/0!"},0,0,0,0,{"$nulls":11},0,{"$nulls":39},"13.02.06 Релейная защита и автоматизация электроэнергетических систем"]
[null,null,{"$error":"#DIV/0!"},{"$error":"#DIV/0!"},0,0,0,0,{"$nulls":11},0,{"$nulls":39},"13.02.07 Электроснабжение"]
[null,null,{"$error":"#DIV/0!"},{"$error":"#DIV/0!"},0,0,0,0,{"$nulls":11},0,{"$nulls":39},"13.02.07 Электроснабжение (по отраслям)"]
[null,null,{"$error":"#DIV/0!"},{"$error":"#DIV/0!"},0,0,0,0,{"$nulls":11},0,{"$nulls":39},"13.02.08 Электроизоляционная, кабельная и конденсаторная техника"]
[null,null,{"$error":"#DIV/0!"},{"$error":"#DIV/0!"},0,0,0,0,{"$nulls":11},0,{"$nulls":39},"13.02.09 Монтаж и эксплуатация линий электропередачи"]
[null,null,{"$error":"#DIV/0!"},{"$error":"#DIV/0!"},0,0,0,0,{"$nulls":11},0,{"$nulls":39},"13.02.10 Электрические машины и аппараты"]
[null,null,{"$error":"#DIV/0!"},{"$error":"#DIV/0!"},0,0,0,0,{"$nulls":11},0,{"$nulls":39},"13.02.11 Техническая эксплуатация и обслуживание электрического и электромеханического оборудования (по отраслям)"]
[null,null,{"$error":"#DIV/0!"},{"$error":"#DIV/0!"},0,0,0,0,{"$nulls":11},0,{"$nulls":39},"13.02.12 Электрические станции, сети, их релейная защита и автоматизация"]
[null,null,{"$error":"#DIV/0!"},{"$error":"#DIV/0!"},0,0,0,0,{"$nulls":11},0,{"$nulls":39},"13.02.13 Эксплуатация и обслуживание электрического и электромеханического оборудования (по отраслям)"]
[null,null,{"$error":"#DIV/0!"},{"$error":"#DIV/0!"},0,0,0,0,{"$nulls":11},0,{"$nulls":39},"14.02.01 Атомные электрические станции и установки"]
[null,null,{"$error":"#DIV/0!"},{"$error":"#DIV/0!"},0,0,0,0,{"$nulls":11},0,{"$nulls":39},"14.02.02 Радиационная безопасность"]
[null,null,{"$error":"#DIV/0!"},{"$error":"#DIV/0!"},0,0,0,0,{"$nulls":11},0,{"$nulls":39},"15.01.04 Наладчик сварочного и газоплазморезательного оборудования"]
[null,null,{"$error":"#DIV/0!"},{"$error":"#DIV/0!"},0,0,0,0,{"$nulls":11},0,{"$nulls":39},"15.01.05 Сварщик (ручной и частично механизированной сварки (наплавки)"]
[null,null,{"$error":"#DIV/0!"},{"$error":"#DIV/0!"},0,0,0,0,{"$nulls":11},0,{"$nulls":39},"15.01.05 Сварщик (электросварочные и газосварочные работы)"]
[null,null,{"$error":"#DIV/0!"},{"$error":"#DIV/0!"},0,0,0,0,{"$nulls":11},0,{"$nulls":39},"15.01.06 Сварщик на лазерных установках"]
[null,null,{"$error":"#DIV/0!"},{"$error":"#DIV/0!"},0,0,0,0,{"$nulls":11},0,{"$nulls":39},"15.01.08 Наладчик литейного и кузнечного оборудования"]
[null,null,{"$error":"#DIV/0!"},{"$error":"#DIV/0!"},0,0,0,0,{"$nulls":11},0,{"$nulls":39},"15.01.08 Наладчик литейного оборудования"]
[null,null,{"$error":"#DIV/0!"},{"$error":"#DIV/0!"},0,0,0,0,{"$nulls":11},0,{"$nulls":39},"15.01.09 Машинист лесозаготовительных и трелевочных машин"]
[null,null,{"$error":"#DIV/0!"},{"$error":"#DIV/0!"},0,0,0,0,{"$nulls":11},0,{"$nulls":39},"15.01.10 Слесарь по ремонту лесозаготовительного оборудования"]
[null,null,{"$error":"#DIV/0!"},{"$error":"#DIV/0!"},0,0,0,0,{"$nulls":11},0,{"$nulls":39},"15.01.13 Монтажник технологического оборудования (по видам оборудования)"]
[null,null,{"$error":"#DIV/0!"},{"$error":"#DIV/0!"},0,0,0,0,{"$nulls":11},0,{"$nulls":39},"15.01.13 Монтажник-наладчик технологического оборудования"]
[null,null,{"$error":"#DIV/0!"},{"$error":"#DIV/0!"},0,0,0,0,{"$nulls":11},0,{"$nulls":39},"15.01.17 Электромеханик по торговому и холодильному оборудованию"]
[null,null,{"$error":"#DIV/0!"},{"$error":"#DIV/0!"},0,0,0,0,{"$nulls":11},0,{"$nulls":39},"15.01.18 Машинист холодильных установок"]
[null,null,{"$error":"#DIV/0!"},{"$error":"#DIV/0!"},0,0,0,0,{"$nulls":11},0,{"$nulls":39},"15.01.19 Наладчик контрольно-измерительных приборов и автоматики"]
[null,null,{"$error":"#DIV/0!"},{"$error":"#DIV/0!"},0,0,0,0,{"$nulls":11},0,{"$nulls":39},"15.01.20 Слесарь по контрольно-измерительным приборам и автоматике"]
[null,null,{"$error":"#DIV/0!"},{"$error":"#DIV/0!"},0,0,0,0,{"$nulls":11},0,{"$nulls":39},"15.01.21 Электромонтер охранно-пожарной сигнализации"]
[null,null,{"$error":"#DIV/0!"},{"$error":"#DIV/0!"},0,0,0,0,{"$nulls":11},0,{"$nulls":39},"15.01.22 Чертежник-конструктор"]
[null,null,{"$error":"#DIV/0!"},{"$error":"#DIV/0!"},0,0,0,0,{"$nulls":11},0,{"$nulls":39},"15.01.23 Наладчик станков и оборудования в механообработке"]
[null,null,{"$error":"#DIV/0!"},{"$error":"#DIV/0!"},0,0,0,0,{"$nulls":11},0,{"$nulls":39},"15.01.25 Станочник (металлообработка)"]
[null,null,{"$error":"#DIV/0!"},{"$error":"#DIV/0!"},0,0,0,0,{"$nulls":11},0,{"$nulls":39},"15.01.26 Токарь-универсал"]
[null,null,{"$error":"#DIV/0!"},{"$error":"#DIV/0!"},0,0,0,0,{"$nulls":11},0,{"$nulls":39},"15.01.27 Фрезеровщик-универсал"]
[null,null,{"$error":"#DIV/0!"},{"$error":"#DIV/0!"},0,0,0,0,{"$nulls":11},0,{"$nulls":39},"15.01.29 Контролер качества в машиностроении"]
[null,null,{"$error":"#DIV/0!"},{"$error":"#DIV/0!"},0,0,0,0,{"$nulls":11},0,{"$nulls":39},"15.01.29 Контролер станочных и слесарных работ"]
[null,null,{"$error":"#DIV/0!"},{"$error":"#DIV/0!"},0,0,0,0,{"$nulls":11},0,{"$nulls":39},"15.01.30 Слесарь"]
[null,null,{"$error":"#DIV/0!"},{"$error":"#DIV/0!"},0,0,0,0,{"$nulls":11},0,{"$nulls":39},"15.01.31 Мастер контрольно-измерительных приборов и автоматики"]
[null,null,{"$error":"#DIV/0!"},{"$error":"#DIV/0!"},0,0,0,0,{"$nulls":11},0,{"$nulls":39},"15.01.32 Оператор станков с программным управлением"]
[null,null,{"$error":"#DIV/0!"},{"$error":"#DIV/0!"},0,0,0,0,{"$nulls":11},0,{"$nulls":39},"15.01.33 Токарь на станках с числовым программным управлением"]
[null,null,{"$error":"#DIV/0!"},{"$error":"#DIV/0!"},0,0,0,0,{"$nulls":11},0,{"$nulls":39},"15.01.34 Фрезеровщик на станках с числовым программным управлением"]
[null,null,{"$error":"#DIV/0!"},{"$error":"#DIV/0!"},0,0,0,0,{"$nulls":11},0,{"$nulls":39},"15.01.35 Мастер слесарных работ"]
[null,null,{"$error":"#DIV/0!"},{"$error":"#DIV/0!"},0,0,0,0,{"$nulls":11},0,{"$nulls":39},"15.01.36 Дефектоскопист"]
[null,null,{"$error":"#DIV/0!"},{"$error":"#DIV/0!"},0,0,0,0,{"$nulls":11},0,{"$nulls":39},"15.01.37 Слесарь-наладчик контрольно-измерительных приборов и автоматики"]
[null,null,{"$error":"#DIV/0!"},{"$error":"#DIV/0!"},0,0,0,0,{"$nulls":11},0,{"$nulls":39},"15.01.38 Оператор-наладчик металлообрабатывающих станков"]
[null,null,{"$error":"#DIV/0!"},{"$error":"#DIV/0!"},0,0,0,0,{"$nulls":11},0,{"$nulls":39},"15.02.01 Монтаж и техническая эксплуатация промышленного оборудования (по отраслям)"]
[null,null,{"$error":"#DIV/0!"},{"$error":"#DIV/0!"},0,0,0,0,{"$nulls":11},0,{"$nulls":39},"15.02.02 Техническая эксплуатация оборудования для производства электронной техники"]
[null,null,{"$error":"#DIV/0!"},{"$error":"#DIV/0!"},0,0,0,0,{"$nulls":11},0,{"$nulls":39},"15.02.03 Монтаж, техническое обслуживание и ремонт гидравлического и пневматического оборудования (по отраслям)"]
[null,null,{"$error":"#DIV/0!"},{"$error":"#DIV/0!"},0,0,0,0,{"$nulls":11},0,{"$nulls":39},"15.02.03 Техническая эксплуатация гидравлических машин, гидроприводов и гидропневмоавтоматики"]
[null,null,{"$error":"#DIV/0!"},{"$error":"#DIV/0!"},0,0,0,0,{"$nulls":11},0,{"$nulls":39},"15.02.04 Специальные машины и устройства"]
[null,null,{"$error":"#DIV/0!"},{"$error":"#DIV/0!"},0,0,0,0,{"$nulls":11},0,{"$nulls":39},"15.02.05 Техническая эксплуатация оборудования в торговле и общественном питании"]
[null,null,{"$error":"#DIV/0!"},{"$error":"#DIV/0!"},0,0,0,0,{"$nulls":11},0,{"$nulls":39},"15.02.06 Монтаж и техническая эксплуатация холодильно-компрессорных машин и установок (по отраслям)"]
[null,null,{"$error":"#DIV/0!"},{"$error":"#DIV/0!"},0,0,0,0,{"$nulls":11},0,{"$nulls":39},"15.02.06 Монтаж, техническая эксплуатация и ремонт холодильно-компрессорных и теплонасосных машин и установок (по отраслям)"]
[null,null,{"$error":"#DIV/0!"},{"$error":"#DIV/0!"},0,0,0,0,{"$nulls":11},0,{"$nulls":39},"15.02.07 Автоматизация технологических процессов и производств"]
[null,null,{"$error":"#DIV/0!"},{"$error":"#DIV/0!"},0,0,0,0,{"$nulls":11},0,{"$nulls":39},"15.02.07 Автоматизация технологических процессов и производств (по отраслям)"]
[null,null,{"$error":"#DIV/0!"},{"$error":"#DIV/0!"},0,0,0,0,{"$nulls":11},0,{"$nulls":39},"15.02.08 Технология машиностроения"]
[null,null,{"$error":"#DIV/0!"},{"$error":"#DIV/0!"},0,0,0,0,{"$nulls":11},0,{"$nulls":39},"15.02.09 Аддитивные технологии"]
[null,null,{"$error":"#DIV/0!"},{"$error":"#DIV/0!"},0,0,0,0,{"$nulls":11},0,{"$nulls":39},"15.02.10 Мехатроника и мобильная робототехника (по отраслям)"]
[null,null,{"$error":"#DIV/0!"},{"$error":"#DIV/0!"},0,0,0,0,{"$nulls":11},0,{"$nulls":39},"15.02.10 Мехатроника и робототехника (по отраслям)"]
[null,null,{"$error":"#DIV/0!"},{"$error":"#DIV/0!"},0,0,0,0,{"$nulls":11},0,{"$nulls":39},"15.02.11 Техническая эксплуатация и обслуживание роботизированного производства"]
[null,null,{"$error":"#DIV/0!"},{"$error":"#DIV/0!"},0,0,0,0,{"$nulls":11},0,{"$nulls":39},"15.02.12 Монтаж, техническое обслуживание и ремонт промышленного оборудования (по отраслям)"]
[null,null,{"$error":"#DIV/0!"},{"$error":"#DIV/0!"},0,0,0,0,{"$nulls":11},0,{"$nulls":39},"15.02.13 Техническое обслуживание и ремонт систем вентиляции и кондиционирования"]
[null,null,{"$error":"#DIV/0!"},{"$error":"#DIV/0!"},0,0,0,0,{"$nulls":11},0,{"$nulls":39},"15.02.14 Оснащение средствами автоматизации технологических процессов и производств (по отраслям)"]
[null,null,{"$error":"#DIV/0!"},{"$error":"#DIV/0!"},0,0,0,0,{"$nulls":11},0,{"$nulls":39},"15.02.15 Технология металлообрабатывающего производства"]
[null,null,{"$f":"(H196+T196)/E196*100","v":{"$error":"#DIV/0!"}},{"$f":"(H196+T196+Y196)/(E196-W196-AA196)*100","v":{"$error":"#DIV/0!"}},0,0,0,0,{"$nulls":11},0,{"$nulls":39},"15.02.16 Технология машиностроения"]
[null,null,{"$error":"#DIV/0!"},{"$error":"#DIV/0!"},0,0,0,0,{"$nulls":11},0,{"$nulls":39},"15.02.17 Монтаж, техническое обслуживание, эксплуатация и ремонт промышленного оборудования (по отраслям)"]
[null,null,{"$error":"#DIV/0!"},{"$error":"#DIV/0!"},{"$f":"H198+T198+W198+Y198+AA198+AC198+AE198+AG198+AI198+AK198+AM198+AO198+AQ198","v":0},0,0,{"$f":"SUM(K198,N198,P198,R198,)","v":0},{"$nulls":11},{"$f":"SUM(U198,V198)","v":0},{"$nulls":39},"15.02.18 Техническая эксплуатация и обслуживание роботизированного производства (по отраслям)"]
[null,null,{"$error":"#DIV/0!"},{"$error":"#DIV/0!"},0,0,0,0,{"$nulls":11},0,{"$nulls":39},"15.02.19 Сварочное производство"]
[null,null,{"$error":"#DIV/0!"},{"$error":"#DIV/0!"},0,0,0,0,{"$nulls":11},0,{"$nulls":39},"18.01.01 Лаборант по физико-механическим испытаниям"]
[null,null,{"$error":"#DIV/0!"},{"$error":"#DIV/0!"},0,0,0,0,{"$nulls":11},0,{"$nulls":39},"18.01.02 Лаборант-эколог"]
[null,null,{"$error":"#DIV/0!"},{"$error":"#DIV/0!"},0,0,0,0,{"$nulls":11},0,{"$nulls":39},"18.01.03 Аппаратчик-оператор экологических установок"]
[null,null,{"$error":"#DIV/0!"},{"$error":"#DIV/0!"},0,0,0,0,{"$nulls":11},0,{"$nulls":39},"18.01.05 Аппаратчик-оператор производства неорганических веществ"]
[null,null,{"$error":"#DIV/0!"},{"$error":"#DIV/0!"},0,0,0,0,{"$nulls":11},0,{"$nulls":39},"18.01.06 Оператор производства стекловолокна, стекловолокнистых материалов и изделий стеклопластиков"]
[null,null,{"$error":"#DIV/0!"},{"$error":"#DIV/0!"},0,0,0,0,{"$nulls":11},0,{"$nulls":39},"18.01.08 Мастер по изготовлению, обработке, отделке деталей и изделий из стекла"]
[null,null,{"$error":"#DIV/0!"},{"$error":"#DIV/0!"},0,0,0,0,{"$nulls":11},0,{"$nulls":39},"18.01.08 Мастер-изготовитель деталей и изделий из стекла"]
[null,null,{"$error":"#DIV/0!"},{"$error":"#DIV/0!"},0,0,0,0,{"$nulls":11},0,{"$nulls":39},"18.01.12 Изготовитель фарфоровых и фаянсовых изделий"]
[null,null,{"$error":"#DIV/0!"},{"$error":"#DIV/0!"},0,0,0,0,{"$nulls":11},0,{"$nulls":39},"18.01.22 Оператор в производстве шин"]
[null,null,{"$error":"#DIV/0!"},{"$error":"#DIV/0!"},0,0,0,0,{"$nulls":11},0,{"$nulls":39},"18.01.24 Мастер шиномонтажной мастерской"]
[null,null,{"$error":"#DIV/0!"},{"$error":"#DIV/0!"},0,0,0,0,{"$nulls":11},0,{"$nulls":39},"18.01.26 Аппаратчик-оператор нефтехимического производства"]
[null,null,{"$error":"#DIV/0!"},{"$error":"#DIV/0!"},0,0,0,0,{"$nulls":11},0,{"$nulls":39},"18.01.27 Машинист технологических насосов и компрессоров"]
[null,null,{"$error":"#DIV/0!"},{"$error":"#DIV/0!"},0,0,0,0,{"$nulls":11},0,{"$nulls":39},"18.01.28 Оператор нефтепереработки"]
[null,null,{"$error":"#DIV/0!"},{"$error":"#DIV/0!"},0,0,0,0,{"$nulls":11},0,{"$nulls":39},"18.01.29 Мастер по обслуживанию магистральных трубопроводов"]
[null,null,{"$error":"#DIV/0!"},{"$error":"#DIV/0!"},0,0,0,0,{"$nulls":11},0,{"$nulls":39},"18.01.31 Машинист машин коксохимического производства"]
[null,null,{"$error":"#DIV/0!"},{"$error":"#DIV/0!"},0,0,0,0,{"$nulls":11},0,{"$nulls":39},"18.01.32 Аппаратчик-оператор азотных производств и продуктов органического синтеза"]
[null,null,{"$error":"#DIV/0!"},{"$error":"#DIV/0!"},0,0,0,0,{"$nulls":11},0,{"$nulls":39},"18.01.33 Лаборант по контролю качества сырья, реактивов, промежуточных продуктов, готовой продукции, отходов производства (по отраслям)"]
[null,null,{"$error":"#DIV/0!"},{"$error":"#DIV/0!"},0,0,0,0,{"$nulls":11},0,{"$nulls":39},"18.01.34 Лаборант по контролю качества сырья, реактивов, промежуточных продуктов, готовой продукции, отходов производства (по отраслям)"]
[null,null,{"$error":"#DIV/0!"},{"$error":"#DIV/0!"},0,0,0,0,{"$nulls":11},0,{"$nulls":39},"18.01.35 Аппаратчик-оператор производства химических соединений"]
[null,null,{"$error":"#DIV/0!"},{"$error":"#DIV/0!"},0,0,0,0,{"$nulls":11},0,{"$nulls":39},"18.02.01 Аналитический контроль качества химических соединений"]
[null,null,{"$error":"#DIV/0!"},{"$error":"#DIV/0!"},0,0,0,0,{"$nulls":11},0,{"$nulls":39},"18.02.03 Химическая технология неорганических веществ"]
[null,null,{"$error":"#DIV/0!"},{"$error":"#DIV/0!"},0,0,0,0,{"$nulls":11},0,{"$nulls":39},"18.02.04 Электрохимическое производство"]
[null,null,{"$error":"#DIV/0!"},{"$error":"#DIV/0!"},0,0,0,0,{"$nulls":11},0,{"$nulls":39},"18.02.05 Производство тугоплавких неметаллических и силикатных материалов и изделий"]
[null,null,{"$error":"#DIV/0!"},{"$error":"#DIV/0!"},0,0,0,0,{"$nulls":11},0,{"$nulls":39},"18.02.06 Химическая технология органических веществ"]
[null,null,{"$error":"#DIV/0!"},{"$error":"#DIV/0!"},0,0,0,0,{"$nulls":11},0,{"$nulls":39},"18.02.07 Технология производства и переработки пластических масс и эластомеров"]
[null,null,{"$error":"#DIV/0!"},{"$error":"#DIV/0!"},0,0,0,0,{"$nulls":11},0,{"$nulls":39},"18.02.09 Переработка нефти и газа"]
[null,null,{"$error":"#DIV/0!"},{"$error":"#DIV/0!"},0,0,0,0,{"$nulls":11},0,{"$nulls":39},"18.02.10 Коксохимическое производство"]
[null,null,{"$error":"#DIV/0!"},{"$error":"#DIV/0!"},0,0,0,0,{"$nulls":11},0,{"$nulls":39},"18.02.11 Технология пиротехнических составов и изделий"]
[null,null,{"$error":"#DIV/0!"},{"$error":"#DIV/0!"},0,0,0,0,{"$nulls":11},0,{"$nulls":39},"18.02.11 Технология производства энергонасыщенных материалов и изделий"]
[null,null,{"$error":"#DIV/0!"},{"$error":"#DIV/0!"},0,0,0,0,{"$nulls":11},0,{"$nulls":39},"18.02.12 Технология аналитического контроля химических соединений"]
[null,null,{"$error":"#DIV/0!"},{"$error":"#DIV/0!"},0,0,0,0,{"$nulls":11},0,{"$nulls":39},"18.02.13 Технология производства изделий из полимерных композитов"]
[null,null,{"$error":"#DIV/0!"},{"$error":"#DIV/0!"},0,0,0,0,{"$nulls":11},0,{"$nulls":39},"18.02.14 Химическая технология производства химических соединений"]
[null,null,{"$error":"#DIV/0!"},{"$error":"#DIV/0!"},0,0,0,0,{"$nulls":11},0,{"$nulls":39},"18.02.15 Биохимическое производство"]
[null,null,{"$error":"#DIV/0!"},{"$error":"#DIV/0!"},0,0,0,0,{"$nulls":11},0,{"$nulls":39},"19.01.01 Аппаратчик-оператор в биотехнологии"]
[null,null,{"$error":"#DIV/0!"},{"$error":"#DIV/0!"},0,0,0,0,{"$nulls":11},0,{"$nulls":39},"19.01.01 Аппаратчик-оператор производства биотехнологической продукции для пищевой промышленности"]
[null,null,{"$error":"#DIV/0!"},{"$error":"#DIV/0!"},0,0,0,0,{"$nulls":11},0,{"$nulls":39},"19.01.02 Лаборант-аналитик"]
[null,null,{"$error":"#DIV/0!"},{"$error":"#DIV/0!"},0,0,0,0,{"$nulls":11},0,{"$nulls":39},"19.01.04 Пекарь"]
[null,null,{"$error":"#DIV/0!"},{"$error":"#DIV/0!"},0,0,0,0,{"$nulls":11},0,{"$nulls":39},"19.01.06 Аппаратчик производства сахара"]
[null,null,{"$error":"#DIV/0!"},{"$error":"#DIV/0!"},0,0,0,0,{"$nulls":11},0,{"$nulls":39},"19.01.07 Кондитер сахаристых изделий"]
[null,null,{"$error":"#DIV/0!"},{"$error":"#DIV/0!"},0,0,0,0,{"$nulls":11},0,{"$nulls":39},"19.01.09 Мастер по эксплуатации, механизации, автоматизации и роботизации технологического оборудования и процессов пищевой промышленности"]
[null,null,{"$error":"#DIV/0!"},{"$error":"#DIV/0!"},0,0,0,0,{"$nulls":11},0,{"$nulls":39},"19.01.09 Наладчик оборудования в производстве пищевой продукции (по отраслям производства)"]
[null,null,{"$error":"#DIV/0!"},{"$error":"#DIV/0!"},0,0,0,0,{"$nulls":11},0,{"$nulls":39},"19.01.10 Мастер производства молочной продукции"]
[null,null,{"$error":"#DIV/0!"},{"$error":"#DIV/0!"},0,0,0,0,{"$nulls":11},0,{"$nulls":39},"19.01.11 Изготовитель мороженого"]
[null,null,{"$error":"#DIV/0!"},{"$error":"#DIV/0!"},0,0,0,0,{"$nulls":11},0,{"$nulls":39},"19.01.12 Переработчик скота и мяса"]
[null,null,{"$error":"#DIV/0!"},{"$error":"#DIV/0!"},0,0,0,0,{"$nulls":11},0,{"$nulls":39},"19.01.14 Оператор процессов колбасного производства"]
[null,null,{"$error":"#DIV/0!"},{"$error":"#DIV/0!"},0,0,0,0,{"$nulls":11},0,{"$nulls":39},"19.01.15 Аппаратчик получения растительного масла"]
[null,null,{"$error":"#DIV/0!"},{"$error":"#DIV/0!"},0,0,0,0,{"$nulls":11},0,{"$nulls":39},"19.01.18 Аппаратчик-оператор производства продуктов питания из растительного сырья"]
[null,null,{"$error":"#DIV/0!"},{"$error":"#DIV/0!"},0,0,0,0,{"$nulls":11},0,{"$nulls":39},"19.01.19 Аппаратчик-оператор производства продуктов питания животного происхождения"]
[null,null,{"$error":"#DIV/0!"},{"$error":"#DIV/0!"},0,0,0,0,{"$nulls":11},0,{"$nulls":39},"19.01.20 Аппаратчик-оператор производства продукции общественного питания массового изготовления и специализированных пищевых продуктов"]
[null,null,{"$error":"#DIV/0!"},{"$error":"#DIV/0!"},0,0,0,0,{"$nulls":11},0,{"$nulls":39},"19.02.01 Биохимическое производство"]
[null,null,{"$error":"#DIV/0!"},{"$error":"#DIV/0!"},0,0,0,0,{"$nulls":11},0,{"$nulls":39},"19.02.02 Технология хранения и переработки зерна"]
[null,null,{"$error":"#DIV/0!"},{"$error":"#DIV/0!"},0,0,0,0,{"$nulls":11},0,{"$nulls":39},"19.02.03 Технология хлеба, кондитерских и макаронных изделий"]
[null,null,{"$error":"#DIV/0!"},{"$error":"#DIV/0!"},0,0,0,0,{"$nulls":11},0,{"$nulls":39},"19.02.04 Технология сахаристых продуктов"]
[null,null,{"$error":"#DIV/0!"},{"$error":"#DIV/0!"},0,0,0,0,{"$nulls":11},0,{"$nulls":39},"19.02.05 Технология бродильных производств и виноделие"]
[null,null,{"$error":"#DIV/0!"},{"$error":"#DIV/0!"},0,0,0,0,{"$nulls":11},0,{"$nulls":39},"19.02.06 Технология консервов и пищеконцентратов"]
[null,null,{"$error":"#DIV/0!"},{"$error":"#DIV/0!"},0,0,0,0,{"$nulls":11},0,{"$nulls":39},"19.02.07 Технология молока и молочных продуктов"]
[null,null,{"$error":"#DIV/0!"},{"$error":"#DIV/0!"},0,0,0,0,{"$nulls":11},0,{"$nulls":39},"19.02.08 Технология мяса и мясных продуктов"]
[null,null,{"$error":"#DIV/0!"},{"$error":"#DIV/0!"},0,0,0,0,{"$nulls":11},0,{"$nulls":39},"19.02.09 Технология жиров и жирозаменителей"]
[null,null,{"$error":"#DIV/0!"},{"$error":"#DIV/0!"},0,0,0,0,{"$nulls":11},0,{"$nulls":39},"19.02.10 Технология продукции общественного питания"]
[null,null,{"$error":"#DIV/0!"},{"$error":"#DIV/0!"},0,0,0,0,{"$nulls":11},0,{"$nulls":39},"19.02.11 Технология продуктов питания из растительного сырья"]
[null,null,{"$f":"(H260+T260)/E260*100","v":{"$error":"#DIV/0!"}},{"$f":"(H260+T260+Y260)/(E260-W260-AA260)*100","v":{"$error":"#DIV/0!"}},0,0,0,0,{"$nulls":11},0,{"$nulls":39},"19.02.12 Технология продуктов питания животного происхождения"]
[null,null,{"$error":"#DIV/0!"},{"$error":"#DIV/0!"},0,0,0,0,{"$nulls":11},0,{"$nulls":39},"19.02.13 Технология продуктов общественного питания массового изготовления и специализированных пищевых продуктов"]
[null,null,{"$error":"#DIV/0!"},{"$error":"#DIV/0!"},{"$f":"H262+T262+W262+Y262+AA262+AC262+AE262+AG262+AI262+AK262+AM262+AO262+AQ262","v":0},0,0,{"$f":"SUM(K262,N262,P262,R262,)","v":0},{"$nulls":11},{"$f":"SUM(U262,V262)","v":0},{"$nulls":39},"19.02.14 Эксплуатация, механизация, автоматизация и роботизация технологического оборудования и процессов пищевой промышленности"]
[null,null,{"$error":"#DIV/0!"},{"$error":"#DIV/0!"},0,0,0,0,{"$nulls":11},0,{"$nulls":39},"19.02.15 Биотехнология пищевой промышленности"]
[null,null,{"$error":"#DIV/0!"},{"$error":"#DIV/0!"},0,0,0,0,{"$nulls":11},0,{"$nulls":39},"20.01.01 Пожарный"]
[null,null,{"$error":"#DIV/0!"},{"$error":"#DIV/0!"},0,0,0,0,{"$nulls":11},0,{"$nulls":39},"20.02.01 Рациональное использование природохозяйственных комплексов"]
[null,null,{"$error":"#DIV/0!"},{"$error":"#DIV/0!"},0,0,0,0,{"$nulls":11},0,{"$nulls":39},"20.02.01 Экологическая безопасность природных комплексов"]
[null,null,{"$error":"#DIV/0!"},{"$error":"#DIV/0!"},0,0,0,0,{"$nulls":11},0,{"$nulls":39},"20.02.02 Защита в чрезвычайных ситуациях"]
[null,null,{"$error":"#DIV/0!"},{"$error":"#DIV/0!"},0,0,0,0,{"$nulls":11},0,{"$nulls":39},"20.02.03 Природоохранное обустройство территорий"]
[null,null,{"$error":"#DIV/0!"},{"$error":"#DIV/0!"},0,0,0,0,{"$nulls":11},0,{"$nulls":39},"20.02.04 Пожарная безопасность"]
[null,null,{"$error":"#DIV/0!"},{"$error":"#DIV/0!"},0,0,0,0,{"$nulls":11},0,{"$nulls":39},"20.02.05 Организация оперативного (экстренного) реагирования в чрезвычайных ситуациях"]
[null,null,{"$error":"#DIV/0!"},{"$error":"#DIV/0!"},0,0,0,0,{"$nulls":11},0,{"$nulls":39},"20.02.06 Безопасность на акватории"]
[null,null,{"$error":"#DIV/0!"},{"$error":"#DIV/0!"},0,0,0,0,{"$nulls":11},0,{"$nulls":39},"21.01.01 Оператор нефтяных и газовых скважин"]
[null,null,{"$error":"#DIV/0!"},{"$error":"#DIV/0!"},0,0,0,0,{"$nulls":11},0,{"$nulls":39},"21.01.02 Оператор по ремонту скважин"]
[null,null,{"$error":"#DIV/0!"},{"$error":"#DIV/0!"},0,0,0,0,{"$nulls":11},0,{"$nulls":39},"21.01.03 Бурильщик эксплуатационных и разведочных скважин"]
[null,null,{"$error":"#DIV/0!"},{"$error":"#DIV/0!"},0,0,0,0,{"$nulls":11},0,{"$nulls":39},"21.01.04 Машинист на буровых установках"]
[null,null,{"$error":"#DIV/0!"},{"$error":"#DIV/0!"},0,0,0,0,{"$nulls":11},0,{"$nulls":39},"21.01.07 Бурильщик морского бурения скважин"]
[null,null,{"$error":"#DIV/0!"},{"$error":"#DIV/0!"},0,0,0,0,{"$nulls":11},0,{"$nulls":39},"21.01.08 Машинист на открытых горных работах"]
[null,null,{"$error":"#DIV/0!"},{"$error":"#DIV/0!"},0,0,0,0,{"$nulls":11},0,{"$nulls":39},"21.01.10 Ремонтник горного оборудования"]
[null,null,{"$error":"#DIV/0!"},{"$error":"#DIV/0!"},0,0,0,0,{"$nulls":11},0,{"$nulls":39},"21.01.13 Проходчик"]
[null,null,{"$error":"#DIV/0!"},{"$error":"#DIV/0!"},0,0,0,0,{"$nulls":11},0,{"$nulls":39},"21.01.15 Электрослесарь подземный"]
[null,null,{"$error":"#DIV/0!"},{"$error":"#DIV/0!"},0,0,0,0,{"$nulls":11},0,{"$nulls":39},"21.01.16 Обогатитель полезных ископаемых"]
[null,null,{"$error":"#DIV/0!"},{"$error":"#DIV/0!"},0,0,0,0,{"$nulls":11},0,{"$nulls":39},"21.01.17 Мастер по обслуживанию магистральных трубопроводов"]
[null,null,{"$error":"#DIV/0!"},{"$error":"#DIV/0!"},0,0,0,0,{"$nulls":11},0,{"$nulls":39},"21.02.01 Разработка и эксплуатация нефтяных и газовых месторождений"]
[null,null,{"$error":"#DIV/0!"},{"$error":"#DIV/0!"},0,0,0,0,{"$nulls":11},0,{"$nulls":39},"21.02.02 Бурение нефтяных и газовых скважин"]
[null,null,{"$error":"#DIV/0!"},{"$error":"#DIV/0!"},0,0,0,0,{"$nulls":11},0,{"$nulls":39},"21.02.03 Сооружение и эксплуатация газонефтепроводов и газонефтехранилищ"]
[null,null,{"$error":"#DIV/0!"},{"$error":"#DIV/0!"},0,0,0,0,{"$nulls":11},0,{"$nulls":39},"21.02.04 Землеустройство"]
[null,null,{"$error":"#DIV/0!"},{"$error":"#DIV/0!"},0,0,0,0,{"$nulls":11},0,{"$nulls":39},"21.02.05 Земельно-имущественные отношения"]
[null,null,{"$error":"#DIV/0!"},{"$error":"#DIV/0!"},0,0,0,0,{"$nulls":11},0,{"$nulls":39},"21.02.06 Информационные системы обеспечения градостроительной деятельности"]
[null,null,{"$error":"#DIV/0!"},{"$error":"#DIV/0!"},0,0,0,0,{"$nulls":11},0,{"$nulls":39},"21.02.07 Аэрофотогеодезия"]
[null,null,{"$error":"#DIV/0!"},{"$error":"#DIV/0!"},0,0,0,0,{"$nulls":11},0,{"$nulls":39},"21.02.08 Прикладная геодезия"]
[null,null,{"$error":"#DIV/0!"},{"$error":"#DIV/0!"},0,0,0,0,{"$nulls":11},0,{"$nulls":39},"21.02.09 Гидрогеология и инженерная геология"]
[null,null,{"$error":"#DIV/0!"},{"$error":"#DIV/0!"},0,0,0,0,{"$nulls":11},0,{"$nulls":39},"21.02.10 Геология и разведка нефтяных и газовых месторождений"]
[null,null,{"$error":"#DIV/0!"},{"$error":"#DIV/0!"},0,0,0,0,{"$nulls":11},0,{"$nulls":39},"21.02.11 Геофизические методы поисков и разведки месторождений полезных ископаемых"]
[null,null,{"$error":"#DIV/0!"},{"$error":"#DIV/0!"},0,0,0,0,{"$nulls":11},0,{"$nulls":39},"21.02.12 Технология и техника разведки месторождений полезных ископаемых"]
[null,null,{"$error":"#DIV/0!"},{"$error":"#DIV/0!"},0,0,0,0,{"$nulls":11},0,{"$nulls":39},"21.02.13 Геологическая съемка, поиски и разведка месторождений полезных ископаемых"]
[null,null,{"$error":"#DIV/0!"},{"$error":"#DIV/0!"},0,0,0,0,{"$nulls":11},0,{"$nulls":39},"21.02.14 Маркшейдерское дело"]
[null,null,{"$error":"#DIV/0!"},{"$error":"#DIV/0!"},0,0,0,0,{"$nulls":11},0,{"$nulls":39},"21.02.15 Открытые горные работы"]
[null,null,{"$error":"#DIV/0!"},{"$error":"#DIV/0!"},0,0,0,0,{"$nulls":11},0,{"$nulls":39},"21.02.16 Шахтное строительство"]
[null,null,{"$error":"#DIV/0!"},{"$error":"#DIV/0!"},0,0,0,0,{"$nulls":11},0,{"$nulls":39},"21.02.17 Подземная разработка месторождений полезных ископаемых"]
[null,null,{"$error":"#DIV/0!"},{"$error":"#DIV/0!"},0,0,0,0,{"$nulls":11},0,{"$nulls":39},"21.02.18 Обогащение полезных ископаемых"]
[null,null,{"$error":"#DIV/0!"},{"$error":"#DIV/0!"},0,0,0,0,{"$nulls":11},0,{"$nulls":39},"21.02.19 Землеустройство"]
[null,null,{"$error":"#DIV/0!"},{"$error":"#DIV/0!"},0,0,0,0,{"$nulls":11},0,{"$nulls":39},"21.02.20 Прикладная геодезия"]
[null,null,{"$error":"#DIV/0!"},{"$error":"#DIV/0!"},0,0,0,0,{"$nulls":11},0,{"$nulls":39},"22.01.03 Машинист крана металлургического производства"]
[null,null,{"$error":"#DIV/0!"},{"$error":"#DIV/0!"},0,0,0,0,{"$nulls":11},0,{"$nulls":39},"22.01.04 Контролер металлургического производства"]
[null,null,{"$error":"#DIV/0!"},{"$error":"#DIV/0!"},0,0,0,0,{"$nulls":11},0,{"$nulls":39},"22.01.05 Аппаратчик-оператор в производстве цветных металлов"]
[null,null,{"$error":"#DIV/0!"},{"$error":"#DIV/0!"},0,0,0,0,{"$nulls":11},0,{"$nulls":39},"22.01.08 Оператор прокатного производства"]
[null,null,{"$error":"#DIV/0!"},{"$error":"#DIV/0!"},0,0,0,0,{"$nulls":11},0,{"$nulls":39},"22.01.09 Оператор трубного производства"]
[null,null,{"$error":"#DIV/0!"},{"$error":"#DIV/0!"},0,0,0,0,{"$nulls":11},0,{"$nulls":39},"22.01.11 Оператор металлургического производства"]
[null,null,{"$error":"#DIV/0!"},{"$error":"#DIV/0!"},0,0,0,0,{"$nulls":11},0,{"$nulls":39},"22.02.01 Металлургия черных металлов"]
[null,null,{"$error":"#DIV/0!"},{"$error":"#DIV/0!"},0,0,0,0,{"$nulls":11},0,{"$nulls":39},"22.02.02 Металлургия цветных металлов"]
[null,null,{"$error":"#DIV/0!"},{"$error":"#DIV/0!"},0,0,0,0,{"$nulls":11},0,{"$nulls":39},"22.02.03 Литейное производство черных и цветных металлов"]
[null,null,{"$error":"#DIV/0!"},{"$error":"#DIV/0!"},0,0,0,0,{"$nulls":11},0,{"$nulls":39},"22.02.04 Металловедение и термическая обработка металлов"]
[null,null,{"$error":"#DIV/0!"},{"$error":"#DIV/0!"},0,0,0,0,{"$nulls":11},0,{"$nulls":39},"22.02.05 Обработка металлов давлением"]
[null,null,{"$error":"#DIV/0!"},{"$error":"#DIV/0!"},0,0,0,0,{"$nulls":11},0,{"$nulls":39},"22.02.06 Сварочное производство"]
[null,null,{"$error":"#DIV/0!"},{"$error":"#DIV/0!"},0,0,0,0,{"$nulls":11},0,{"$nulls":39},"22.02.07 Порошковая металлургия, композиционные материалы, покрытия"]
[null,null,{"$error":"#DIV/0!"},{"$error":"#DIV/0!"},0,0,0,0,{"$nulls":11},0,{"$nulls":39},"22.02.08 Металлургическое производство (по видам производства)"]
[null,null,{"$error":"#DIV/0!"},{"$error":"#DIV/0!"},0,0,0,0,{"$nulls":11},0,{"$nulls":39},"23.01.01 Оператор транспортного терминала"]
[null,null,{"$error":"#DIV/0!"},{"$error":"#DIV/0!"},0,0,0,0,{"$nulls":11},0,{"$nulls":39},"23.01.02 Докер-механизатор"]
[null,null,{"$error":"#DIV/0!"},{"$error":"#DIV/0!"},0,0,0,0,{"$nulls":11},0,{"$nulls":39},"23.01.03 Автомеханик"]
[null,null,{"$error":"#DIV/0!"},{"$error":"#DIV/0!"},0,0,0,0,{"$nulls":11},0,{"$nulls":39},"23.01.04 Водитель городского электротранспорта"]
[null,null,{"$error":"#DIV/0!"},{"$error":"#DIV/0!"},0,0,0,0,{"$nulls":11},0,{"$nulls":39},"23.01.06 Машинист дорожных и строительных машин"]
[null,null,{"$error":"#DIV/0!"},{"$error":"#DIV/0!"},0,0,0,0,{"$nulls":11},0,{"$nulls":39},"23.01.07 Машинист крана (крановщик)"]
[null,null,{"$error":"#DIV/0!"},{"$error":"#DIV/0!"},0,0,0,0,{"$nulls":11},0,{"$nulls":39},"23.01.08 Слесарь по ремонту строительных машин"]
[null,null,{"$f":"(H324+T324)/E324*100","v":{"$error":"#DIV/0!"}},{"$f":"(H324+T324+Y324)/(E324-W324-AA324)*100","v":{"$error":"#DIV/0!"}},0,0,0,0,{"$nulls":11},0,{"$nulls":39},"23.01.09 Машинист локомотива"]
[null,null,{"$error":"#DIV/0!"},{"$error":"#DIV/0!"},0,0,0,0,{"$nulls":11},0,{"$nulls":39},"23.01.09 Помощник машиниста (по видам подвижного состава железнодорожного транспорта)"]
[null,null,{"$error":"#DIV/0!"},{"$error":"#DIV/0!"},{"$f":"H326+T326+W326+Y326+AA326+AC326+AE326+AG326+AI326+AK326+AM326+AO326+AQ326","v":0},0,0,{"$f":"SUM(K326,N326,P326,R326,)","v":0},{"$nulls":11},{"$f":"SUM(U326,V326)","v":0},{"$nulls":39},"23.01.10 Слесарь по обслуживанию и ремонту подвижного состава"]
[null,null,{"$error":"#DIV/0!"},{"$error":"#DIV/0!"},0,0,0,0,{"$nulls":11},0,{"$nulls":39},"23.01.11 Слесарь-электрик по ремонту электрооборудования подвижного состава (электровозов, электропоездов)"]
[null,null,{"$error":"#DIV/0!"},{"$error":"#DIV/0!"},0,0,0,0,{"$nulls":11},0,{"$nulls":39},"23.01.12 Слесарь-электрик метрополитена"]
[null,null,{"$error":"#DIV/0!"},{"$error":"#DIV/0!"},0,0,0,0,{"$nulls":11},0,{"$nulls":39},"23.01.13 Электромонтер тяговой подстанции"]
[null,null,{"$error":"#DIV/0!"},{"$error":"#DIV/0!"},0,0,0,0,{"$nulls":11},0,{"$nulls":39},"23.01.14 Электромонтер устройств сигнализации, централизации, блокировки (СЦБ)"]
[null,null,{"$error":"#DIV/0!"},{"$error":"#DIV/0!"},0,0,0,0,{"$nulls":11},0,{"$nulls":39},"23.01.15 Оператор поста централизации"]
[null,null,{"$error":"#DIV/0!"},{"$error":"#DIV/0!"},0,0,0,0,{"$nulls":11},0,{"$nulls":39},"23.01.16 Составитель поездов"]
[null,null,{"$error":"#DIV/0!"},{"$error":"#DIV/0!"},0,0,0,0,{"$nulls":11},0,{"$nulls":39},"23.01.17 Мастер по ремонту и обслуживанию автомобилей"]
[null,null,{"$error":"#DIV/0!"},{"$error":"#DIV/0!"},0,0,0,0,{"$nulls":11},0,{"$nulls":39},"23.01.18 Мастер вертикального транспорта"]
[null,null,{"$error":"#DIV/0!"},{"$error":"#DIV/0!"},0,0,0,0,{"$nulls":11},0,{"$nulls":39},"23.01.19 Оператор по обработке перевозочных документов на железнодорожном транспорте"]
[null,null,{"$error":"#DIV/0!"},{"$error":"#DIV/0!"},0,0,0,0,{"$nulls":11},0,{"$nulls":39},"23.01.20 Мастер по комплексному обслуживанию пути рельсового транспорта"]
[null,null,{"$error":"#DIV/0!"},{"$error":"#DIV/0!"},0,0,0,0,{"$nulls":11},0,{"$nulls":39},"23.01.21 Мастер путевых машин"]
[null,null,{"$error":"#DIV/0!"},{"$error":"#DIV/0!"},0,0,0,0,{"$nulls":11},0,{"$nulls":39},"23.01.22 Проводник на железнодорожном транспорте"]
[null,null,{"$error":"#DIV/0!"},{"$error":"#DIV/0!"},0,0,0,0,{"$nulls":11},0,{"$nulls":39},"23.01.23 Электромонтер объектов транспортной инфраструктуры"]
[null,null,{"$error":"#DIV/0!"},{"$error":"#DIV/0!"},0,0,0,0,{"$nulls":11},0,{"$nulls":39},"23.02.01 Организация перевозок и управление на транспорте (по видам)"]
[null,null,{"$error":"#DIV/0!"},{"$error":"#DIV/0!"},0,0,0,0,{"$nulls":11},0,{"$nulls":39},"23.02.02 Автомобиле- и тракторостроение"]
[null,null,{"$error":"#DIV/0!"},{"$error":"#DIV/0!"},0,0,0,0,{"$nulls":11},0,{"$nulls":39},"23.02.03 Техническое обслуживание и ремонт автомобильного транспорта"]
[null,null,{"$error":"#DIV/0!"},{"$error":"#DIV/0!"},0,0,0,0,{"$nulls":11},0,{"$nulls":39},"23.02.04 Техническая эксплуатация подъемно-транспортных, строительных, дорожных машин и оборудования (по отраслям)"]
[null,null,{"$error":"#DIV/0!"},{"$error":"#DIV/0!"},0,0,0,0,{"$nulls":11},0,{"$nulls":39},"23.02.05 Эксплуатация транспортного электрооборудования и автоматики (по видам транспорта, за исключением водного)"]
[null,null,{"$error":"#DIV/0!"},{"$error":"#DIV/0!"},0,0,0,0,{"$nulls":11},0,{"$nulls":39},"23.02.06 Техническая эксплуатация подвижного состава железных дорог"]
[null,null,{"$error":"#DIV/0!"},{"$error":"#DIV/0!"},0,0,0,0,{"$nulls":11},0,{"$nulls":39},"23.02.07 Техническое обслуживание и ремонт автотранспортных средств"]
[null,null,{"$error":"#DIV/0!"},{"$error":"#DIV/0!"},0,0,0,0,{"$nulls":11},0,{"$nulls":39},"23.02.07 Техническое обслуживание и ремонт двигателей, систем и агрегатов автомобилей"]
[null,null,{"$error":"#DIV/0!"},{"$error":"#DIV/0!"},0,0,0,0,{"$nulls":11},0,{"$nulls":39},"23.02.08 Строительство железных дорог, путь и путевое хозяйство"]
[null,null,{"$error":"#DIV/0!"},{"$error":"#DIV/0!"},0,0,0,0,{"$nulls":11},0,{"$nulls":39},"23.02.09 Автоматика и телемеханика на транспорте (железнодорожном транспорте)"]
[null,null,{"$error":"#DIV/0!"},{"$error":"#DIV/0!"},0,0,0,0,{"$nulls":11},0,{"$nulls":39},"24.01.01 Слесарь-сборщик авиационной техники"]
[null,null,{"$error":"#DIV/0!"},{"$error":"#DIV/0!"},0,0,0,0,{"$nulls":11},0,{"$nulls":39},"24.01.02 Электромонтажник авиационной техники"]
[null,null,{"$error":"#DIV/0!"},{"$error":"#DIV/0!"},0,0,0,0,{"$nulls":11},0,{"$nulls":39},"24.01.04 Слесарь по ремонту авиационной техники"]
[null,null,{"$error":"#DIV/0!"},{"$error":"#DIV/0!"},0,0,0,0,{"$nulls":11},0,{"$nulls":39},"24.02.01 Производство летательных аппаратов"]
[null,null,{"$error":"#DIV/0!"},{"$error":"#DIV/0!"},0,0,0,0,{"$nulls":11},0,{"$nulls":39},"24.02.02 Производство авиационных двигателей"]
[null,null,{"$error":"#DIV/0!"},{"$error":"#DIV/0!"},0,0,0,0,{"$nulls":11},0,{"$nulls":39},"24.02.04 Радиотехнические комплексы и системы управления космических летательных аппаратов"]
[null,null,{"$error":"#DIV/0!"},{"$error":"#DIV/0!"},0,0,0,0,{"$nulls":11},0,{"$nulls":39},"25.02.01 Техническая эксплуатация летательных аппаратов и двигателей"]
[null,null,{"$error":"#DIV/0!"},{"$error":"#DIV/0!"},0,0,0,0,{"$nulls":11},0,{"$nulls":39},"25.02.02 Обслуживание летательных аппаратов горюче-смазочными материалами"]
[null,null,{"$error":"#DIV/0!"},{"$error":"#DIV/0!"},0,0,0,0,{"$nulls":11},0,{"$nulls":39},"25.02.03 Техническая эксплуатация электрифицированных и пилотажно-навигационных комплексов"]
[null,null,{"$error":"#DIV/0!"},{"$error":"#DIV/0!"},0,0,0,0,{"$nulls":11},0,{"$nulls":39},"25.02.04 Летная эксплуатация летательных аппаратов"]
[null,null,{"$error":"#DIV/0!"},{"$error":"#DIV/0!"},0,0,0,0,{"$nulls":11},0,{"$nulls":39},"25.02.05 Управление движением воздушного транспорта"]
[null,null,{"$error":"#DIV/0!"},{"$error":"#DIV/0!"},0,0,0,0,{"$nulls":11},0,{"$nulls":39},"25.02.06 Производство и обслуживание авиационной техники"]
[null,null,{"$error":"#DIV/0!"},{"$error":"#DIV/0!"},0,0,0,0,{"$nulls":11},0,{"$nulls":39},"25.02.07 Техническое обслуживание авиационных двигателей"]
[null,null,{"$error":"#DIV/0!"},{"$error":"#DIV/0!"},0,0,0,0,{"$nulls":11},0,{"$nulls":39},"25.02.08 Эксплуатация беспилотных авиационных систем"]
[null,null,{"$error":"#DIV/0!"},{"$error":"#DIV/0!"},0,0,0,0,{"$nulls":11},0,{"$nulls":39},"25.02.09 Организация воздушных перевозок и авиационных работ"]
[null,null,{"$error":"#DIV/0!"},{"$error":"#DIV/0!"},0,0,0,0,{"$nulls":11},0,{"$nulls":39},"25.02.10 Транспортная безопасность воздушного транспорта"]
[null,null,{"$error":"#DIV/0!"},{"$error":"#DIV/0!"},0,0,0,0,{"$nulls":11},0,{"$nulls":39},"26.01.01 Судостроитель-судоремонтник металлических судов"]
[null,null,{"$error":"#DIV/0!"},{"$error":"#DIV/0!"},0,0,0,0,{"$nulls":11},0,{"$nulls":39},"26.01.02 Судостроитель-судоремонтник неметаллических судов"]
[null,null,{"$error":"#DIV/0!"},{"$error":"#DIV/0!"},0,0,0,0,{"$nulls":11},0,{"$nulls":39},"26.01.03 Слесарь-монтажник судовой"]
[null,null,{"$error":"#DIV/0!"},{"$error":"#DIV/0!"},0,0,0,0,{"$nulls":11},0,{"$nulls":39},"26.01.05 Электрорадиомонтажник судовой"]
[null,null,{"$error":"#DIV/0!"},{"$error":"#DIV/0!"},0,0,0,0,{"$nulls":11},0,{"$nulls":39},"26.01.06 Моторист-рулевой"]
[null,null,{"$error":"#DIV/0!"},{"$error":"#DIV/0!"},0,0,0,0,{"$nulls":11},0,{"$nulls":39},"26.01.06 Судоводитель-помощник механика маломерного судна"]
[null,null,{"$error":"#DIV/0!"},{"$error":"#DIV/0!"},0,0,0,0,{"$nulls":11},0,{"$nulls":39},"26.01.07 Матрос"]
[null,null,{"$error":"#DIV/0!"},{"$error":"#DIV/0!"},0,0,0,0,{"$nulls":11},0,{"$nulls":39},"26.01.08 Моторист (машинист)"]
[null,null,{"$error":"#DIV/0!"},{"$error":"#DIV/0!"},0,0,0,0,{"$nulls":11},0,{"$nulls":39},"26.01.09 Моторист судовой"]
[null,null,{"$error":"#DIV/0!"},{"$error":"#DIV/0!"},0,0,0,0,{"$nulls":11},0,{"$nulls":39},"26.01.10 Механик маломерного судна"]
[null,null,{"$error":"#DIV/0!"},{"$error":"#DIV/0!"},0,0,0,0,{"$nulls":11},0,{"$nulls":39},"26.01.12 Электрик судовой"]
[null,null,{"$error":"#DIV/0!"},{"$error":"#DIV/0!"},0,0,0,0,{"$nulls":11},0,{"$nulls":39},"26.01.13 Водолаз"]
[null,null,{"$error":"#DIV/0!"},{"$error":"#DIV/0!"},0,0,0,0,{"$nulls":11},0,{"$nulls":39},"26.02.01 Эксплуатация внутренних водных путей"]
[null,null,{"$error":"#DIV/0!"},{"$error":"#DIV/0!"},0,0,0,0,{"$nulls":11},0,{"$nulls":39},"26.02.02 Судостроение"]
[null,null,{"$error":"#DIV/0!"},{"$error":"#DIV/0!"},0,0,0,0,{"$nulls":11},0,{"$nulls":39},"26.02.03 Судовождение"]
[null,null,{"$error":"#DIV/0!"},{"$error":"#DIV/0!"},0,0,0,0,{"$nulls":11},0,{"$nulls":39},"26.02.04 Монтаж и техническое обслуживание судовых машин и механизмов"]
[null,null,{"$error":"#DIV/0!"},{"$error":"#DIV/0!"},0,0,0,0,{"$nulls":11},0,{"$nulls":39},"26.02.05 Эксплуатация судовых энергетических установок"]
[null,null,{"$error":"#DIV/0!"},{"$error":"#DIV/0!"},0,0,0,0,{"$nulls":11},0,{"$nulls":39},"26.02.06 Эксплуатация судового электрооборудования и средств автоматики"]
[null,null,{"$error":"#DIV/0!"},{"$error":"#DIV/0!"},0,0,0,0,{"$nulls":11},0,{"$nulls":39},"27.01.01 Контролер измерительных приборов"]
[null,null,{"$error":"#DIV/0!"},{"$error":"#DIV/0!"},0,0,0,0,{"$nulls":11},0,{"$nulls":39},"27.02.01 Метрология"]
[null,null,{"$error":"#DIV/0!"},{"$error":"#DIV/0!"},0,0,0,0,{"$nulls":11},0,{"$nulls":39},"27.02.02 Техническое регулирование и управление качеством"]
[null,null,{"$error":"#DIV/0!"},{"$error":"#DIV/0!"},0,0,0,0,{"$nulls":11},0,{"$nulls":39},"27.02.03 Автоматика и телемеханика на транспорте (железнодорожном транспорте)"]
[null,null,{"$f":"(H388+T388)/E388*100","v":{"$error":"#DIV/0!"}},{"$f":"(H388+T388+Y388)/(E388-W388-AA388)*100","v":{"$error":"#DIV/0!"}},0,0,0,0,{"$nulls":11},0,{"$nulls":39},"27.02.04 Автоматические системы управления"]
[null,null,{"$error":"#DIV/0!"},{"$error":"#DIV/0!"},0,0,0,0,{"$nulls":11},0,{"$nulls":39},"27.02.05 Системы и средства диспетчерского управления"]
[null,null,{"$error":"#DIV/0!"},{"$error":"#DIV/0!"},{"$f":"H390+T390+W390+Y390+AA390+AC390+AE390+AG390+AI390+AK390+AM390+AO390+AQ390","v":0},0,0,{"$f":"SUM(K390,N390,P390,R390,)","v":0},{"$nulls":11},{"$f":"SUM(U390,V390)","v":0},{"$nulls":39},"27.02.06 Контроль работы измерительных приборов"]
[null,null,{"$error":"#DIV/0!"},{"$error":"#DIV/0!"},0,0,0,0,{"$nulls":11},0,{"$nulls":39},"27.02.06 Метрологический контроль средств измерений"]
[null,null,{"$error":"#DIV/0!"},{"$error":"#DIV/0!"},0,0,0,0,{"$nulls":11},0,{"$nulls":39},"27.02.07 Управление качеством продукции, процессов и услуг (по отраслям)"]
[null,null,{"$error":"#DIV/0!"},{"$error":"#DIV/0!"},0,0,0,0,{"$nulls":11},0,{"$nulls":39},"29.01.01 Скорняк"]
[null,null,{"$error":"#DIV/0!"},{"$error":"#DIV/0!"},0,0,0,0,{"$nulls":11},0,{"$nulls":39},"29.01.02 Обувщик (широкого профиля)"]
[null,null,{"$error":"#DIV/0!"},{"$error":"#DIV/0!"},0,0,0,0,{"$nulls":11},0,{"$nulls":39},"29.01.03 Сборщик обуви"]
[null,null,{"$error":"#DIV/0!"},{"$error":"#DIV/0!"},0,0,0,0,{"$nulls":11},0,{"$nulls":39},"29.01.04 Художник по костюму"]
[null,null,{"$error":"#DIV/0!"},{"$error":"#DIV/0!"},0,0,0,0,{"$nulls":11},0,{"$nulls":39},"29.01.05 Закройщик"]
[null,null,{"$error":"#DIV/0!"},{"$error":"#DIV/0!"},0,0,0,0,{"$nulls":11},0,{"$nulls":39},"29.01.07 Портной"]
[null,null,{"$error":"#DIV/0!"},{"$error":"#DIV/0!"},0,0,0,0,{"$nulls":11},0,{"$nulls":39},"29.01.08 Оператор швейного оборудования"]
[null,null,{"$error":"#DIV/0!"},{"$error":"#DIV/0!"},0,0,0,0,{"$nulls":11},0,{"$nulls":39},"29.01.09 Вышивальщица"]
[null,null,{"$f":"(H401+T401)/E401*100","v":{"$error":"#DIV/0!"}},{"$f":"(H401+T401+Y401)/(E401-W401-AA401)*100","v":{"$error":"#DIV/0!"}},0,0,0,0,{"$nulls":11},0,{"$nulls":39},"29.01.09 Мастер-исполнитель художественной вышивки (по видам)"]
[null,null,{"$error":"#DIV/0!"},{"$error":"#DIV/0!"},0,0,0,0,{"$nulls":11},0,{"$nulls":39},"29.01.10 Модистка головных уборов"]
[null,null,{"$error":"#DIV/0!"},{"$error":"#DIV/0!"},0,0,0,0,{"$nulls":11},0,{"$nulls":39},"29.01.16 Ткач"]
[null,null,{"$error":"#DIV/0!"},{"$error":"#DIV/0!"},0,0,0,0,{"$nulls":11},0,{"$nulls":39},"29.01.17 Оператор вязально-швейного оборудования"]
[null,null,{"$error":"#DIV/0!"},{"$error":"#DIV/0!"},0,0,0,0,{"$nulls":11},0,{"$nulls":39},"29.01.24 Оператор электронного набора и верстки"]
[null,null,{"$error":"#DIV/0!"},{"$error":"#DIV/0!"},0,0,0,0,{"$nulls":11},0,{"$nulls":39},"29.01.25 Переплетчик"]
[null,null,{"$error":"#DIV/0!"},{"$error":"#DIV/0!"},0,0,0,0,{"$nulls":11},0,{"$nulls":39},"29.01.26 Печатник плоской печати"]
[null,null,{"$error":"#DIV/0!"},{"$error":"#DIV/0!"},0,0,0,0,{"$nulls":11},0,{"$nulls":39},"29.01.27 Мастер печатного дела"]
[null,null,{"$error":"#DIV/0!"},{"$error":"#DIV/0!"},0,0,0,0,{"$nulls":11},0,{"$nulls":39},"29.01.28 Мастер по обработке алмазов"]
[null,null,{"$error":"#DIV/0!"},{"$error":"#DIV/0!"},0,0,0,0,{"$nulls":11},0,{"$nulls":39},"29.01.28 Огранщик алмазов в бриллианты"]
[null,null,{"$error":"#DIV/0!"},{"$error":"#DIV/0!"},0,0,0,0,{"$nulls":11},0,{"$nulls":39},"29.01.29 Мастер столярного и мебельного производства"]
[null,null,{"$error":"#DIV/0!"},{"$error":"#DIV/0!"},0,0,0,0,{"$nulls":11},0,{"$nulls":39},"29.01.31 Мастер скорняжных работ"]
[null,null,{"$error":"#DIV/0!"},{"$error":"#DIV/0!"},0,0,0,0,{"$nulls":11},0,{"$nulls":39},"29.01.32 Мастер обувного производства"]
[null,null,{"$error":"#DIV/0!"},{"$error":"#DIV/0!"},0,0,0,0,{"$nulls":11},0,{"$nulls":39},"29.01.33 Мастер по изготовлению швейных изделий"]
[null,null,{"$error":"#DIV/0!"},{"$error":"#DIV/0!"},0,0,0,0,{"$nulls":11},0,{"$nulls":39},"29.01.34 Оператор оборудования швейного производства (по видам)"]
[null,null,{"$error":"#DIV/0!"},{"$error":"#DIV/0!"},0,0,0,0,{"$nulls":11},0,{"$nulls":39},"29.01.35 Оператор оборудования производства текстильных изделий (по видам)"]
[null,null,{"$error":"#DIV/0!"},{"$error":"#DIV/0!"},0,0,0,0,{"$nulls":11},0,{"$nulls":39},"29.01.36 Мастер полиграфического производства"]
[null,null,{"$error":"#DIV/0!"},{"$error":"#DIV/0!"},0,0,0,0,{"$nulls":11},0,{"$nulls":39},"29.02.01 Конструирование, моделирование и технология изделий из кожи"]
[null,null,{"$error":"#DIV/0!"},{"$error":"#DIV/0!"},0,0,0,0,{"$nulls":11},0,{"$nulls":39},"29.02.02 Технология кожи и меха"]
[null,null,{"$error":"#DIV/0!"},{"$error":"#DIV/0!"},0,0,0,0,{"$nulls":11},0,{"$nulls":39},"29.02.03 Конструирование, моделирование и технология изделий из меха"]
[null,null,{"$error":"#DIV/0!"},{"$error":"#DIV/0!"},0,0,0,0,{"$nulls":11},0,{"$nulls":39},"29.02.04 Конструирование, моделирование и технология швейных изделий"]
[null,null,{"$error":"#DIV/0!"},{"$error":"#DIV/0!"},0,0,0,0,{"$nulls":11},0,{"$nulls":39},"29.02.05 Технология текстильных изделий (по видам)"]
[null,null,{"$error":"#DIV/0!"},{"$error":"#DIV/0!"},0,0,0,0,{"$nulls":11},0,{"$nulls":39},"29.02.06 Полиграфическое производство"]
[null,null,{"$error":"#DIV/0!"},{"$error":"#DIV/0!"},0,0,0,0,{"$nulls":11},0,{"$nulls":39},"29.02.07 Производство изделий из бумаги и картона"]
[null,null,{"$error":"#DIV/0!"},{"$error":"#DIV/0!"},0,0,0,0,{"$nulls":11},0,{"$nulls":39},"29.02.08 Технология обработки алмазов"]
[null,null,{"$error":"#DIV/0!"},{"$error":"#DIV/0!"},0,0,0,0,{"$nulls":11},0,{"$nulls":39},"29.02.09 Печатное дело"]
[null,null,{"$error":"#DIV/0!"},{"$error":"#DIV/0!"},0,0,0,0,{"$nulls":11},0,{"$nulls":39},"29.02.10 Конструирование, моделирование и технология изготовления изделий легкой промышленности (по видам)"]
[null,null,{"$error":"#DIV/0!"},{"$error":"#DIV/0!"},0,0,0,0,{"$nulls":11},0,{"$nulls":39},"29.02.11 Полиграфическое производство"]
[null,null,{"$error":"#DIV/0!"},{"$error":"#DIV/0!"},0,0,0,0,{"$nulls":11},0,{"$nulls":39},"31.01.01 Медицинский администратор"]
[null,null,{"$error":"#DIV/0!"},{"$error":"#DIV/0!"},0,0,0,0,{"$nulls":11},0,{"$nulls":39},"31.02.01 Лечебное дело"]
[null,null,{"$error":"#DIV/0!"},{"$error":"#DIV/0!"},0,0,0,0,{"$nulls":11},0,{"$nulls":39},"31.02.02 Акушерское дело"]
[null,null,{"$error":"#DIV/0!"},{"$error":"#DIV/0!"},0,0,0,0,{"$nulls":11},0,{"$nulls":39},"31.02.03 Лабораторная диагностика"]
[null,null,{"$error":"#DIV/0!"},{"$error":"#DIV/0!"},0,0,0,0,{"$nulls":11},0,{"$nulls":39},"31.02.04 Медицинская оптика"]
[null,null,{"$error":"#DIV/0!"},{"$error":"#DIV/0!"},0,0,0,0,{"$nulls":11},0,{"$nulls":39},"31.02.05 Стоматология ортопедическая"]
[null,null,{"$error":"#DIV/0!"},{"$error":"#DIV/0!"},0,0,0,0,{"$nulls":11},0,{"$nulls":39},"31.02.06 Стоматология профилактическая"]
[null,null,{"$error":"#DIV/0!"},{"$error":"#DIV/0!"},0,0,0,0,{"$nulls":11},0,{"$nulls":39},"31.02.07 Стоматологическое дело"]
[null,null,{"$error":"#DIV/0!"},{"$error":"#DIV/0!"},0,0,0,0,{"$nulls":11},0,{"$nulls":39},"32.02.01 Медико-профилактическое дело"]
[null,null,{"$error":"#DIV/0!"},{"$error":"#DIV/0!"},0,0,0,0,{"$nulls":11},0,{"$nulls":39},"33.02.01 Фармация"]
[null,null,{"$error":"#DIV/0!"},{"$error":"#DIV/0!"},0,0,0,0,{"$nulls":11},0,{"$nulls":39},"34.01.01 Младшая медицинская сестра по уходу за больными"]
[null,null,{"$error":"#DIV/0!"},{"$error":"#DIV/0!"},0,0,0,0,{"$nulls":11},0,{"$nulls":39},"34.02.01 Сестринское дело"]
[null,null,{"$error":"#DIV/0!"},{"$error":"#DIV/0!"},0,0,0,0,{"$nulls":11},0,{"$nulls":39},"34.02.02 Медицинский массаж (для обучения лиц с ограниченными возможностями здоровья по зрению)"]
[null,null,{"$error":"#DIV/0!"},{"$error":"#DIV/0!"},0,0,0,0,{"$nulls":11},0,{"$nulls":39},"35.01.01 Мастер по лесному хозяйству"]
[null,null,{"$error":"#DIV/0!"},{"$error":"#DIV/0!"},0,0,0,0,{"$nulls":11},0,{"$nulls":39},"35.01.02 Станочник деревообрабатывающих станков"]
[null,null,{"$error":"#DIV/0!"},{"$error":"#DIV/0!"},0,0,0,0,{"$nulls":11},0,{"$nulls":39},"35.01.03 Станочник-обработчик"]
[null,null,{"$error":"#DIV/0!"},{"$error":"#DIV/0!"},0,0,0,0,{"$nulls":11},0,{"$nulls":39},"35.01.04 Оператор линии и установок в деревообработке"]
[null,null,{"$error":"#DIV/0!"},{"$error":"#DIV/0!"},0,0,0,0,{"$nulls":11},0,{"$nulls":39},"35.01.05 Контролер качества материалов и продукции деревообрабатывающего производства"]
[null,null,{"$error":"#DIV/0!"},{"$error":"#DIV/0!"},0,0,0,0,{"$nulls":11},0,{"$nulls":39},"35.01.05 Контролер полуфабрикатов и изделий из древесины"]
[null,null,{"$error":"#DIV/0!"},{"$error":"#DIV/0!"},0,0,0,0,{"$nulls":11},0,{"$nulls":39},"35.01.06 Машинист машин по производству бумаги и картона"]
[null,null,{"$error":"#DIV/0!"},{"$error":"#DIV/0!"},0,0,0,0,{"$nulls":11},0,{"$nulls":39},"35.01.06 Оператор машин по производству бумаги и картона"]
[null,null,{"$error":"#DIV/0!"},{"$error":"#DIV/0!"},0,0,0,0,{"$nulls":11},0,{"$nulls":39},"35.01.09 Мастер растениеводства"]
[null,null,{"$error":"#DIV/0!"},{"$error":"#DIV/0!"},0,0,0,0,{"$nulls":11},0,{"$nulls":39},"35.01.10 Овощевод защищенного грунта"]
[null,null,{"$error":"#DIV/0!"},{"$error":"#DIV/0!"},0,0,0,0,{"$nulls":11},0,{"$nulls":39},"35.01.11 Мастер сельскохозяйственного производства"]
[null,null,{"$error":"#DIV/0!"},{"$error":"#DIV/0!"},0,0,0,0,{"$nulls":11},0,{"$nulls":39},"35.01.12 Заготовитель продуктов и сырья"]
[null,null,{"$error":"#DIV/0!"},{"$error":"#DIV/0!"},{"$f":"H454+T454+W454+Y454+AA454+AC454+AE454+AG454+AI454+AK454+AM454+AO454+AQ454","v":0},0,0,{"$f":"SUM(K454,N454,P454,R454,)","v":0},{"$nulls":11},{"$f":"SUM(U454,V454)","v":0},{"$nulls":39},"35.01.13 Тракторист-машинист сельскохозяйственного производства"]
[null,null,{"$error":"#DIV/0!"},{"$error":"#DIV/0!"},0,0,0,0,{"$nulls":11},0,{"$nulls":39},"35.01.14 Мастер по техническому обслуживанию и ремонту машинно-тракторного парка"]
[null,null,{"$error":"#DIV/0!"},{"$error":"#DIV/0!"},0,0,0,0,{"$nulls":11},0,{"$nulls":39},"35.01.15 Мастер по ремонту и обслуживанию электрооборудования в сельском хозяйстве"]
[null,null,{"$error":"#DIV/0!"},{"$error":"#DIV/0!"},0,0,0,0,{"$nulls":11},0,{"$nulls":39},"35.01.15 Электромонтер по ремонту и обслуживанию электрооборудования в сельскохозяйственном производстве"]
[null,null,{"$error":"#DIV/0!"},{"$error":"#DIV/0!"},0,0,0,0,{"$nulls":11},0,{"$nulls":39},"35.01.16 Мастер по водным биоресурсам и аквакультуре"]
[null,null,{"$error":"#DIV/0!"},{"$error":"#DIV/0!"},0,0,0,0,{"$nulls":11},0,{"$nulls":39},"35.01.16 Рыбовод"]
[null,null,{"$error":"#DIV/0!"},{"$error":"#DIV/0!"},0,0,0,0,{"$nulls":11},0,{"$nulls":39},"35.01.17 Обработчик рыбы и морепродуктов"]
[null,null,{"$error":"#DIV/0!"},{"$error":"#DIV/0!"},0,0,0,0,{"$nulls":11},0,{"$nulls":39},"35.01.19 Мастер садово-паркового и ландшафтного строительства"]
[null,null,{"$error":"#DIV/0!"},{"$error":"#DIV/0!"},0,0,0,0,{"$nulls":11},0,{"$nulls":39},"35.01.20 Пчеловод"]
[null,null,{"$error":"#DIV/0!"},{"$error":"#DIV/0!"},0,0,0,0,{"$nulls":11},0,{"$nulls":39},"35.01.21 Оленевод-механизатор"]
[null,null,{"$error":"#DIV/0!"},{"$error":"#DIV/0!"},0,0,0,0,{"$nulls":11},0,{"$nulls":39},"35.01.23 Хозяйка(ин) усадьбы"]
[null,null,{"$f":"(H465+T465)/E465*100","v":{"$error":"#DIV/0!"}},{"$f":"(H465+T465+Y465)/(E465-W465-AA465)*100","v":{"$error":"#DIV/0!"}},0,0,0,0,{"$nulls":11},0,{"$nulls":39},"35.01.24 Управляющий сельской усадьбой"]
[null,null,{"$error":"#DIV/0!"},{"$error":"#DIV/0!"},0,0,0,0,{"$nulls":11},0,{"$nulls":39},"35.01.25 Оператор-станочник деревообрабатывающего оборудования"]
[null,null,{"$error":"#DIV/0!"},{"$error":"#DIV/0!"},0,0,0,0,{"$nulls":11},0,{"$nulls":39},"35.01.26 Мастер растениеводства"]
[null,null,{"$error":"#DIV/0!"},{"$error":"#DIV/0!"},0,0,0,0,{"$nulls":11},0,{"$nulls":39},"35.01.27 Мастер сельскохозяйственного производства"]
[null,null,{"$error":"#DIV/0!"},{"$error":"#DIV/0!"},0,0,0,0,{"$nulls":11},0,{"$nulls":39},"35.01.28 Мастер столярного и мебельного производства"]
[null,null,{"$error":"#DIV/0!"},{"$error":"#DIV/0!"},0,0,0,0,{"$nulls":11},0,{"$nulls":39},"35.01.29 Слесарь по ремонту лесозаготовительного оборудования"]
[null,null,{"$error":"#DIV/0!"},{"$error":"#DIV/0!"},0,0,0,0,{"$nulls":11},0,{"$nulls":39},"35.01.30 Машинист лесозаготовительных и трелевочных машин"]
[null,null,{"$error":"#DIV/0!"},{"$error":"#DIV/0!"},0,0,0,0,{"$nulls":11},0,{"$nulls":39},"35.01.31 Матрос промысловой команды"]
[null,null,{"$error":"#DIV/0!"},{"$error":"#DIV/0!"},0,0,0,0,{"$nulls":11},0,{"$nulls":39},"35.01.32 Мастер по техническому обеспечению рыболовства"]
[null,null,{"$error":"#DIV/0!"},{"$error":"#DIV/0!"},0,0,0,0,{"$nulls":11},0,{"$nulls":39},"35.01.33 Мастер по техническому обеспечению рыбоводства"]
[null,null,{"$error":"#DIV/0!"},{"$error":"#DIV/0!"},0,0,0,0,{"$nulls":11},0,{"$nulls":39},"35.01.34 Аппаратчик-оператор производства продукции из водных биоресурсов на судах рыбопромыслового флота и береговых предприятиях"]
[null,null,{"$error":"#DIV/0!"},{"$error":"#DIV/0!"},0,0,0,0,{"$nulls":11},0,{"$nulls":39},"35.01.35 Фермер"]
[null,null,{"$error":"#DIV/0!"},{"$error":"#DIV/0!"},0,0,0,0,{"$nulls":11},0,{"$nulls":39},"35.02.01 Лесное и лесопарковое хозяйство"]
[null,null,{"$error":"#DIV/0!"},{"$error":"#DIV/0!"},0,0,0,0,{"$nulls":11},0,{"$nulls":39},"35.02.02 Технология лесозаготовок"]
[null,null,{"$error":"#DIV/0!"},{"$error":"#DIV/0!"},0,0,0,0,{"$nulls":11},0,{"$nulls":39},"35.02.03 Технология деревообработки"]
[null,null,{"$error":"#DIV/0!"},{"$error":"#DIV/0!"},0,0,0,0,{"$nulls":11},0,{"$nulls":39},"35.02.04 Технология комплексной переработки древесины"]
[null,null,{"$error":"#DIV/0!"},{"$error":"#DIV/0!"},0,0,0,0,{"$nulls":11},0,{"$nulls":39},"35.02.05 Агрономия"]
[null,null,{"$error":"#DIV/0!"},{"$error":"#DIV/0!"},0,0,0,0,{"$nulls":11},0,{"$nulls":39},"35.02.06 Технология производства и переработки сельскохозяйственной продукции"]
[null,null,{"$error":"#DIV/0!"},{"$error":"#DIV/0!"},0,0,0,0,{"$nulls":11},0,{"$nulls":39},"35.02.07 Механизация сельского хозяйства"]
[null,null,{"$error":"#DIV/0!"},{"$error":"#DIV/0!"},0,0,0,0,{"$nulls":11},0,{"$nulls":39},"35.02.08 Электрификация и автоматизация сельского хозяйства"]
[null,null,{"$error":"#DIV/0!"},{"$error":"#DIV/0!"},0,0,0,0,{"$nulls":11},0,{"$nulls":39},"35.02.08 Электротехнические системы в агропромышленном комплексе (АПК)"]
[null,null,{"$error":"#DIV/0!"},{"$error":"#DIV/0!"},0,0,0,0,{"$nulls":11},0,{"$nulls":39},"35.02.09 Водные биоресурсы и аквакультура"]
[null,null,{"$error":"#DIV/0!"},{"$error":"#DIV/0!"},0,0,0,0,{"$nulls":11},0,{"$nulls":39},"35.02.09 Ихтиология и рыбоводство"]
[null,null,{"$error":"#DIV/0!"},{"$error":"#DIV/0!"},0,0,0,0,{"$nulls":11},0,{"$nulls":39},"35.02.10 Обработка водных биоресурсов"]
[null,null,{"$error":"#DIV/0!"},{"$error":"#DIV/0!"},0,0,0,0,{"$nulls":11},0,{"$nulls":39},"35.02.11 Промышленное рыболовство"]
[null,null,{"$error":"#DIV/0!"},{"$error":"#DIV/0!"},0,0,0,0,{"$nulls":11},0,{"$nulls":39},"35.02.12 Садово-парковое и ландшафтное строительство"]
[null,null,{"$error":"#DIV/0!"},{"$error":"#DIV/0!"},0,0,0,0,{"$nulls":11},0,{"$nulls":39},"35.02.13 Пчеловодство"]
[null,null,{"$error":"#DIV/0!"},{"$error":"#DIV/0!"},0,0,0,0,{"$nulls":11},0,{"$nulls":39},"35.02.14 Охотоведение и звероводство"]
[null,null,{"$error":"#DIV/0!"},{"$error":"#DIV/0!"},0,0,0,0,{"$nulls":11},0,{"$nulls":39},"35.02.15 Кинология"]
[null,null,{"$error":"#DIV/0!"},{"$error":"#DIV/0!"},0,0,0,0,{"$nulls":11},0,{"$nulls":39},"35.02.16 Эксплуатация и ремонт сельскохозяйственной техники и оборудования"]
[null,null,{"$error":"#DIV/0!"},{"$error":"#DIV/0!"},0,0,0,0,{"$nulls":11},0,{"$nulls":39},"35.02.17 Агромелиорация"]
[null,null,{"$error":"#DIV/0!"},{"$error":"#DIV/0!"},0,0,0,0,{"$nulls":11},0,{"$nulls":39},"35.02.18 Технология переработки древесины"]
[null,null,{"$error":"#DIV/0!"},{"$error":"#DIV/0!"},0,0,0,0,{"$nulls":11},0,{"$nulls":39},"35.02.19 Техническое обеспечение рыбоводства"]
[null,null,{"$error":"#DIV/0!"},{"$error":"#DIV/0!"},0,0,0,0,{"$nulls":11},0,{"$nulls":39},"35.02.20 Технология производства, первичной переработки и хранения сельскохозяйственной продукции"]
[null,null,{"$error":"#DIV/0!"},{"$error":"#DIV/0!"},0,0,0,0,{"$nulls":11},0,{"$nulls":39},"36.01.01 Младший ветеринарный фельдшер"]
[null,null,{"$error":"#DIV/0!"},{"$error":"#DIV/0!"},0,0,0,0,{"$nulls":11},0,{"$nulls":39},"36.01.02 Мастер животноводства"]
[null,null,{"$error":"#DIV/0!"},{"$error":"#DIV/0!"},0,0,0,0,{"$nulls":11},0,{"$nulls":39},"36.01.03 Тренер-наездник лошадей"]
[null,null,{"$error":"#DIV/0!"},{"$error":"#DIV/0!"},0,0,0,0,{"$nulls":11},0,{"$nulls":39},"36.01.04 Пчеловод"]
[null,null,{"$error":"#DIV/0!"},{"$error":"#DIV/0!"},0,0,0,0,{"$nulls":11},0,{"$nulls":39},"36.01.05 Лаборант в области ветеринарии"]
[null,null,{"$error":"#DIV/0!"},{"$error":"#DIV/0!"},0,0,0,0,{"$nulls":11},0,{"$nulls":39},"36.01.06 Мастер оленеводства"]
[null,null,{"$error":"#DIV/0!"},{"$error":"#DIV/0!"},0,0,0,0,{"$nulls":11},0,{"$nulls":39},"36.02.01 Ветеринария"]
[null,null,{"$error":"#DIV/0!"},{"$error":"#DIV/0!"},0,0,0,0,{"$nulls":11},0,{"$nulls":39},"36.02.02 Зоотехния"]
[null,null,{"$error":"#DIV/0!"},{"$error":"#DIV/0!"},0,0,0,0,{"$nulls":11},0,{"$nulls":39},"36.02.03 Зоотехния"]
[null,null,{"$error":"#DIV/0!"},{"$error":"#DIV/0!"},0,0,0,0,{"$nulls":11},0,{"$nulls":39},"36.02.04 Охотоведение и звероводство"]
[null,null,{"$error":"#DIV/0!"},{"$error":"#DIV/0!"},0,0,0,0,{"$nulls":11},0,{"$nulls":39},"36.02.05 Кинология"]
[null,null,{"$error":"#DIV/0!"},{"$error":"#DIV/0!"},0,0,0,0,{"$nulls":11},0,{"$nulls":39},"38.01.01 Оператор диспетчерской (производственно-диспетчерской) службы"]
[null,null,{"$error":"#DIV/0!"},{"$error":"#DIV/0!"},0,0,0,0,{"$nulls":11},0,{"$nulls":39},"38.01.02 Продавец"]
[null,null,{"$error":"#DIV/0!"},{"$error":"#DIV/0!"},0,0,0,0,{"$nulls":11},0,{"$nulls":39},"38.01.02 Продавец, контролер-кассир"]
[null,null,{"$error":"#DIV/0!"},{"$error":"#DIV/0!"},0,0,0,0,{"$nulls":11},0,{"$nulls":39},"38.01.03 Контролер банка"]
[null,null,{"$error":"#DIV/0!"},{"$error":"#DIV/0!"},0,0,0,0,{"$nulls":11},0,{"$nulls":39},"38.02.01 Экономика и бухгалтерский учет (по отраслям)"]
[null,null,{"$error":"#DIV/0!"},{"$error":"#DIV/0!"},0,0,0,0,{"$nulls":11},0,{"$nulls":39},"38.02.02 Страховое дело (по отраслям)"]
[null,null,{"$error":"#DIV/0!"},{"$error":"#DIV/0!"},0,0,0,0,{"$nulls":11},0,{"$nulls":39},"38.02.03 Операционная деятельность в логистике"]
[null,null,{"$error":"#DIV/0!"},{"$error":"#DIV/0!"},0,0,0,0,{"$nulls":11},0,{"$nulls":39},"38.02.04 Коммерция (по отраслям)"]
[null,null,{"$error":"#DIV/0!"},{"$error":"#DIV/0!"},{"$f":"H518+T518+W518+Y518+AA518+AC518+AE518+AG518+AI518+AK518+AM518+AO518+AQ518","v":0},0,0,{"$f":"SUM(K518,N518,P518,R518,)","v":0},{"$nulls":11},{"$f":"SUM(U518,V518)","v":0},{"$nulls":39},"38.02.05 Товароведение и экспертиза качества потребительских товаров"]
[null,null,{"$error":"#DIV/0!"},{"$error":"#DIV/0!"},0,0,0,0,{"$nulls":11},0,{"$nulls":39},"38.02.06 Финансы"]
[null,null,{"$error":"#DIV/0!"},{"$error":"#DIV/0!"},0,0,0,0,{"$nulls":11},0,{"$nulls":39},"38.02.07 Банковское дело"]
[null,null,{"$error":"#DIV/0!"},{"$error":"#DIV/0!"},0,0,0,0,{"$nulls":11},0,{"$nulls":39},"38.02.08 Торговое дело"]
[null,null,{"$error":"#DIV/0!"},{"$error":"#DIV/0!"},0,0,0,0,{"$nulls":11},0,{"$nulls":39},"38.02.09 Конгрессно-выставочная деятельность"]
[null,null,{"$error":"#DIV/0!"},{"$error":"#DIV/0!"},0,0,0,0,{"$nulls":11},0,{"$nulls":39},"39.01.01 Социальный работник"]
[null,null,{"$error":"#DIV/0!"},{"$error":"#DIV/0!"},0,0,0,0,{"$nulls":11},0,{"$nulls":39},"39.02.01 Социальная работа"]
[null,null,{"$error":"#DIV/0!"},{"$error":"#DIV/0!"},0,0,0,0,{"$nulls":11},0,{"$nulls":39},"39.02.02 Организация сурдокоммуникации"]
[null,null,{"$error":"#DIV/0!"},{"$error":"#DIV/0!"},0,0,0,0,{"$nulls":11},0,{"$nulls":39},"39.02.02 Сурдокоммуникация"]
[null,null,{"$error":"#DIV/0!"},{"$error":"#DIV/0!"},0,0,0,0,{"$nulls":11},0,{"$nulls":39},"39.02.03 Обеспечение деятельности службы занятости населения"]
[null,null,{"$error":"#DIV/0!"},{"$error":"#DIV/0!"},0,0,0,0,{"$nulls":11},0,{"$nulls":39},"40.02.01 Право и организация социального обеспечения"]
[null,null,{"$f":"(H529+T529)/E529*100","v":{"$error":"#DIV/0!"}},{"$f":"(H529+T529+Y529)/(E529-W529-AA529)*100","v":{"$error":"#DIV/0!"}},0,0,0,0,{"$nulls":11},0,{"$nulls":39},"40.02.02 Правоохранительная деятельность"]
[null,null,{"$error":"#DIV/0!"},{"$error":"#DIV/0!"},0,0,0,0,{"$nulls":11},0,{"$nulls":39},"40.02.03 Право и судебное администрирование"]
[null,null,{"$error":"#DIV/0!"},{"$error":"#DIV/0!"},0,0,0,0,{"$nulls":11},0,{"$nulls":39},"40.02.04 Юриспруденция"]
[null,null,{"$error":"#DIV/0!"},{"$error":"#DIV/0!"},0,0,0,0,{"$nulls":11},0,{"$nulls":39},"42.01.01 Агент рекламный"]
[null,null,{"$error":"#DIV/0!"},{"$error":"#DIV/0!"},0,0,0,0,{"$nulls":11},0,{"$nulls":39},"42.02.01 Реклама"]
[null,null,{"$error":"#DIV/0!"},{"$error":"#DIV/0!"},0,0,0,0,{"$nulls":11},0,{"$nulls":39},"42.02.02 Издательское дело"]
[null,null,{"$error":"#DIV/0!"},{"$error":"#DIV/0!"},0,0,0,0,{"$nulls":11},0,{"$nulls":39},"43.01.01 Официант, бармен"]
[null,null,{"$error":"#DIV/0!"},{"$error":"#DIV/0!"},0,0,0,0,{"$nulls":11},0,{"$nulls":39},"43.01.02 Парикмахер"]
[null,null,{"$error":"#DIV/0!"},{"$error":"#DIV/0!"},0,0,0,0,{"$nulls":11},0,{"$nulls":39},"43.01.03 Бортпроводник судовой"]
[null,null,{"$error":"#DIV/0!"},{"$error":"#DIV/0!"},0,0,0,0,{"$nulls":11},0,{"$nulls":39},"43.01.04 Повар судовой"]
[null,null,{"$error":"#DIV/0!"},{"$error":"#DIV/0!"},0,0,0,0,{"$nulls":11},0,{"$nulls":39},"43.01.05 Оператор по обработке перевозочных документов на железнодорожном транспорте"]
[null,null,{"$error":"#DIV/0!"},{"$error":"#DIV/0!"},0,0,0,0,{"$nulls":11},0,{"$nulls":39},"43.01.06 Проводник на железнодорожном транспорте"]
[null,null,{"$error":"#DIV/0!"},{"$error":"#DIV/0!"},0,0,0,0,{"$nulls":11},0,{"$nulls":39},"43.01.07 Слесарь по эксплуатации и ремонту газового оборудования"]
[null,null,{"$error":"#DIV/0!"},{"$error":"#DIV/0!"},0,0,0,0,{"$nulls":11},0,{"$nulls":39},"43.01.09 Повар, кондитер"]
[null,null,{"$error":"#DIV/0!"},{"$error":"#DIV/0!"},0,0,0,0,{"$nulls":11},0,{"$nulls":39},"43.01.11 Мастер флористического сервиса"]
[null,null,{"$error":"#DIV/0!"},{"$error":"#DIV/0!"},0,0,0,0,{"$nulls":11},0,{"$nulls":39},"43.02.01 Организация обслуживания в общественном питании"]
[null,null,{"$error":"#DIV/0!"},{"$error":"#DIV/0!"},0,0,0,0,{"$nulls":11},0,{"$nulls":39},"43.02.02 Парикмахерское искусство"]
[null,null,{"$error":"#DIV/0!"},{"$error":"#DIV/0!"},0,0,0,0,{"$nulls":11},0,{"$nulls":39},"43.02.03 Стилистика и искусство визажа"]
[null,null,{"$error":"#DIV/0!"},{"$error":"#DIV/0!"},0,0,0,0,{"$nulls":11},0,{"$nulls":39},"43.02.04 Прикладная эстетика"]
[null,null,{"$error":"#DIV/0!"},{"$error":"#DIV/0!"},0,0,0,0,{"$nulls":11},0,{"$nulls":39},"43.02.05 Флористика"]
[null,null,{"$error":"#DIV/0!"},{"$error":"#DIV/0!"},0,0,0,0,{"$nulls":11},0,{"$nulls":39},"43.02.06 Сервис на транспорте (по видам транспорта)"]
[null,null,{"$error":"#DIV/0!"},{"$error":"#DIV/0!"},0,0,0,0,{"$nulls":11},0,{"$nulls":39},"43.02.07 Сервис по химической обработке изделий"]
[null,null,{"$error":"#DIV/0!"},{"$error":"#DIV/0!"},0,0,0,0,{"$nulls":11},0,{"$nulls":39},"43.02.08 Сервис домашнего и коммунального хозяйства"]
[null,null,{"$error":"#DIV/0!"},{"$error":"#DIV/0!"},0,0,0,0,{"$nulls":11},0,{"$nulls":39},"43.02.10 Туризм"]
[null,null,{"$error":"#DIV/0!"},{"$error":"#DIV/0!"},0,0,0,0,{"$nulls":11},0,{"$nulls":39},"43.02.11 Гостиничный сервис"]
[null,null,{"$error":"#DIV/0!"},{"$error":"#DIV/0!"},0,0,0,0,{"$nulls":11},0,{"$nulls":39},"43.02.12 Технология эстетических услуг"]
[null,null,{"$error":"#DIV/0!"},{"$error":"#DIV/0!"},0,0,0,0,{"$nulls":11},0,{"$nulls":39},"43.02.13 Технология парикмахерского искусства"]
[null,null,{"$error":"#DIV/0!"},{"$error":"#DIV/0!"},0,0,0,0,{"$nulls":11},0,{"$nulls":39},"43.02.14 Гостиничное дело"]
[null,null,{"$error":"#DIV/0!"},{"$error":"#DIV/0!"},0,0,0,0,{"$nulls":11},0,{"$nulls":39},"43.02.15 Поварское и кондитерское дело"]
[null,null,{"$error":"#DIV/0!"},{"$error":"#DIV/0!"},0,0,0,0,{"$nulls":11},0,{"$nulls":39},"43.02.16 Туризм и гостеприимство"]
[null,null,{"$error":"#DIV/0!"},{"$error":"#DIV/0!"},0,0,0,0,{"$nulls":11},0,{"$nulls":39},"43.02.17 Технологии индустрии красоты"]
[null,null,{"$error":"#DIV/0!"},{"$error":"#DIV/0!"},0,0,0,0,{"$nulls":11},0,{"$nulls":39},"44.02.01 Дошкольное образование"]
[null,null,{"$error":"#DIV/0!"},{"$error":"#DIV/0!"},0,0,0,0,{"$nulls":11},0,{"$nulls":39},"44.02.02 Преподавание в начальных классах"]
[null,null,{"$error":"#DIV/0!"},{"$error":"#DIV/0!"},0,0,0,0,{"$nulls":11},0,{"$nulls":39},"44.02.03 Педагогика дополнительного образования"]
[null,null,{"$error":"#DIV/0!"},{"$error":"#DIV/0!"},0,0,0,0,{"$nulls":11},0,{"$nulls":39},"44.02.04 Специальное дошкольное образование"]
[null,null,{"$error":"#DIV/0!"},{"$error":"#DIV/0!"},0,0,0,0,{"$nulls":11},0,{"$nulls":39},"44.02.05 Коррекционная педагогика в начальном образовании"]
[null,null,{"$error":"#DIV/0!"},{"$error":"#DIV/0!"},0,0,0,0,{"$nulls":11},0,{"$nulls":39},"44.02.06 Профессиональное обучение (по отраслям)"]
[null,null,{"$error":"#DIV/0!"},{"$error":"#DIV/0!"},0,0,0,0,{"$nulls":11},0,{"$nulls":39},"44.02.07 Преподавание в основном общем образовании (по профилям)"]
[null,null,{"$error":"#DIV/0!"},{"$error":"#DIV/0!"},0,0,0,0,{"$nulls":11},0,{"$nulls":39},"46.01.01 Секретарь"]
[null,null,{"$error":"#DIV/0!"},{"$error":"#DIV/0!"},0,0,0,0,{"$nulls":11},0,{"$nulls":39},"46.01.02 Архивариус"]
[null,null,{"$error":"#DIV/0!"},{"$error":"#DIV/0!"},0,0,0,0,{"$nulls":11},0,{"$nulls":39},"46.01.03 Делопроизводитель"]
[null,null,{"$error":"#DIV/0!"},{"$error":"#DIV/0!"},0,0,0,0,{"$nulls":11},0,{"$nulls":39},"46.02.01 Документационное обеспечение управления и архивоведение"]
[null,null,{"$error":"#DIV/0!"},{"$error":"#DIV/0!"},0,0,0,0,{"$nulls":11},0,{"$nulls":39},"46.02.02 Обеспечение технологического сопровождения цифровой трансформации документированных сфер деятельности"]
[null,null,{"$error":"#DIV/0!"},{"$error":"#DIV/0!"},0,0,0,0,{"$nulls":11},0,{"$nulls":39},"49.02.01 Физическая культура"]
[null,null,{"$error":"#DIV/0!"},{"$error":"#DIV/0!"},0,0,0,0,{"$nulls":11},0,{"$nulls":39},"49.02.02 Адаптивная физическая культура"]
[null,null,{"$error":"#DIV/0!"},{"$error":"#DIV/0!"},0,0,0,0,{"$nulls":11},0,{"$nulls":39},"49.02.03 Спорт"]
[null,null,{"$error":"#DIV/0!"},{"$error":"#DIV/0!"},0,0,0,0,{"$nulls":11},0,{"$nulls":39},"50.02.01 Мировая художественная культура"]
[null,null,{"$error":"#DIV/0!"},{"$error":"#DIV/0!"},0,0,0,0,{"$nulls":11},0,{"$nulls":39},"51.02.01 Народное художественное творчество (по видам)"]
[null,null,{"$error":"#DIV/0!"},{"$error":"#DIV/0!"},0,0,0,0,{"$nulls":11},0,{"$nulls":39},"51.02.02 Социально-культурная деятельность (по видам)"]
[null,null,{"$error":"#DIV/0!"},{"$error":"#DIV/0!"},0,0,0,0,{"$nulls":11},0,{"$nulls":39},"51.02.03 Библиотековедение"]
[null,null,{"$error":"#DIV/0!"},{"$error":"#DIV/0!"},0,0,0,0,{"$nulls":11},0,{"$nulls":39},"51.02.03 Библиотечно-информационная деятельность"]
[null,null,{"$error":"#DIV/0!"},{"$error":"#DIV/0!"},0,0,0,0,{"$nulls":11},0,{"$nulls":39},"52.02.01 Искусство балета"]
[null,null,{"$error":"#DIV/0!"},{"$error":"#DIV/0!"},0,0,0,0,{"$nulls":11},0,{"$nulls":39},"52.02.02 Искусство танца (по видам)"]
[null,null,{"$error":"#DIV/0!"},{"$error":"#DIV/0!"},{"$f":"H582+T582+W582+Y582+AA582+AC582+AE582+AG582+AI582+AK582+AM582+AO582+AQ582","v":0},0,0,{"$f":"SUM(K582,N582,P582,R582,)","v":0},{"$nulls":11},{"$f":"SUM(U582,V582)","v":0},{"$nulls":39},"52.02.03 Цирковое искусство"]
[null,null,{"$error":"#DIV/0!"},{"$error":"#DIV/0!"},0,0,0,0,{"$nulls":11},0,{"$nulls":39},"52.02.04 Актерское искусство"]
[null,null,{"$error":"#DIV/0!"},{"$error":"#DIV/0!"},0,0,0,0,{"$nulls":11},0,{"$nulls":39},"52.02.05 Искусство эстрады"]
[null,null,{"$error":"#DIV/0!"},{"$error":"#DIV/0!"},0,0,0,0,{"$nulls":11},0,{"$nulls":39},"53.01.01 Мастер по ремонту и обслуживанию музыкальных инструментов (по видам)"]
[null,null,{"$error":"#DIV/0!"},{"$error":"#DIV/0!"},0,0,0,0,{"$nulls":11},0,{"$nulls":39},"53.02.01 Музыкальное образование"]
[null,null,{"$error":"#DIV/0!"},{"$error":"#DIV/0!"},0,0,0,0,{"$nulls":11},0,{"$nulls":39},"53.02.02 Музыкальное искусство эстрады (по видам)"]
[null,null,{"$error":"#DIV/0!"},{"$error":"#DIV/0!"},0,0,0,0,{"$nulls":11},0,{"$nulls":39},"53.02.03 Инструментальное исполнительство (по видам инструментов)"]
[null,null,{"$error":"#DIV/0!"},{"$error":"#DIV/0!"},0,0,0,0,{"$nulls":11},0,{"$nulls":39},"53.02.04 Вокальное искусство"]
[null,null,{"$error":"#DIV/0!"},{"$error":"#DIV/0!"},0,0,0,0,{"$nulls":11},0,{"$nulls":39},"53.02.05 Сольное и хоровое народное пение"]
[null,null,{"$error":"#DIV/0!"},{"$error":"#DIV/0!"},0,0,0,0,{"$nulls":11},0,{"$nulls":39},"53.02.06 Хоровое дирижирование"]
[null,null,{"$error":"#DIV/0!"},{"$error":"#DIV/0!"},0,0,0,0,{"$nulls":11},0,{"$nulls":39},"53.02.06 Хоровое дирижирование с присвоением квалификаций хормейстер, преподаватель"]
[null,null,{"$f":"(H593+T593)/E593*100","v":{"$error":"#DIV/0!"}},{"$f":"(H593+T593+Y593)/(E593-W593-AA593)*100","v":{"$error":"#DIV/0!"}},0,0,0,0,{"$nulls":11},0,{"$nulls":39},"53.02.07 Теория музыки"]
[null,null,{"$error":"#DIV/0!"},{"$error":"#DIV/0!"},0,0,0,0,{"$nulls":11},0,{"$nulls":39},"53.02.08 Музыкальное звукооператорское мастерство"]
[null,null,{"$error":"#DIV/0!"},{"$error":"#DIV/0!"},0,0,0,0,{"$nulls":11},0,{"$nulls":39},"53.02.09 Театрально-декорационное искусство (по видам)"]
[null,null,{"$error":"#DIV/0!"},{"$error":"#DIV/0!"},0,0,0,0,{"$nulls":11},0,{"$nulls":39},"54.01.01 Исполнитель художественно-оформительских работ"]
[null,null,{"$error":"#DIV/0!"},{"$error":"#DIV/0!"},0,0,0,0,{"$nulls":11},0,{"$nulls":39},"54.01.02 Ювелир"]
[null,null,{"$error":"#DIV/0!"},{"$error":"#DIV/0!"},0,0,0,0,{"$nulls":11},0,{"$nulls":39},"54.01.03 Фотограф"]
[null,null,{"$error":"#DIV/0!"},{"$error":"#DIV/0!"},0,0,0,0,{"$nulls":11},0,{"$nulls":39},"54.01.04 Мастер народных художественных промыслов"]
[null,null,{"$error":"#DIV/0!"},{"$error":"#DIV/0!"},0,0,0,0,{"$nulls":11},0,{"$nulls":39},"54.01.05 Изготовитель художественных изделий из тканей с художественной росписью"]
[null,null,{"$error":"#DIV/0!"},{"$error":"#DIV/0!"},0,0,0,0,{"$nulls":11},0,{"$nulls":39},"54.01.06 Изготовитель художественных изделий из металла"]
[null,null,{"$error":"#DIV/0!"},{"$error":"#DIV/0!"},0,0,0,0,{"$nulls":11},0,{"$nulls":39},"54.01.07 Изготовитель художественных изделий из керамики"]
[null,null,{"$error":"#DIV/0!"},{"$error":"#DIV/0!"},0,0,0,0,{"$nulls":11},0,{"$nulls":39},"54.01.10 Художник росписи по дереву"]
[null,null,{"$error":"#DIV/0!"},{"$error":"#DIV/0!"},0,0,0,0,{"$nulls":11},0,{"$nulls":39},"54.01.11 Художник росписи по ткани"]
[null,null,{"$error":"#DIV/0!"},{"$error":"#DIV/0!"},0,0,0,0,{"$nulls":11},0,{"$nulls":39},"54.01.12 Художник миниатюрной живописи"]
[null,null,{"$error":"#DIV/0!"},{"$error":"#DIV/0!"},0,0,0,0,{"$nulls":11},0,{"$nulls":39},"54.01.13 Изготовитель художественных изделий из дерева"]
[null,null,{"$error":"#DIV/0!"},{"$error":"#DIV/0!"},0,0,0,0,{"$nulls":11},0,{"$nulls":39},"54.01.14 Резчик"]
[null,null,{"$error":"#DIV/0!"},{"$error":"#DIV/0!"},0,0,0,0,{"$nulls":11},0,{"$nulls":39},"54.01.16 Лепщик-модельщик архитектурных деталей"]
[null,null,{"$error":"#DIV/0!"},{"$error":"#DIV/0!"},0,0,0,0,{"$nulls":11},0,{"$nulls":39},"54.01.17 Реставратор строительный"]
[null,null,{"$error":"#DIV/0!"},{"$error":"#DIV/0!"},0,0,0,0,{"$nulls":11},0,{"$nulls":39},"54.01.19 Реставратор памятников каменного и деревянного зодчества"]
[null,null,{"$error":"#DIV/0!"},{"$error":"#DIV/0!"},0,0,0,0,{"$nulls":11},0,{"$nulls":39},"54.01.20 Графический дизайнер"]
[null,null,{"$error":"#DIV/0!"},{"$error":"#DIV/0!"},0,0,0,0,{"$nulls":11},0,{"$nulls":39},"54.01.21 Изготовитель художественных изделий из твердых материалов (по видам, за исключением металла)"]
[null,null,{"$error":"#DIV/0!"},{"$error":"#DIV/0!"},0,0,0,0,{"$nulls":11},0,{"$nulls":39},"54.01.22 Реставратор"]
[null,null,{"$error":"#DIV/0!"},{"$error":"#DIV/0!"},0,0,0,0,{"$nulls":11},0,{"$nulls":39},"54.02.01 Дизайн (по отраслям)"]
[null,null,{"$error":"#DIV/0!"},{"$error":"#DIV/0!"},0,0,0,0,{"$nulls":11},0,{"$nulls":39},"54.02.02 Декоративно-прикладное искусство и народные промыслы (по видам)"]
[null,null,{"$error":"#DIV/0!"},{"$error":"#DIV/0!"},0,0,0,0,{"$nulls":11},0,{"$nulls":39},"54.02.03 Художественное оформление изделий текстильной и легкой промышленности"]
[null,null,{"$error":"#DIV/0!"},{"$error":"#DIV/0!"},0,0,0,0,{"$nulls":11},0,{"$nulls":39},"54.02.04 Реставрация"]
[null,null,{"$error":"#DIV/0!"},{"$error":"#DIV/0!"},0,0,0,0,{"$nulls":11},0,{"$nulls":39},"54.02.05 Живопись (по видам)"]
[null,null,{"$error":"#DIV/0!"},{"$error":"#DIV/0!"},0,0,0,0,{"$nulls":11},0,{"$nulls":39},"54.02.05 Живопись с присвоением квалификаций художник-живописец, преподаватель"]
[null,null,{"$error":"#DIV/0!"},{"$error":"#DIV/0!"},0,0,0,0,{"$nulls":11},0,{"$nulls":39},"54.02.06 Изобразительное искусство и черчение"]
[null,null,{"$error":"#DIV/0!"},{"$error":"#DIV/0!"},0,0,0,0,{"$nulls":11},0,{"$nulls":39},"54.02.07 Скульптура"]
[null,null,{"$error":"#DIV/0!"},{"$error":"#DIV/0!"},0,0,0,0,{"$nulls":11},0,{"$nulls":39},"54.02.08 Техника и искусство фотографии"]
[null,null,{"$error":"#DIV/0!"},{"$error":"#DIV/0!"},0,0,0,0,{"$nulls":11},0,{"$nulls":39},"55.02.01 Театральная и аудиовизуальная техника (по видам)"]
[null,null,{"$error":"#DIV/0!"},{"$error":"#DIV/0!"},0,0,0,0,{"$nulls":11},0,{"$nulls":39},"55.02.02 Анимация (по видам)"]
[null,null,{"$error":"#DIV/0!"},{"$error":"#DIV/0!"},0,0,0,0,{"$nulls":11},0,{"$nulls":39},"55.02.02 Анимация и анимационное кино (по видам)"]
[null,null,{"$error":"#DIV/0!"},{"$error":"#DIV/0!"},0,0,0,0,{"$nulls":11},0,{"$nulls":39},"55.02.03 Кино- и телепроизводство (по видам)"]

{"sheet":"Выпуск 2025","index":2,"n_rows":626,"n_cols":60,"rows_kept":626,"merged":[[0,1,0,5],[0,12,0,14],[0,22,0,23],[0,24,0,25],[0,31,0,32],[0,36,0,43]]}
[{"$nulls":12},"Факт трудоустройства (по состоянию на 21.08.2025)",{"$nulls":9},"Иные формы",null,"занятости",{"$nulls":6},"Иное",{"$nulls":4},"Зоны риска"]
["ПОО","Код и наименование профессии, специальности","Доля трудоустройства (%)","Доля занятости (%)","Общая численность выпускников, завершивших обучение \n\nв 2025 году","из них (из 2): имеют заключенный договор о целевом обучении","из них (из 2): обучались по программам Профессионалитета","Трудоустроены \n(в соответствии с трудовым законодательством, законодательством об обязательном пенсионном страховании)","из них (из 3): имеют заключенный договор о целевом обучении","из них (из 3): обучались по программам Профессионалитета","из них (из 3): трудоустроены по полученной профессии, специальности","из них (из 3.3): трудоустроились на предприятия Челябинской области","из них (из 3.3): обучались по программам Профессионалитета","из них (из 3): продолжат обучение (совмещая работу и учебу)","из них (из 3.5): обучались по программам Профессионалитета","из них (из 3): трудоустроены у иного работодателя","из них (из 3.7): обучались по программам Профессионалитета","из них (из 3): проходят службу в армии на контрактной основе, в органах внутренних дел, Государственной противопожарной службе, органах по контролю за оборотом наркотических средств и психотропных веществ, учреждениях и органах уголовно-исполнительной системы, войсках национальной гвардии РФ, органах принудительного исполнения РФ","из них (из 3.9): обучались по программам Профессионалитета","Зарегистрированы в качестве индивидуального предпринимателя или оформили самозанятость","из них (из 4) зарегистрированы в качестве индивидуального предпринимателя","из них (из 4) оформили самозанятость","Продолжили обучение и не трудоустроились (не планируют трудоустройство, предпринимательство, самозанятость)","из них (из 5): обучались по программам Профессионалитета","Призваны в Вооруженные Силы РФ","из них (из 6): обучались по программам Профессионалитета","Находятся в отпуске по уходу за ребенком","из них (из 7): обучались по программам Профессионалитета","Находятся под следствием, отбывают наказание","из них (из 8): обучались по программам Профессионалитета","Ухаживают за больными родственниками (иные семейные обстоятельства)","из них (из 9): обучались по программам Профессионалитета","Переехали (планируют переезд) за пределы Российской Федерации","из них (из 10): обучались по программам Профессионалитета","Тяжелое состояние здоровья, не позволяющее трудоустраиваться; смерть","из них (из 11): обучались по программам Профессионалитета","Зарегистрированы в центрах занятости в качестве безработных (получают пособие по безработице)","из них (из 12): обучались по программам Профессионалитета","Не имеют мотивации к трудоустройству и не планируют трудоустраиваться, в том числе по причинам получения иных социальных льгот","из них (из 13): обучались по программам Профессионалитета","Отсутствует спрос на специалистов в регионе, находятся в поиске работы","из них (из 14): обучались по программам Профессионалитета","Неофициальная занятость","из них (из 15): обучались по программам Профессионалитета",{"$nulls":12},"Наименование ПОО",null,null,"Код и наименование профессии, специальности"]
["выбрать из списка","выбрать из списка","1.1","1.2",2,"2.1","2.2",3,"3.1","3.2","3.3","3.3.1","3.4","3.5","3.6","3.7","3.8","3.9","3.10","4","4.1","4.2","5","5.1","6","6.1","7","7.1","8","8.1","9","9.1","10","10.1","11","11.1","12","12.1","13","13.1","14","14.1","15","15.1",{"$nulls":12},"ГБПОУ «Ашинский индустриальный техникум»",null,null,"05.01.01 Гидрометнаблюдатель"]
[null,null,{"$f":"(H4+T4)/E4*100","v":220.00000000000003},{"$f":"(H4+T4+Y4)/(E4-W4-AA4)*100","v":311.7647058823529},{"$f":"SUBTOTAL(9,E6:E184)","v":20},{"$f":"SUBTOTAL(9,F5:F183)","v":0},{"$f":"SUBTOTAL(9,G5:G183)","v":0},{"$f":"SUBTOTAL(9,H5:H183)","v":44},0,0,39,38,0,0,0,5,0,0,0,0,0,0,1,0,9,0,2,0,0,0,5,0,0,0,0,0,14,0,0,0,0,0,0,0,{"$nulls":12},"ГБПОУ «Бакальский техникум профессиональных технологий и сервиса им. М.Г. Ганиева»",null,null,"05.02.01 Картография"]
["ГБПОУ «Симский механический техникум»","15.02.08 Технология машиностроения",58.18181818181818,69.23076923076923,{"$f":"H5+T5+W5+Y5+AA5+AC5+AE5+AG5+AI5+AK5+AM5+AO5+AQ5","v":55},0,0,{"$f":"SUM(K5,N5,P5,R5,)","v":32},0,0,27,26,0,0,0,5,0,0,0,{"$f":"SUM(U5,V5)","v":0},0,0,1,0,4,0,2,0,0,0,4,0,0,0,0,0,12,0,0,0,0,0,0,0,{"$nulls":12},"ГБПОУ «Верхнеуральский агротехнологический техникум – казачий кадетский корпус»",null,null,"05.02.02 Гидрология"]
["ГБПОУ «Симский механический техникум»","15.02.15 Технология металлообрабатывающего производства",60,85,{"$f":"H6+T6+W6+Y6+AA6+AC6+AE6+AG6+AI6+AK6+AM6+AO6+AQ6","v":20},0,0,{"$f":"SUM(K6,N6,P6,R6,)","v":12},0,0,12,12,0,0,0,0,0,0,0,{"$f":"SUM(U6,V6)","v":0},0,0,0,0,5,0,0,0,0,0,1,0,0,0,0,0,2,0,0,0,0,0,0,0,{"$nulls":12},"ГБПОУ «Златоустовский индустриальный колледж им. П.П. Аносова»",null,null,"05.02.03 Метеорология"]
[null,null,{"$error":"#DIV/0!"},{"$error":"#DIV/0!"},0,0,0,0,{"$nulls":11},0,{"$nulls":36},"ГБПОУ «Златоустовский педагогический колледж»",null,null,"07.02.01 Архитектура"]
[null,null,{"$error":"#DIV/0!"},{"$error":"#DIV/0!"},0,0,0,0,{"$nulls":11},0,{"$nulls":36},"ГБОУ ПОО «Златоустовский техникум технологий и экономики»",null,null,"08.01.01 Изготовитель арматурных сеток и каркасов"]
[null,null,{"$error":"#DIV/0!"},{"$error":"#DIV/0!"},0,0,0,0,{"$nulls":11},0,{"$nulls":36},"ГБПОУ «Карталинский многоотраслевой техникум»",null,null,"08.01.02 Монтажник трубопроводов"]
[null,null,{"$error":"#DIV/0!"},{"$error":"#DIV/0!"},0,0,0,0,{"$nulls":11},0,{"$nulls":36},"ГБПОУ «Каслинский промышленно-гуманитарный техникум»",null,null,"08.01.04 Кровельщик"]
[null,null,{"$error":"#DIV/0!"},{"$error":"#DIV/0!"},0,0,0,0,{"$nulls":11},0,{"$nulls":36},"ГБПОУ «Катав-Ивановский индустриальный техникум»",null,null,"08.01.05 Мастер столярно-плотничных и паркетных работ"]
[null,null,{"$error":"#DIV/0!"},{"$error":"#DIV/0!"},0,0,0,0,{"$nulls":11},0,{"$nulls":36},"ГБПОУ «Копейский политехнический колледж имени С.В. Хохрякова»",null,null,"08.01.06 Мастер сухого строительства"]
[null,null,{"$error":"#DIV/0!"},{"$error":"#DIV/0!"},0,0,0,0,{"$nulls":11},0,{"$nulls":36},"ГБПОУ «Коркинский горно-строительный техникум»",null,null,"08.01.07 Мастер общестроительных работ"]
[null,null,{"$error":"#DIV/0!"},{"$error":"#DIV/0!"},0,0,0,0,{"$nulls":11},0,{"$nulls":36},"ГБПОУ «Магнитогорский педагогический колледж»",null,null,"08.01.08 Мастер отделочных строительных работ"]
[null,null,{"$error":"#DIV/0!"},{"$error":"#DIV/0!"},0,0,0,0,{"$nulls":11},0,{"$nulls":36},"ГБПОУ «Магнитогорский строительно-монтажный техникум»",null,null,"08.01.09 Слесарь по строительно-монтажным работам"]
[null,null,{"$error":"#DIV/0!"},{"$error":"#DIV/0!"},0,0,0,0,{"$nulls":11},0,{"$nulls":36},"ГБОУ ПОО «Магнитогорский технологический колледж им. В.П. Омельченко» ",null,null,"08.01.10 Мастер жилищно-коммунального хозяйства"]
[null,null,{"$error":"#DIV/0!"},{"$error":"#DIV/0!"},0,0,0,0,{"$nulls":11},0,{"$nulls":36},"ГБПОУ «Миасский геологоразведочный колледж»",null,null,"08.01.11 Машинист машин и оборудования в производстве цемента"]
[null,null,{"$error":"#DIV/0!"},{"$error":"#DIV/0!"},0,0,0,0,{"$nulls":11},0,{"$nulls":36},"ГБПОУ «Миасский машиностроительный колледж»",null,null,"08.01.13 Изготовитель железобетонных изделий"]
[null,null,{"$error":"#DIV/0!"},{"$error":"#DIV/0!"},0,0,0,0,{"$nulls":11},0,{"$nulls":36},"ГБПОУ «Миасский педагогический колледж»",null,null,"08.01.14 Монтажник санитарно-технических, вентиляционных систем и оборудования"]
[null,null,{"$error":"#DIV/0!"},{"$error":"#DIV/0!"},0,0,0,0,{"$nulls":11},0,{"$nulls":36},"ГБПОУ «Озерский технический колледж»",null,null,"08.01.15 Слесарь по изготовлению деталей и узлов технических систем в строительстве"]
[null,null,{"$error":"#DIV/0!"},{"$error":"#DIV/0!"},0,0,0,0,{"$nulls":11},0,{"$nulls":36},"ГБПОУ «Первомайский техникум промышленности строительных материалов»",null,null,"08.01.16 Электромонтажник по сигнализации, централизации и блокировке"]
[null,null,{"$error":"#DIV/0!"},{"$error":"#DIV/0!"},0,0,0,0,{"$nulls":11},0,{"$nulls":36},"ГБПОУ «Пластовский горно-технологический колледж»",null,null,"08.01.17 Электромонтажник-наладчик"]
[null,null,{"$error":"#DIV/0!"},{"$error":"#DIV/0!"},0,0,0,0,{"$nulls":11},0,{"$nulls":36},"ГАПОУ Челябинской области «Политехнический колледж»",null,null,"08.01.18 Электромонтажник электрических сетей и электрооборудования"]
[null,null,{"$error":"#DIV/0!"},{"$error":"#DIV/0!"},0,0,0,0,{"$nulls":11},0,{"$nulls":36},"ГБПОУ «Саткинский горно-керамический колледж имени А.К. Савина»",null,null,"08.01.19 Электромонтажник по силовым сетям и электрооборудованию"]
[null,null,{"$error":"#DIV/0!"},{"$error":"#DIV/0!"},0,0,0,0,{"$nulls":11},0,{"$nulls":36},"ГБПОУ «Симский механический техникум»",null,null,"08.01.21 Монтажник электрических подъемников (лифтов)"]
[null,null,{"$error":"#DIV/0!"},{"$error":"#DIV/0!"},0,0,0,0,{"$nulls":11},0,{"$nulls":36},"ГБПОУ «Троицкий педагогический колледж»",null,null,"08.01.22 Мастер путевых машин"]
[null,null,{"$error":"#DIV/0!"},{"$error":"#DIV/0!"},0,0,0,0,{"$nulls":11},0,{"$nulls":36},"ГБПОУ «Троицкий технологический техникум»",null,null,"08.01.23 Бригадир-путеец"]
[null,null,{"$error":"#DIV/0!"},{"$error":"#DIV/0!"},0,0,0,0,{"$nulls":11},0,{"$nulls":36},"ГБПОУ «Усть-Катавский индустриально-технологический техникум»",null,null,"08.01.24 Мастер столярно-плотничных, паркетных и стекольных работ"]
[null,null,{"$error":"#DIV/0!"},{"$error":"#DIV/0!"},0,0,0,0,{"$nulls":11},0,{"$nulls":36},"ГБПОУ «Чебаркульский профессиональный техникум»",null,null,"08.01.25 Мастер отделочных строительных и декоративных работ"]
[null,null,{"$error":"#DIV/0!"},{"$error":"#DIV/0!"},0,0,0,0,{"$nulls":11},0,{"$nulls":36},"ГБПОУ «Челябинский автотранспортный техникум» ",null,null,"08.01.26 Мастер по ремонту и обслуживанию инженерных систем жилищно-коммунального хозяйства"]
[null,null,{"$error":"#DIV/0!"},{"$error":"#DIV/0!"},0,0,0,0,{"$nulls":11},0,{"$nulls":36},"ГБПОУ «Челябинский государственный колледж «Рост»",null,null,"08.01.27 Мастер общестроительных работ"]
[null,null,{"$error":"#DIV/0!"},{"$error":"#DIV/0!"},0,0,0,0,{"$nulls":11},0,{"$nulls":36},"ГБПОУ «Челябинский государственный колледж индустрии питания и торговли»",null,null,"08.01.28 Мастер отделочных строительных и декоративных работ"]
[null,null,{"$error":"#DIV/0!"},{"$error":"#DIV/0!"},0,0,0,0,{"$nulls":11},0,{"$nulls":36},"ГБПОУ «Челябинский государственный промышленно-гуманитарный техникум им. А.В. Яковлева»",null,null,"08.01.29 Мастер по ремонту и обслуживанию инженерных систем жилищно-коммунального хозяйства"]
[null,null,{"$error":"#DIV/0!"},{"$error":"#DIV/0!"},0,0,0,0,{"$nulls":11},0,{"$nulls":36},"ГБПОУ «Челябинский колледж индустриальных технологий «Профи» имени Я. П. Осадчего»",null,null,"08.01.30 Электромонтажник слаботочных систем"]
[null,null,{"$error":"#DIV/0!"},{"$error":"#DIV/0!"},0,0,0,0,{"$nulls":11},0,{"$nulls":36},"ГБПОУ «Челябинский механико-технологический техникум»",null,null,"08.01.31 Электромонтажник электрических сетей и электрооборудования"]
[null,null,{"$error":"#DIV/0!"},{"$error":"#DIV/0!"},0,0,0,0,{"$nulls":11},0,{"$nulls":36},"ГБПОУ «Челябинский педагогический колледж №1»",null,null,"08.01.32 Мастер аварийно-восстановительных работ на сетях водоснабжения и водоотведения"]
[null,null,{"$error":"#DIV/0!"},{"$error":"#DIV/0!"},0,0,0,0,{"$nulls":11},0,{"$nulls":36},"ГБПОУ «Челябинский педагогический колледж №2»",null,null,"08.02.01 Строительство и эксплуатация зданий и сооружений"]
[null,null,{"$error":"#DIV/0!"},{"$error":"#DIV/0!"},0,0,0,0,{"$nulls":11},0,{"$nulls":36},"ГБПОУ «Челябинский профессиональный колледж» ",null,null,"08.02.02 Строительство и эксплуатация инженерных сооружений"]
[null,null,{"$error":"#DIV/0!"},{"$error":"#DIV/0!"},0,0,0,0,{"$nulls":11},0,{"$nulls":36},"ГБПОУ «Челябинский радиотехнический техникум»",null,null,"08.02.03 Производство неметаллических строительных изделий и конструкций"]
[null,null,{"$error":"#DIV/0!"},{"$error":"#DIV/0!"},0,0,0,0,{"$nulls":11},0,{"$nulls":36},"ГБПОУ «Челябинский социально-профессиональный колледж «Сфера»",null,null,"08.02.04 Водоснабжение и водоотведение"]
[null,null,{"$error":"#DIV/0!"},{"$error":"#DIV/0!"},0,0,0,0,{"$nulls":11},0,{"$nulls":36},"ГБПОУ «Челябинский энергетический колледж им. С.М. Кирова»",null,null,"08.02.05 Строительство и эксплуатация автомобильных дорог и аэродромов"]
[null,null,{"$error":"#DIV/0!"},{"$error":"#DIV/0!"},0,0,0,0,{"$nulls":11},0,{"$nulls":36},"ГБПОУ «Южно-Уральский агропромышленный колледж»",null,null,"08.02.06 Строительство и эксплуатация городских путей сообщения"]
[null,null,{"$error":"#DIV/0!"},{"$error":"#DIV/0!"},0,0,0,0,{"$nulls":11},0,{"$nulls":36},"ГБПОУ «Южно-Уральский государственный колледж»",null,null,"08.02.07 Монтаж и эксплуатация внутренних сантехнических устройств, кондиционирования воздуха и вентиляции"]
[null,null,{"$error":"#DIV/0!"},{"$error":"#DIV/0!"},0,0,0,0,{"$nulls":11},0,{"$nulls":36},"ГБПОУ «Южно-Уральский государственный технический колледж»",null,null,"08.02.08 Монтаж и эксплуатация оборудования и систем газоснабжения"]
[null,null,{"$error":"#DIV/0!"},{"$error":"#DIV/0!"},0,0,0,0,{"$nulls":11},0,{"$nulls":36},"ГБПОУ «Южно-Уральский многопрофильный колледж»",null,null,"08.02.09 Монтаж, наладка и эксплуатация электрооборудования промышленных и гражданских зданий"]
[null,null,{"$error":"#DIV/0!"},{"$error":"#DIV/0!"},0,0,0,0,{"$nulls":11},0,{"$nulls":36},"ГБПОУ «Южноуральский энергетический техникум»",null,null,"08.02.10 Строительство железных дорог, путь и путевое хозяйство"]
[null,null,{"$error":"#DIV/0!"},{"$error":"#DIV/0!"},0,0,0,0,{"$nulls":11},0,{"$nulls":36},"ГБПОУ «Юрюзанский технологический техникум»",null,null,"08.02.11 Управление, эксплуатация и обслуживание многоквартирного дома"]
[null,null,{"$error":"#DIV/0!"},{"$error":"#DIV/0!"},0,0,0,0,{"$nulls":11},0,{"$nulls":36},"ГБПОУ Челябинской области «Миасский государственный колледж искусства и культуры»",null,null,"08.02.12 Строительство и эксплуатация автомобильных дорог, аэродромов и городских путей сообщения"]
[null,null,{"$error":"#DIV/0!"},{"$error":"#DIV/0!"},0,0,0,0,{"$nulls":11},0,{"$nulls":36},"ГБПОУ Челябинской области «Озерский государственный колледж искусств»",null,null,"08.02.13 Монтаж и эксплуатация внутренних сантехнических устройств, кондиционирования воздуха и вентиляции"]
[null,null,{"$error":"#DIV/0!"},{"$error":"#DIV/0!"},0,0,0,0,{"$nulls":11},0,{"$nulls":36},"ГБПОУ «Златоустовский медицинский техникум»",null,null,"08.02.14 Эксплуатация и обслуживание многоквартирного дома"]
[null,null,{"$error":"#DIV/0!"},{"$error":"#DIV/0!"},0,0,0,0,{"$nulls":11},0,{"$nulls":36},"ГБПОУ «Копейский медицинский техникум»",null,null,"08.02.15 Информационное моделирование в строительстве"]
[null,null,{"$error":"#DIV/0!"},{"$error":"#DIV/0!"},0,0,0,0,{"$nulls":11},0,{"$nulls":36},"ГБПОУ «Магнитогорский медицинский колледж им. П.Ф. Надеждина»",null,null,"09.01.01 Наладчик аппаратного и программного обеспечения"]
[null,null,{"$error":"#DIV/0!"},{"$error":"#DIV/0!"},0,0,0,0,{"$nulls":11},0,{"$nulls":36},"ГБПОУ «Миасский медицинский колледж»",null,null,"09.01.02 Наладчик компьютерных сетей"]
[null,null,{"$error":"#DIV/0!"},{"$error":"#DIV/0!"},0,0,0,0,{"$nulls":11},0,{"$nulls":36},"ГБПОУ «Саткинский медицинский техникум»",null,null,"09.01.03 Мастер по обработке цифровой информации"]
[null,null,{"$error":"#DIV/0!"},{"$error":"#DIV/0!"},0,0,0,0,{"$nulls":11},0,{"$nulls":36},"ГБПОУ «Троицкий медицинский колледж»",null,null,"09.01.03 Оператор информационных систем и ресурсов"]
[null,null,{"$error":"#DIV/0!"},{"$error":"#DIV/0!"},0,0,0,0,{"$nulls":11},0,{"$nulls":36},"ГБПОУ «Челябинский медицинский колледж»",null,null,"09.01.04 Наладчик аппаратных и программных средств инфокоммуникационных систем"]
[null,null,{"$error":"#DIV/0!"},{"$error":"#DIV/0!"},0,0,0,0,{"$nulls":11},0,{"$nulls":36},"ЧПОУ «Академический колледж»",null,null,"09.01.05 Оператор технической поддержки"]
[null,null,{"$error":"#DIV/0!"},{"$error":"#DIV/0!"},0,0,0,0,{"$nulls":11},0,{"$nulls":36},"ПОУ «Златоустовский юридический колледж «ИЦЫЛ»",null,null,"09.02.01 Компьютерные системы и комплексы"]
[null,null,{"$error":"#DIV/0!"},{"$error":"#DIV/0!"},0,0,0,0,{"$nulls":11},0,{"$nulls":36},"ПОУ «Колледж предпринимательства и отраслевых технологий»",null,null,"09.02.02 Компьютерные сети"]
[null,null,{"$error":"#DIV/0!"},{"$error":"#DIV/0!"},0,0,0,0,{"$nulls":11},0,{"$nulls":36},"ПОУ «Колледж управления и права»",null,null,"09.02.03 Программирование в компьютерных системах"]
[null,null,{"$error":"#DIV/0!"},{"$error":"#DIV/0!"},0,0,0,0,{"$nulls":11},0,{"$nulls":36},"ЧПОУ «Магнитогорский колледж современного образования»",null,null,"09.02.04 Информационные системы (по отраслям)"]
[null,null,{"$error":"#DIV/0!"},{"$error":"#DIV/0!"},0,0,0,0,{"$nulls":11},0,{"$nulls":36},"ЧПОУ «Уральский гуманитарный колледж»",null,null,"09.02.05 Прикладная информатика (по отраслям)"]
[null,null,{"$error":"#DIV/0!"},{"$error":"#DIV/0!"},0,0,0,0,{"$nulls":11},0,{"$nulls":36},"АНН ПОО «Уральский медицинский колледж»",null,null,"09.02.06 Сетевое и системное администрирование"]
[null,null,{"$error":"#DIV/0!"},{"$error":"#DIV/0!"},0,0,0,0,{"$nulls":11},0,{"$nulls":36},"ПОУ «Уральский региональный колледж»",null,null,"09.02.07 Информационные системы и программирование"]
[null,null,{"$error":"#DIV/0!"},{"$error":"#DIV/0!"},0,0,0,0,{"$nulls":11},0,{"$nulls":36},"АНН ПОО «Челябинский колледж Комитент»",null,null,"09.02.08 Интеллектуальные интегрированные системы"]
[null,null,{"$error":"#DIV/0!"},{"$error":"#DIV/0!"},0,0,0,0,{"$nulls":11},0,{"$nulls":36},"ПОУ «Челябинский юридический колледж»",null,null,"09.02.09 Веб-разработка"]
[null,null,{"$error":"#DIV/0!"},{"$error":"#DIV/0!"},0,0,0,0,{"$nulls":11},0,{"$nulls":36},"ЧУ ПОО «Южно-Уральский колледж бизнеса»",null,null,"09.02.10 Разработка компьютерных игр, дополненной и виртуальной реальности"]
[null,null,{"$f":"(H68+T68)/E68*100","v":{"$error":"#DIV/0!"}},{"$f":"(H68+T68+Y68)/(E68-W68-AA68)*100","v":{"$error":"#DIV/0!"}},0,0,0,0,{"$nulls":11},0,{"$nulls":36},"ГБОУ ВО ЧО «Магнитогорская государственная консерватория (академия) им. М.И. Глинки»",null,null,"09.02.11 Разработка и управление программным обеспечением"]
[null,null,{"$error":"#DIV/0!"},{"$error":"#DIV/0!"},0,0,0,0,{"$nulls":11},0,{"$nulls":36},"ФГБОУ ВО «Магнитогорский государственный технический университет им. Г.И. Носова»",null,null,"09.02.12 Техническая эксплуатация и сопровождение информационных систем"]
[null,null,{"$error":"#DIV/0!"},{"$error":"#DIV/0!"},{"$f":"H70+T70+W70+Y70+AA70+AC70+AE70+AG70+AI70+AK70+AM70+AO70+AQ70","v":0},0,0,{"$f":"SUM(K70,N70,P70,R70,)","v":0},{"$nulls":11},{"$f":"SUM(U70,V70)","v":0},{"$nulls":36},"ЧОУ ВО «Международный Институт Дизайна и Сервиса»",null,null,"09.02.13 Интеграция решений с применением технологий искусственного интеллекта"]
[null,null,{"$error":"#DIV/0!"},{"$error":"#DIV/0!"},0,0,0,0,{"$nulls":11},0,{"$nulls":36},"ФГБОУ ВО «Уральский государственный университет физической культуры»",null,null,"10.02.01 Организация и технология защиты информации"]
[null,null,{"$error":"#DIV/0!"},{"$error":"#DIV/0!"},0,0,0,0,{"$nulls":11},0,{"$nulls":36},"ФГБОУ ВО «Челябинский государственный университет»",null,null,"10.02.02 Информационная безопасность телекоммуникационных систем"]
[null,null,{"$error":"#DIV/0!"},{"$error":"#DIV/0!"},0,0,0,0,{"$nulls":11},0,{"$nulls":36},"ФГБОУ ВО «Южно-Уральский государственный аграрный университет»",null,null,"10.02.03 Информационная безопасность автоматизированных систем"]
[null,null,{"$error":"#DIV/0!"},{"$error":"#DIV/0!"},0,0,0,0,{"$nulls":11},0,{"$nulls":36},"ФГОУ ВО «Южно-Уральский государственный гуманитарно-педагогический университет»",null,null,"10.02.04 Обеспечение информационной безопасности телекоммуникационных систем"]
[null,null,{"$error":"#DIV/0!"},{"$error":"#DIV/0!"},0,0,0,0,{"$nulls":11},0,{"$nulls":36},"ГБОУ ВО «Южно-Уральский государственный институт искусств им. П.И. Чайковского»",null,null,"10.02.05 Обеспечение информационной безопасности автоматизированных систем"]
[null,null,{"$error":"#DIV/0!"},{"$error":"#DIV/0!"},0,0,0,0,{"$nulls":11},0,{"$nulls":36},"ФГБОУ ВО «Южно-Уральский государственный медицинский университет» ",null,null,"11.01.01 Монтажник радиоэлектронной аппаратуры и приборов"]
[null,null,{"$error":"#DIV/0!"},{"$error":"#DIV/0!"},0,0,0,0,{"$nulls":11},0,{"$nulls":36},"ФГАОУ ВО «Южно-Уральский государственный университет (НИУ)»",null,null,"11.01.02 Радиомеханик"]
[null,null,{"$error":"#DIV/0!"},{"$error":"#DIV/0!"},0,0,0,0,{"$nulls":11},0,{"$nulls":36},"Златоустовский медико-технологический колледж филиал ФГБОУ ВО «Уральский государственный университет путей сообщения» в г. Златоусте",null,null,"11.01.05 Монтажник связи"]
[null,null,{"$error":"#DIV/0!"},{"$error":"#DIV/0!"},0,0,0,0,{"$nulls":11},0,{"$nulls":36},"Озерский технологический институт - филиал ФГАОУ ВО «Национальный исследовательский ядерный университет «МИФИ»",null,null,"11.01.06 Электромонтер оборудования электросвязи и проводного вещания"]
[null,null,{"$error":"#DIV/0!"},{"$error":"#DIV/0!"},0,0,0,0,{"$nulls":11},0,{"$nulls":36},"Челябинский филиал ФГБОУ ВО «Российская академия народного хозяйства и государственной службы при Президенте Российской Федерации»",null,null,"11.01.07 Электромонтер по ремонту линейно-кабельных сооружений телефонной связи и проводного вещания"]
[null,null,{"$error":"#DIV/0!"},{"$error":"#DIV/0!"},0,0,0,0,{"$nulls":11},0,{"$nulls":36},"Уральский филиал ФГБОУ ВО «Российский государственный университет правосудия»",null,null,"11.01.08 Оператор почтовой связи"]
[null,null,{"$error":"#DIV/0!"},{"$error":"#DIV/0!"},0,0,0,0,{"$nulls":11},0,{"$nulls":36},"Снежинский физико-технический институт - филиал ФГАОУ ВО «Национальный исследовательский ядерный университет «МИФИ»",null,null,"11.01.08 Оператор связи"]
[null,null,{"$error":"#DIV/0!"},{"$error":"#DIV/0!"},0,0,0,0,{"$nulls":11},0,{"$nulls":36},"Трехгорный технологический институт - филиал ФГАОУ ВО «Национальный исследовательский ядерный университет «МИФИ»",null,null,"11.01.11 Наладчик технологического оборудования (электронная техника)"]
[null,null,{"$error":"#DIV/0!"},{"$error":"#DIV/0!"},0,0,0,0,{"$nulls":11},0,{"$nulls":36},"Троицкий авиационный технический колледж - филиал ГБОУ ВО «Московский государственный технический университет гражданской авиации» (МГТУ ГА)",null,null,"11.01.14 Оператор автоматической линии сборки радиоэлектронной аппаратуры и приборов"]
[null,null,{"$error":"#DIV/0!"},{"$error":"#DIV/0!"},0,0,0,0,{"$nulls":11},0,{"$nulls":36},"Уральский социально-экономический институт (филиал) образовательное учреждение профсоюзов высшего образования «Академия труда и социальных отношений»",null,null,"11.02.01 Радиоаппаратостроение"]
[null,null,{"$error":"#DIV/0!"},{"$error":"#DIV/0!"},0,0,0,0,{"$nulls":11},0,{"$nulls":36},"Уральский филиал ФГБОУ ВО «Финансовый университет при Правительстве Российской Федерации»",null,null,"11.02.02 Техническое обслуживание и ремонт радиоэлектронной техники (по отраслям)"]
[null,null,{"$error":"#DIV/0!"},{"$error":"#DIV/0!"},0,0,0,0,{"$nulls":11},0,{"$nulls":36},"Челябинский институт путей сообщения - филиал ФГБОУ ВО «Уральский государственный университет путей сообщения»",null,null,"11.02.03 Эксплуатация оборудования радиосвязи и электрорадионавигации судов"]
[null,null,{"$error":"#DIV/0!"},{"$error":"#DIV/0!"},0,0,0,0,{"$nulls":11},0,{"$nulls":39},"11.02.04 Радиотехнические комплексы и системы управления космических летательных аппаратов"]
[null,null,{"$error":"#DIV/0!"},{"$error":"#DIV/0!"},0,0,0,0,{"$nulls":11},0,{"$nulls":39},"11.02.05 Аудиовизуальная техника"]
[null,null,{"$error":"#DIV/0!"},{"$error":"#DIV/0!"},0,0,0,0,{"$nulls":11},0,{"$nulls":39},"11.02.06 Техническая эксплуатация транспортного радиоэлектронного оборудования (по видам транспорта)"]
[null,null,{"$error":"#DIV/0!"},{"$error":"#DIV/0!"},0,0,0,0,{"$nulls":11},0,{"$nulls":39},"11.02.07 Радиотехнические информационные системы"]
[null,null,{"$error":"#DIV/0!"},{"$error":"#DIV/0!"},0,0,0,0,{"$nulls":11},0,{"$nulls":39},"11.02.08 Средства связи с подвижными объектами"]
[null,null,{"$error":"#DIV/0!"},{"$error":"#DIV/0!"},0,0,0,0,{"$nulls":11},0,{"$nulls":39},"11.02.09 Многоканальные телекоммуникационные системы"]
[null,null,{"$error":"#DIV/0!"},{"$error":"#DIV/0!"},0,0,0,0,{"$nulls":11},0,{"$nulls":39},"11.02.10 Радиосвязь, радиовещание и телевидение"]
[null,null,{"$error":"#DIV/0!"},{"$error":"#DIV/0!"},0,0,0,0,{"$nulls":11},0,{"$nulls":39},"11.02.11 Сети связи и системы коммутации"]
[null,null,{"$error":"#DIV/0!"},{"$error":"#DIV/0!"},0,0,0,0,{"$nulls":11},0,{"$nulls":39},"11.02.12 Почтовая связь"]
[null,null,{"$error":"#DIV/0!"},{"$error":"#DIV/0!"},0,0,0,0,{"$nulls":11},0,{"$nulls":39},"11.02.13 Твердотельная электроника"]
[null,null,{"$error":"#DIV/0!"},{"$error":"#DIV/0!"},0,0,0,0,{"$nulls":11},0,{"$nulls":39},"11.02.14 Электронные приборы и устройства"]
[null,null,{"$error":"#DIV/0!"},{"$error":"#DIV/0!"},0,0,0,0,{"$nulls":11},0,{"$nulls":39},"11.02.15 Инфокоммуникационные сети и системы связи"]
[null,null,{"$error":"#DIV/0!"},{"$error":"#DIV/0!"},0,0,0,0,{"$nulls":11},0,{"$nulls":39},"11.02.16 Монтаж, техническое обслуживание и ремонт электронных приборов и устройств"]
[null,null,{"$error":"#DIV/0!"},{"$error":"#DIV/0!"},0,0,0,0,{"$nulls":11},0,{"$nulls":39},"11.02.17 Разработка электронных устройств и систем"]
[null,null,{"$error":"#DIV/0!"},{"$error":"#DIV/0!"},0,0,0,0,{"$nulls":11},0,{"$nulls":39},"11.02.18 Системы радиосвязи, мобильной связи и телерадиовещания"]
[null,null,{"$error":"#DIV/0!"},{"$error":"#DIV/0!"},0,0,0,0,{"$nulls":11},0,{"$nulls":39},"11.02.19 Квантовые коммуникации"]
[null,null,{"$error":"#DIV/0!"},{"$error":"#DIV/0!"},0,0,0,0,{"$nulls":11},0,{"$nulls":39},"12.01.02 Оптик-механик"]
[null,null,{"$error":"#DIV/0!"},{"$error":"#DIV/0!"},0,0,0,0,{"$nulls":11},0,{"$nulls":39},"12.01.07 Электромеханик по ремонту и обслуживанию электронной медицинской аппаратуры"]
[null,null,{"$error":"#DIV/0!"},{"$error":"#DIV/0!"},0,0,0,0,{"$nulls":11},0,{"$nulls":39},"12.01.09 Мастер по изготовлению и сборке деталей и узлов оптических и оптико-электронных приборов и систем"]
[null,null,{"$error":"#DIV/0!"},{"$error":"#DIV/0!"},0,0,0,0,{"$nulls":11},0,{"$nulls":39},"12.02.01 Авиационные приборы и комплексы"]
[null,null,{"$error":"#DIV/0!"},{"$error":"#DIV/0!"},0,0,0,0,{"$nulls":11},0,{"$nulls":39},"12.02.03 Радиоэлектронные приборные устройства"]
[null,null,{"$error":"#DIV/0!"},{"$error":"#DIV/0!"},0,0,0,0,{"$nulls":11},0,{"$nulls":39},"12.02.03 Радиоэлектронные приборы и устройства"]
[null,null,{"$error":"#DIV/0!"},{"$error":"#DIV/0!"},0,0,0,0,{"$nulls":11},0,{"$nulls":39},"12.02.04 Электромеханические приборные устройства"]
[null,null,{"$error":"#DIV/0!"},{"$error":"#DIV/0!"},0,0,0,0,{"$nulls":11},0,{"$nulls":39},"12.02.05 Оптические и оптико-электронные приборы и системы"]
[null,null,{"$error":"#DIV/0!"},{"$error":"#DIV/0!"},0,0,0,0,{"$nulls":11},0,{"$nulls":39},"12.02.06 Биотехнические и медицинские аппараты и системы"]
[null,null,{"$error":"#DIV/0!"},{"$error":"#DIV/0!"},0,0,0,0,{"$nulls":11},0,{"$nulls":39},"12.02.07 Монтаж, техническое обслуживание и ремонт медицинской техники"]
[null,null,{"$error":"#DIV/0!"},{"$error":"#DIV/0!"},0,0,0,0,{"$nulls":11},0,{"$nulls":39},"12.02.08 Протезно-ортопедическая и реабилитационная техника"]
[null,null,{"$error":"#DIV/0!"},{"$error":"#DIV/0!"},0,0,0,0,{"$nulls":11},0,{"$nulls":39},"12.02.09 Производство и эксплуатация оптических и оптико-электронных приборов и систем"]
[null,null,{"$error":"#DIV/0!"},{"$error":"#DIV/0!"},0,0,0,0,{"$nulls":11},0,{"$nulls":39},"12.02.10 Монтаж, техническое обслуживание и ремонт биотехнических и медицинских аппаратов и систем"]
[null,null,{"$error":"#DIV/0!"},{"$error":"#DIV/0!"},0,0,0,0,{"$nulls":11},0,{"$nulls":39},"13.01.01 Машинист котлов"]
[null,null,{"$error":"#DIV/0!"},{"$error":"#DIV/0!"},0,0,0,0,{"$nulls":11},0,{"$nulls":39},"13.01.02 Машинист паровых турбин"]
[null,null,{"$error":"#DIV/0!"},{"$error":"#DIV/0!"},0,0,0,0,{"$nulls":11},0,{"$nulls":39},"13.01.03 Электрослесарь по ремонту оборудования электростанций"]
[null,null,{"$error":"#DIV/0!"},{"$error":"#DIV/0!"},0,0,0,0,{"$nulls":11},0,{"$nulls":39},"13.01.04 Слесарь по ремонту оборудования электростанций"]
[null,null,{"$error":"#DIV/0!"},{"$error":"#DIV/0!"},0,0,0,0,{"$nulls":11},0,{"$nulls":39},"13.01.05 Электромонтер по техническому обслуживанию электростанций и сетей"]
[null,null,{"$error":"#DIV/0!"},{"$error":"#DIV/0!"},0,0,0,0,{"$nulls":11},0,{"$nulls":39},"13.01.06 Электромонтер-линейщик по монтажу воздушных линий высокого напряжения и контактной сети"]
[null,null,{"$error":"#DIV/0!"},{"$error":"#DIV/0!"},0,0,0,0,{"$nulls":11},0,{"$nulls":39},"13.01.07 Электромонтер по ремонту электросетей"]
[null,null,{"$error":"#DIV/0!"},{"$error":"#DIV/0!"},0,0,0,0,{"$nulls":11},0,{"$nulls":39},"13.01.10 Электромонтер по ремонту и обслуживанию электрооборудования (по отраслям)"]
[null,null,{"$error":"#DIV/0!"},{"$error":"#DIV/0!"},0,0,0,0,{"$nulls":11},0,{"$nulls":39},"13.01.13 Электромонтажник-схемщик"]
[null,null,{"$error":"#DIV/0!"},{"$error":"#DIV/0!"},0,0,0,0,{"$nulls":11},0,{"$nulls":39},"13.01.14 Электромеханик по лифтам"]
[null,null,{"$error":"#DIV/0!"},{"$error":"#DIV/0!"},0,0,0,0,{"$nulls":11},0,{"$nulls":39},"13.01.15 Машинист энергоблока"]
[null,null,{"$error":"#DIV/0!"},{"$error":"#DIV/0!"},0,0,0,0,{"$nulls":11},0,{"$nulls":39},"13.01.16 Электромонтер по техническому обслуживанию и ремонту оборудования подстанций и сетей"]
[null,null,{"$error":"#DIV/0!"},{"$error":"#DIV/0!"},0,0,0,0,{"$nulls":11},0,{"$nulls":39},"13.01.17 Электрослесарь по ремонту оборудования электростанций"]
[null,null,{"$error":"#DIV/0!"},{"$error":"#DIV/0!"},0,0,0,0,{"$nulls":11},0,{"$nulls":39},"13.02.01 Тепловые электрические станции"]
[null,null,{"$error":"#DIV/0!"},{"$error":"#DIV/0!"},0,0,0,0,{"$nulls":11},0,{"$nulls":39},"13.02.02 Теплоснабжение и теплотехническое оборудование"]
[null,null,{"$f":"(H132+T132)/E132*100","v":{"$error":"#DIV/0!"}},{"$f":"(H132+T132+Y132)/(E132-W132-AA132)*100","v":{"$error":"#DIV/0!"}},0,0,0,0,{"$nulls":11},0,{"$nulls":39},"13.02.03 Электрические станции, сети и системы"]
[null,null,{"$error":"#DIV/0!"},{"$error":"#DIV/0!"},0,0,0,0,{"$nulls":11},0,{"$nulls":39},"13.02.04 Гидроэлектроэнергетические установки"]
[null,null,{"$error":"#DIV/0!"},{"$error":"#DIV/0!"},{"$f":"H134+T134+W134+Y134+AA134+AC134+AE134+AG134+AI134+AK134+AM134+AO134+AQ134","v":0},0,0,{"$f":"SUM(K134,N134,P134,R134,)","v":0},{"$nulls":11},{"$f":"SUM(U134,V134)","v":0},{"$nulls":39},"13.02.05 Технология воды, топлива и смазочных материалов на электрических станциях"]
[null,null,{"$error":"#DIV/0!"},{"$error":"#DIV/0!"},0,0,0,0,{"$nulls":11},0,{"$nulls":39},"13.02.06 Релейная защита и автоматизация электроэнергетических систем"]
[null,null,{"$error":"#DIV/0!"},{"$error":"#DIV/0!"},0,0,0,0,{"$nulls":11},0,{"$nulls":39},"13.02.07 Электроснабжение"]
[null,null,{"$error":"#DIV/0!"},{"$error":"#DIV/0!"},0,0,0,0,{"$nulls":11},0,{"$nulls":39},"13.02.07 Электроснабжение (по отраслям)"]
[null,null,{"$error":"#DIV/0!"},{"$error":"#DIV/0!"},0,0,0,0,{"$nulls":11},0,{"$nulls":39},"13.02.08 Электроизоляционная, кабельная и конденсаторная техника"]
[null,null,{"$error":"#DIV/0!"},{"$error":"#DIV/0!"},0,0,0,0,{"$nulls":11},0,{"$nulls":39},"13.02.09 Монтаж и эксплуатация линий электропередачи"]
[null,null,{"$error":"#DIV/0!"},{"$error":"#DIV/0!"},0,0,0,0,{"$nulls":11},0,{"$nulls":39},"13.02.10 Электрические машины и аппараты"]
[null,null,{"$error":"#DIV/0!"},{"$error":"#DIV/0!"},0,0,0,0,{"$nulls":11},0,{"$nulls":39},"13.02.11 Техническая эксплуатация и обслуживание электрического и электромеханического оборудования (по отраслям)"]
[null,null,{"$error":"#DIV/0!"},{"$error":"#DIV/0!"},0,0,0,0,{"$nulls":11},0,{"$nulls":39},"13.02.12 Электрические станции, сети, их релейная защита и автоматизация"]
[null,null,{"$error":"#DIV/0!"},{"$error":"#DIV/0!"},0,0,0,0,{"$nulls":11},0,{"$nulls":39},"13.02.13 Эксплуатация и обслуживание электрического и электромеханического оборудования (по отраслям)"]
[null,null,{"$error":"#DIV/0!"},{"$error":"#DIV/0!"},0,0,0,0,{"$nulls":11},0,{"$nulls":39},"14.02.01 Атомные электрические станции и установки"]
[null,null,{"$error":"#DIV/0!"},{"$error":"#DIV/0!"},0,0,0,0,{"$nulls":11},0,{"$nulls":39},"14.02.02 Радиационная безопасность"]
[null,null,{"$error":"#DIV/0!"},{"$error":"#DIV/0!"},0,0,0,0,{"$nulls":11},0,{"$nulls":39},"15.01.04 Наладчик сварочного и газоплазморезательного оборудования"]
[null,null,{"$error":"#DIV/0!"},{"$error":"#DIV/0!"},0,0,0,0,{"$nulls":11},0,{"$nulls":39},"15.01.05 Сварщик (ручной и частично механизированной сварки (наплавки)"]
[null,null,{"$error":"#DIV/0!"},{"$error":"#DIV/0!"},0,0,0,0,{"$nulls":11},0,{"$nulls":39},"15.01.05 Сварщик (электросварочные и газосварочные работы)"]
[null,null,{"$error":"#DIV/0!"},{"$error":"#DIV/0!"},0,0,0,0,{"$nulls":11},0,{"$nulls":39},"15.01.06 Сварщик на лазерных установках"]
[null,null,{"$error":"#DIV/0!"},{"$error":"#DIV/0!"},0,0,0,0,{"$nulls":11},0,{"$nulls":39},"15.01.08 Наладчик литейного и кузнечного оборудования"]
[null,null,{"$error":"#DIV/0!"},{"$error":"#DIV/0!"},0,0,0,0,{"$nulls":11},0,{"$nulls":39},"15.01.08 Наладчик литейного оборудования"]
[null,null,{"$error":"#DIV/0!"},{"$error":"#DIV/0!"},0,0,0,0,{"$nulls":11},0,{"$nulls":39},"15.01.09 Машинист лесозаготовительных и трелевочных машин"]
[null,null,{"$error":"#DIV/0!"},{"$error":"#DIV/0!"},0,0,0,0,{"$nulls":11},0,{"$nulls":39},"15.01.10 Слесарь по ремонту лесозаготовительного оборудования"]
[null,null,{"$error":"#DIV/0!"},{"$error":"#DIV/0!"},0,0,0,0,{"$nulls":11},0,{"$nulls":39},"15.01.13 Монтажник технологического оборудования (по видам оборудования)"]
[null,null,{"$error":"#DIV/0!"},{"$error":"#DIV/0!"},0,0,0,0,{"$nulls":11},0,{"$nulls":39},"15.01.13 Монтажник-наладчик технологического оборудования"]
[null,null,{"$error":"#DIV/0!"},{"$error":"#DIV/0!"},0,0,0,0,{"$nulls":11},0,{"$nulls":39},"15.01.17 Электромеханик по торговому и холодильному оборудованию"]
[null,null,{"$error":"#DIV/0!"},{"$error":"#DIV/0!"},0,0,0,0,{"$nulls":11},0,{"$nulls":39},"15.01.18 Машинист холодильных установок"]
[null,null,{"$error":"#DIV/0!"},{"$error":"#DIV/0!"},0,0,0,0,{"$nulls":11},0,{"$nulls":39},"15.01.19 Наладчик контрольно-измерительных приборов и автоматики"]
[null,null,{"$error":"#DIV/0!"},{"$error":"#DIV/0!"},0,0,0,0,{"$nulls":11},0,{"$nulls":39},"15.01.20 Слесарь по контрольно-измерительным приборам и автоматике"]
[null,null,{"$error":"#DIV/0!"},{"$error":"#DIV/0!"},0,0,0,0,{"$nulls":11},0,{"$nulls":39},"15.01.21 Электромонтер охранно-пожарной сигнализации"]
[null,null,{"$error":"#DIV/0!"},{"$error":"#DIV/0!"},0,0,0,0,{"$nulls":11},0,{"$nulls":39},"15.01.22 Чертежник-конструктор"]
[null,null,{"$error":"#DIV/0!"},{"$error":"#DIV/0!"},0,0,0,0,{"$nulls":11},0,{"$nulls":39},"15.01.23 Наладчик станков и оборудования в механообработке"]
[null,null,{"$error":"#DIV/0!"},{"$error":"#DIV/0!"},0,0,0,0,{"$nulls":11},0,{"$nulls":39},"15.01.25 Станочник (металлообработка)"]
[null,null,{"$error":"#DIV/0!"},{"$error":"#DIV/0!"},0,0,0,0,{"$nulls":11},0,{"$nulls":39},"15.01.26 Токарь-универсал"]
[null,null,{"$error":"#DIV/0!"},{"$error":"#DIV/0!"},0,0,0,0,{"$nulls":11},0,{"$nulls":39},"15.01.27 Фрезеровщик-универсал"]
[null,null,{"$error":"#DIV/0!"},{"$error":"#DIV/0!"},0,0,0,0,{"$nulls":11},0,{"$nulls":39},"15.01.29 Контролер качества в машиностроении"]
[null,null,{"$error":"#DIV/0!"},{"$error":"#DIV/0!"},0,0,0,0,{"$nulls":11},0,{"$nulls":39},"15.01.29 Контролер станочных и слесарных работ"]
[null,null,{"$error":"#DIV/0!"},{"$error":"#DIV/0!"},0,0,0,0,{"$nulls":11},0,{"$nulls":39},"15.01.30 Слесарь"]
[null,null,{"$error":"#DIV/0!"},{"$error":"#DIV/0!"},0,0,0,0,{"$nulls":11},0,{"$nulls":39},"15.01.31 Мастер контрольно-измерительных приборов и автоматики"]
[null,null,{"$error":"#DIV/0!"},{"$error":"#DIV/0!"},0,0,0,0,{"$nulls":11},0,{"$nulls":39},"15.01.32 Оператор станков с программным управлением"]
[null,null,{"$error":"#DIV/0!"},{"$error":"#DIV/0!"},0,0,0,0,{"$nulls":11},0,{"$nulls":39},"15.01.33 Токарь на станках с числовым программным управлением"]
[null,null,{"$error":"#DIV/0!"},{"$error":"#DIV/0!"},0,0,0,0,{"$nulls":11},0,{"$nulls":39},"15.01.34 Фрезеровщик на станках с числовым программным управлением"]
[null,null,{"$error":"#DIV/0!"},{"$error":"#DIV/0!"},0,0,0,0,{"$nulls":11},0,{"$nulls":39},"15.01.35 Мастер слесарных работ"]
[null,null,{"$error":"#DIV/0!"},{"$error":"#DIV/0!"},0,0,0,0,{"$nulls":11},0,{"$nulls":39},"15.01.36 Дефектоскопист"]
[null,null,{"$error":"#DIV/0!"},{"$error":"#DIV/0!"},0,0,0,0,{"$nulls":11},0,{"$nulls":39},"15.01.37 Слесарь-наладчик контрольно-измерительных приборов и автоматики"]
[null,null,{"$error":"#DIV/0!"},{"$error":"#DIV/0!"},0,0,0,0,{"$nulls":11},0,{"$nulls":39},"15.01.38 Оператор-наладчик металлообрабатывающих станков"]
[null,null,{"$error":"#DIV/0!"},{"$error":"#DIV/0!"},0,0,0,0,{"$nulls":11},0,{"$nulls":39},"15.02.01 Монтаж и техническая эксплуатация промышленного оборудования (по отраслям)"]
[null,null,{"$error":"#DIV/0!"},{"$error":"#DIV/0!"},0,0,0,0,{"$nulls":11},0,{"$nulls":39},"15.02.02 Техническая эксплуатация оборудования для производства электронной техники"]
[null,null,{"$error":"#DIV/0!"},{"$error":"#DIV/0!"},0,0,0,0,{"$nulls":11},0,{"$nulls":39},"15.02.03 Монтаж, техническое обслуживание и ремонт гидравлического и пневматического оборудования (по отраслям)"]
[null,null,{"$error":"#DIV/0!"},{"$error":"#DIV/0!"},0,0,0,0,{"$nulls":11},0,{"$nulls":39},"15.02.03 Техническая эксплуатация гидравлических машин, гидроприводов и гидропневмоавтоматики"]
[null,null,{"$error":"#DIV/0!"},{"$error":"#DIV/0!"},0,0,0,0,{"$nulls":11},0,{"$nulls":39},"15.02.04 Специальные машины и устройства"]
[null,null,{"$error":"#DIV/0!"},{"$error":"#DIV/0!"},0,0,0,0,{"$nulls":11},0,{"$nulls":39},"15.02.05 Техническая эксплуатация оборудования в торговле и общественном питании"]
[null,null,{"$error":"#DIV/0!"},{"$error":"#DIV/0!"},0,0,0,0,{"$nulls":11},0,{"$nulls":39},"15.02.06 Монтаж и техническая эксплуатация холодильно-компрессорных машин и установок (по отраслям)"]
[null,null,{"$error":"#DIV/0!"},{"$error":"#DIV/0!"},0,0,0,0,{"$nulls":11},0,{"$nulls":39},"15.02.06 Монтаж, техническая эксплуатация и ремонт холодильно-компрессорных и теплонасосных машин и установок (по отраслям)"]
[null,null,{"$error":"#DIV/0!"},{"$error":"#DIV/0!"},0,0,0,0,{"$nulls":11},0,{"$nulls":39},"15.02.07 Автоматизация технологических процессов и производств"]
[null,null,{"$error":"#DIV/0!"},{"$error":"#DIV/0!"},0,0,0,0,{"$nulls":11},0,{"$nulls":39},"15.02.07 Автоматизация технологических процессов и производств (по отраслям)"]
[null,null,{"$error":"#DIV/0!"},{"$error":"#DIV/0!"},0,0,0,0,{"$nulls":11},0,{"$nulls":39},"15.02.08 Технология машиностроения"]
[null,null,{"$error":"#DIV/0!"},{"$error":"#DIV/0!"},0,0,0,0,{"$nulls":11},0,{"$nulls":39},"15.02.09 Аддитивные технологии"]
[null,null,{"$error":"#DIV/0!"},{"$error":"#DIV/0!"},0,0,0,0,{"$nulls":11},0,{"$nulls":39},"15.02.10 Мехатроника и мобильная робототехника (по отраслям)"]
[null,null,{"$error":"#DIV/0!"},{"$error":"#DIV/0!"},0,0,0,0,{"$nulls":11},0,{"$nulls":39},"15.02.10 Мехатроника и робототехника (по отраслям)"]
[null,null,{"$error":"#DIV/0!"},{"$error":"#DIV/0!"},0,0,0,0,{"$nulls":11},0,{"$nulls":39},"15.02.11 Техническая эксплуатация и обслуживание роботизированного производства"]
[null,null,{"$error":"#DIV/0!"},{"$error":"#DIV/0!"},0,0,0,0,{"$nulls":11},0,{"$nulls":39},"15.02.12 Монтаж, техническое обслуживание и ремонт промышленного оборудования (по отраслям)"]
[null,null,{"$error":"#DIV/0!"},{"$error":"#DIV/0!"},0,0,0,0,{"$nulls":11},0,{"$nulls":39},"15.02.13 Техническое обслуживание и ремонт систем вентиляции и кондиционирования"]
[null,null,{"$error":"#DIV/0!"},{"$error":"#DIV/0!"},0,0,0,0,{"$nulls":11},0,{"$nulls":39},"15.02.14 Оснащение средствами автоматизации технологических процессов и производств (по отраслям)"]
[null,null,{"$error":"#DIV/0!"},{"$error":"#DIV/0!"},0,0,0,0,{"$nulls":11},0,{"$nulls":39},"15.02.15 Технология металлообрабатывающего производства"]
[null,null,{"$f":"(H196+T196)/E196*100","v":{"$error":"#DIV/0!"}},{"$f":"(H196+T196+Y196)/(E196-W196-AA196)*100","v":{"$error":"#DIV/0!"}},0,0,0,0,{"$nulls":11},0,{"$nulls":39},"15.02.16 Технология машиностроения"]
[null,null,{"$error":"#DIV/0!"},{"$error":"#DIV/0!"},0,0,0,0,{"$nulls":11},0,{"$nulls":39},"15.02.17 Монтаж, техническое обслуживание, эксплуатация и ремонт промышленного оборудования (по отраслям)"]
[null,null,{"$error":"#DIV/0!"},{"$error":"#DIV/0!"},{"$f":"H198+T198+W198+Y198+AA198+AC198+AE198+AG198+AI198+AK198+AM198+AO198+AQ198","v":0},0,0,{"$f":"SUM(K198,N198,P198,R198,)","v":0},{"$nulls":11},{"$f":"SUM(U198,V198)","v":0},{"$nulls":39},"15.02.18 Техническая эксплуатация и обслуживание роботизированного производства (по отраслям)"]
[null,null,{"$error":"#DIV/0!"},{"$error":"#DIV/0!"},0,0,0,0,{"$nulls":11},0,{"$nulls":39},"15.02.19 Сварочное производство"]
[null,null,{"$error":"#DIV/0!"},{"$error":"#DIV/0!"},0,0,0,0,{"$nulls":11},0,{"$nulls":39},"18.01.01 Лаборант по физико-механическим испытаниям"]
[null,null,{"$error":"#DIV/0!"},{"$error":"#DIV/0!"},0,0,0,0,{"$nulls":11},0,{"$nulls":39},"18.01.02 Лаборант-эколог"]
[null,null,{"$error":"#DIV/0!"},{"$error":"#DIV/0!"},0,0,0,0,{"$nulls":11},0,{"$nulls":39},"18.01.03 Аппаратчик-оператор экологических установок"]
[null,null,{"$error":"#DIV/0!"},{"$error":"#DIV/0!"},0,0,0,0,{"$nulls":11},0,{"$nulls":39},"18.01.05 Аппаратчик-оператор производства неорганических веществ"]
[null,null,{"$error":"#DIV/0!"},{"$error":"#DIV/0!"},0,0,0,0,{"$nulls":11},0,{"$nulls":39},"18.01.06 Оператор производства стекловолокна, стекловолокнистых материалов и изделий стеклопластиков"]
[null,null,{"$error":"#DIV/0!"},{"$error":"#DIV/0!"},0,0,0,0,{"$nulls":11},0,{"$nulls":39},"18.01.08 Мастер по изготовлению, обработке, отделке деталей и изделий из стекла"]
[null,null,{"$error":"#DIV/0!"},{"$error":"#DIV/0!"},0,0,0,0,{"$nulls":11},0,{"$nulls":39},"18.01.08 Мастер-изготовитель деталей и изделий из стекла"]
[null,null,{"$error":"#DIV/0!"},{"$error":"#DIV/0!"},0,0,0,0,{"$nulls":11},0,{"$nulls":39},"18.01.12 Изготовитель фарфоровых и фаянсовых изделий"]
[null,null,{"$error":"#DIV/0!"},{"$error":"#DIV/0!"},0,0,0,0,{"$nulls":11},0,{"$nulls":39},"18.01.22 Оператор в производстве шин"]
[null,null,{"$error":"#DIV/0!"},{"$error":"#DIV/0!"},0,0,0,0,{"$nulls":11},0,{"$nulls":39},"18.01.24 Мастер шиномонтажной мастерской"]
[null,null,{"$error":"#DIV/0!"},{"$error":"#DIV/0!"},0,0,0,0,{"$nulls":11},0,{"$nulls":39},"18.01.26 Аппаратчик-оператор нефтехимического производства"]
[null,null,{"$error":"#DIV/0!"},{"$error":"#DIV/0!"},0,0,0,0,{"$nulls":11},0,{"$nulls":39},"18.01.27 Машинист технологических насосов и компрессоров"]
[null,null,{"$error":"#DIV/0!"},{"$error":"#DIV/0!"},0,0,0,0,{"$nulls":11},0,{"$nulls":39},"18.01.28 Оператор нефтепереработки"]
[null,null,{"$error":"#DIV/0!"},{"$error":"#DIV/0!"},0,0,0,0,{"$nulls":11},0,{"$nulls":39},"18.01.29 Мастер по обслуживанию магистральных трубопроводов"]
[null,null,{"$error":"#DIV/0!"},{"$error":"#DIV/0!"},0,0,0,0,{"$nulls":11},0,{"$nulls":39},"18.01.31 Машинист машин коксохимического производства"]
[null,null,{"$error":"#DIV/0!"},{"$error":"#DIV/0!"},0,0,0,0,{"$nulls":11},0,{"$nulls":39},"18.01.32 Аппаратчик-оператор азотных производств и продуктов органического синтеза"]
[null,null,{"$error":"#DIV/0!"},{"$error":"#DIV/0!"},0,0,0,0,{"$nulls":11},0,{"$nulls":39},"18.01.33 Лаборант по контролю качества сырья, реактивов, промежуточных продуктов, готовой продукции, отходов производства (по отраслям)"]
[null,null,{"$error":"#DIV/0!"},{"$error":"#DIV/0!"},0,0,0,0,{"$nulls":11},0,{"$nulls":39},"18.01.34 Лаборант по контролю качества сырья, реактивов, промежуточных продуктов, готовой продукции, отходов производства (по отраслям)"]
[null,null,{"$error":"#DIV/0!"},{"$error":"#DIV/0!"},0,0,0,0,{"$nulls":11},0,{"$nulls":39},"18.01.35 Аппаратчик-оператор производства химических соединений"]
[null,null,{"$error":"#DIV/0!"},{"$error":"#DIV/0!"},0,0,0,0,{"$nulls":11},0,{"$nulls":39},"18.02.01 Аналитический контроль качества химических соединений"]
[null,null,{"$error":"#DIV/0!"},{"$error":"#DIV/0!"},0,0,0,0,{"$nulls":11},0,{"$nulls":39},"18.02.03 Химическая технология неорганических веществ"]
[null,null,{"$error":"#DIV/0!"},{"$error":"#DIV/0!"},0,0,0,0,{"$nulls":11},0,{"$nulls":39},"18.02.04 Электрохимическое производство"]
[null,null,{"$error":"#DIV/0!"},{"$error":"#DIV/0!"},0,0,0,0,{"$nulls":11},0,{"$nulls":39},"18.02.05 Производство тугоплавких неметаллических и силикатных материалов и изделий"]
[null,null,{"$error":"#DIV/0!"},{"$error":"#DIV/0!"},0,0,0,0,{"$nulls":11},0,{"$nulls":39},"18.02.06 Химическая технология органических веществ"]
[null,null,{"$error":"#DIV/0!"},{"$error":"#DIV/0!"},0,0,0,0,{"$nulls":11},0,{"$nulls":39},"18.02.07 Технология производства и переработки пластических масс и эластомеров"]
[null,null,{"$error":"#DIV/0!"},{"$error":"#DIV/0!"},0,0,0,0,{"$nulls":11},0,{"$nulls":39},"18.02.09 Переработка нефти и газа"]
[null,null,{"$error":"#DIV/0!"},{"$error":"#DIV/0!"},0,0,0,0,{"$nulls":11},0,{"$nulls":39},"18.02.10 Коксохимическое производство"]
[null,null,{"$error":"#DIV/0!"},{"$error":"#DIV/0!"},0,0,0,0,{"$nulls":11},0,{"$nulls":39},"18.02.11 Технология пиротехнических составов и изделий"]
[null,null,{"$error":"#DIV/0!"},{"$error":"#DIV/0!"},0,0,0,0,{"$nulls":11},0,{"$nulls":39},"18.02.11 Технология производства энергонасыщенных материалов и изделий"]
[null,null,{"$error":"#DIV/0!"},{"$error":"#DIV/0!"},0,0,0,0,{"$nulls":11},0,{"$nulls":39},"18.02.12 Технология аналитического контроля химических соединений"]
[null,null,{"$error":"#DIV/0!"},{"$error":"#DIV/0!"},0,0,0,0,{"$nulls":11},0,{"$nulls":39},"18.02.13 Технология производства изделий из полимерных композитов"]
[null,null,{"$error":"#DIV/0!"},{"$error":"#DIV/0!"},0,0,0,0,{"$nulls":11},0,{"$nulls":39},"18.02.14 Химическая технология производства химических соединений"]
[null,null,{"$error":"#DIV/0!"},{"$error":"#DIV/0!"},0,0,0,0,{"$nulls":11},0,{"$nulls":39},"18.02.15 Биохимическое производство"]
[null,null,{"$error":"#DIV/0!"},{"$error":"#DIV/0!"},0,0,0,0,{"$nulls":11},0,{"$nulls":39},"19.01.01 Аппаратчик-оператор в биотехнологии"]
[null,null,{"$error":"#DIV/0!"},{"$error":"#DIV/0!"},0,0,0,0,{"$nulls":11},0,{"$nulls":39},"19.01.01 Аппаратчик-оператор производства биотехнологической продукции для пищевой промышленности"]
[null,null,{"$error":"#DIV/0!"},{"$error":"#DIV/0!"},0,0,0,0,{"$nulls":11},0,{"$nulls":39},"19.01.02 Лаборант-аналитик"]
[null,null,{"$error":"#DIV/0!"},{"$error":"#DIV/0!"},0,0,0,0,{"$nulls":11},0,{"$nulls":39},"19.01.04 Пекарь"]
[null,null,{"$error":"#DIV/0!"},{"$error":"#DIV/0!"},0,0,0,0,{"$nulls":11},0,{"$nulls":39},"19.01.06 Аппаратчик производства сахара"]
[null,null,{"$error":"#DIV/0!"},{"$error":"#DIV/0!"},0,0,0,0,{"$nulls":11},0,{"$nulls":39},"19.01.07 Кондитер сахаристых изделий"]
[null,null,{"$error":"#DIV/0!"},{"$error":"#DIV/0!"},0,0,0,0,{"$nulls":11},0,{"$nulls":39},"19.01.09 Мастер по эксплуатации, механизации, автоматизации и роботизации технологического оборудования и процессов пищевой промышленности"]
[null,null,{"$error":"#DIV/0!"},{"$error":"#DIV/0!"},0,0,0,0,{"$nulls":11},0,{"$nulls":39},"19.01.09 Наладчик оборудования в производстве пищевой продукции (по отраслям производства)"]
[null,null,{"$error":"#DIV/0!"},{"$error":"#DIV/0!"},0,0,0,0,{"$nulls":11},0,{"$nulls":39},"19.01.10 Мастер производства молочной продукции"]
[null,null,{"$error":"#DIV/0!"},{"$error":"#DIV/0!"},0,0,0,0,{"$nulls":11},0,{"$nulls":39},"19.01.11 Изготовитель мороженого"]
[null,null,{"$error":"#DIV/0!"},{"$error":"#DIV/0!"},0,0,0,0,{"$nulls":11},0,{"$nulls":39},"19.01.12 Переработчик скота и мяса"]
[null,null,{"$error":"#DIV/0!"},{"$error":"#DIV/0!"},0,0,0,0,{"$nulls":11},0,{"$nulls":39},"19.01.14 Оператор процессов колбасного производства"]
[null,null,{"$error":"#DIV/0!"},{"$error":"#DIV/0!"},0,0,0,0,{"$nulls":11},0,{"$nulls":39},"19.01.15 Аппаратчик получения растительного масла"]
[null,null,{"$error":"#DIV/0!"},{"$error":"#DIV/0!"},0,0,0,0,{"$nulls":11},0,{"$nulls":39},"19.01.18 Аппаратчик-оператор производства продуктов питания из растительного сырья"]
[null,null,{"$error":"#DIV/0!"},{"$error":"#DIV/0!"},0,0,0,0,{"$nulls":11},0,{"$nulls":39},"19.01.19 Аппаратчик-оператор производства продуктов питания животного происхождения"]
[null,null,{"$error":"#DIV/0!"},{"$error":"#DIV/0!"},0,0,0,0,{"$nulls":11},0,{"$nulls":39},"19.01.20 Аппаратчик-оператор производства продукции общественного питания массового изготовления и специализированных пищевых продуктов"]
[null,null,{"$error":"#DIV/0!"},{"$error":"#DIV/0!"},0,0,0,0,{"$nulls":11},0,{"$nulls":39},"19.02.01 Биохимическое производство"]
[null,null,{"$error":"#DIV/0!"},{"$error":"#DIV/0!"},0,0,0,0,{"$nulls":11},0,{"$nulls":39},"19.02.02 Технология хранения и переработки зерна"]
[null,null,{"$error":"#DIV/0!"},{"$error":"#DIV/0!"},0,0,0,0,{"$nulls":11},0,{"$nulls":39},"19.02.03 Технология хлеба, кондитерских и макаронных изделий"]
[null,null,{"$error":"#DIV/0!"},{"$error":"#DIV/0!"},0,0,0,0,{"$nulls":11},0,{"$nulls":39},"19.02.04 Технология сахаристых продуктов"]
[null,null,{"$error":"#DIV/0!"},{"$error":"#DIV/0!"},0,0,0,0,{"$nulls":11},0,{"$nulls":39},"19.02.05 Технология бродильных производств и виноделие"]
[null,null,{"$error":"#DIV/0!"},{"$error":"#DIV/0!"},0,0,0,0,{"$nulls":11},0,{"$nulls":39},"19.02.06 Технология консервов и пищеконцентратов"]
[null,null,{"$error":"#DIV/0!"},{"$error":"#DIV/0!"},0,0,0,0,{"$nulls":11},0,{"$nulls":39},"19.02.07 Технология молока и молочных продуктов"]
[null,null,{"$error":"#DIV/0!"},{"$error":"#DIV/0!"},0,0,0,0,{"$nulls":11},0,{"$nulls":39},"19.02.08 Технология мяса и мясных продуктов"]
[null,null,{"$error":"#DIV/0!"},{"$error":"#DIV/0!"},0,0,0,0,{"$nulls":11},0,{"$nulls":39},"19.02.09 Технология жиров и жирозаменителей"]
[null,null,{"$error":"#DIV/0!"},{"$error":"#DIV/0!"},0,0,0,0,{"$nulls":11},0,{"$nulls":39},"19.02.10 Технология продукции общественного питания"]
[null,null,{"$error":"#DIV/0!"},{"$error":"#DIV/0!"},0,0,0,0,{"$nulls":11},0,{"$nulls":39},"19.02.11 Технология продуктов питания из растительного сырья"]
[null,null,{"$f":"(H260+T260)/E260*100","v":{"$error":"#DIV/0!"}},{"$f":"(H260+T260+Y260)/(E260-W260-AA260)*100","v":{"$error":"#DIV/0!"}},0,0,0,0,{"$nulls":11},0,{"$nulls":39},"19.02.12 Технология продуктов питания животного происхождения"]
[null,null,{"$error":"#DIV/0!"},{"$error":"#DIV/0!"},0,0,0,0,{"$nulls":11},0,{"$nulls":39},"19.02.13 Технология продуктов общественного питания массового изготовления и специализированных пищевых продуктов"]
[null,null,{"$error":"#DIV/0!"},{"$error":"#DIV/0!"},{"$f":"H262+T262+W262+Y262+AA262+AC262+AE262+AG262+AI262+AK262+AM262+AO262+AQ262","v":0},0,0,{"$f":"SUM(K262,N262,P262,R262,)","v":0},{"$nulls":11},{"$f":"SUM(U262,V262)","v":0},{"$nulls":39},"19.02.14 Эксплуатация, механизация, автоматизация и роботизация технологического оборудования и процессов пищевой промышленности"]
[null,null,{"$error":"#DIV/0!"},{"$error":"#DIV/0!"},0,0,0,0,{"$nulls":11},0,{"$nulls":39},"19.02.15 Биотехнология пищевой промышленности"]
[null,null,{"$error":"#DIV/0!"},{"$error":"#DIV/0!"},0,0,0,0,{"$nulls":11},0,{"$nulls":39},"20.01.01 Пожарный"]
[null,null,{"$error":"#DIV/0!"},{"$error":"#DIV/0!"},0,0,0,0,{"$nulls":11},0,{"$nulls":39},"20.02.01 Рациональное использование природохозяйственных комплексов"]
[null,null,{"$error":"#DIV/0!"},{"$error":"#DIV/0!"},0,0,0,0,{"$nulls":11},0,{"$nulls":39},"20.02.01 Экологическая безопасность природных комплексов"]
[null,null,{"$error":"#DIV/0!"},{"$error":"#DIV/0!"},0,0,0,0,{"$nulls":11},0,{"$nulls":39},"20.02.02 Защита в чрезвычайных ситуациях"]
[null,null,{"$error":"#DIV/0!"},{"$error":"#DIV/0!"},0,0,0,0,{"$nulls":11},0,{"$nulls":39},"20.02.03 Природоохранное обустройство территорий"]
[null,null,{"$error":"#DIV/0!"},{"$error":"#DIV/0!"},0,0,0,0,{"$nulls":11},0,{"$nulls":39},"20.02.04 Пожарная безопасность"]
[null,null,{"$error":"#DIV/0!"},{"$error":"#DIV/0!"},0,0,0,0,{"$nulls":11},0,{"$nulls":39},"20.02.05 Организация оперативного (экстренного) реагирования в чрезвычайных ситуациях"]
[null,null,{"$error":"#DIV/0!"},{"$error":"#DIV/0!"},0,0,0,0,{"$nulls":11},0,{"$nulls":39},"20.02.06 Безопасность на акватории"]
[null,null,{"$error":"#DIV/0!"},{"$error":"#DIV/0!"},0,0,0,0,{"$nulls":11},0,{"$nulls":39},"21.01.01 Оператор нефтяных и газовых скважин"]
[null,null,{"$error":"#DIV/0!"},{"$error":"#DIV/0!"},0,0,0,0,{"$nulls":11},0,{"$nulls":39},"21.01.02 Оператор по ремонту скважин"]
[null,null,{"$error":"#DIV/0!"},{"$error":"#DIV/0!"},0,0,0,0,{"$nulls":11},0,{"$nulls":39},"21.01.03 Бурильщик эксплуатационных и разведочных скважин"]
[null,null,{"$error":"#DIV/0!"},{"$error":"#DIV/0!"},0,0,0,0,{"$nulls":11},0,{"$nulls":39},"21.01.04 Машинист на буровых установках"]
[null,null,{"$error":"#DIV/0!"},{"$error":"#DIV/0!"},0,0,0,0,{"$nulls":11},0,{"$nulls":39},"21.01.07 Бурильщик морского бурения скважин"]
[null,null,{"$error":"#DIV/0!"},{"$error":"#DIV/0!"},0,0,0,0,{"$nulls":11},0,{"$nulls":39},"21.01.08 Машинист на открытых горных работах"]
[null,null,{"$error":"#DIV/0!"},{"$error":"#DIV/0!"},0,0,0,0,{"$nulls":11},0,{"$nulls":39},"21.01.10 Ремонтник горного оборудования"]
[null,null,{"$error":"#DIV/0!"},{"$error":"#DIV/0!"},0,0,0,0,{"$nulls":11},0,{"$nulls":39},"21.01.13 Проходчик"]
[null,null,{"$error":"#DIV/0!"},{"$error":"#DIV/0!"},0,0,0,0,{"$nulls":11},0,{"$nulls":39},"21.01.15 Электрослесарь подземный"]
[null,null,{"$error":"#DIV/0!"},{"$error":"#DIV/0!"},0,0,0,0,{"$nulls":11},0,{"$nulls":39},"21.01.16 Обогатитель полезных ископаемых"]
[null,null,{"$error":"#DIV/0!"},{"$error":"#DIV/0!"},0,0,0,0,{"$nulls":11},0,{"$nulls":39},"21.01.17 Мастер по обслуживанию магистральных трубопроводов"]
[null,null,{"$error":"#DIV/0!"},{"$error":"#DIV/0!"},0,0,0,0,{"$nulls":11},0,{"$nulls":39},"21.02.01 Разработка и эксплуатация нефтяных и газовых месторождений"]
[null,null,{"$error":"#DIV/0!"},{"$error":"#DIV/0!"},0,0,0,0,{"$nulls":11},0,{"$nulls":39},"21.02.02 Бурение нефтяных и газовых скважин"]
[null,null,{"$error":"#DIV/0!"},{"$error":"#DIV/0!"},0,0,0,0,{"$nulls":11},0,{"$nulls":39},"21.02.03 Сооружение и эксплуатация газонефтепроводов и газонефтехранилищ"]
[null,null,{"$error":"#DIV/0!"},{"$error":"#DIV/0!"},0,0,0,0,{"$nulls":11},0,{"$nulls":39},"21.02.04 Землеустройство"]
[null,null,{"$error":"#DIV/0!"},{"$error":"#DIV/0!"},0,0,0,0,{"$nulls":11},0,{"$nulls":39},"21.02.05 Земельно-имущественные отношения"]
[null,null,{"$error":"#DIV/0!"},{"$error":"#DIV/0!"},0,0,0,0,{"$nulls":11},0,{"$nulls":39},"21.02.06 Информационные системы обеспечения градостроительной деятельности"]
[null,null,{"$error":"#DIV/0!"},{"$error":"#DIV/0!"},0,0,0,0,{"$nulls":11},0,{"$nulls":39},"21.02.07 Аэрофотогеодезия"]
[null,null,{"$error":"#DIV/0!"},{"$error":"#DIV/0!"},0,0,0,0,{"$nulls":11},0,{"$nulls":39},"21.02.08 Прикладная геодезия"]
[null,null,{"$error":"#DIV/0!"},{"$error":"#DIV/0!"},0,0,0,0,{"$nulls":11},0,{"$nulls":39},"21.02.09 Гидрогеология и инженерная геология"]
[null,null,{"$error":"#DIV/0!"},{"$error":"#DIV/0!"},0,0,0,0,{"$nulls":11},0,{"$nulls":39},"21.02.10 Геология и разведка нефтяных и газовых месторождений"]
[null,null,{"$error":"#DIV/0!"},{"$error":"#DIV/0!"},0,0,0,0,{"$nulls":11},0,{"$nulls":39},"21.02.11 Геофизические методы поисков и разведки месторождений полезных ископаемых"]
[null,null,{"$error":"#DIV/0!"},{"$error":"#DIV/0!"},0,0,0,0,{"$nulls":11},0,{"$nulls":39},"21.02.12 Технология и техника разведки месторождений полезных ископаемых"]
[null,null,{"$error":"#DIV/0!"},{"$error":"#DIV/0!"},0,0,0,0,{"$nulls":11},0,{"$nulls":39},"21.02.13 Геологическая съемка, поиски и разведка месторождений полезных ископаемых"]
[null,null,{"$error":"#DIV/0!"},{"$error":"#DIV/0!"},0,0,0,0,{"$nulls":11},0,{"$nulls":39},"21.02.14 Маркшейдерское дело"]
[null,null,{"$error":"#DIV/0!"},{"$error":"#DIV/0!"},0,0,0,0,{"$nulls":11},0,{"$nulls":39},"21.02.15 Открытые горные работы"]
[null,null,{"$error":"#DIV/0!"},{"$error":"#DIV/0!"},0,0,0,0,{"$nulls":11},0,{"$nulls":39},"21.02.16 Шахтное строительство"]
[null,null,{"$error":"#DIV/0!"},{"$error":"#DIV/0!"},0,0,0,0,{"$nulls":11},0,{"$nulls":39},"21.02.17 Подземная разработка месторождений полезных ископаемых"]
[null,null,{"$error":"#DIV/0!"},{"$error":"#DIV/0!"},0,0,0,0,{"$nulls":11},0,{"$nulls":39},"21.02.18 Обогащение полезных ископаемых"]
[null,null,{"$error":"#DIV/0!"},{"$error":"#DIV/0!"},0,0,0,0,{"$nulls":11},0,{"$nulls":39},"21.02.19 Землеустройство"]
[null,null,{"$error":"#DIV/0!"},{"$error":"#DIV/0!"},0,0,0,0,{"$nulls":11},0,{"$nulls":39},"21.02.20 Прикладная геодезия"]
[null,null,{"$error":"#DIV/0!"},{"$error":"#DIV/0!"},0,0,0,0,{"$nulls":11},0,{"$nulls":39},"22.01.03 Машинист крана металлургического производства"]
[null,null,{"$error":"#DIV/0!"},{"$error":"#DIV/0!"},0,0,0,0,{"$nulls":11},0,{"$nulls":39},"22.01.04 Контролер металлургического производства"]
[null,null,{"$error":"#DIV/0!"},{"$error":"#DIV/0!"},0,0,0,0,{"$nulls":11},0,{"$nulls":39},"22.01.05 Аппаратчик-оператор в производстве цветных металлов"]
[null,null,{"$error":"#DIV/0!"},{"$error":"#DIV/0!"},0,0,0,0,{"$nulls":11},0,{"$nulls":39},"22.01.08 Оператор прокатного производства"]
[null,null,{"$error":"#DIV/0!"},{"$error":"#DIV/0!"},0,0,0,0,{"$nulls":11},0,{"$nulls":39},"22.01.09 Оператор трубного производства"]
[null,null,{"$error":"#DIV/0!"},{"$error":"#DIV/0!"},0,0,0,0,{"$nulls":11},0,{"$nulls":39},"22.01.11 Оператор металлургического производства"]
[null,null,{"$error":"#DIV/0!"},{"$error":"#DIV/0!"},0,0,0,0,{"$nulls":11},0,{"$nulls":39},"22.02.01 Металлургия черных металлов"]
[null,null,{"$error":"#DIV/0!"},{"$error":"#DIV/0!"},0,0,0,0,{"$nulls":11},0,{"$nulls":39},"22.02.02 Металлургия цветных металлов"]
[null,null,{"$error":"#DIV/0!"},{"$error":"#DIV/0!"},0,0,0,0,{"$nulls":11},0,{"$nulls":39},"22.02.03 Литейное производство черных и цветных металлов"]
[null,null,{"$error":"#DIV/0!"},{"$error":"#DIV/0!"},0,0,0,0,{"$nulls":11},0,{"$nulls":39},"22.02.04 Металловедение и термическая обработка металлов"]
[null,null,{"$error":"#DIV/0!"},{"$error":"#DIV/0!"},0,0,0,0,{"$nulls":11},0,{"$nulls":39},"22.02.05 Обработка металлов давлением"]
[null,null,{"$error":"#DIV/0!"},{"$error":"#DIV/0!"},0,0,0,0,{"$nulls":11},0,{"$nulls":39},"22.02.06 Сварочное производство"]
[null,null,{"$error":"#DIV/0!"},{"$error":"#DIV/0!"},0,0,0,0,{"$nulls":11},0,{"$nulls":39},"22.02.07 Порошковая металлургия, композиционные материалы, покрытия"]
[null,null,{"$error":"#DIV/0!"},{"$error":"#DIV/0!"},0,0,0,0,{"$nulls":11},0,{"$nulls":39},"22.02.08 Металлургическое производство (по видам производства)"]
[null,null,{"$error":"#DIV/0!"},{"$error":"#DIV/0!"},0,0,0,0,{"$nulls":11},0,{"$nulls":39},"23.01.01 Оператор транспортного терминала"]
[null,null,{"$error":"#DIV/0!"},{"$error":"#DIV/0!"},0,0,0,0,{"$nulls":11},0,{"$nulls":39},"23.01.02 Докер-механизатор"]
[null,null,{"$error":"#DIV/0!"},{"$error":"#DIV/0!"},0,0,0,0,{"$nulls":11},0,{"$nulls":39},"23.01.03 Автомеханик"]
[null,null,{"$error":"#DIV/0!"},{"$error":"#DIV/0!"},0,0,0,0,{"$nulls":11},0,{"$nulls":39},"23.01.04 Водитель городского электротранспорта"]
[null,null,{"$error":"#DIV/0!"},{"$error":"#DIV/0!"},0,0,0,0,{"$nulls":11},0,{"$nulls":39},"23.01.06 Машинист дорожных и строительных машин"]
[null,null,{"$error":"#DIV/0!"},{"$error":"#DIV/0!"},0,0,0,0,{"$nulls":11},0,{"$nulls":39},"23.01.07 Машинист крана (крановщик)"]
[null,null,{"$error":"#DIV/0!"},{"$error":"#DIV/0!"},0,0,0,0,{"$nulls":11},0,{"$nulls":39},"23.01.08 Слесарь по ремонту строительных машин"]
[null,null,{"$f":"(H324+T324)/E324*100","v":{"$error":"#DIV/0!"}},{"$f":"(H324+T324+Y324)/(E324-W324-AA324)*100","v":{"$error":"#DIV/0!"}},0,0,0,0,{"$nulls":11},0,{"$nulls":39},"23.01.09 Машинист локомотива"]
[null,null,{"$error":"#DIV/0!"},{"$error":"#DIV/0!"},0,0,0,0,{"$nulls":11},0,{"$nulls":39},"23.01.09 Помощник машиниста (по видам подвижного состава железнодорожного транспорта)"]
[null,null,{"$error":"#DIV/0!"},{"$error":"#DIV/0!"},{"$f":"H326+T326+W326+Y326+AA326+AC326+AE326+AG326+AI326+AK326+AM326+AO326+AQ326","v":0},0,0,{"$f":"SUM(K326,N326,P326,R326,)","v":0},{"$nulls":11},{"$f":"SUM(U326,V326)","v":0},{"$nulls":39},"23.01.10 Слесарь по обслуживанию и ремонту подвижного состава"]
[null,null,{"$error":"#DIV/0!"},{"$error":"#DIV/0!"},0,0,0,0,{"$nulls":11},0,{"$nulls":39},"23.01.11 Слесарь-электрик по ремонту электрооборудования подвижного состава (электровозов, электропоездов)"]
[null,null,{"$error":"#DIV/0!"},{"$error":"#DIV/0!"},0,0,0,0,{"$nulls":11},0,{"$nulls":39},"23.01.12 Слесарь-электрик метрополитена"]
[null,null,{"$error":"#DIV/0!"},{"$error":"#DIV/0!"},0,0,0,0,{"$nulls":11},0,{"$nulls":39},"23.01.13 Электромонтер тяговой подстанции"]
[null,null,{"$error":"#DIV/0!"},{"$error":"#DIV/0!"},0,0,0,0,{"$nulls":11},0,{"$nulls":39},"23.01.14 Электромонтер устройств сигнализации, централизации, блокировки (СЦБ)"]
[null,null,{"$error":"#DIV/0!"},{"$error":"#DIV/0!"},0,0,0,0,{"$nulls":11},0,{"$nulls":39},"23.01.15 Оператор поста централизации"]
[null,null,{"$error":"#DIV/0!"},{"$error":"#DIV/0!"},0,0,0,0,{"$nulls":11},0,{"$nulls":39},"23.01.16 Составитель поездов"]
[null,null,{"$error":"#DIV/0!"},{"$error":"#DIV/0!"},0,0,0,0,{"$nulls":11},0,{"$nulls":39},"23.01.17 Мастер по ремонту и обслуживанию автомобилей"]
[null,null,{"$error":"#DIV/0!"},{"$error":"#DIV/0!"},0,0,0,0,{"$nulls":11},0,{"$nulls":39},"23.01.18 Мастер вертикального транспорта"]
[null,null,{"$error":"#DIV/0!"},{"$error":"#DIV/0!"},0,0,0,0,{"$nulls":11},0,{"$nulls":39},"23.01.19 Оператор по обработке перевозочных документов на железнодорожном транспорте"]
[null,null,{"$error":"#DIV/0!"},{"$error":"#DIV/0!"},0,0,0,0,{"$nulls":11},0,{"$nulls":39},"23.01.20 Мастер по комплексному обслуживанию пути рельсового транспорта"]
[null,null,{"$error":"#DIV/0!"},{"$error":"#DIV/0!"},0,0,0,0,{"$nulls":11},0,{"$nulls":39},"23.01.21 Мастер путевых машин"]
[null,null,{"$error":"#DIV/0!"},{"$error":"#DIV/0!"},0,0,0,0,{"$nulls":11},0,{"$nulls":39},"23.01.22 Проводник на железнодорожном транспорте"]
[null,null,{"$error":"#DIV/0!"},{"$error":"#DIV/0!"},0,0,0,0,{"$nulls":11},0,{"$nulls":39},"23.01.23 Электромонтер объектов транспортной инфраструктуры"]
[null,null,{"$error":"#DIV/0!"},{"$error":"#DIV/0!"},0,0,0,0,{"$nulls":11},0,{"$nulls":39},"23.02.01 Организация перевозок и управление на транспорте (по видам)"]
[null,null,{"$error":"#DIV/0!"},{"$error":"#DIV/0!"},0,0,0,0,{"$nulls":11},0,{"$nulls":39},"23.02.02 Автомобиле- и тракторостроение"]
[null,null,{"$error":"#DIV/0!"},{"$error":"#DIV/0!"},0,0,0,0,{"$nulls":11},0,{"$nulls":39},"23.02.03 Техническое обслуживание и ремонт автомобильного транспорта"]
[null,null,{"$error":"#DIV/0!"},{"$error":"#DIV/0!"},0,0,0,0,{"$nulls":11},0,{"$nulls":39},"23.02.04 Техническая эксплуатация подъемно-транспортных, строительных, дорожных машин и оборудования (по отраслям)"]
[null,null,{"$error":"#DIV/0!"},{"$error":"#DIV/0!"},0,0,0,0,{"$nulls":11},0,{"$nulls":39},"23.02.05 Эксплуатация транспортного электрооборудования и автоматики (по видам транспорта, за исключением водного)"]
[null,null,{"$error":"#DIV/0!"},{"$error":"#DIV/0!"},0,0,0,0,{"$nulls":11},0,{"$nulls":39},"23.02.06 Техническая эксплуатация подвижного состава железных дорог"]
[null,null,{"$error":"#DIV/0!"},{"$error":"#DIV/0!"},0,0,0,0,{"$nulls":11},0,{"$nulls":39},"23.02.07 Техническое обслуживание и ремонт автотранспортных средств"]
[null,null,{"$error":"#DIV/0!"},{"$error":"#DIV/0!"},0,0,0,0,{"$nulls":11},0,{"$nulls":39},"23.02.07 Техническое обслуживание и ремонт двигателей, систем и агрегатов автомобилей"]
[null,null,{"$error":"#DIV/0!"},{"$error":"#DIV/0!"},0,0,0,0,{"$nulls":11},0,{"$nulls":39},"23.02.08 Строительство железных дорог, путь и путевое хозяйство"]
[null,null,{"$error":"#DIV/0!"},{"$error":"#DIV/0!"},0,0,0,0,{"$nulls":11},0,{"$nulls":39},"23.02.09 Автоматика и телемеханика на транспорте (железнодорожном транспорте)"]
[null,null,{"$error":"#DIV/0!"},{"$error":"#DIV/0!"},0,0,0,0,{"$nulls":11},0,{"$nulls":39},"24.01.01 Слесарь-сборщик авиационной техники"]
[null,null,{"$error":"#DIV/0!"},{"$error":"#DIV/0!"},0,0,0,0,{"$nulls":11},0,{"$nulls":39},"24.01.02 Электромонтажник авиационной техники"]
[null,null,{"$error":"#DIV/0!"},{"$error":"#DIV/0!"},0,0,0,0,{"$nulls":11},0,{"$nulls":39},"24.01.04 Слесарь по ремонту авиационной техники"]
[null,null,{"$error":"#DIV/0!"},{"$error":"#DIV/0!"},0,0,0,0,{"$nulls":11},0,{"$nulls":39},"24.02.01 Производство летательных аппаратов"]
[null,null,{"$error":"#DIV/0!"},{"$error":"#DIV/0!"},0,0,0,0,{"$nulls":11},0,{"$nulls":39},"24.02.02 Производство авиационных двигателей"]
[null,null,{"$error":"#DIV/0!"},{"$error":"#DIV/0!"},0,0,0,0,{"$nulls":11},0,{"$nulls":39},"24.02.04 Радиотехнические комплексы и системы управления космических летательных аппаратов"]
[null,null,{"$error":"#DIV/0!"},{"$error":"#DIV/0!"},0,0,0,0,{"$nulls":11},0,{"$nulls":39},"25.02.01 Техническая эксплуатация летательных аппаратов и двигателей"]
[null,null,{"$error":"#DIV/0!"},{"$error":"#DIV/0!"},0,0,0,0,{"$nulls":11},0,{"$nulls":39},"25.02.02 Обслуживание летательных аппаратов горюче-смазочными материалами"]
[null,null,{"$error":"#DIV/0!"},{"$error":"#DIV/0!"},0,0,0,0,{"$nulls":11},0,{"$nulls":39},"25.02.03 Техническая эксплуатация электрифицированных и пилотажно-навигационных комплексов"]
[null,null,{"$error":"#DIV/0!"},{"$error":"#DIV/0!"},0,0,0,0,{"$nulls":11},0,{"$nulls":39},"25.02.04 Летная эксплуатация летательных аппаратов"]
[null,null,{"$error":"#DIV/0!"},{"$error":"#DIV/0!"},0,0,0,0,{"$nulls":11},0,{"$nulls":39},"25.02.05 Управление движением воздушного транспорта"]
[null,null,{"$error":"#DIV/0!"},{"$error":"#DIV/0!"},0,0,0,0,{"$nulls":11},0,{"$nulls":39},"25.02.06 Производство и обслуживание авиационной техники"]
[null,null,{"$error":"#DIV/0!"},{"$error":"#DIV/0!"},0,0,0,0,{"$nulls":11},0,{"$nulls":39},"25.02.07 Техническое обслуживание авиационных двигателей"]
[null,null,{"$error":"#DIV/0!"},{"$error":"#DIV/0!"},0,0,0,0,{"$nulls":11},0,{"$nulls":39},"25.02.08 Эксплуатация беспилотных авиационных систем"]
[null,null,{"$error":"#DIV/0!"},{"$error":"#DIV/0!"},0,0,0,0,{"$nulls":11},0,{"$nulls":39},"25.02.09 Организация воздушных перевозок и авиационных работ"]
[null,null,{"$error":"#DIV/0!"},{"$error":"#DIV/0!"},0,0,0,0,{"$nulls":11},0,{"$nulls":39},"25.02.10 Транспортная безопасность воздушного транспорта"]
[null,null,{"$error":"#DIV/0!"},{"$error":"#DIV/0!"},0,0,0,0,{"$nulls":11},0,{"$nulls":39},"26.01.01 Судостроитель-судоремонтник металлических судов"]
[null,null,{"$error":"#DIV/0!"},{"$error":"#DIV/0!"},0,0,0,0,{"$nulls":11},0,{"$nulls":39},"26.01.02 Судостроитель-судоремонтник неметаллических судов"]
[null,null,{"$error":"#DIV/0!"},{"$error":"#DIV/0!"},0,0,0,0,{"$nulls":11},0,{"$nulls":39},"26.01.03 Слесарь-монтажник судовой"]
[null,null,{"$error":"#DIV/0!"},{"$error":"#DIV/0!"},0,0,0,0,{"$nulls":11},0,{"$nulls":39},"26.01.05 Электрорадиомонтажник судовой"]
[null,null,{"$error":"#DIV/0!"},{"$error":"#DIV/0!"},0,0,0,0,{"$nulls":11},0,{"$nulls":39},"26.01.06 Моторист-рулевой"]
[null,null,{"$error":"#DIV/0!"},{"$error":"#DIV/0!"},0,0,0,0,{"$nulls":11},0,{"$nulls":39},"26.01.06 Судоводитель-помощник механика маломерного судна"]
[null,null,{"$error":"#DIV/0!"},{"$error":"#DIV/0!"},0,0,0,0,{"$nulls":11},0,{"$nulls":39},"26.01.07 Матрос"]
[null,null,{"$error":"#DIV/0!"},{"$error":"#DIV/0!"},0,0,0,0,{"$nulls":11},0,{"$nulls":39},"26.01.08 Моторист (машинист)"]
[null,null,{"$error":"#DIV/0!"},{"$error":"#DIV/0!"},0,0,0,0,{"$nulls":11},0,{"$nulls":39},"26.01.09 Моторист судовой"]
[null,null,{"$error":"#DIV/0!"},{"$error":"#DIV/0!"},0,0,0,0,{"$nulls":11},0,{"$nulls":39},"26.01.10 Механик маломерного судна"]
[null,null,{"$error":"#DIV/0!"},{"$error":"#DIV/0!"},0,0,0,0,{"$nulls":11},0,{"$nulls":39},"26.01.12 Электрик судовой"]
[null,null,{"$error":"#DIV/0!"},{"$error":"#DIV/0!"},0,0,0,0,{"$nulls":11},0,{"$nulls":39},"26.01.13 Водолаз"]
[null,null,{"$error":"#DIV/0!"},{"$error":"#DIV/0!"},0,0,0,0,{"$nulls":11},0,{"$nulls":39},"26.02.01 Эксплуатация внутренних водных путей"]
[null,null,{"$error":"#DIV/0!"},{"$error":"#DIV/0!"},0,0,0,0,{"$nulls":11},0,{"$nulls":39},"26.02.02 Судостроение"]
[null,null,{"$error":"#DIV/0!"},{"$error":"#DIV/0!"},0,0,0,0,{"$nulls":11},0,{"$nulls":39},"26.02.03 Судовождение"]
[null,null,{"$error":"#DIV/0!"},{"$error":"#DIV/0!"},0,0,0,0,{"$nulls":11},0,{"$nulls":39},"26.02.04 Монтаж и техническое обслуживание судовых машин и механизмов"]
[null,null,{"$error":"#DIV/0!"},{"$error":"#DIV/0!"},0,0,0,0,{"$nulls":11},0,{"$nulls":39},"26.02.05 Эксплуатация судовых энергетических установок"]
[null,null,{"$error":"#DIV/0!"},{"$error":"#DIV/0!"},0,0,0,0,{"$nulls":11},0,{"$nulls":39},"26.02.06 Эксплуатация судового электрооборудования и средств автоматики"]
[null,null,{"$error":"#DIV/0!"},{"$error":"#DIV/0!"},0,0,0,0,{"$nulls":11},0,{"$nulls":39},"27.01.01 Контролер измерительных приборов"]
[null,null,{"$error":"#DIV/0!"},{"$error":"#DIV/0!"},0,0,0,0,{"$nulls":11},0,{"$nulls":39},"27.02.01 Метрология"]
[null,null,{"$error":"#DIV/0!"},{"$error":"#DIV/0!"},0,0,0,0,{"$nulls":11},0,{"$nulls":39},"27.02.02 Техническое регулирование и управление качеством"]
[null,null,{"$error":"#DIV/0!"},{"$error":"#DIV/0!"},0,0,0,0,{"$nulls":11},0,{"$nulls":39},"27.02.03 Автоматика и телемеханика на транспорте (железнодорожном транспорте)"]
[null,null,{"$f":"(H388+T388)/E388*100","v":{"$error":"#DIV/0!"}},{"$f":"(H388+T388+Y388)/(E388-W388-AA388)*100","v":{"$error":"#DIV/0!"}},0,0,0,0,{"$nulls":11},0,{"$nulls":39},"27.02.04 Автоматические системы управления"]
[null,null,{"$error":"#DIV/0!"},{"$error":"#DIV/0!"},0,0,0,0,{"$nulls":11},0,{"$nulls":39},"27.02.05 Системы и средства диспетчерского управления"]
[null,null,{"$error":"#DIV/0!"},{"$error":"#DIV/0!"},{"$f":"H390+T390+W390+Y390+AA390+AC390+AE390+AG390+AI390+AK390+AM390+AO390+AQ390","v":0},0,0,{"$f":"SUM(K390,N390,P390,R390,)","v":0},{"$nulls":11},{"$f":"SUM(U390,V390)","v":0},{"$nulls":39},"27.02.06 Контроль работы измерительных приборов"]
[null,null,{"$error":"#DIV/0!"},{"$error":"#DIV/0!"},0,0,0,0,{"$nulls":11},0,{"$nulls":39},"27.02.06 Метрологический контроль средств измерений"]
[null,null,{"$error":"#DIV/0!"},{"$error":"#DIV/0!"},0,0,0,0,{"$nulls":11},0,{"$nulls":39},"27.02.07 Управление качеством продукции, процессов и услуг (по отраслям)"]
[null,null,{"$error":"#DIV/0!"},{"$error":"#DIV/0!"},0,0,0,0,{"$nulls":11},0,{"$nulls":39},"29.01.01 Скорняк"]
[null,null,{"$error":"#DIV/0!"},{"$error":"#DIV/0!"},0,0,0,0,{"$nulls":11},0,{"$nulls":39},"29.01.02 Обувщик (широкого профиля)"]
[null,null,{"$error":"#DIV/0!"},{"$error":"#DIV/0!"},0,0,0,0,{"$nulls":11},0,{"$nulls":39},"29.01.03 Сборщик обуви"]
[null,null,{"$error":"#DIV/0!"},{"$error":"#DIV/0!"},0,0,0,0,{"$nulls":11},0,{"$nulls":39},"29.01.04 Художник по костюму"]
[null,null,{"$error":"#DIV/0!"},{"$error":"#DIV/0!"},0,0,0,0,{"$nulls":11},0,{"$nulls":39},"29.01.05 Закройщик"]
[null,null,{"$error":"#DIV/0!"},{"$error":"#DIV/0!"},0,0,0,0,{"$nulls":11},0,{"$nulls":39},"29.01.07 Портной"]
[null,null,{"$error":"#DIV/0!"},{"$error":"#DIV/0!"},0,0,0,0,{"$nulls":11},0,{"$nulls":39},"29.01.08 Оператор швейного оборудования"]
[null,null,{"$error":"#DIV/0!"},{"$error":"#DIV/0!"},0,0,0,0,{"$nulls":11},0,{"$nulls":39},"29.01.09 Вышивальщица"]
[null,null,{"$f":"(H401+T401)/E401*100","v":{"$error":"#DIV/0!"}},{"$f":"(H401+T401+Y401)/(E401-W401-AA401)*100","v":{"$error":"#DIV/0!"}},0,0,0,0,{"$nulls":11},0,{"$nulls":39},"29.01.09 Мастер-исполнитель художественной вышивки (по видам)"]
[null,null,{"$error":"#DIV/0!"},{"$error":"#DIV/0!"},0,0,0,0,{"$nulls":11},0,{"$nulls":39},"29.01.10 Модистка головных уборов"]
[null,null,{"$error":"#DIV/0!"},{"$error":"#DIV/0!"},0,0,0,0,{"$nulls":11},0,{"$nulls":39},"29.01.16 Ткач"]
[null,null,{"$error":"#DIV/0!"},{"$error":"#DIV/0!"},0,0,0,0,{"$nulls":11},0,{"$nulls":39},"29.01.17 Оператор вязально-швейного оборудования"]
[null,null,{"$error":"#DIV/0!"},{"$error":"#DIV/0!"},0,0,0,0,{"$nulls":11},0,{"$nulls":39},"29.01.24 Оператор электронного набора и верстки"]
[null,null,{"$error":"#DIV/0!"},{"$error":"#DIV/0!"},0,0,0,0,{"$nulls":11},0,{"$nulls":39},"29.01.25 Переплетчик"]
[null,null,{"$error":"#DIV/0!"},{"$error":"#DIV/0!"},0,0,0,0,{"$nulls":11},0,{"$nulls":39},"29.01.26 Печатник плоской печати"]
[null,null,{"$error":"#DIV/0!"},{"$error":"#DIV/0!"},0,0,0,0,{"$nulls":11},0,{"$nulls":39},"29.01.27 Мастер печатного дела"]
[null,null,{"$error":"#DIV/0!"},{"$error":"#DIV/0!"},0,0,0,0,{"$nulls":11},0,{"$nulls":39},"29.01.28 Мастер по обработке алмазов"]
[null,null,{"$error":"#DIV/0!"},{"$error":"#DIV/0!"},0,0,0,0,{"$nulls":11},0,{"$nulls":39},"29.01.28 Огранщик алмазов в бриллианты"]
[null,null,{"$error":"#DIV/0!"},{"$error":"#DIV/0!"},0,0,0,0,{"$nulls":11},0,{"$nulls":39},"29.01.29 Мастер столярного и мебельного производства"]
[null,null,{"$error":"#DIV/0!"},{"$error":"#DIV/0!"},0,0,0,0,{"$nulls":11},0,{"$nulls":39},"29.01.31 Мастер скорняжных работ"]
[null,null,{"$error":"#DIV/0!"},{"$error":"#DIV/0!"},0,0,0,0,{"$nulls":11},0,{"$nulls":39},"29.01.32 Мастер обувного производства"]
[null,null,{"$error":"#DIV/0!"},{"$error":"#DIV/0!"},0,0,0,0,{"$nulls":11},0,{"$nulls":39},"29.01.33 Мастер по изготовлению швейных изделий"]
[null,null,{"$error":"#DIV/0!"},{"$error":"#DIV/0!"},0,0,0,0,{"$nulls":11},0,{"$nulls":39},"29.01.34 Оператор оборудования швейного производства (по видам)"]
[null,null,{"$error":"#DIV/0!"},{"$error":"#DIV/0!"},0,0,0,0,{"$nulls":11},0,{"$nulls":39},"29.01.35 Оператор оборудования производства текстильных изделий (по видам)"]
[null,null,{"$error":"#DIV/0!"},{"$error":"#DIV/0!"},0,0,0,0,{"$nulls":11},0,{"$nulls":39},"29.01.36 Мастер полиграфического производства"]
[null,null,{"$error":"#DIV/0!"},{"$error":"#DIV/0!"},0,0,0,0,{"$nulls":11},0,{"$nulls":39},"29.02.01 Конструирование, моделирование и технология изделий из кожи"]
[null,null,{"$error":"#DIV/0!"},{"$error":"#DIV/0!"},0,0,0,0,{"$nulls":11},0,{"$nulls":39},"29.02.02 Технология кожи и меха"]
[null,null,{"$error":"#DIV/0!"},{"$error":"#DIV/0!"},0,0,0,0,{"$nulls":11},0,{"$nulls":39},"29.02.03 Конструирование, моделирование и технология изделий из меха"]
[null,null,{"$error":"#DIV/0!"},{"$error":"#DIV/0!"},0,0,0,0,{"$nulls":11},0,{"$nulls":39},"29.02.04 Конструирование, моделирование и технология швейных изделий"]
[null,null,{"$error":"#DIV/0!"},{"$error":"#DIV/0!"},0,0,0,0,{"$nulls":11},0,{"$nulls":39},"29.02.05 Технология текстильных изделий (по видам)"]
[null,null,{"$error":"#DIV/0!"},{"$error":"#DIV/0!"},0,0,0,0,{"$nulls":11},0,{"$nulls":39},"29.02.06 Полиграфическое производство"]
[null,null,{"$error":"#DIV/0!"},{"$error":"#DIV/0!"},0,0,0,0,{"$nulls":11},0,{"$nulls":39},"29.02.07 Производство изделий из бумаги и картона"]
[null,null,{"$error":"#DIV/0!"},{"$error":"#DIV/0!"},0,0,0,0,{"$nulls":11},0,{"$nulls":39},"29.02.08 Технология обработки алмазов"]
[null,null,{"$error":"#DIV/0!"},{"$error":"#DIV/0!"},0,0,0,0,{"$nulls":11},0,{"$nulls":39},"29.02.09 Печатное дело"]
[null,null,{"$error":"#DIV/0!"},{"$error":"#DIV/0!"},0,0,0,0,{"$nulls":11},0,{"$nulls":39},"29.02.10 Конструирование, моделирование и технология изготовления изделий легкой промышленности (по видам)"]
[null,null,{"$error":"#DIV/0!"},{"$error":"#DIV/0!"},0,0,0,0,{"$nulls":11},0,{"$nulls":39},"29.02.11 Полиграфическое производство"]
[null,null,{"$error":"#DIV/0!"},{"$error":"#DIV/0!"},0,0,0,0,{"$nulls":11},0,{"$nulls":39},"31.01.01 Медицинский администратор"]
[null,null,{"$error":"#DIV/0!"},{"$error":"#DIV/0!"},0,0,0,0,{"$nulls":11},0,{"$nulls":39},"31.02.01 Лечебное дело"]
[null,null,{"$error":"#DIV/0!"},{"$error":"#DIV/0!"},0,0,0,0,{"$nulls":11},0,{"$nulls":39},"31.02.02 Акушерское дело"]
[null,null,{"$error":"#DIV/0!"},{"$error":"#DIV/0!"},0,0,0,0,{"$nulls":11},0,{"$nulls":39},"31.02.03 Лабораторная диагностика"]
[null,null,{"$error":"#DIV/0!"},{"$error":"#DIV/0!"},0,0,0,0,{"$nulls":11},0,{"$nulls":39},"31.02.04 Медицинская оптика"]
[null,null,{"$error":"#DIV/0!"},{"$error":"#DIV/0!"},0,0,0,0,{"$nulls":11},0,{"$nulls":39},"31.02.05 Стоматология ортопедическая"]
[null,null,{"$error":"#DIV/0!"},{"$error":"#DIV/0!"},0,0,0,0,{"$nulls":11},0,{"$nulls":39},"31.02.06 Стоматология профилактическая"]
[null,null,{"$error":"#DIV/0!"},{"$error":"#DIV/0!"},0,0,0,0,{"$nulls":11},0,{"$nulls":39},"31.02.07 Стоматологическое дело"]
[null,null,{"$error":"#DIV/0!"},{"$error":"#DIV/0!"},0,0,0,0,{"$nulls":11},0,{"$nulls":39},"32.02.01 Медико-профилактическое дело"]
[null,null,{"$error":"#DIV/0!"},{"$error":"#DIV/0!"},0,0,0,0,{"$nulls":11},0,{"$nulls":39},"33.02.01 Фармация"]
[null,null,{"$error":"#DIV/0!"},{"$error":"#DIV/0!"},0,0,0,0,{"$nulls":11},0,{"$nulls":39},"34.01.01 Младшая медицинская сестра по уходу за больными"]
[null,null,{"$error":"#DIV/0!"},{"$error":"#DIV/0!"},0,0,0,0,{"$nulls":11},0,{"$nulls":39},"34.02.01 Сестринское дело"]
[null,null,{"$error":"#DIV/0!"},{"$error":"#DIV/0!"},0,0,0,0,{"$nulls":11},0,{"$nulls":39},"34.02.02 Медицинский массаж (для обучения лиц с ограниченными возможностями здоровья по зрению)"]
[null,null,{"$error":"#DIV/0!"},{"$error":"#DIV/0!"},0,0,0,0,{"$nulls":11},0,{"$nulls":39},"35.01.01 Мастер по лесному хозяйству"]
[null,null,{"$error":"#DIV/0!"},{"$error":"#DIV/0!"},0,0,0,0,{"$nulls":11},0,{"$nulls":39},"35.01.02 Станочник деревообрабатывающих станков"]
[null,null,{"$error":"#DIV/0!"},{"$error":"#DIV/0!"},0,0,0,0,{"$nulls":11},0,{"$nulls":39},"35.01.03 Станочник-обработчик"]
[null,null,{"$error":"#DIV/0!"},{"$error":"#DIV/0!"},0,0,0,0,{"$nulls":11},0,{"$nulls":39},"35.01.04 Оператор линии и установок в деревообработке"]
[null,null,{"$error":"#DIV/0!"},{"$error":"#DIV/0!"},0,0,0,0,{"$nulls":11},0,{"$nulls":39},"35.01.05 Контролер качества материалов и продукции деревообрабатывающего производства"]
[null,null,{"$error":"#DIV/0!"},{"$error":"#DIV/0!"},0,0,0,0,{"$nulls":11},0,{"$nulls":39},"35.01.05 Контролер полуфабрикатов и изделий из древесины"]
[null,null,{"$error":"#DIV/0!"},{"$error":"#DIV/0!"},0,0,0,0,{"$nulls":11},0,{"$nulls":39},"35.01.06 Машинист машин по производству бумаги и картона"]
[null,null,{"$error":"#DIV/0!"},{"$error":"#DIV/0!"},0,0,0,0,{"$nulls":11},0,{"$nulls":39},"35.01.06 Оператор машин по производству бумаги и картона"]
[null,null,{"$error":"#DIV/0!"},{"$error":"#DIV/0!"},0,0,0,0,{"$nulls":11},0,{"$nulls":39},"35.01.09 Мастер растениеводства"]
[null,null,{"$error":"#DIV/0!"},{"$error":"#DIV/0!"},0,0,0,0,{"$nulls":11},0,{"$nulls":39},"35.01.10 Овощевод защищенного грунта"]
[null,null,{"$error":"#DIV/0!"},{"$error":"#DIV/0!"},0,0,0,0,{"$nulls":11},0,{"$nulls":39},"35.01.11 Мастер сельскохозяйственного производства"]
[null,null,{"$error":"#DIV/0!"},{"$error":"#DIV/0!"},0,0,0,0,{"$nulls":11},0,{"$nulls":39},"35.01.12 Заготовитель продуктов и сырья"]
[null,null,{"$error":"#DIV/0!"},{"$error":"#DIV/0!"},{"$f":"H454+T454+W454+Y454+AA454+AC454+AE454+AG454+AI454+AK454+AM454+AO454+AQ454","v":0},0,0,{"$f":"SUM(K454,N454,P454,R454,)","v":0},{"$nulls":11},{"$f":"SUM(U454,V454)","v":0},{"$nulls":39},"35.01.13 Тракторист-машинист сельскохозяйственного производства"]
[null,null,{"$error":"#DIV/0!"},{"$error":"#DIV/0!"},0,0,0,0,{"$nulls":11},0,{"$nulls":39},"35.01.14 Мастер по техническому обслуживанию и ремонту машинно-тракторного парка"]
[null,null,{"$error":"#DIV/0!"},{"$error":"#DIV/0!"},0,0,0,0,{"$nulls":11},0,{"$nulls":39},"35.01.15 Мастер по ремонту и обслуживанию электрооборудования в сельском хозяйстве"]
[null,null,{"$error":"#DIV/0!"},{"$error":"#DIV/0!"},0,0,0,0,{"$nulls":11},0,{"$nulls":39},"35.01.15 Электромонтер по ремонту и обслуживанию электрооборудования в сельскохозяйственном производстве"]
[null,null,{"$error":"#DIV/0!"},{"$error":"#DIV/0!"},0,0,0,0,{"$nulls":11},0,{"$nulls":39},"35.01.16 Мастер по водным биоресурсам и аквакультуре"]
[null,null,{"$error":"#DIV/0!"},{"$error":"#DIV/0!"},0,0,0,0,{"$nulls":11},0,{"$nulls":39},"35.01.16 Рыбовод"]
[null,null,{"$error":"#DIV/0!"},{"$error":"#DIV/0!"},0,0,0,0,{"$nulls":11},0,{"$nulls":39},"35.01.17 Обработчик рыбы и морепродуктов"]
[null,null,{"$error":"#DIV/0!"},{"$error":"#DIV/0!"},0,0,0,0,{"$nulls":11},0,{"$nulls":39},"35.01.19 Мастер садово-паркового и ландшафтного строительства"]
[null,null,{"$error":"#DIV/0!"},{"$error":"#DIV/0!"},0,0,0,0,{"$nulls":11},0,{"$nulls":39},"35.01.20 Пчеловод"]
[null,null,{"$error":"#DIV/0!"},{"$error":"#DIV/0!"},0,0,0,0,{"$nulls":11},0,{"$nulls":39},"35.01.21 Оленевод-механизатор"]
[null,null,{"$error":"#DIV/0!"},{"$error":"#DIV/0!"},0,0,0,0,{"$nulls":11},0,{"$nulls":39},"35.01.23 Хозяйка(ин) усадьбы"]
[null,null,{"$f":"(H465+T465)/E465*100","v":{"$error":"#DIV/0!"}},{"$f":"(H465+T465+Y465)/(E465-W465-AA465)*100","v":{"$error":"#DIV/0!"}},0,0,0,0,{"$nulls":11},0,{"$nulls":39},"35.01.24 Управляющий сельской усадьбой"]
[null,null,{"$error":"#DIV/0!"},{"$error":"#DIV/0!"},0,0,0,0,{"$nulls":11},0,{"$nulls":39},"35.01.25 Оператор-станочник деревообрабатывающего оборудования"]
[null,null,{"$error":"#DIV/0!"},{"$error":"#DIV/0!"},0,0,0,0,{"$nulls":11},0,{"$nulls":39},"35.01.26 Мастер растениеводства"]
[null,null,{"$error":"#DIV/0!"},{"$error":"#DIV/0!"},0,0,0,0,{"$nulls":11},0,{"$nulls":39},"35.01.27 Мастер сельскохозяйственного производства"]
[null,null,{"$error":"#DIV/0!"},{"$error":"#DIV/0!"},0,0,0,0,{"$nulls":11},0,{"$nulls":39},"35.01.28 Мастер столярного и мебельного производства"]
[null,null,{"$error":"#DIV/0!"},{"$error":"#DIV/0!"},0,0,0,0,{"$nulls":11},0,{"$nulls":39},"35.01.29 Слесарь по ремонту лесозаготовительного оборудования"]
[null,null,{"$error":"#DIV/0!"},{"$error":"#DIV/0!"},0,0,0,0,{"$nulls":11},0,{"$nulls":39},"35.01.30 Машинист лесозаготовительных и трелевочных машин"]
[null,null,{"$error":"#DIV/0!"},{"$error":"#DIV/0!"},0,0,0,0,{"$nulls":11},0,{"$nulls":39},"35.01.31 Матрос промысловой команды"]
[null,null,{"$error":"#DIV/0!"},{"$error":"#DIV/0!"},0,0,0,0,{"$nulls":11},0,{"$nulls":39},"35.01.32 Мастер по техническому обеспечению рыболовства"]
[null,null,{"$error":"#DIV/0!"},{"$error":"#DIV/0!"},0,0,0,0,{"$nulls":11},0,{"$nulls":39},"35.01.33 Мастер по техническому обеспечению рыбоводства"]
[null,null,{"$error":"#DIV/0!"},{"$error":"#DIV/0!"},0,0,0,0,{"$nulls":11},0,{"$nulls":39},"35.01.34 Аппаратчик-оператор производства продукции из водных биоресурсов на судах рыбопромыслового флота и береговых предприятиях"]
[null,null,{"$error":"#DIV/0!"},{"$error":"#DIV/0!"},0,0,0,0,{"$nulls":11},0,{"$nulls":39},"35.01.35 Фермер"]
[null,null,{"$error":"#DIV/0!"},{"$error":"#DIV/0!"},0,0,0,0,{"$nulls":11},0,{"$nulls":39},"35.02.01 Лесное и лесопарковое хозяйство"]
[null,null,{"$error":"#DIV/0!"},{"$error":"#DIV/0!"},0,0,0,0,{"$nulls":11},0,{"$nulls":39},"35.02.02 Технология лесозаготовок"]
[null,null,{"$error":"#DIV/0!"},{"$error":"#DIV/0!"},0,0,0,0,{"$nulls":11},0,{"$nulls":39},"35.02.03 Технология деревообработки"]
[null,null,{"$error":"#DIV/0!"},{"$error":"#DIV/0!"},0,0,0,0,{"$nulls":11},0,{"$nulls":39},"35.02.04 Технология комплексной переработки древесины"]
[null,null,{"$error":"#DIV/0!"},{"$error":"#DIV/0!"},0,0,0,0,{"$nulls":11},0,{"$nulls":39},"35.02.05 Агрономия"]
[null,null,{"$error":"#DIV/0!"},{"$error":"#DIV/0!"},0,0,0,0,{"$nulls":11},0,{"$nulls":39},"35.02.06 Технология производства и переработки сельскохозяйственной продукции"]
[null,null,{"$error":"#DIV/0!"},{"$error":"#DIV/0!"},0,0,0,0,{"$nulls":11},0,{"$nulls":39},"35.02.07 Механизация сельского хозяйства"]
[null,null,{"$error":"#DIV/0!"},{"$error":"#DIV/0!"},0,0,0,0,{"$nulls":11},0,{"$nulls":39},"35.02.08 Электрификация и автоматизация сельского хозяйства"]
[null,null,{"$error":"#DIV/0!"},{"$error":"#DIV/0!"},0,0,0,0,{"$nulls":11},0,{"$nulls":39},"35.02.08 Электротехнические системы в агропромышленном комплексе (АПК)"]
[null,null,{"$error":"#DIV/0!"},{"$error":"#DIV/0!"},0,0,0,0,{"$nulls":11},0,{"$nulls":39},"35.02.09 Водные биоресурсы и аквакультура"]
[null,null,{"$error":"#DIV/0!"},{"$error":"#DIV/0!"},0,0,0,0,{"$nulls":11},0,{"$nulls":39},"35.02.09 Ихтиология и рыбоводство"]
[null,null,{"$error":"#DIV/0!"},{"$error":"#DIV/0!"},0,0,0,0,{"$nulls":11},0,{"$nulls":39},"35.02.10 Обработка водных биоресурсов"]
[null,null,{"$error":"#DIV/0!"},{"$error":"#DIV/0!"},0,0,0,0,{"$nulls":11},0,{"$nulls":39},"35.02.11 Промышленное рыболовство"]
[null,null,{"$error":"#DIV/0!"},{"$error":"#DIV/0!"},0,0,0,0,{"$nulls":11},0,{"$nulls":39},"35.02.12 Садово-парковое и ландшафтное строительство"]
[null,null,{"$error":"#DIV/0!"},{"$error":"#DIV/0!"},0,0,0,0,{"$nulls":11},0,{"$nulls":39},"35.02.13 Пчеловодство"]
[null,null,{"$error":"#DIV/0!"},{"$error":"#DIV/0!"},0,0,0,0,{"$nulls":11},0,{"$nulls":39},"35.02.14 Охотоведение и звероводство"]
[null,null,{"$error":"#DIV/0!"},{"$error":"#DIV/0!"},0,0,0,0,{"$nulls":11},0,{"$nulls":39},"35.02.15 Кинология"]
[null,null,{"$error":"#DIV/0!"},{"$error":"#DIV/0!"},0,0,0,0,{"$nulls":11},0,{"$nulls":39},"35.02.16 Эксплуатация и ремонт сельскохозяйственной техники и оборудования"]
[null,null,{"$error":"#DIV/0!"},{"$error":"#DIV/0!"},0,0,0,0,{"$nulls":11},0,{"$nulls":39},"35.02.17 Агромелиорация"]
[null,null,{"$error":"#DIV/0!"},{"$error":"#DIV/0!"},0,0,0,0,{"$nulls":11},0,{"$nulls":39},"35.02.18 Технология переработки древесины"]
[null,null,{"$error":"#DIV/0!"},{"$error":"#DIV/0!"},0,0,0,0,{"$nulls":11},0,{"$nulls":39},"35.02.19 Техническое обеспечение рыбоводства"]
[null,null,{"$error":"#DIV/0!"},{"$error":"#DIV/0!"},0,0,0,0,{"$nulls":11},0,{"$nulls":39},"35.02.20 Технология производства, первичной переработки и хранения сельскохозяйственной продукции"]
[null,null,{"$error":"#DIV/0!"},{"$error":"#DIV/0!"},0,0,0,0,{"$nulls":11},0,{"$nulls":39},"36.01.01 Младший ветеринарный фельдшер"]
[null,null,{"$error":"#DIV/0!"},{"$error":"#DIV/0!"},0,0,0,0,{"$nulls":11},0,{"$nulls":39},"36.01.02 Мастер животноводства"]
[null,null,{"$error":"#DIV/0!"},{"$error":"#DIV/0!"},0,0,0,0,{"$nulls":11},0,{"$nulls":39},"36.01.03 Тренер-наездник лошадей"]
[null,null,{"$error":"#DIV/0!"},{"$error":"#DIV/0!"},0,0,0,0,{"$nulls":11},0,{"$nulls":39},"36.01.04 Пчеловод"]
[null,null,{"$error":"#DIV/0!"},{"$error":"#DIV/0!"},0,0,0,0,{"$nulls":11},0,{"$nulls":39},"36.01.05 Лаборант в области ветеринарии"]
[null,null,{"$error":"#DIV/0!"},{"$error":"#DIV/0!"},0,0,0,0,{"$nulls":11},0,{"$nulls":39},"36.01.06 Мастер оленеводства"]
[null,null,{"$error":"#DIV/0!"},{"$error":"#DIV/0!"},0,0,0,0,{"$nulls":11},0,{"$nulls":39},"36.02.01 Ветеринария"]
[null,null,{"$error":"#DIV/0!"},{"$error":"#DIV/0!"},0,0,0,0,{"$nulls":11},0,{"$nulls":39},"36.02.02 Зоотехния"]
[null,null,{"$error":"#DIV/0!"},{"$error":"#DIV/0!"},0,0,0,0,{"$nulls":11},0,{"$nulls":39},"36.02.03 Зоотехния"]
[null,null,{"$error":"#DIV/0!"},{"$error":"#DIV/0!"},0,0,0,0,{"$nulls":11},0,{"$nulls":39},"36.02.04 Охотоведение и звероводство"]
[null,null,{"$error":"#DIV/0!"},{"$error":"#DIV/0!"},0,0,0,0,{"$nulls":11},0,{"$nulls":39},"36.02.05 Кинология"]
[null,null,{"$error":"#DIV/0!"},{"$error":"#DIV/0!"},0,0,0,0,{"$nulls":11},0,{"$nulls":39},"38.01.01 Оператор диспетчерской (производственно-диспетчерской) службы"]
[null,null,{"$error":"#DIV/0!"},{"$error":"#DIV/0!"},0,0,0,0,{"$nulls":11},0,{"$nulls":39},"38.01.02 Продавец"]
[null,null,{"$error":"#DIV/0!"},{"$error":"#DIV/0!"},0,0,0,0,{"$nulls":11},0,{"$nulls":39},"38.01.02 Продавец, контролер-кассир"]
[null,null,{"$error":"#DIV/0!"},{"$error":"#DIV/0!"},0,0,0,0,{"$nulls":11},0,{"$nulls":39},"38.01.03 Контролер банка"]
[null,null,{"$error":"#DIV/0!"},{"$error":"#DIV/0!"},0,0,0,0,{"$nulls":11},0,{"$nulls":39},"38.02.01 Экономика и бухгалтерский учет (по отраслям)"]
[null,null,{"$error":"#DIV/0!"},{"$error":"#DIV/0!"},0,0,0,0,{"$nulls":11},0,{"$nulls":39},"38.02.02 Страховое дело (по отраслям)"]
[null,null,{"$error":"#DIV/0!"},{"$error":"#DIV/0!"},0,0,0,0,{"$nulls":11},0,{"$nulls":39},"38.02.03 Операционная деятельность в логистике"]
[null,null,{"$error":"#DIV/0!"},{"$error":"#DIV/0!"},0,0,0,0,{"$nulls":11},0,{"$nulls":39},"38.02.04 Коммерция (по отраслям)"]
[null,null,{"$error":"#DIV/0!"},{"$error":"#DIV/0!"},{"$f":"H518+T518+W518+Y518+AA518+AC518+AE518+AG518+AI518+AK518+AM518+AO518+AQ518","v":0},0,0,{"$f":"SUM(K518,N518,P518,R518,)","v":0},{"$nulls":11},{"$f":"SUM(U518,V518)","v":0},{"$nulls":39},"38.02.05 Товароведение и экспертиза качества потребительских товаров"]
[null,null,{"$error":"#DIV/0!"},{"$error":"#DIV/0!"},0,0,0,0,{"$nulls":11},0,{"$nulls":39},"38.02.06 Финансы"]
[null,null,{"$error":"#DIV/0!"},{"$error":"#DIV/0!"},0,0,0,0,{"$nulls":11},0,{"$nulls":39},"38.02.07 Банковское дело"]
[null,null,{"$error":"#DIV/0!"},{"$error":"#DIV/0!"},0,0,0,0,{"$nulls":11},0,{"$nulls":39},"38.02.08 Торговое дело"]
[null,null,{"$error":"#DIV/0!"},{"$error":"#DIV/0!"},0,0,0,0,{"$nulls":11},0,{"$nulls":39},"38.02.09 Конгрессно-выставочная деятельность"]
[null,null,{"$error":"#DIV/0!"},{"$error":"#DIV/0!"},0,0,0,0,{"$nulls":11},0,{"$nulls":39},"39.01.01 Социальный работник"]
[null,null,{"$error":"#DIV/0!"},{"$error":"#DIV/0!"},0,0,0,0,{"$nulls":11},0,{"$nulls":39},"39.02.01 Социальная работа"]
[null,null,{"$error":"#DIV/0!"},{"$error":"#DIV/0!"},0,0,0,0,{"$nulls":11},0,{"$nulls":39},"39.02.02 Организация сурдокоммуникации"]
[null,null,{"$error":"#DIV/0!"},{"$error":"#DIV/0!"},0,0,0,0,{"$nulls":11},0,{"$nulls":39},"39.02.02 Сурдокоммуникация"]
[null,null,{"$error":"#DIV/0!"},{"$error":"#DIV/0!"},0,0,0,0,{"$nulls":11},0,{"$nulls":39},"39.02.03 Обеспечение деятельности службы занятости населения"]
[null,null,{"$error":"#DIV/0!"},{"$error":"#DIV/0!"},0,0,0,0,{"$nulls":11},0,{"$nulls":39},"40.02.01 Право и организация социального обеспечения"]
[null,null,{"$f":"(H529+T529)/E529*100","v":{"$error":"#DIV/0!"}},{"$f":"(H529+T529+Y529)/(E529-W529-AA529)*100","v":{"$error":"#DIV/0!"}},0,0,0,0,{"$nulls":11},0,{"$nulls":39},"40.02.02 Правоохранительная деятельность"]
[null,null,{"$error":"#DIV/0!"},{"$error":"#DIV/0!"},0,0,0,0,{"$nulls":11},0,{"$nulls":39},"40.02.03 Право и судебное администрирование"]
[null,null,{"$error":"#DIV/0!"},{"$error":"#DIV/0!"},0,0,0,0,{"$nulls":11},0,{"$nulls":39},"40.02.04 Юриспруденция"]
[null,null,{"$error":"#DIV/0!"},{"$error":"#DIV/0!"},0,0,0,0,{"$nulls":11},0,{"$nulls":39},"42.01.01 Агент рекламный"]
[null,null,{"$error":"#DIV/0!"},{"$error":"#DIV/0!"},0,0,0,0,{"$nulls":11},0,{"$nulls":39},"42.02.01 Реклама"]
[null,null,{"$error":"#DIV/0!"},{"$error":"#DIV/0!"},0,0,0,0,{"$nulls":11},0,{"$nulls":39},"42.02.02 Издательское дело"]
[null,null,{"$error":"#DIV/0!"},{"$error":"#DIV/0!"},0,0,0,0,{"$nulls":11},0,{"$nulls":39},"43.01.01 Официант, бармен"]
[null,null,{"$error":"#DIV/0!"},{"$error":"#DIV/0!"},0,0,0,0,{"$nulls":11},0,{"$nulls":39},"43.01.02 Парикмахер"]
[null,null,{"$error":"#DIV/0!"},{"$error":"#DIV/0!"},0,0,0,0,{"$nulls":11},0,{"$nulls":39},"43.01.03 Бортпроводник судовой"]
[null,null,{"$error":"#DIV/0!"},{"$error":"#DIV/0!"},0,0,0,0,{"$nulls":11},0,{"$nulls":39},"43.01.04 Повар судовой"]
[null,null,{"$error":"#DIV/0!"},{"$error":"#DIV/0!"},0,0,0,0,{"$nulls":11},0,{"$nulls":39},"43.01.05 Оператор по обработке перевозочных документов на железнодорожном транспорте"]
[null,null,{"$error":"#DIV/0!"},{"$error":"#DIV/0!"},0,0,0,0,{"$nulls":11},0,{"$nulls":39},"43.01.06 Проводник на железнодорожном транспорте"]
[null,null,{"$error":"#DIV/0!"},{"$error":"#DIV/0!"},0,0,0,0,{"$nulls":11},0,{"$nulls":39},"43.01.07 Слесарь по эксплуатации и ремонту газового оборудования"]
[null,null,{"$error":"#DIV/0!"},{"$error":"#DIV/0!"},0,0,0,0,{"$nulls":11},0,{"$nulls":39},"43.01.09 Повар, кондитер"]
[null,null,{"$error":"#DIV/0!"},{"$error":"#DIV/0!"},0,0,0,0,{"$nulls":11},0,{"$nulls":39},"43.01.11 Мастер флористического сервиса"]
[null,null,{"$error":"#DIV/0!"},{"$error":"#DIV/0!"},0,0,0,0,{"$nulls":11},0,{"$nulls":39},"43.02.01 Организация обслуживания в общественном питании"]
[null,null,{"$error":"#DIV/0!"},{"$error":"#DIV/0!"},0,0,0,0,{"$nulls":11},0,{"$nulls":39},"43.02.02 Парикмахерское искусство"]
[null,null,{"$error":"#DIV/0!"},{"$error":"#DIV/0!"},0,0,0,0,{"$nulls":11},0,{"$nulls":39},"43.02.03 Стилистика и искусство визажа"]
[null,null,{"$error":"#DIV/0!"},{"$error":"#DIV/0!"},0,0,0,0,{"$nulls":11},0,{"$nulls":39},"43.02.04 Прикладная эстетика"]
[null,null,{"$error":"#DIV/0!"},{"$error":"#DIV/0!"},0,0,0,0,{"$nulls":11},0,{"$nulls":39},"43.02.05 Флористика"]
[null,null,{"$error":"#DIV/0!"},{"$error":"#DIV/0!"},0,0,0,0,{"$nulls":11},0,{"$nulls":39},"43.02.06 Сервис на транспорте (по видам транспорта)"]
[null,null,{"$error":"#DIV/0!"},{"$error":"#DIV/0!"},0,0,0,0,{"$nulls":11},0,{"$nulls":39},"43.02.07 Сервис по химической обработке изделий"]
[null,null,{"$error":"#DIV/0!"},{"$error":"#DIV/0!"},0,0,0,0,{"$nulls":11},0,{"$nulls":39},"43.02.08 Сервис домашнего и коммунального хозяйства"]
[null,null,{"$error":"#DIV/0!"},{"$error":"#DIV/0!"},0,0,0,0,{"$nulls":11},0,{"$nulls":39},"43.02.10 Туризм"]
[null,null,{"$error":"#DIV/0!"},{"$error":"#DIV/0!"},0,0,0,0,{"$nulls":11},0,{"$nulls":39},"43.02.11 Гостиничный сервис"]
[null,null,{"$error":"#DIV/0!"},{"$error":"#DIV/0!"},0,0,0,0,{"$nulls":11},0,{"$nulls":39},"43.02.12 Технология эстетических услуг"]
[null,null,{"$error":"#DIV/0!"},{"$error":"#DIV/0!"},0,0,0,0,{"$nulls":11},0,{"$nulls":39},"43.02.13 Технология парикмахерского искусства"]
[null,null,{"$error":"#DIV/0!"},{"$error":"#DIV/0!"},0,0,0,0,{"$nulls":11},0,{"$nulls":39},"43.02.14 Гостиничное дело"]
[null,null,{"$error":"#DIV/0!"},{"$error":"#DIV/0!"},0,0,0,0,{"$nulls":11},0,{"$nulls":39},"43.02.15 Поварское и кондитерское дело"]
[null,null,{"$error":"#DIV/0!"},{"$error":"#DIV/0!"},0,0,0,0,{"$nulls":11},0,{"$nulls":39},"43.02.16 Туризм и гостеприимство"]
[null,null,{"$error":"#DIV/0!"},{"$error":"#DIV/0!"},0,0,0,0,{"$nulls":11},0,{"$nulls":39},"43.02.17 Технологии индустрии красоты"]
[null,null,{"$error":"#DIV/0!"},{"$error":"#DIV/0!"},0,0,0,0,{"$nulls":11},0,{"$nulls":39},"44.02.01 Дошкольное образование"]
[null,null,{"$error":"#DIV/0!"},{"$error":"#DIV/0!"},0,0,0,0,{"$nulls":11},0,{"$nulls":39},"44.02.02 Преподавание в начальных классах"]
[null,null,{"$error":"#DIV/0!"},{"$error":"#DIV/0!"},0,0,0,0,{"$nulls":11},0,{"$nulls":39},"44.02.03 Педагогика дополнительного образования"]
[null,null,{"$error":"#DIV/0!"},{"$error":"#DIV/0!"},0,0,0,0,{"$nulls":11},0,{"$nulls":39},"44.02.04 Специальное дошкольное образование"]
[null,null,{"$error":"#DIV/0!"},{"$error":"#DIV/0!"},0,0,0,0,{"$nulls":11},0,{"$nulls":39},"44.02.05 Коррекционная педагогика в начальном образовании"]
[null,null,{"$error":"#DIV/0!"},{"$error":"#DIV/0!"},0,0,0,0,{"$nulls":11},0,{"$nulls":39},"44.02.06 Профессиональное обучение (по отраслям)"]
[null,null,{"$error":"#DIV/0!"},{"$error":"#DIV/0!"},0,0,0,0,{"$nulls":11},0,{"$nulls":39},"44.02.07 Преподавание в основном общем образовании (по профилям)"]
[null,null,{"$error":"#DIV/0!"},{"$error":"#DIV/0!"},0,0,0,0,{"$nulls":11},0,{"$nulls":39},"46.01.01 Секретарь"]
[null,null,{"$error":"#DIV/0!"},{"$error":"#DIV/0!"},0,0,0,0,{"$nulls":11},0,{"$nulls":39},"46.01.02 Архивариус"]
[null,null,{"$error":"#DIV/0!"},{"$error":"#DIV/0!"},0,0,0,0,{"$nulls":11},0,{"$nulls":39},"46.01.03 Делопроизводитель"]
[null,null,{"$error":"#DIV/0!"},{"$error":"#DIV/0!"},0,0,0,0,{"$nulls":11},0,{"$nulls":39},"46.02.01 Документационное обеспечение управления и архивоведение"]
[null,null,{"$error":"#DIV/0!"},{"$error":"#DIV/0!"},0,0,0,0,{"$nulls":11},0,{"$nulls":39},"46.02.02 Обеспечение технологического сопровождения цифровой трансформации документированных сфер деятельности"]
[null,null,{"$error":"#DIV/0!"},{"$error":"#DIV/0!"},0,0,0,0,{"$nulls":11},0,{"$nulls":39},"49.02.01 Физическая культура"]
[null,null,{"$error":"#DIV/0!"},{"$error":"#DIV/0!"},0,0,0,0,{"$nulls":11},0,{"$nulls":39},"49.02.02 Адаптивная физическая культура"]
[null,null,{"$error":"#DIV/0!"},{"$error":"#DIV/0!"},0,0,0,0,{"$nulls":11},0,{"$nulls":39},"49.02.03 Спорт"]
[null,null,{"$error":"#DIV/0!"},{"$error":"#DIV/0!"},0,0,0,0,{"$nulls":11},0,{"$nulls":39},"50.02.01 Мировая художественная культура"]
[null,null,{"$error":"#DIV/0!"},{"$error":"#DIV/0!"},0,0,0,0,{"$nulls":11},0,{"$nulls":39},"51.02.01 Народное художественное творчество (по видам)"]
[null,null,{"$error":"#DIV/0!"},{"$error":"#DIV/0!"},0,0,0,0,{"$nulls":11},0,{"$nulls":39},"51.02.02 Социально-культурная деятельность (по видам)"]
[null,null,{"$error":"#DIV/0!"},{"$error":"#DIV/0!"},0,0,0,0,{"$nulls":11},0,{"$nulls":39},"51.02.03 Библиотековедение"]
[null,null,{"$error":"#DIV/0!"},{"$error":"#DIV/0!"},0,0,0,0,{"$nulls":11},0,{"$nulls":39},"51.02.03 Библиотечно-информационная деятельность"]
[null,null,{"$error":"#DIV/0!"},{"$error":"#DIV/0!"},0,0,0,0,{"$nulls":11},0,{"$nulls":39},"52.02.01 Искусство балета"]
[null,null,{"$error":"#DIV/0!"},{"$error":"#DIV/0!"},0,0,0,0,{"$nulls":11},0,{"$nulls":39},"52.02.02 Искусство танца (по видам)"]
[null,null,{"$error":"#DIV/0!"},{"$error":"#DIV/0!"},{"$f":"H582+T582+W582+Y582+AA582+AC582+AE582+AG582+AI582+AK582+AM582+AO582+AQ582","v":0},0,0,{"$f":"SUM(K582,N582,P582,R582,)","v":0},{"$nulls":11},{"$f":"SUM(U582,V582)","v":0},{"$nulls":39},"52.02.03 Цирковое искусство"]
[null,null,{"$error":"#DIV/0!"},{"$error":"#DIV/0!"},0,0,0,0,{"$nulls":11},0,{"$nulls":39},"52.02.04 Актерское искусство"]
[null,null,{"$error":"#DIV/0!"},{"$error":"#DIV/0!"},0,0,0,0,{"$nulls":11},0,{"$nulls":39},"52.02.05 Искусство эстрады"]
[null,null,{"$error":"#DIV/0!"},{"$error":"#DIV/0!"},0,0,0,0,{"$nulls":11},0,{"$nulls":39},"53.01.01 Мастер по ремонту и обслуживанию музыкальных инструментов (по видам)"]
[null,null,{"$error":"#DIV/0!"},{"$error":"#DIV/0!"},0,0,0,0,{"$nulls":11},0,{"$nulls":39},"53.02.01 Музыкальное образование"]
[null,null,{"$error":"#DIV/0!"},{"$error":"#DIV/0!"},0,0,0,0,{"$nulls":11},0,{"$nulls":39},"53.02.02 Музыкальное искусство эстрады (по видам)"]
[null,null,{"$error":"#DIV/0!"},{"$error":"#DIV/0!"},0,0,0,0,{"$nulls":11},0,{"$nulls":39},"53.02.03 Инструментальное исполнительство (по видам инструментов)"]
[null,null,{"$error":"#DIV/0!"},{"$error":"#DIV/0!"},0,0,0,0,{"$nulls":11},0,{"$nulls":39},"53.02.04 Вокальное искусство"]
[null,null,{"$error":"#DIV/0!"},{"$error":"#DIV/0!"},0,0,0,0,{"$nulls":11},0,{"$nulls":39},"53.02.05 Сольное и хоровое народное пение"]
[null,null,{"$error":"#DIV/0!"},{"$error":"#DIV/0!"},0,0,0,0,{"$nulls":11},0,{"$nulls":39},"53.02.06 Хоровое дирижирование"]
[null,null,{"$error":"#DIV/0!"},{"$error":"#DIV/0!"},0,0,0,0,{"$nulls":11},0,{"$nulls":39},"53.02.06 Хоровое дирижирование с присвоением квалификаций хормейстер, преподаватель"]
[null,null,{"$f":"(H593+T593)/E593*100","v":{"$error":"#DIV/0!"}},{"$f":"(H593+T593+Y593)/(E593-W593-AA593)*100","v":{"$error":"#DIV/0!"}},0,0,0,0,{"$nulls":11},0,{"$nulls":39},"53.02.07 Теория музыки"]
[null,null,{"$error":"#DIV/0!"},{"$error":"#DIV/0!"},0,0,0,0,{"$nulls":11},0,{"$nulls":39},"53.02.08 Музыкальное звукооператорское мастерство"]
[null,null,{"$error":"#DIV/0!"},{"$error":"#DIV/0!"},0,0,0,0,{"$nulls":11},0,{"$nulls":39},"53.02.09 Театрально-декорационное искусство (по видам)"]
[null,null,{"$error":"#DIV/0!"},{"$error":"#DIV/0!"},0,0,0,0,{"$nulls":11},0,{"$nulls":39},"54.01.01 Исполнитель художественно-оформительских работ"]
[null,null,{"$error":"#DIV/0!"},{"$error":"#DIV/0!"},0,0,0,0,{"$nulls":11},0,{"$nulls":39},"54.01.02 Ювелир"]
[null,null,{"$error":"#DIV/0!"},{"$error":"#DIV/0!"},0,0,0,0,{"$nulls":11},0,{"$nulls":39},"54.01.03 Фотограф"]
[null,null,{"$error":"#DIV/0!"},{"$error":"#DIV/0!"},0,0,0,0,{"$nulls":11},0,{"$nulls":39},"54.01.04 Мастер народных художественных промыслов"]
[null,null,{"$error":"#DIV/0!"},{"$error":"#DIV/0!"},0,0,0,0,{"$nulls":11},0,{"$nulls":39},"54.01.05 Изготовитель художественных изделий из тканей с художественной росписью"]
[null,null,{"$error":"#DIV/0!"},{"$error":"#DIV/0!"},0,0,0,0,{"$nulls":11},0,{"$nulls":39},"54.01.06 Изготовитель художественных изделий из металла"]
[null,null,{"$error":"#DIV/0!"},{"$error":"#DIV/0!"},0,0,0,0,{"$nulls":11},0,{"$nulls":39},"54.01.07 Изготовитель художественных изделий из керамики"]
[null,null,{"$error":"#DIV/0!"},{"$error":"#DIV/0!"},0,0,0,0,{"$nulls":11},0,{"$nulls":39},"54.01.10 Художник росписи по дереву"]
[null,null,{"$error":"#DIV/0!"},{"$error":"#DIV/0!"},0,0,0,0,{"$nulls":11},0,{"$nulls":39},"54.01.11 Художник росписи по ткани"]
[null,null,{"$error":"#DIV/0!"},{"$error":"#DIV/0!"},0,0,0,0,{"$nulls":11},0,{"$nulls":39},"54.01.12 Художник миниатюрной живописи"]
[null,null,{"$error":"#DIV/0!"},{"$error":"#DIV/0!"},0,0,0,0,{"$nulls":11},0,{"$nulls":39},"54.01.13 Изготовитель художественных изделий из дерева"]
[null,null,{"$error":"#DIV/0!"},{"$error":"#DIV/0!"},0,0,0,0,{"$nulls":11},0,{"$nulls":39},"54.01.14 Резчик"]
[null,null,{"$error":"#DIV/0!"},{"$error":"#DIV/0!"},0,0,0,0,{"$nulls":11},0,{"$nulls":39},"54.01.16 Лепщик-модельщик архитектурных деталей"]
[null,null,{"$error":"#DIV/0!"},{"$error":"#DIV/0!"},0,0,0,0,{"$nulls":11},0,{"$nulls":39},"54.01.17 Реставратор строительный"]
[null,null,{"$error":"#DIV/0!"},{"$error":"#DIV/0!"},0,0,0,0,{"$nulls":11},0,{"$nulls":39},"54.01.19 Реставратор памятников каменного и деревянного зодчества"]
[null,null,{"$error":"#DIV/0!"},{"$error":"#DIV/0!"},0,0,0,0,{"$nulls":11},0,{"$nulls":39},"54.01.20 Графический дизайнер"]
[null,null,{"$error":"#DIV/0!"},{"$error":"#DIV/0!"},0,0,0,0,{"$nulls":11},0,{"$nulls":39},"54.01.21 Изготовитель художественных изделий из твердых материалов (по видам, за исключением металла)"]
[null,null,{"$error":"#DIV/0!"},{"$error":"#DIV/0!"},0,0,0,0,{"$nulls":11},0,{"$nulls":39},"54.01.22 Реставратор"]
[null,null,{"$error":"#DIV/0!"},{"$error":"#DIV/0!"},0,0,0,0,{"$nulls":11},0,{"$nulls":39},"54.02.01 Дизайн (по отраслям)"]
[null,null,{"$error":"#DIV/0!"},{"$error":"#DIV/0!"},0,0,0,0,{"$nulls":11},0,{"$nulls":39},"54.02.02 Декоративно-прикладное искусство и народные промыслы (по видам)"]
[null,null,{"$error":"#DIV/0!"},{"$error":"#DIV/0!"},0,0,0,0,{"$nulls":11},0,{"$nulls":39},"54.02.03 Художественное оформление изделий текстильной и легкой промышленности"]
[null,null,{"$error":"#DIV/0!"},{"$error":"#DIV/0!"},0,0,0,0,{"$nulls":11},0,{"$nulls":39},"54.02.04 Реставрация"]
[null,null,{"$error":"#DIV/0!"},{"$error":"#DIV/0!"},0,0,0,0,{"$nulls":11},0,{"$nulls":39},"54.02.05 Живопись (по видам)"]
[null,null,{"$error":"#DIV/0!"},{"$error":"#DIV/0!"},0,0,0,0,{"$nulls":11},0,{"$nulls":39},"54.02.05 Живопись с присвоением квалификаций художник-живописец, преподаватель"]
[null,null,{"$error":"#DIV/0!"},{"$error":"#DIV/0!"},0,0,0,0,{"$nulls":11},0,{"$nulls":39},"54.02.06 Изобразительное искусство и черчение"]
[null,null,{"$error":"#DIV/0!"},{"$error":"#DIV/0!"},0,0,0,0,{"$nulls":11},0,{"$nulls":39},"54.02.07 Скульптура"]
[null,null,{"$error":"#DIV/0!"},{"$error":"#DIV/0!"},0,0,0,0,{"$nulls":11},0,{"$nulls":39},"54.02.08 Техника и искусство фотографии"]
[null,null,{"$error":"#DIV/0!"},{"$error":"#DIV/0!"},0,0,0,0,{"$nulls":11},0,{"$nulls":39},"55.02.01 Театральная и аудиовизуальная техника (по видам)"]
[null,null,{"$error":"#DIV/0!"},{"$error":"#DIV/0!"},0,0,0,0,{"$nulls":11},0,{"$nulls":39},"55.02.02 Анимация (по видам)"]
[null,null,{"$error":"#DIV/0!"},{"$error":"#DIV/0!"},0,0,0,0,{"$nulls":11},0,{"$nulls":39},"55.02.02 Анимация и анимационное кино (по видам)"]
[null,null,{"$error":"#DIV/0!"},{"$error":"#DIV/0!"},0,0,0,0,{"$nulls":11},0,{"$nulls":39},"55.02.03 Кино- и телепроизводство (по видам)"]